{"text_format":"1","workbook":"xlsx","n_sheets":4,"sheets":["Classification LIBRE","Classification CADRE","Classification 1BANDE","Classification 3BANDES"],"not_rendered":{"charts":0,"images":0,"macros":1,"external_links":0,"defined_names":4,"comments":0,"pivot_tables":0},"unopened":[],"bounds":{"document_bytes":16777216,"sheet_cells":100000,"rows_first":2000,"rows_last":500,"rows_between":2000,"halvings":0,"cell_chars":16384,"cell_head_chars":4096},"cells_cut":0,"cells_raw":0,"read":"whole","date_system":"1900"}

{"sheet":"Classification LIBRE","index":0,"n_rows":476,"n_cols":18,"rows_kept":476,"cut":false,"hidden":false,"merged":[]}
["Licence","Nom","Prénom","Nom Prénom","Saison","Saison Licence","Ligue","CDB","Num club","Nom club","CONCATENER2","Classifié","Catégorie au 01/09/24","Catégorie au 01/09/25","Moy 2.80  au 01/09/25","Moy 3.10 au 01/09/25","Tendance classification","Inscription catégorie supérieure"]
["149448T","ALESSI","JEAN PIERRE",{"$f":"B2&\" \"&C2","v":"ALESSI JEAN PIERRE"},2024,2025,"Méditerranée","CDB Var",19023,"BILLARD CLUB GARDEEN",{"$f":"I2&\" – \"&J2","v":"19023 – BILLARD CLUB GARDEEN"},"Oui","R3","R3",1.38,1.1000000000000001,"à","SELON RÈGLEMENT SPORTIF LIGUE"]
["151459E","ALIBERT","BRUNO","ALIBERT BRUNO",2025,2025,"Méditerranée","CDB Alpes Maritimes",19056,"BILLARD CLUB DE NICE","19056 – BILLARD CLUB DE NICE","Oui","R2","R2",2.4900000000000002,1.99,"à","SELON RÈGLEMENT SPORTIF LIGUE"]
["157036R","ALLIGIER","GERARD","ALLIGIER GERARD",2025,2025,"Méditerranée","CDB Var",19019,"BILLARD CLUB DE LA BAIE","19019 – BILLARD CLUB DE LA BAIE","Oui","R3","R3",1.46,1.17,"à","SELON RÈGLEMENT SPORTIF LIGUE"]
["159130S","ALVAREZ","PHILIPPE","ALVAREZ PHILIPPE",2025,2025,"Méditerranée","CDB Alpes Maritimes",19056,"BILLARD CLUB DE NICE","19056 – BILLARD CLUB DE NICE","Oui","R1","R1",5.12,4.0999999999999996,"à","SELON RÈGLEMENT SPORTIF LIGUE"]
["152035F","ALVISET","GUY","ALVISET GUY",2025,2025,"Méditerranée","CDB Bouches du Rhône",19050,"BILLARD CLUB SAUSSETOIS","19050 – BILLARD CLUB SAUSSETOIS","Oui","R3","R3",1.7,1.36,"à","SELON RÈGLEMENT SPORTIF LIGUE"]
["155531F","AMOUROUX","LUC","AMOUROUX LUC",2025,2025,"Méditerranée","CDB Var",19023,"BILLARD CLUB GARDEEN","19023 – BILLARD CLUB GARDEEN","Oui","R4","R4",1.05,0.84,"à","SELON RÈGLEMENT SPORTIF LIGUE"]
["021818E","ANDRY","JEAN FRANCOIS","ANDRY JEAN FRANCOIS",2025,2025,"Méditerranée","CDB Bouches du Rhône",19090,"BILLARD AMATEUR ROGNAC","19090 – BILLARD AMATEUR ROGNAC","Oui","R2","R3",2.08,1.66,"â","AUTORISÉ"]
["021820G","ANNESTAY","JACQUES","ANNESTAY JACQUES",2024,2025,"Méditerranée","CDB Alpes Haute Provence",19025,"BILLARD CLUB SISTERONNAIS","19025 – BILLARD CLUB SISTERONNAIS","Oui","R2","R3",2.08,1.66,"â","AUTORISÉ"]
["021821H","ANTONIN","ALAIN","ANTONIN ALAIN",2025,2025,"Méditerranée","CDB Vaucluse",19021,"BILLARD CLUB CAVAILLONNAIS","19021 – BILLARD CLUB CAVAILLONNAIS","Oui","N3","N3",6.94,5.55,"à","SELON RÈGLEMENT SPORTIF LIGUE"]
["161785D","ARMENGAU","PHILIPPE","ARMENGAU PHILIPPE",2025,2025,"Méditerranée","CDB Alpes Maritimes",19056,"BILLARD CLUB DE NICE","19056 – BILLARD CLUB DE NICE","Oui","R4","R4",0.79,0.63,"à","SELON RÈGLEMENT SPORTIF LIGUE"]
["180272Y","ARNOUX","LAURENT","ARNOUX LAURENT",2025,2025,"Méditerranée","CDB Alpes Maritimes",19058,"ACADEMIE DE BILLARD DE BARBOSSI MANDELIEU","19058 – ACADEMIE DE BILLARD DE BARBOSSI MANDELIEU","Oui","R3","R3",1.34,1.07,"à","SELON RÈGLEMENT SPORTIF LIGUE"]
["166320H","ATHLANI","MICHEL","ATHLANI MICHEL",2021,2021,"Méditerranée","CDB Bouches du Rhône",19002,"SPORT AMAT.DE BILLARD MARSEILLAIS","19002 – SPORT AMAT.DE BILLARD MARSEILLAIS","Oui","R3","R3",1.25,1,"à","SELON RÈGLEMENT SPORTIF LIGUE"]
["148204R","AUBERT ROUECHE","LYDIA","AUBERT ROUECHE LYDIA",2025,2025,"Méditerranée","CDB Var",19106,"BILLARD CLUB VINONNAIS","19106 – BILLARD CLUB VINONNAIS","Oui","R2","R2",2.73,2.1800000000000002,"à","SELON RÈGLEMENT SPORTIF LIGUE"]
["106513R","AUDIBERT","JEAN PIERRE","AUDIBERT JEAN PIERRE",2019,2025,"Méditerranée","CDB Bouches du Rhône",19012,"SALON BILLARD CLUB","19012 – SALON BILLARD CLUB","Oui","R2","R2",3,2.4,"à","SELON RÈGLEMENT SPORTIF LIGUE"]
["115304U","BAILLON","JEAN","BAILLON JEAN",2025,2025,"Méditerranée","CDB Alpes Maritimes",19058,"ACADEMIE DE BILLARD DE BARBOSSI MANDELIEU","19058 – ACADEMIE DE BILLARD DE BARBOSSI MANDELIEU","Oui","R3","R4",0.89,0.71,"â","AUTORISÉ"]
["150101D","BALESTRI","CHARLY","BALESTRI CHARLY",2014,2019,"Méditerranée","CDB Alpes Maritimes",19058,"ACADEMIE DE BILLARD DE BARBOSSI MANDELIEU","19058 – ACADEMIE DE BILLARD DE BARBOSSI MANDELIEU","Oui","R2","R2",3.91,3.13,"à","SELON RÈGLEMENT SPORTIF LIGUE"]
["153554G","BALESTRI","MAURICE","BALESTRI MAURICE",2025,2025,"Méditerranée","CDB Alpes Maritimes",19058,"ACADEMIE DE BILLARD DE BARBOSSI MANDELIEU","19058 – ACADEMIE DE BILLARD DE BARBOSSI MANDELIEU","Oui","R4","R4",0.93,0.74,"à","SELON RÈGLEMENT SPORTIF LIGUE"]
["023184S","BALLIGAND","SERGE","BALLIGAND SERGE",2025,2025,"Méditerranée","CDB Var",19059,"BILLARD CLUB ROQUEBRUNOIS","19059 – BILLARD CLUB ROQUEBRUNOIS","Oui","R1","R1",4.2300000000000004,3.38,"à","SELON RÈGLEMENT SPORTIF LIGUE"]
["149693K","BANO","SERGE","BANO SERGE",2020,2025,"Méditerranée","CDB Bouches du Rhône",19001,"S. S. A. B. D AIX EN PROVENCE","19001 – S. S. A. B. D AIX EN PROVENCE","Oui","R3","R3",1.36,1.08,"à","SELON RÈGLEMENT SPORTIF LIGUE"]
["109917P","BARBANNEAU","FREDERIC","BARBANNEAU FREDERIC",2022,2025,"Méditerranée","CDB Var",19106,"BILLARD CLUB VINONNAIS","19106 – BILLARD CLUB VINONNAIS","Oui","R1","R2",2.5,2,"â","AUTORISÉ"]
["018535X","BARDET","JEAN PIERRE","BARDET JEAN PIERRE",2024,2025,"Méditerranée","CDB Var",19023,"BILLARD CLUB GARDEEN","19023 – BILLARD CLUB GARDEEN","Oui","R2","R2",3.29,2.63,"à","SELON RÈGLEMENT SPORTIF LIGUE"]
["122300W","BARRALLON","JEAN PAUL","BARRALLON JEAN PAUL",2025,2025,"Méditerranée","CDB Var",19023,"BILLARD CLUB GARDEEN","19023 – BILLARD CLUB GARDEEN","Oui","R3","R3",1.86,1.49,"à","SELON RÈGLEMENT SPORTIF LIGUE"]
["115343H","BARTOLETTI","JULIEN","BARTOLETTI JULIEN",2021,2021,"Méditerranée","CDB Bouches du Rhône",19017,"BILLARD CLUB PHOCEEN","19017 – BILLARD CLUB PHOCEEN","Oui","R1","R2",3.78,3.02,"â","AUTORISÉ"]
["129911P","BASSIGNANA","ROBERT","BASSIGNANA ROBERT",2016,2025,"Méditerranée","CDB Var",19023,"BILLARD CLUB GARDEEN","19023 – BILLARD CLUB GARDEEN","Oui","R3","R3",1.64,1.31,"à","SELON RÈGLEMENT SPORTIF LIGUE"]
["103568K","BASSOUL","JEAN MARIE","BASSOUL JEAN MARIE",2025,2025,"Méditerranée","CDB Vaucluse",19006,"BILLARD CLUB CARPENTRASSIEN","19006 – BILLARD CLUB CARPENTRASSIEN","Oui","R2","R2",2.61,2.09,"à","SELON RÈGLEMENT SPORTIF LIGUE"]
["021860U","BAYARD","JEAN CLAUDE","BAYARD JEAN CLAUDE",2012,2025,"Méditerranée","CDB Vaucluse",19021,"BILLARD CLUB CAVAILLONNAIS","19021 – BILLARD CLUB CAVAILLONNAIS","Oui","R3","R4",1.1000000000000001,0.88,"â","AUTORISÉ"]
["021863X","BEDOC","JACQUES","BEDOC JACQUES",2017,2025,"Méditerranée","CDB Bouches du Rhône",19007,"BILLARD CLUB BERROIS","19007 – BILLARD CLUB BERROIS","Oui","R2","R2",2.77,2.21,"à","SELON RÈGLEMENT SPORTIF LIGUE"]
["132789H","BELTRITTI","JEAN YVES","BELTRITTI JEAN YVES",2025,2025,"Méditerranée","CDB Var",19106,"BILLARD CLUB VINONNAIS","19106 – BILLARD CLUB VINONNAIS","Oui","R3","R3",1.47,1.17,"à","SELON RÈGLEMENT SPORTIF LIGUE"]
["021872G","BENAVIDES","CLAUDE","BENAVIDES CLAUDE",2011,2025,"Méditerranée","CDB Bouches du Rhône",19012,"SALON BILLARD CLUB","19012 – SALON BILLARD CLUB","Oui","R2","R2",3.83,3.06,"à","SELON RÈGLEMENT SPORTIF LIGUE"]
["160341J","BENHAMOU","ALEXIS","BENHAMOU ALEXIS",2025,2025,"Méditerranée","CDB Bouches du Rhône",19001,"S. S. A. B. D AIX EN PROVENCE","19001 – S. S. A. B. D AIX EN PROVENCE","Oui","-","R2",3.07,2.46,"à","SELON RÈGLEMENT SPORTIF LIGUE"]
["159238K","BENIER","PATRICK","BENIER PATRICK",2025,2025,"Méditerranée","CDB Var",19023,"BILLARD CLUB GARDEEN","19023 – BILLARD CLUB GARDEEN","Oui","R3","R3",1.37,1.1000000000000001,"à","SELON RÈGLEMENT SPORTIF LIGUE"]
["159790K","BENOIT","MICHEL","BENOIT MICHEL",2025,2025,"Méditerranée","CDB Vaucluse",19027,"ACADEMIE DE BILLARD DE BOLLENE","19027 – ACADEMIE DE BILLARD DE BOLLENE","Oui","R4","R4",1.01,0.81,"à","SELON RÈGLEMENT SPORTIF LIGUE"]
["125945B","BERNAT","JEAN PIERRE","BERNAT JEAN PIERRE",2025,2025,"Méditerranée","CDB Var",19023,"BILLARD CLUB GARDEEN","19023 – BILLARD CLUB GARDEEN","Oui","R3","R3",1.82,1.46,"à","SELON RÈGLEMENT SPORTIF LIGUE"]
["180334Q","BETTONI","GILLES","BETTONI GILLES",2025,2025,"Méditerranée","CDB Alpes Maritimes",19058,"ACADEMIE DE BILLARD DE BARBOSSI MANDELIEU","19058 – ACADEMIE DE BILLARD DE BARBOSSI MANDELIEU","Oui","-","R4",0.92,0.74,"à","SELON RÈGLEMENT SPORTIF LIGUE"]
["159202W","BIARD","ANDRE","BIARD ANDRE",2025,2025,"Méditerranée","CDB Bouches du Rhône",19009,"CLUB BILLARD ISTREEN","19009 – CLUB BILLARD ISTREEN","Oui","R4","R4",0.93,0.74,"à","SELON RÈGLEMENT SPORTIF LIGUE"]
["125917Z","BIDDAU","FRANCOIS","BIDDAU FRANCOIS",2024,2025,"Méditerranée","CDB Bouches du Rhône",19009,"CLUB BILLARD ISTREEN","19009 – CLUB BILLARD ISTREEN","Oui","R2","R2",3.26,2.61,"à","SELON RÈGLEMENT SPORTIF LIGUE"]
["141828Y","BILDIK","MEHMET","BILDIK MEHMET",2024,2024,"Méditerranée","CDB Vaucluse",19006,"BILLARD CLUB CARPENTRASSIEN","19006 – BILLARD CLUB CARPENTRASSIEN","Oui","N3","R1",4.6100000000000003,3.69,"â","AUTORISÉ"]
["183516Z","BIOT","ELODIE","BIOT ELODIE",2025,2025,"Méditerranée","CDB Alpes Maritimes",19058,"ACADEMIE DE BILLARD DE BARBOSSI MANDELIEU","19058 – ACADEMIE DE BILLARD DE BARBOSSI MANDELIEU","Oui","-","R4",0.35,0.28000000000000003,"à","SELON RÈGLEMENT SPORTIF LIGUE"]
["179744Z","BLANC SANTELLI","ERIC","BLANC SANTELLI ERIC",2025,2025,"Méditerranée","CDB Bouches du Rhône",19009,"CLUB BILLARD ISTREEN","19009 – CLUB BILLARD ISTREEN","Oui","R4","R4",0.6,0.48,"à","SELON RÈGLEMENT SPORTIF LIGUE"]
["016248Y","BOFFA","BERNARD","BOFFA BERNARD",2020,2021,"Méditerranée","CDB Var",19023,"BILLARD CLUB GARDEEN","19023 – BILLARD CLUB GARDEEN","Oui","R3","R3",1.44,1.1499999999999999,"à","SELON RÈGLEMENT SPORTIF LIGUE"]
["132947J","BONALD","YVES","BONALD YVES",2012,2019,"Méditerranée","CDB Bouches du Rhône",19001,"S. S. A. B. D AIX EN PROVENCE","19001 – S. S. A. B. D AIX EN PROVENCE","Oui","N3","N3",7.89,6.31,"à","SELON RÈGLEMENT SPORTIF LIGUE"]
["021894C","BONELLO","LUCIEN","BONELLO LUCIEN",2024,2025,"Méditerranée","CDB Bouches du Rhône",19090,"BILLARD AMATEUR ROGNAC","19090 – BILLARD AMATEUR ROGNAC","Oui","R3","R3",1.22,0.97,"à","SELON RÈGLEMENT SPORTIF LIGUE"]
["150422C","BONNEMAISON","DENIS","BONNEMAISON DENIS",2025,2025,"Méditerranée","CDB Bouches du Rhône",19009,"CLUB BILLARD ISTREEN","19009 – CLUB BILLARD ISTREEN","Oui","R4","R4",1.0900000000000001,0.87,"à","SELON RÈGLEMENT SPORTIF LIGUE"]
["187537V","BONTEMPS","PAUL","BONTEMPS PAUL",2025,2025,"Méditerranée","CDB Bouches du Rhône",19001,"S. S. A. B. D AIX EN PROVENCE","19001 – S. S. A. B. D AIX EN PROVENCE","Oui","-","R4",0.98,0.79,"à","SELON RÈGLEMENT SPORTIF LIGUE"]
["021900I","BONTOUX","MAX","BONTOUX MAX",2014,2025,"Méditerranée","CDB Bouches du Rhône",19007,"BILLARD CLUB BERROIS","19007 – BILLARD CLUB BERROIS","Oui","R1","R1",4.01,3.21,"à","SELON RÈGLEMENT SPORTIF LIGUE"]
["149287T","BORDES","BERNARD","BORDES BERNARD",2025,2025,"Méditerranée","CDB Var",19061,"ACAD.BILLARD ST RAPHAEL","19061 – ACAD.BILLARD ST RAPHAEL","Oui","R1","R2",3.06,2.4500000000000002,"â","AUTORISÉ"]
["149288V","BORDES","CATHERINE","BORDES CATHERINE",2024,2025,"Méditerranée","CDB Var",19061,"ACAD.BILLARD ST RAPHAEL","19061 – ACAD.BILLARD ST RAPHAEL","Oui","R4","R4",0.75,0.6,"à","SELON RÈGLEMENT SPORTIF LIGUE"]
["160000N","BOSSOT","JEAN","BOSSOT JEAN",2025,2025,"Méditerranée","CDB Vaucluse",19027,"ACADEMIE DE BILLARD DE BOLLENE","19027 – ACADEMIE DE BILLARD DE BOLLENE","Oui","R3","R3",1.59,1.27,"à","SELON RÈGLEMENT SPORTIF LIGUE"]
["012645J","BOULANDET","ALAIN","BOULANDET ALAIN",2025,2025,"Méditerranée","CDB Alpes Maritimes",19055,"ACADEMIE DE BILLARD DE MENTON","19055 – ACADEMIE DE BILLARD DE MENTON","Oui","R3","R3",1.4,1.1200000000000001,"à","SELON RÈGLEMENT SPORTIF LIGUE"]
["155529D","BOULANT","CLAUDE","BOULANT CLAUDE",2024,2025,"Méditerranée","CDB Var",19019,"BILLARD CLUB DE LA BAIE","19019 – BILLARD CLUB DE LA BAIE","Oui","R2","R3",1.91,1.53,"â","AUTORISÉ"]
["149613Y","BOVET","MICHEL","BOVET MICHEL",2023,2023,"Méditerranée","CDB Var",19059,"BILLARD CLUB ROQUEBRUNOIS","19059 – BILLARD CLUB ROQUEBRUNOIS","Oui","R3","R3",1.4,1.1200000000000001,"à","SELON RÈGLEMENT SPORTIF LIGUE"]
["016411F","BRAYER","DENIS","BRAYER DENIS",2023,2025,"Méditerranée","CDB Vaucluse",19008,"BRITISH BILLARD CLUB AVIGNON","19008 – BRITISH BILLARD CLUB AVIGNON","Oui","N3","R1",4.6100000000000003,3.69,"â","AUTORISÉ"]
["021918A","BREDAT","RENE","BREDAT RENE",2023,2025,"Méditerranée","CDB Alpes Haute Provence",19025,"BILLARD CLUB SISTERONNAIS","19025 – BILLARD CLUB SISTERONNAIS","Oui","R1","R2",3.28,2.62,"â","AUTORISÉ"]
["152345S","BREPSON","MARTIAL","BREPSON MARTIAL",2025,2025,"Méditerranée","CDB Alpes Maritimes",19058,"ACADEMIE DE BILLARD DE BARBOSSI MANDELIEU","19058 – ACADEMIE DE BILLARD DE BARBOSSI MANDELIEU","Oui","R4","R4",1.1599999999999999,0.93,"à","SELON RÈGLEMENT SPORTIF LIGUE"]
["021919B","BRESSE","JEAN LOUIS","BRESSE JEAN LOUIS",2025,2025,"Méditerranée","CDB Vaucluse",19016,"BILLARD CLUB ORANGEOIS","19016 – BILLARD CLUB ORANGEOIS","Oui","-","R3",1.34,1.07,"à","SELON RÈGLEMENT SPORTIF LIGUE"]
["113104E","BRIAND","ALAIN","BRIAND ALAIN",2025,2025,"Méditerranée","CDB Bouches du Rhône",19002,"SPORT AMAT.DE BILLARD MARSEILLAIS","19002 – SPORT AMAT.DE BILLARD MARSEILLAIS","Oui","R2","R2",2.82,2.25,"à","SELON RÈGLEMENT SPORTIF LIGUE"]
["021920C","BRIOIT","DOMINIQUE","BRIOIT DOMINIQUE",2024,2025,"Méditerranée","CDB Alpes Maritimes",19055,"ACADEMIE DE BILLARD DE MENTON","19055 – ACADEMIE DE BILLARD DE MENTON","Oui","R3","R3",1.59,1.27,"à","SELON RÈGLEMENT SPORTIF LIGUE"]
["021922E","BRIOSNE","PASCAL","BRIOSNE PASCAL",2021,2025,"Méditerranée","CDB Bouches du Rhône",19001,"S. S. A. B. D AIX EN PROVENCE","19001 – S. S. A. B. D AIX EN PROVENCE","Oui","R1","R1",4.04,3.23,"à","SELON RÈGLEMENT SPORTIF LIGUE"]
["114733V","BRUANT","SYLVAIN","BRUANT SYLVAIN",2024,2025,"Méditerranée","CDB Vaucluse",19016,"BILLARD CLUB ORANGEOIS","19016 – BILLARD CLUB ORANGEOIS","Oui","R3","R3",1.96,1.57,"à","SELON RÈGLEMENT SPORTIF LIGUE"]
["021929L","BRUN","ROGER","BRUN ROGER",2025,2025,"Méditerranée","CDB Bouches du Rhône",19017,"BILLARD CLUB PHOCEEN","19017 – BILLARD CLUB PHOCEEN","Oui","-","R3",1.84,1.47,"à","SELON RÈGLEMENT SPORTIF LIGUE"]
["123684C","BURGANT","JEAN MARIE","BURGANT JEAN MARIE",2025,2025,"Méditerranée","CDB Var",19019,"BILLARD CLUB DE LA BAIE","19019 – BILLARD CLUB DE LA BAIE","Oui","R2","R2",3.58,2.86,"à","SELON RÈGLEMENT SPORTIF LIGUE"]
["112311R","CACHO","DIDIER","CACHO DIDIER",2019,2025,"Méditerranée","CDB Bouches du Rhône",19098,"BILLARD CLUB LA FARE","19098 – BILLARD CLUB LA FARE","Oui","R1","R1",4.5,3.6,"à","SELON RÈGLEMENT SPORTIF LIGUE"]
["021938U","CALDERON","LUC","CALDERON LUC",2025,2025,"Méditerranée","CDB Bouches du Rhône",19009,"CLUB BILLARD ISTREEN","19009 – CLUB BILLARD ISTREEN","Oui","R2","R2",3.45,2.76,"à","SELON RÈGLEMENT SPORTIF LIGUE"]
["173674B","CALDERON","MATHYS","CALDERON MATHYS",2024,2024,"Méditerranée","CDB Bouches du Rhône",19009,"CLUB BILLARD ISTREEN","19009 – CLUB BILLARD ISTREEN","Oui","R4","R4",0.56000000000000005,0.45,"à","SELON RÈGLEMENT SPORTIF LIGUE"]
["021944A","CAO","HUU TUOI",{"$f":"B66&\" \"&C66","v":"CAO HUU TUOI"},2025,2025,"Méditerranée","CDB Bouches du Rhône",19098,"BILLARD CLUB LA FARE",{"$f":"I66&\" – \"&J66","v":"19098 – BILLARD CLUB LA FARE"},"Oui","R1","R1",4.21,3.37,"à","SELON RÈGLEMENT SPORTIF LIGUE"]
["148607E","CARRARA","FELIX","CARRARA FELIX",2018,2021,"Méditerranée","CDB Alpes Maritimes",19058,"ACADEMIE DE BILLARD DE BARBOSSI MANDELIEU","19058 – ACADEMIE DE BILLARD DE BARBOSSI MANDELIEU","Oui","R4","R4",0.92,0.74,"à","SELON RÈGLEMENT SPORTIF LIGUE"]
["130701Z","CARRION","JEAN PHILIPPE","CARRION JEAN PHILIPPE",2025,2025,"Méditerranée","CDB Alpes Maritimes",19058,"ACADEMIE DE BILLARD DE BARBOSSI MANDELIEU","19058 – ACADEMIE DE BILLARD DE BARBOSSI MANDELIEU","Oui","R1","N3",6.09,4.87,"á","SELON RÈGLEMENT SPORTIF LIGUE"]
["112516O","CESARINI","JEAN PAUL","CESARINI JEAN PAUL",2023,2023,"Méditerranée","CDB Var",19106,"BILLARD CLUB VINONNAIS","19106 – BILLARD CLUB VINONNAIS","Oui","R1","R1",4.03,3.22,"à","SELON RÈGLEMENT SPORTIF LIGUE"]
["118684U","CESARO","JEAN CLAUDE","CESARO JEAN CLAUDE",2025,2025,"Méditerranée","CDB Bouches du Rhône",19007,"BILLARD CLUB BERROIS","19007 – BILLARD CLUB BERROIS","Oui","R2","R3",1.87,1.5,"â","AUTORISÉ"]
["173622V","CHABASSIERE","DOMINIQUE","CHABASSIERE DOMINIQUE",2024,2024,"Méditerranée","CDB Bouches du Rhône",19098,"BILLARD CLUB LA FARE","19098 – BILLARD CLUB LA FARE","Oui","R2","R2",3.31,2.65,"à","SELON RÈGLEMENT SPORTIF LIGUE"]
["161620Z","CHABOUD","JACQUES","CHABOUD JACQUES",2020,2025,"Méditerranée","CDB Var",19023,"BILLARD CLUB GARDEEN","19023 – BILLARD CLUB GARDEEN","Oui","R4","R4",0.62,0.49,"à","SELON RÈGLEMENT SPORTIF LIGUE"]
["104469B","CHAPUIS","ERIC","CHAPUIS ERIC",2014,2025,"Méditerranée","CDB Alpes Maritimes",19056,"BILLARD CLUB DE NICE","19056 – BILLARD CLUB DE NICE","Oui","N1","N2",14.26,11.41,"â","AUTORISÉ"]
["122456W","CHARBAUT","CLAUDE","CHARBAUT CLAUDE",2025,2025,"Méditerranée","CDB Var",19059,"BILLARD CLUB ROQUEBRUNOIS","19059 – BILLARD CLUB ROQUEBRUNOIS","Oui","R3","R3",1.67,1.34,"à","SELON RÈGLEMENT SPORTIF LIGUE"]
["021967X","CHARBIT","JEAN MARC","CHARBIT JEAN MARC",2025,2025,"Méditerranée","CDB Alpes Maritimes",19056,"BILLARD CLUB DE NICE","19056 – BILLARD CLUB DE NICE","Oui","R2","R2",2.99,2.39,"à","SELON RÈGLEMENT SPORTIF LIGUE"]
["012782Q","CHASTAN","GEORGES","CHASTAN GEORGES",2025,2025,"Méditerranée","CDB Vaucluse",19021,"BILLARD CLUB CAVAILLONNAIS","19021 – BILLARD CLUB CAVAILLONNAIS","Oui","R2","R2",3.18,2.54,"à","SELON RÈGLEMENT SPORTIF LIGUE"]
["137581P","CHEMLA","ELIE","CHEMLA ELIE",2025,2025,"Méditerranée","CDB Vaucluse",19014,"BILLARD CLUB AVIGNONNAIS","19014 – BILLARD CLUB AVIGNONNAIS","Oui","R1","R2",3.57,2.85,"â","AUTORISÉ"]
["187031V","CHEURF","SELIMANE","CHEURF SELIMANE",2025,2025,"Méditerranée","CDB Bouches du Rhône",19090,"BILLARD AMATEUR ROGNAC","19090 – BILLARD AMATEUR ROGNAC","Oui","-","R4",0.6,0.48,"à","SELON RÈGLEMENT SPORTIF LIGUE"]
["160332Z","CHICARD","ALAIN","CHICARD ALAIN",2022,2025,"Méditerranée","CDB Vaucluse",19006,"BILLARD CLUB CARPENTRASSIEN","19006 – BILLARD CLUB CARPENTRASSIEN","Oui","R4","R4",0.92,0.73,"à","SELON RÈGLEMENT SPORTIF LIGUE"]
["108854S","CHUZEVILLE","GILLES","CHUZEVILLE GILLES",2024,2025,"Méditerranée","CDB Alpes Haute Provence",19025,"BILLARD CLUB SISTERONNAIS","19025 – BILLARD CLUB SISTERONNAIS","Oui","R2","R2",2.96,2.37,"à","SELON RÈGLEMENT SPORTIF LIGUE"]
["120275Z","CLAICHE","GERARD","CLAICHE GERARD",2012,2019,"Méditerranée","CDB Var",19019,"BILLARD CLUB DE LA BAIE","19019 – BILLARD CLUB DE LA BAIE","Oui","R4","R4",1.08,0.86,"à","SELON RÈGLEMENT SPORTIF LIGUE"]
["148126G","CLAUDON","PHILIPPE","CLAUDON PHILIPPE",2025,2025,"Méditerranée","CDB Alpes Maritimes",19056,"BILLARD CLUB DE NICE","19056 – BILLARD CLUB DE NICE","Oui","R4","R4",0.78,0.63,"à","SELON RÈGLEMENT SPORTIF LIGUE"]
["129497R","CLEMENT","GERARD","CLEMENT GERARD",2009,2025,"Méditerranée","CDB Bouches du Rhône",19050,"BILLARD CLUB SAUSSETOIS","19050 – BILLARD CLUB SAUSSETOIS","Oui","R4","R4",1.05,0.84,"à","SELON RÈGLEMENT SPORTIF LIGUE"]
["129909N","CLUZEL","JEAN LOUP","CLUZEL JEAN LOUP",2018,2019,"Méditerranée","CDB Var",19023,"BILLARD CLUB GARDEEN","19023 – BILLARD CLUB GARDEEN","Oui","R4","R4",0.86,0.69,"à","SELON RÈGLEMENT SPORTIF LIGUE"]
["148796K","COHEN","RICHARD","COHEN RICHARD",2025,2025,"Méditerranée","CDB Alpes Maritimes",19056,"BILLARD CLUB DE NICE","19056 – BILLARD CLUB DE NICE","Oui","R3","R3",1.86,1.48,"à","SELON RÈGLEMENT SPORTIF LIGUE"]
["177991T","COLIN","PHILIPPE","COLIN PHILIPPE",2023,2025,"Méditerranée","CDB Bouches du Rhône",19017,"BILLARD CLUB PHOCEEN","19017 – BILLARD CLUB PHOCEEN","Oui","R4","R4",0.73,0.57999999999999996,"à","SELON RÈGLEMENT SPORTIF LIGUE"]
["113219P","COLLEMINE","BERNARD","COLLEMINE BERNARD",2022,2022,"Méditerranée","CDB Bouches du Rhône",19050,"BILLARD CLUB SAUSSETOIS","19050 – BILLARD CLUB SAUSSETOIS","Oui","R2","R3",2.0499999999999998,1.64,"â","AUTORISÉ"]
["021985P","COPPIN","JEAN MICHEL","COPPIN JEAN MICHEL",2025,2025,"Méditerranée","CDB Vaucluse",19027,"ACADEMIE DE BILLARD DE BOLLENE","19027 – ACADEMIE DE BILLARD DE BOLLENE","Oui","R3","R3",1.25,1,"à","SELON RÈGLEMENT SPORTIF LIGUE"]
["164007T","CORBIN","LUC","CORBIN LUC",2024,2025,"Méditerranée","CDB Var",19023,"BILLARD CLUB GARDEEN","19023 – BILLARD CLUB GARDEEN","Oui","R4","R4",0.67,0.53,"à","SELON RÈGLEMENT SPORTIF LIGUE"]
["106512Q","CORDONNIER","ROGER","CORDONNIER ROGER",2014,2020,"Méditerranée","CDB Vaucluse",19027,"ACADEMIE DE BILLARD DE BOLLENE","19027 – ACADEMIE DE BILLARD DE BOLLENE","Oui","R2","R3",2.0299999999999998,1.63,"â","AUTORISÉ"]
["187055W","CORTES","JEAN LOUIS","CORTES JEAN LOUIS",2025,2025,"Méditerranée","CDB Bouches du Rhône",19009,"CLUB BILLARD ISTREEN","19009 – CLUB BILLARD ISTREEN","Oui","-","R3",2.08,1.67,"à","SELON RÈGLEMENT SPORTIF LIGUE"]
["148136S","COSTAZ","ALAIN","COSTAZ ALAIN",2024,2024,"Méditerranée","CDB Var",19019,"BILLARD CLUB DE LA BAIE","19019 – BILLARD CLUB DE LA BAIE","Oui","R4","R4",0.7,0.56000000000000005,"à","SELON RÈGLEMENT SPORTIF LIGUE"]
["125938U","COSTE","PHILIPPE","COSTE PHILIPPE",2025,2025,"Méditerranée","CDB Var",19061,"ACAD.BILLARD ST RAPHAEL","19061 – ACAD.BILLARD ST RAPHAEL","Oui","R3","R3",1.29,1.03,"à","SELON RÈGLEMENT SPORTIF LIGUE"]
["120419N","COUPE","GILBERT","COUPE GILBERT",2013,2020,"Méditerranée","CDB Bouches du Rhône",19017,"BILLARD CLUB PHOCEEN","19017 – BILLARD CLUB PHOCEEN","Oui","R2","R2",2.98,2.38,"à","SELON RÈGLEMENT SPORTIF LIGUE"]
["016838Q","COURBOT","LUDWIG","COURBOT LUDWIG",2025,2025,"Méditerranée","CDB Bouches du Rhône",19001,"S. S. A. B. D AIX EN PROVENCE","19001 – S. S. A. B. D AIX EN PROVENCE","Oui","N3","R1",5.9,4.72,"â","AUTORISÉ"]
["168685D","COZETTE","SYLVIE","COZETTE SYLVIE",2025,2025,"Méditerranée","CDB Var",19023,"BILLARD CLUB GARDEEN","19023 – BILLARD CLUB GARDEEN","Oui","R4","R4",0.53,0.42,"à","SELON RÈGLEMENT SPORTIF LIGUE"]
["152067Q","CROUZET","JEAN ANDRE","CROUZET JEAN ANDRE",2017,2025,"Méditerranée","CDB Vaucluse",19027,"ACADEMIE DE BILLARD DE BOLLENE","19027 – ACADEMIE DE BILLARD DE BOLLENE","Oui","R3","R3",1.7,1.36,"à","SELON RÈGLEMENT SPORTIF LIGUE"]
["144718C","D ANTONIO","JEROME","D ANTONIO JEROME",2016,2020,"Méditerranée","CDB Vaucluse",19014,"BILLARD CLUB AVIGNONNAIS","19014 – BILLARD CLUB AVIGNONNAIS","Oui","R2","R2",3.02,2.42,"à","SELON RÈGLEMENT SPORTIF LIGUE"]
["119971H","D HERET","ERIC","D HERET ERIC",2010,2020,"Méditerranée","CDB Vaucluse",19006,"BILLARD CLUB CARPENTRASSIEN","19006 – BILLARD CLUB CARPENTRASSIEN","Oui","R2","R2",2.7,2.16,"à","SELON RÈGLEMENT SPORTIF LIGUE"]
["177204N","DALMASSO","EMMANUELLE","DALMASSO EMMANUELLE",2025,2025,"Méditerranée","CDB Alpes Haute Provence",19025,"BILLARD CLUB SISTERONNAIS","19025 – BILLARD CLUB SISTERONNAIS","Oui","-","R4",0.62,0.5,"à","SELON RÈGLEMENT SPORTIF LIGUE"]
["022002G","DAMON","GERARD","DAMON GERARD",2011,2025,"Méditerranée","CDB Alpes Maritimes",19056,"BILLARD CLUB DE NICE","19056 – BILLARD CLUB DE NICE","Oui","R3","R3",1.33,1.06,"à","SELON RÈGLEMENT SPORTIF LIGUE"]
["170095L","DAREAU","GERALD","DAREAU GERALD",2025,2025,"Méditerranée","CDB Alpes Maritimes",19055,"ACADEMIE DE BILLARD DE MENTON","19055 – ACADEMIE DE BILLARD DE MENTON","Oui","R3","R3",1.5,1.2,"à","SELON RÈGLEMENT SPORTIF LIGUE"]
["155526A","DAVID","THIERRY","DAVID THIERRY",2025,2025,"Méditerranée","CDB Alpes Haute Provence",19025,"BILLARD CLUB SISTERONNAIS","19025 – BILLARD CLUB SISTERONNAIS","Oui","R2","R2",2.4700000000000002,1.97,"à","SELON RÈGLEMENT SPORTIF LIGUE"]
["171181R","DE CAMBOURG","HELION","DE CAMBOURG HELION",2024,2025,"Méditerranée","CDB Vaucluse",19014,"BILLARD CLUB AVIGNONNAIS","19014 – BILLARD CLUB AVIGNONNAIS","Oui","R4","R4",0.78,0.62,"à","SELON RÈGLEMENT SPORTIF LIGUE"]
["140113Z","DE HAAN","PATRICK","DE HAAN PATRICK",2018,2025,"Méditerranée","CDB Var",19023,"BILLARD CLUB GARDEEN","19023 – BILLARD CLUB GARDEEN","Oui","R2","R2",2.8,2.2400000000000002,"à","SELON RÈGLEMENT SPORTIF LIGUE"]
["163348C","DE LOOSE","FELIX","DE LOOSE FELIX",2025,2025,"Méditerranée","CDB Var",19106,"BILLARD CLUB VINONNAIS","19106 – BILLARD CLUB VINONNAIS","Oui","R2","R2",2.95,2.36,"à","SELON RÈGLEMENT SPORTIF LIGUE"]
["184548W","DEBRUYNE","ANNE","DEBRUYNE ANNE",2025,2025,"Méditerranée","CDB Var",19106,"BILLARD CLUB VINONNAIS","19106 – BILLARD CLUB VINONNAIS","Oui","R4","R4",0.44,0.35,"à","SELON RÈGLEMENT SPORTIF LIGUE"]
["113220Q","DEBRUYNE","TRISTAN","DEBRUYNE TRISTAN",2025,2025,"Méditerranée","CDB Var",19106,"BILLARD CLUB VINONNAIS","19106 – BILLARD CLUB VINONNAIS","Oui","R3","R3",2.1,1.68,"à","SELON RÈGLEMENT SPORTIF LIGUE"]
["178356Q","DEBUYSER","ANNE","DEBUYSER ANNE",2025,2025,"Méditerranée","CDB Alpes Maritimes",19058,"ACADEMIE DE BILLARD DE BARBOSSI MANDELIEU","19058 – ACADEMIE DE BILLARD DE BARBOSSI MANDELIEU","Oui","R4","R4",0.78,0.62,"à","SELON RÈGLEMENT SPORTIF LIGUE"]
["138297D","DECARPENTRIE","FREDDY","DECARPENTRIE FREDDY",2012,2019,"Méditerranée","CDB Bouches du Rhône",19050,"BILLARD CLUB SAUSSETOIS","19050 – BILLARD CLUB SAUSSETOIS","Oui","R3","R3",2.0699999999999998,1.65,"à","SELON RÈGLEMENT SPORTIF LIGUE"]
["119889D","DEFFE","MICHEL","DEFFE MICHEL",2013,2022,"Méditerranée","CDB Bouches du Rhône",19068,"BILLARD CLUB ARLESIEN","19068 – BILLARD CLUB ARLESIEN","Oui","R3","R3",1.74,1.39,"à","SELON RÈGLEMENT SPORTIF LIGUE"]
["020635R","DEFRETIN","JOEL","DEFRETIN JOEL",2012,2025,"Méditerranée","CDB Var",19023,"BILLARD CLUB GARDEEN","19023 – BILLARD CLUB GARDEEN","Oui","N1","N1",25.86,20.69,"à","SELON RÈGLEMENT SPORTIF LIGUE"]
["160334B","DELAPORTE","YVES","DELAPORTE YVES",2025,2025,"Méditerranée","CDB Vaucluse",19006,"BILLARD CLUB CARPENTRASSIEN","19006 – BILLARD CLUB CARPENTRASSIEN","Oui","R3","R3",1.95,1.56,"à","SELON RÈGLEMENT SPORTIF LIGUE"]
["022014S","DELATTRE","RAYMOND","DELATTRE RAYMOND",2020,2024,"Méditerranée","CDB Bouches du Rhône",19090,"BILLARD AMATEUR ROGNAC","19090 – BILLARD AMATEUR ROGNAC","Oui","R3","R3",1.83,1.47,"à","SELON RÈGLEMENT SPORTIF LIGUE"]
["112719J","DELBEY","JULIEN","DELBEY JULIEN",2022,2025,"Méditerranée","CDB Bouches du Rhône",19012,"SALON BILLARD CLUB","19012 – SALON BILLARD CLUB","Oui","R1","R1",4.9000000000000004,3.92,"à","SELON RÈGLEMENT SPORTIF LIGUE"]
["166346L","DELUC","BERNARD","DELUC BERNARD",2020,2020,"Méditerranée","CDB Bouches du Rhône",19098,"BILLARD CLUB LA FARE","19098 – BILLARD CLUB LA FARE","Oui","R3","R3",1.31,1.05,"à","SELON RÈGLEMENT SPORTIF LIGUE"]
["168662D","DEMARCQ","JEAN FRANCOIS","DEMARCQ JEAN FRANCOIS",2025,2025,"Méditerranée","CDB Alpes Haute Provence",19025,"BILLARD CLUB SISTERONNAIS","19025 – BILLARD CLUB SISTERONNAIS","Oui","R3","R3",1.57,1.26,"à","SELON RÈGLEMENT SPORTIF LIGUE"]
["159076J","DEMERLIAC","BRUNO","DEMERLIAC BRUNO",2023,2025,"Méditerranée","CDB Bouches du Rhône",19007,"BILLARD CLUB BERROIS","19007 – BILLARD CLUB BERROIS","Oui","R4","R4",0.96,0.77,"à","SELON RÈGLEMENT SPORTIF LIGUE"]
["012943V","DEMONCEAU","BENOIT","DEMONCEAU BENOIT",2017,2021,"Méditerranée","CDB Alpes Maritimes",19055,"ACADEMIE DE BILLARD DE MENTON","19055 – ACADEMIE DE BILLARD DE MENTON","Oui","R4","R4",1.1499999999999999,0.92,"à","SELON RÈGLEMENT SPORTIF LIGUE"]
["142358I","DESMERO","RAYMOND","DESMERO RAYMOND",2023,2025,"Méditerranée","CDB Bouches du Rhône",19007,"BILLARD CLUB BERROIS","19007 – BILLARD CLUB BERROIS","Oui","R3","R4",1.04,0.83,"â","AUTORISÉ"]
["022028G","DESPLANQUE","FRANCIS","DESPLANQUE FRANCIS",2019,2019,"Méditerranée","CDB Var",19023,"BILLARD CLUB GARDEEN","19023 – BILLARD CLUB GARDEEN","Oui","R2","R2",2.65,2.12,"à","SELON RÈGLEMENT SPORTIF LIGUE"]
["144569J","DI CINTIO","PHILIPPE","DI CINTIO PHILIPPE",2016,2022,"Méditerranée","CDB Vaucluse",19014,"BILLARD CLUB AVIGNONNAIS","19014 – BILLARD CLUB AVIGNONNAIS","Oui","R2","R3",2.06,1.65,"â","AUTORISÉ"]
["142363N","DONABEDIAN","DANIEL","DONABEDIAN DANIEL",2023,2025,"Méditerranée","CDB Var",19019,"BILLARD CLUB DE LA BAIE","19019 – BILLARD CLUB DE LA BAIE","Oui","R3","R3",1.73,1.38,"à","SELON RÈGLEMENT SPORTIF LIGUE"]
["022039R","DOS SANTOS","FRANCIS","DOS SANTOS FRANCIS",2022,2025,"Méditerranée","CDB Bouches du Rhône",19050,"BILLARD CLUB SAUSSETOIS","19050 – BILLARD CLUB SAUSSETOIS","Oui","R1","R2",3.8,3.04,"â","AUTORISÉ"]
["174348J","DOUSSET","RENE","DOUSSET RENE",2025,2025,"Méditerranée","CDB Var",19023,"BILLARD CLUB GARDEEN","19023 – BILLARD CLUB GARDEEN","Oui","-","R4",0.84,0.67,"à","SELON RÈGLEMENT SPORTIF LIGUE"]
["140803N","DREMEAUX","JEAN PIERRE","DREMEAUX JEAN PIERRE",2025,2025,"Méditerranée","CDB Var",19023,"BILLARD CLUB GARDEEN","19023 – BILLARD CLUB GARDEEN","Oui","N3","N3",7.79,6.23,"à","SELON RÈGLEMENT SPORTIF LIGUE"]
["013022W","DUBREUIL","FRANCK","DUBREUIL FRANCK",2025,2025,"Méditerranée","CDB Var",19061,"ACAD.BILLARD ST RAPHAEL","19061 – ACAD.BILLARD ST RAPHAEL","Oui","N3","R1",5.87,4.6900000000000004,"â","AUTORISÉ"]
["154651Z","DUCA","ALFONSO","DUCA ALFONSO",2022,2023,"Méditerranée","CDB Bouches du Rhône",19090,"BILLARD AMATEUR ROGNAC","19090 – BILLARD AMATEUR ROGNAC","Oui","R4","R4",0.52,0.42,"à","SELON RÈGLEMENT SPORTIF LIGUE"]
["013037L","DUMET","BRUNO","DUMET BRUNO",2011,2024,"Méditerranée","CDB Var",19023,"BILLARD CLUB GARDEEN","19023 – BILLARD CLUB GARDEEN","Oui","N3","N3",7.16,5.73,"à","SELON RÈGLEMENT SPORTIF LIGUE"]
["022049B","DURAND","FREDERIC",{"$f":"B130&\" \"&C130","v":"DURAND FREDERIC"},2013,2020,"Méditerranée","CDB Bouches du Rhône",19012,"SALON BILLARD CLUB",{"$f":"I130&\" – \"&J130","v":"19012 – SALON BILLARD CLUB"},"Oui","R3","R3",2.0699999999999998,1.66,"à","SELON RÈGLEMENT SPORTIF LIGUE"]
["022050C","DURAND","HERVE","DURAND HERVE",2012,2023,"Méditerranée","CDB Bouches du Rhône",19012,"SALON BILLARD CLUB","19012 – SALON BILLARD CLUB","Oui","N1","N2",12.97,10.37,"â","AUTORISÉ"]
["022052E","DUSFOUR","RENE","DUSFOUR RENE",2019,2021,"Méditerranée","CDB Bouches du Rhône",19012,"SALON BILLARD CLUB","19012 – SALON BILLARD CLUB","Oui","R3","R3",1.74,1.39,"à","SELON RÈGLEMENT SPORTIF LIGUE"]
["102285B","DUSSAULE","PIERRE","DUSSAULE PIERRE",2025,2025,"Méditerranée","CDB Vaucluse",19027,"ACADEMIE DE BILLARD DE BOLLENE","19027 – ACADEMIE DE BILLARD DE BOLLENE","Oui","R2","R3",2.11,1.69,"â","AUTORISÉ"]
["163467G","ELEOUET","DANIEL","ELEOUET DANIEL",2025,2025,"Méditerranée","CDB Vaucluse",19006,"BILLARD CLUB CARPENTRASSIEN","19006 – BILLARD CLUB CARPENTRASSIEN","Oui","R3","R3",1.82,1.45,"à","SELON RÈGLEMENT SPORTIF LIGUE"]
["147622J","ESTABLIER","PIERRE","ESTABLIER PIERRE",2025,2025,"Méditerranée","CDB Var",19023,"BILLARD CLUB GARDEEN","19023 – BILLARD CLUB GARDEEN","Oui","R4","R4",1.17,0.93,"à","SELON RÈGLEMENT SPORTIF LIGUE"]
["101511H","FAGET","FRANCIS","FAGET FRANCIS",2016,2020,"Méditerranée","CDB Bouches du Rhône",19001,"S. S. A. B. D AIX EN PROVENCE","19001 – S. S. A. B. D AIX EN PROVENCE","Oui","R2","R2",2.62,2.09,"à","SELON RÈGLEMENT SPORTIF LIGUE"]
["022065R","FAURE","EMILE","FAURE EMILE",2017,2025,"Méditerranée","CDB Vaucluse",19016,"BILLARD CLUB ORANGEOIS","19016 – BILLARD CLUB ORANGEOIS","Oui","R3","R3",1.87,1.5,"à","SELON RÈGLEMENT SPORTIF LIGUE"]
["022066S","FAVARIO","CHRISTIAN","FAVARIO CHRISTIAN",2020,2025,"Méditerranée","CDB Vaucluse",19027,"ACADEMIE DE BILLARD DE BOLLENE","19027 – ACADEMIE DE BILLARD DE BOLLENE","Oui","R3","R3",1.37,1.1000000000000001,"à","SELON RÈGLEMENT SPORTIF LIGUE"]
["022067T","FERAUD","GERARD","FERAUD GERARD",2025,2025,"Méditerranée","CDB Vaucluse",19027,"ACADEMIE DE BILLARD DE BOLLENE","19027 – ACADEMIE DE BILLARD DE BOLLENE","Oui","N3","N3",7.94,6.35,"à","SELON RÈGLEMENT SPORTIF LIGUE"]
["129036Y","FERHAT","ACHOUR","FERHAT ACHOUR",2025,2025,"Méditerranée","CDB Var",19106,"BILLARD CLUB VINONNAIS","19106 – BILLARD CLUB VINONNAIS","Oui","N3","N3",6.75,5.4,"à","SELON RÈGLEMENT SPORTIF LIGUE"]
["022071X","FERNANDES","VINCENT","FERNANDES VINCENT",2014,2022,"Méditerranée","CDB Var",19061,"ACAD.BILLARD ST RAPHAEL","19061 – ACAD.BILLARD ST RAPHAEL","Oui","R2","R2",3.48,2.78,"à","SELON RÈGLEMENT SPORTIF LIGUE"]
["013111H","FERNANDEZ","MARC","FERNANDEZ MARC",2025,2025,"Méditerranée","CDB Bouches du Rhône",19007,"BILLARD CLUB BERROIS","19007 – BILLARD CLUB BERROIS","Oui","N3","N3",8.0299999999999994,6.42,"à","SELON RÈGLEMENT SPORTIF LIGUE"]
["120704M","FERRE","DIDIER","FERRE DIDIER",2024,2025,"Méditerranée","CDB Alpes Maritimes",19058,"ACADEMIE DE BILLARD DE BARBOSSI MANDELIEU","19058 – ACADEMIE DE BILLARD DE BARBOSSI MANDELIEU","Oui","R3","R3",1.87,1.5,"à","SELON RÈGLEMENT SPORTIF LIGUE"]
["122658Q","FERRO","PHILIPPE","FERRO PHILIPPE",2025,2025,"Méditerranée","CDB Bouches du Rhône",19009,"CLUB BILLARD ISTREEN","19009 – CLUB BILLARD ISTREEN","Oui","R3","R3",1.5,1.2,"à","SELON RÈGLEMENT SPORTIF LIGUE"]
["173138T","FLEURIOT","PATRICK","FLEURIOT PATRICK",2023,2025,"Méditerranée","CDB Vaucluse",19014,"BILLARD CLUB AVIGNONNAIS","19014 – BILLARD CLUB AVIGNONNAIS","Oui","R4","R4",0.88,0.7,"à","SELON RÈGLEMENT SPORTIF LIGUE"]
["101139Z","FONTAINE","DANY","FONTAINE DANY",2025,2025,"Méditerranée","CDB Var",19106,"BILLARD CLUB VINONNAIS","19106 – BILLARD CLUB VINONNAIS","Oui","N3","N2",10.97,8.7799999999999994,"á","SELON RÈGLEMENT SPORTIF LIGUE"]
["152014H","FORGET","LIONEL","FORGET LIONEL",2022,2022,"Méditerranée","CDB Bouches du Rhône",19007,"BILLARD CLUB BERROIS","19007 – BILLARD CLUB BERROIS","Oui","R3","R4",1.06,0.85,"â","AUTORISÉ"]
["022082I","FOSSATI","BRUNO","FOSSATI BRUNO",2019,2021,"Méditerranée","CDB Var",19023,"BILLARD CLUB GARDEEN","19023 – BILLARD CLUB GARDEEN","Oui","R3","R3",1.7,1.36,"à","SELON RÈGLEMENT SPORTIF LIGUE"]
["022084K","FRANCO","ALBERT","FRANCO ALBERT",2025,2025,"Méditerranée","CDB Var",19019,"BILLARD CLUB DE LA BAIE","19019 – BILLARD CLUB DE LA BAIE","Oui","R2","R2",2.83,2.27,"à","SELON RÈGLEMENT SPORTIF LIGUE"]
["125666I","FRELON","THIERRY","FRELON THIERRY",2019,2021,"Méditerranée","CDB Vaucluse",19016,"BILLARD CLUB ORANGEOIS","19016 – BILLARD CLUB ORANGEOIS","Oui","R3","R3",1.56,1.24,"à","SELON RÈGLEMENT SPORTIF LIGUE"]
["167290M","FROMEYER","CORINNE","FROMEYER CORINNE",2025,2025,"Méditerranée","CDB Alpes Maritimes",19058,"ACADEMIE DE BILLARD DE BARBOSSI MANDELIEU","19058 – ACADEMIE DE BILLARD DE BARBOSSI MANDELIEU","Oui","R4","R4",0.96,0.76,"à","SELON RÈGLEMENT SPORTIF LIGUE"]
["159060R","FURNON","ROGER","FURNON ROGER",2023,2025,"Méditerranée","CDB Vaucluse",19014,"BILLARD CLUB AVIGNONNAIS","19014 – BILLARD CLUB AVIGNONNAIS","Oui","R4","R4",0.98,0.78,"à","SELON RÈGLEMENT SPORTIF LIGUE"]
["103216W","GABETTO","STEPHANE","GABETTO STEPHANE",2025,2025,"Méditerranée","CDB Var",19023,"BILLARD CLUB GARDEEN","19023 – BILLARD CLUB GARDEEN","Oui","R2","R2",3.38,2.7,"à","SELON RÈGLEMENT SPORTIF LIGUE"]
["142316S","GALARDINI","RICHARD","GALARDINI RICHARD",2022,2025,"Méditerranée","CDB Bouches du Rhône",19050,"BILLARD CLUB SAUSSETOIS","19050 – BILLARD CLUB SAUSSETOIS","Oui","R3","R3",1.38,1.1000000000000001,"à","SELON RÈGLEMENT SPORTIF LIGUE"]
["147288W","GAMEN","ANDRE","GAMEN ANDRE",2024,2025,"Méditerranée","CDB Var",19023,"BILLARD CLUB GARDEEN","19023 – BILLARD CLUB GARDEEN","Oui","R4","R4",0.62,0.5,"à","SELON RÈGLEMENT SPORTIF LIGUE"]
["022092S","GANTOIS","GILLES","GANTOIS GILLES",2025,2025,"Méditerranée","CDB Vaucluse",19016,"BILLARD CLUB ORANGEOIS","19016 – BILLARD CLUB ORANGEOIS","Oui","R1","R1",5.16,4.13,"à","SELON RÈGLEMENT SPORTIF LIGUE"]
["022097X","GATTO","ANTOINE","GATTO ANTOINE",2018,2025,"Méditerranée","CDB Bouches du Rhône",19050,"BILLARD CLUB SAUSSETOIS","19050 – BILLARD CLUB SAUSSETOIS","Oui","R3","R3",1.4,1.1200000000000001,"à","SELON RÈGLEMENT SPORTIF LIGUE"]
["116278G","GAVALDA","PIERRE","GAVALDA PIERRE",2012,2025,"Méditerranée","CDB Vaucluse",19006,"BILLARD CLUB CARPENTRASSIEN","19006 – BILLARD CLUB CARPENTRASSIEN","Oui","R2","R2",3.48,2.78,"à","SELON RÈGLEMENT SPORTIF LIGUE"]
["125944A","GAVANON","ANDRE","GAVANON ANDRE",2015,2022,"Méditerranée","CDB Var",19023,"BILLARD CLUB GARDEEN","19023 – BILLARD CLUB GARDEEN","Oui","R2","R3",0,0,"â","AUTORISÉ"]
["143227T","GAYRAUD","FRANCOISE","GAYRAUD FRANCOISE",2025,2025,"Méditerranée","CDB Alpes Maritimes",19056,"BILLARD CLUB DE NICE","19056 – BILLARD CLUB DE NICE","Oui","R4","R4",0.77,0.62,"à","SELON RÈGLEMENT SPORTIF LIGUE"]
["163279C","GELAS","BERNARD","GELAS BERNARD",2025,2025,"Méditerranée","CDB Bouches du Rhône",19098,"BILLARD CLUB LA FARE","19098 – BILLARD CLUB LA FARE","Oui","R3","R4",1.1599999999999999,0.93,"â","AUTORISÉ"]
["022103D","GERARD","PASCAL","GERARD PASCAL",2025,2025,"Méditerranée","CDB Alpes Maritimes",19056,"BILLARD CLUB DE NICE","19056 – BILLARD CLUB DE NICE","Oui","N1","N1",29.26,23.41,"à","SELON RÈGLEMENT SPORTIF LIGUE"]
["167330F","GERARD","THOMAS","GERARD THOMAS",2025,2025,"Méditerranée","CDB Alpes Maritimes",19056,"BILLARD CLUB DE NICE","19056 – BILLARD CLUB DE NICE","Oui","-","R4",0.54,0.43,"à","SELON RÈGLEMENT SPORTIF LIGUE"]
["022104E","GERVAIS","GUILLAUME","GERVAIS GUILLAUME",2022,2025,"Méditerranée","CDB Vaucluse",19021,"BILLARD CLUB CAVAILLONNAIS","19021 – BILLARD CLUB CAVAILLONNAIS","Oui","N1","N2",10.45,8.36,"â","AUTORISÉ"]
["101282M","GHU","GERARD","GHU GERARD",2025,2025,"Méditerranée","CDB Vaucluse",19016,"BILLARD CLUB ORANGEOIS","19016 – BILLARD CLUB ORANGEOIS","Oui","R3","R2",2.73,2.1800000000000002,"á","SELON RÈGLEMENT SPORTIF LIGUE"]
["022108I","GIANNATTASIO","LUCIEN","GIANNATTASIO LUCIEN",2025,2025,"Méditerranée","CDB Bouches du Rhône",19009,"CLUB BILLARD ISTREEN","19009 – CLUB BILLARD ISTREEN","Oui","R2","R2",2.42,1.94,"à","SELON RÈGLEMENT SPORTIF LIGUE"]
["118661X","GIBARROUX","CHRISTOPHE","GIBARROUX CHRISTOPHE",2025,2025,"Méditerranée","CDB Bouches du Rhône",19001,"S. S. A. B. D AIX EN PROVENCE","19001 – S. S. A. B. D AIX EN PROVENCE","Oui","N3","N3",6.51,5.21,"à","SELON RÈGLEMENT SPORTIF LIGUE"]
["149390F","GIFFARD","PHILIPPE","GIFFARD PHILIPPE",2020,2025,"Méditerranée","CDB Var",19023,"BILLARD CLUB GARDEEN","19023 – BILLARD CLUB GARDEEN","Oui","N3","N3",6.26,5.01,"à","SELON RÈGLEMENT SPORTIF LIGUE"]
["180514L","GILLET","PHILIPPE","GILLET PHILIPPE",2025,2025,"Méditerranée","CDB Alpes Maritimes",19058,"ACADEMIE DE BILLARD DE BARBOSSI MANDELIEU","19058 – ACADEMIE DE BILLARD DE BARBOSSI MANDELIEU","Oui","R4","R4",0.78,0.62,"à","SELON RÈGLEMENT SPORTIF LIGUE"]
["022115P","GIOVANNETTI","DAMIEN","GIOVANNETTI DAMIEN",2017,2024,"Méditerranée","CDB Bouches du Rhône",19050,"BILLARD CLUB SAUSSETOIS","19050 – BILLARD CLUB SAUSSETOIS","Oui","R3","R3",1.83,1.46,"à","SELON RÈGLEMENT SPORTIF LIGUE"]
["172734E","GIRARD","DENIS","GIRARD DENIS",2025,2025,"Méditerranée","CDB Var",19023,"BILLARD CLUB GARDEEN","19023 – BILLARD CLUB GARDEEN","Oui","-","R4",0.5,0.4,"à","SELON RÈGLEMENT SPORTIF LIGUE"]
["129718E","GIRARD","JACQUES","GIRARD JACQUES",2023,2025,"Méditerranée","CDB Alpes Maritimes",19058,"ACADEMIE DE BILLARD DE BARBOSSI MANDELIEU","19058 – ACADEMIE DE BILLARD DE BARBOSSI MANDELIEU","Oui","R3","R3",1.48,1.18,"à","SELON RÈGLEMENT SPORTIF LIGUE"]
["157852D","GODARD","PASCAL","GODARD PASCAL",2025,2025,"Méditerranée","CDB Vaucluse",19006,"BILLARD CLUB CARPENTRASSIEN","19006 – BILLARD CLUB CARPENTRASSIEN","Oui","R2","R2",3.54,2.83,"à","SELON RÈGLEMENT SPORTIF LIGUE"]
["120100G","GOMES","VITOR","GOMES VITOR",2016,2025,"Méditerranée","CDB Bouches du Rhône",19001,"S. S. A. B. D AIX EN PROVENCE","19001 – S. S. A. B. D AIX EN PROVENCE","Oui","R2","R2",3.27,2.61,"à","SELON RÈGLEMENT SPORTIF LIGUE"]
["022126A","GOUALOU","LAURENT","GOUALOU LAURENT",2022,2022,"Méditerranée","CDB Alpes Maritimes",19056,"BILLARD CLUB DE NICE","19056 – BILLARD CLUB DE NICE","Oui","R3","R3",1.21,0.96,"à","SELON RÈGLEMENT SPORTIF LIGUE"]
["131925B","GOUDENECHE","BERNARD","GOUDENECHE BERNARD",2020,2024,"Méditerranée","CDB Bouches du Rhône",19098,"BILLARD CLUB LA FARE","19098 – BILLARD CLUB LA FARE","Oui","R3","R4",1.19,0.95,"â","AUTORISÉ"]
["174010R","GOUILLON","MATTHIEU","GOUILLON MATTHIEU",2025,2025,"Méditerranée","CDB Alpes Maritimes",19056,"BILLARD CLUB DE NICE","19056 – BILLARD CLUB DE NICE","Oui","R4","R4",0.56000000000000005,0.45,"à","SELON RÈGLEMENT SPORTIF LIGUE"]
["022129D","GOUIRAN","GEORGES","GOUIRAN GEORGES",2025,2025,"Méditerranée","CDB Bouches du Rhône",19050,"BILLARD CLUB SAUSSETOIS","19050 – BILLARD CLUB SAUSSETOIS","Oui","R3","R3",1.49,1.19,"à","SELON RÈGLEMENT SPORTIF LIGUE"]
["104054C","GOURSEAUD","YVES","GOURSEAUD YVES",2025,2025,"Méditerranée","CDB Vaucluse",19016,"BILLARD CLUB ORANGEOIS","19016 – BILLARD CLUB ORANGEOIS","Oui","N3","R1",3.63,2.9,"â","AUTORISÉ"]
["157851C","GRAVELLE","JULIEN","GRAVELLE JULIEN",2025,2025,"Méditerranée","CDB Vaucluse",19006,"BILLARD CLUB CARPENTRASSIEN","19006 – BILLARD CLUB CARPENTRASSIEN","Oui","R3","R3",1.31,1.05,"à","SELON RÈGLEMENT SPORTIF LIGUE"]
["149576H","GREGOIRE","JEAN CLAUDE","GREGOIRE JEAN CLAUDE",2020,2022,"Méditerranée","CDB Vaucluse",19016,"BILLARD CLUB ORANGEOIS","19016 – BILLARD CLUB ORANGEOIS","Oui","R4","R4",0.94,0.75,"à","SELON RÈGLEMENT SPORTIF LIGUE"]
["135013V","GUERI","ROBERT","GUERI ROBERT",2023,2025,"Méditerranée","CDB Vaucluse",19027,"ACADEMIE DE BILLARD DE BOLLENE","19027 – ACADEMIE DE BILLARD DE BOLLENE","Oui","R3","R4",1.1100000000000001,0.88,"â","AUTORISÉ"]
["022135J","GUERINEAU","THIERRY","GUERINEAU THIERRY",2012,2025,"Méditerranée","CDB Vaucluse",19021,"BILLARD CLUB CAVAILLONNAIS","19021 – BILLARD CLUB CAVAILLONNAIS","Oui","N3","R1",5.64,4.51,"â","AUTORISÉ"]
["104475H","GUEUG","PIERRE","GUEUG PIERRE",2025,2025,"Méditerranée","CDB Alpes Maritimes",19056,"BILLARD CLUB DE NICE","19056 – BILLARD CLUB DE NICE","Oui","R2","R3",2.14,1.71,"â","AUTORISÉ"]
["022137L","GUIBERT","JEAN MARIE","GUIBERT JEAN MARIE",2024,2024,"Méditerranée","CDB Bouches du Rhône",19009,"CLUB BILLARD ISTREEN","19009 – CLUB BILLARD ISTREEN","Oui","R3","R4",1.1499999999999999,0.92,"â","AUTORISÉ"]
["154530S","GUIZELIN","PASCAL","GUIZELIN PASCAL",2025,2025,"Méditerranée","CDB Var",19106,"BILLARD CLUB VINONNAIS","19106 – BILLARD CLUB VINONNAIS","Oui","R3","R3",1.35,1.08,"à","SELON RÈGLEMENT SPORTIF LIGUE"]
["022138M","GUTIERREZ","FRANCOIS","GUTIERREZ FRANCOIS",2015,2024,"Méditerranée","CDB Bouches du Rhône",19017,"BILLARD CLUB PHOCEEN","19017 – BILLARD CLUB PHOCEEN","Oui","R3","R3",1.3,1.04,"à","SELON RÈGLEMENT SPORTIF LIGUE"]
["161784C","GUYENOT","JEAN LOUIS","GUYENOT JEAN LOUIS",2024,2025,"Méditerranée","CDB Alpes Maritimes",19056,"BILLARD CLUB DE NICE","19056 – BILLARD CLUB DE NICE","Oui","R4","R4",0.79,0.63,"à","SELON RÈGLEMENT SPORTIF LIGUE"]
["011966G","HAHN","DANIEL","HAHN DANIEL",2025,2025,"Méditerranée","CDB Bouches du Rhône",19017,"BILLARD CLUB PHOCEEN","19017 – BILLARD CLUB PHOCEEN","Oui","R3","R3",1.64,1.31,"à","SELON RÈGLEMENT SPORTIF LIGUE"]
["022141P","HAROUTUNIAN","PIERRE","HAROUTUNIAN PIERRE",2015,2022,"Méditerranée","CDB Bouches du Rhône",19050,"BILLARD CLUB SAUSSETOIS","19050 – BILLARD CLUB SAUSSETOIS","Oui","R3","R3",1.53,1.22,"à","SELON RÈGLEMENT SPORTIF LIGUE"]
["137523J","HAZE","PATRICK","HAZE PATRICK",2025,2025,"Méditerranée","CDB Vaucluse",19021,"BILLARD CLUB CAVAILLONNAIS","19021 – BILLARD CLUB CAVAILLONNAIS","Oui","R3","R3",1.48,1.18,"à","SELON RÈGLEMENT SPORTIF LIGUE"]
["159610P","HERBER","DOMINIQUE","HERBER DOMINIQUE",2019,2024,"Méditerranée","CDB Vaucluse",19027,"ACADEMIE DE BILLARD DE BOLLENE","19027 – ACADEMIE DE BILLARD DE BOLLENE","Oui","R3","R3",1.83,1.46,"à","SELON RÈGLEMENT SPORTIF LIGUE"]
["119933V","HERREMAN","SERGE","HERREMAN SERGE",2025,2025,"Méditerranée","CDB Var",19023,"BILLARD CLUB GARDEEN","19023 – BILLARD CLUB GARDEEN","Oui","R3","R3",1.6,1.28,"à","SELON RÈGLEMENT SPORTIF LIGUE"]
["132460Q","HMAYDA","YOUSSEF",{"$f":"B194&\" \"&C194","v":"HMAYDA YOUSSEF"},2019,2019,"Méditerranée","CDB Alpes Maritimes",19056,"BILLARD CLUB DE NICE",{"$f":"I194&\" – \"&J194","v":"19056 – BILLARD CLUB DE NICE"},"Oui","N3","N3",6.92,5.53,"à","SELON RÈGLEMENT SPORTIF LIGUE"]
["172086A","HUGUET","PATRICK","HUGUET PATRICK",2024,2025,"Méditerranée","CDB Bouches du Rhône",19017,"BILLARD CLUB PHOCEEN","19017 – BILLARD CLUB PHOCEEN","Oui","N3","N3",6.27,5.01,"à","SELON RÈGLEMENT SPORTIF LIGUE"]
["172214P","IDJERI","GILBERT","IDJERI GILBERT",2025,2025,"Méditerranée","CDB Bouches du Rhône",19050,"BILLARD CLUB SAUSSETOIS","19050 – BILLARD CLUB SAUSSETOIS","Oui","R3","R2",2.74,2.19,"á","SELON RÈGLEMENT SPORTIF LIGUE"]
["184059P","ISRAEL","ELIE","ISRAEL ELIE",2025,2025,"Méditerranée","CDB Bouches du Rhône",19017,"BILLARD CLUB PHOCEEN","19017 – BILLARD CLUB PHOCEEN","Oui","-","R4",0.92,0.74,"à","SELON RÈGLEMENT SPORTIF LIGUE"]
["184667A","IVACHEFF","HELENE","IVACHEFF HELENE",2025,2025,"Méditerranée","CDB Var",19106,"BILLARD CLUB VINONNAIS","19106 – BILLARD CLUB VINONNAIS","Oui","-","R4",0.81,0.65,"à","SELON RÈGLEMENT SPORTIF LIGUE"]
["181239Z","IVACHEFF","MICHEL","IVACHEFF MICHEL",2025,2025,"Méditerranée","CDB Var",19106,"BILLARD CLUB VINONNAIS","19106 – BILLARD CLUB VINONNAIS","Oui","R4","R3",1.22,0.98,"á","SELON RÈGLEMENT SPORTIF LIGUE"]
["120276A","JAVEY","JEAN FRANCOIS","JAVEY JEAN FRANCOIS",2015,2023,"Méditerranée","CDB Var",19019,"BILLARD CLUB DE LA BAIE","19019 – BILLARD CLUB DE LA BAIE","Oui","R4","R4",1.1399999999999999,0.91,"à","SELON RÈGLEMENT SPORTIF LIGUE"]
["162905W","JUMEL","RENE","JUMEL RENE",2020,2025,"Méditerranée","CDB Vaucluse",19027,"ACADEMIE DE BILLARD DE BOLLENE","19027 – ACADEMIE DE BILLARD DE BOLLENE","Oui","R4","R4",1.01,0.8,"à","SELON RÈGLEMENT SPORTIF LIGUE"]
["175349X","JUNK","ROGER","JUNK ROGER",2023,2024,"Méditerranée","CDB Alpes Maritimes",19058,"ACADEMIE DE BILLARD DE BARBOSSI MANDELIEU","19058 – ACADEMIE DE BILLARD DE BARBOSSI MANDELIEU","Oui","R4","R4",0.55000000000000004,0.44,"à","SELON RÈGLEMENT SPORTIF LIGUE"]
["022173V","KOSKACH","JEAN PAUL","KOSKACH JEAN PAUL",2012,2024,"Méditerranée","CDB Bouches du Rhône",19017,"BILLARD CLUB PHOCEEN","19017 – BILLARD CLUB PHOCEEN","Oui","N3","N3",6.25,5,"à","SELON RÈGLEMENT SPORTIF LIGUE"]
["109977X","LACOSSE","JEAN PAUL","LACOSSE JEAN PAUL",2024,2025,"Méditerranée","CDB Var",19019,"BILLARD CLUB DE LA BAIE","19019 – BILLARD CLUB DE LA BAIE","Oui","N3","R1",5.67,4.53,"â","AUTORISÉ"]
["147195V","LACOSTE","BRUNO","LACOSTE BRUNO",2024,2024,"Méditerranée","CDB Var",19061,"ACAD.BILLARD ST RAPHAEL","19061 – ACAD.BILLARD ST RAPHAEL","Oui","R2","R2",3.11,2.4900000000000002,"à","SELON RÈGLEMENT SPORTIF LIGUE"]
["168708D","LACROIX","JEAN MARC","LACROIX JEAN MARC",2020,2020,"Méditerranée","CDB Bouches du Rhône",19098,"BILLARD CLUB LA FARE","19098 – BILLARD CLUB LA FARE","Oui","R4","R4",1.08,0.86,"à","SELON RÈGLEMENT SPORTIF LIGUE"]
["151312V","LAGIERE","CHRISTIAN","LAGIERE CHRISTIAN",2016,2022,"Méditerranée","CDB Var",19019,"BILLARD CLUB DE LA BAIE","19019 – BILLARD CLUB DE LA BAIE","Oui","R4","R4",1.07,0.85,"à","SELON RÈGLEMENT SPORTIF LIGUE"]
["175999D","LANARI","PIERRE","LANARI PIERRE",2025,2025,"Méditerranée","CDB Alpes Maritimes",19056,"BILLARD CLUB DE NICE","19056 – BILLARD CLUB DE NICE","Oui","R4","R4",1.1200000000000001,0.9,"à","SELON RÈGLEMENT SPORTIF LIGUE"]
["181199F","LANDERECTHE","PASCAL","LANDERECTHE PASCAL",2025,2025,"Méditerranée","CDB Bouches du Rhône",19007,"BILLARD CLUB BERROIS","19007 – BILLARD CLUB BERROIS","Oui","R3","R3",1.74,1.39,"à","SELON RÈGLEMENT SPORTIF LIGUE"]
["179135M","LANDOIS","DOMINIQUE","LANDOIS DOMINIQUE",2025,2025,"Méditerranée","CDB Alpes Maritimes",19055,"ACADEMIE DE BILLARD DE MENTON","19055 – ACADEMIE DE BILLARD DE MENTON","Oui","R4","R4",0.55000000000000004,0.44,"à","SELON RÈGLEMENT SPORTIF LIGUE"]
["168288X","LANNURIEN","THIERRY","LANNURIEN THIERRY",2025,2025,"Méditerranée","CDB Var",19023,"BILLARD CLUB GARDEEN","19023 – BILLARD CLUB GARDEEN","Oui","R2","R2",3.32,2.66,"à","SELON RÈGLEMENT SPORTIF LIGUE"]
["022190M","LAPLANCHE","YVON","LAPLANCHE YVON",2017,2023,"Méditerranée","CDB Var",19059,"BILLARD CLUB ROQUEBRUNOIS","19059 – BILLARD CLUB ROQUEBRUNOIS","Oui","R3","R3",2.19,1.75,"à","SELON RÈGLEMENT SPORTIF LIGUE"]
["178352L","LAUNAY","MICHEL","LAUNAY MICHEL",2025,2025,"Méditerranée","CDB Alpes Maritimes",19058,"ACADEMIE DE BILLARD DE BARBOSSI MANDELIEU","19058 – ACADEMIE DE BILLARD DE BARBOSSI MANDELIEU","Oui","R4","R4",0.66,0.53,"à","SELON RÈGLEMENT SPORTIF LIGUE"]
["163278B","LE FAUCHEUR","LAURENT","LE FAUCHEUR LAURENT",2025,2025,"Méditerranée","CDB Bouches du Rhône",19098,"BILLARD CLUB LA FARE","19098 – BILLARD CLUB LA FARE","Oui","R3","R3",1.41,1.1299999999999999,"à","SELON RÈGLEMENT SPORTIF LIGUE"]
["141504M","LECOQ","ARNAUD","LECOQ ARNAUD",2024,2025,"Méditerranée","CDB Bouches du Rhône",19012,"SALON BILLARD CLUB","19012 – SALON BILLARD CLUB","Oui","R3","R3",2.29,1.83,"à","SELON RÈGLEMENT SPORTIF LIGUE"]
["105373V","LEDUCQ","MORGAN","LEDUCQ MORGAN",2025,2025,"Méditerranée","CDB Vaucluse",19014,"BILLARD CLUB AVIGNONNAIS","19014 – BILLARD CLUB AVIGNONNAIS","Oui","R2","R2",3.41,2.73,"à","SELON RÈGLEMENT SPORTIF LIGUE"]
["110379J","LEMARTINET","ROBERT","LEMARTINET ROBERT",2025,2025,"Méditerranée","CDB Var",19019,"BILLARD CLUB DE LA BAIE","19019 – BILLARD CLUB DE LA BAIE","Oui","R3","R3",1.53,1.22,"à","SELON RÈGLEMENT SPORTIF LIGUE"]
["022205B","LEMESLE","FABRICE","LEMESLE FABRICE",2024,2025,"Méditerranée","CDB Bouches du Rhône",19017,"BILLARD CLUB PHOCEEN","19017 – BILLARD CLUB PHOCEEN","Oui","R4","R4",1.02,0.81,"à","SELON RÈGLEMENT SPORTIF LIGUE"]
["179358E","LESPRIT","CLAUDE","LESPRIT CLAUDE",2025,2025,"Méditerranée","CDB Var",19019,"BILLARD CLUB DE LA BAIE","19019 – BILLARD CLUB DE LA BAIE","Oui","-","R4",0.87,0.7,"à","SELON RÈGLEMENT SPORTIF LIGUE"]
["176350K","LETELLIER","ALAIN","LETELLIER ALAIN",2025,2025,"Méditerranée","CDB Bouches du Rhône",19090,"BILLARD AMATEUR ROGNAC","19090 – BILLARD AMATEUR ROGNAC","Oui","R3","R3",1.4,1.1200000000000001,"à","SELON RÈGLEMENT SPORTIF LIGUE"]
["184858H","LEVISTRE","ALAIN","LEVISTRE ALAIN",2025,2025,"Méditerranée","CDB Vaucluse",19014,"BILLARD CLUB AVIGNONNAIS","19014 – BILLARD CLUB AVIGNONNAIS","Oui","-","R3",1.37,1.1000000000000001,"à","SELON RÈGLEMENT SPORTIF LIGUE"]
["022209F","LIEGEOIS","DOMINIQUE","LIEGEOIS DOMINIQUE",2025,2025,"Méditerranée","CDB Vaucluse",19027,"ACADEMIE DE BILLARD DE BOLLENE","19027 – ACADEMIE DE BILLARD DE BOLLENE","Oui","R1","R2",3.37,2.69,"â","AUTORISÉ"]
["146375V","LISI","ROGER","LISI ROGER",2025,2025,"Méditerranée","CDB Bouches du Rhône",19007,"BILLARD CLUB BERROIS","19007 – BILLARD CLUB BERROIS","Oui","R4","R4",1.1000000000000001,0.88,"à","SELON RÈGLEMENT SPORTIF LIGUE"]
["168722T","LISSAJOUX","JEAN CLAUDE","LISSAJOUX JEAN CLAUDE",2020,2025,"Méditerranée","CDB Bouches du Rhône",19009,"CLUB BILLARD ISTREEN","19009 – CLUB BILLARD ISTREEN","Oui","R4","R4",1.1000000000000001,0.88,"à","SELON RÈGLEMENT SPORTIF LIGUE"]
["170267Y","LLOBELL","CLAIRE","LLOBELL CLAIRE",2025,2025,"Méditerranée","CDB Bouches du Rhône",19017,"BILLARD CLUB PHOCEEN","19017 – BILLARD CLUB PHOCEEN","Oui","-","R4",0.31,0.24,"à","SELON RÈGLEMENT SPORTIF LIGUE"]
["168030R","LOSTAO","DOMINIQUE","LOSTAO DOMINIQUE",2022,2025,"Méditerranée","CDB Alpes Maritimes",19058,"ACADEMIE DE BILLARD DE BARBOSSI MANDELIEU","19058 – ACADEMIE DE BILLARD DE BARBOSSI MANDELIEU","Oui","R4","R4",0.88,0.7,"à","SELON RÈGLEMENT SPORTIF LIGUE"]
["162076V","LUCENET","PAUL","LUCENET PAUL",2025,2025,"Méditerranée","CDB Bouches du Rhône",19009,"CLUB BILLARD ISTREEN","19009 – CLUB BILLARD ISTREEN","Oui","R2","R2",2.67,2.13,"à","SELON RÈGLEMENT SPORTIF LIGUE"]
["186880F","LUNEAU","JEAN CLAUDE","LUNEAU JEAN CLAUDE",2025,2025,"Méditerranée","CDB Var",19023,"BILLARD CLUB GARDEEN","19023 – BILLARD CLUB GARDEEN","Oui","-","R2",2.68,2.14,"à","SELON RÈGLEMENT SPORTIF LIGUE"]
["022221R","LUVISON","JEAN","LUVISON JEAN",2020,2025,"Méditerranée","CDB Bouches du Rhône",19012,"SALON BILLARD CLUB","19012 – SALON BILLARD CLUB","Oui","R4","R4",1.08,0.86,"à","SELON RÈGLEMENT SPORTIF LIGUE"]
["165843P","MAGNIER","PIERRE","MAGNIER PIERRE",2025,2025,"Méditerranée","CDB Var",19023,"BILLARD CLUB GARDEEN","19023 – BILLARD CLUB GARDEEN","Oui","R4","R4",0.77,0.62,"à","SELON RÈGLEMENT SPORTIF LIGUE"]
["100910E","MALLEVAL","GERARD","MALLEVAL GERARD",2024,2025,"Méditerranée","CDB Var",19023,"BILLARD CLUB GARDEEN","19023 – BILLARD CLUB GARDEEN","Oui","R3","R3",1.91,1.53,"à","SELON RÈGLEMENT SPORTIF LIGUE"]
["020447L","MARCEAUX","JOSE","MARCEAUX JOSE",2025,2025,"Méditerranée","CDB Var",19059,"BILLARD CLUB ROQUEBRUNOIS","19059 – BILLARD CLUB ROQUEBRUNOIS","Oui","R2","R2",3.09,2.4700000000000002,"à","SELON RÈGLEMENT SPORTIF LIGUE"]
["164047M","MARCHAND","PHILIPPE","MARCHAND PHILIPPE",2025,2025,"Méditerranée","CDB Bouches du Rhône",19001,"S. S. A. B. D AIX EN PROVENCE","19001 – S. S. A. B. D AIX EN PROVENCE","Oui","-","R4",1.17,0.94,"à","SELON RÈGLEMENT SPORTIF LIGUE"]
["177467Z","MARCHANDISE MORAND","JACQUELINE","MARCHANDISE MORAND JACQUELINE",2025,2025,"Méditerranée","CDB Alpes Haute Provence",19025,"BILLARD CLUB SISTERONNAIS","19025 – BILLARD CLUB SISTERONNAIS","Oui","R4","R4",0.27,0.21,"à","SELON RÈGLEMENT SPORTIF LIGUE"]
["108280Q","MARCIANO","GEORGES","MARCIANO GEORGES",2010,2025,"Méditerranée","CDB Alpes Maritimes",19058,"ACADEMIE DE BILLARD DE BARBOSSI MANDELIEU","19058 – ACADEMIE DE BILLARD DE BARBOSSI MANDELIEU","Oui","R2","R2",2.42,1.94,"à","SELON RÈGLEMENT SPORTIF LIGUE"]
["172680W","MASSIAS","GUY","MASSIAS GUY",2025,2025,"Méditerranée","CDB Bouches du Rhône",19001,"S. S. A. B. D AIX EN PROVENCE","19001 – S. S. A. B. D AIX EN PROVENCE","Oui","-","R4",1.03,0.83,"à","SELON RÈGLEMENT SPORTIF LIGUE"]
["129498S","MATHIEU","CLAUDE","MATHIEU CLAUDE",2023,2025,"Méditerranée","CDB Bouches du Rhône",19098,"BILLARD CLUB LA FARE","19098 – BILLARD CLUB LA FARE","Oui","R3","R4",1.02,0.81,"â","AUTORISÉ"]
["017615N","MAUDUIT","DIDIER","MAUDUIT DIDIER",2024,2025,"Méditerranée","CDB Bouches du Rhône",19009,"CLUB BILLARD ISTREEN","19009 – CLUB BILLARD ISTREEN","Oui","R3","R3",1.35,1.08,"à","SELON RÈGLEMENT SPORTIF LIGUE"]
["149391G","MAURON","BERNARD","MAURON BERNARD",2025,2025,"Méditerranée","CDB Var",19023,"BILLARD CLUB GARDEEN","19023 – BILLARD CLUB GARDEEN","Oui","R2","R2",2.65,2.12,"à","SELON RÈGLEMENT SPORTIF LIGUE"]
["112015H","MAYNARD","ALEXANDRE","MAYNARD ALEXANDRE",2025,2025,"Méditerranée","CDB Alpes Maritimes",19056,"BILLARD CLUB DE NICE","19056 – BILLARD CLUB DE NICE","Oui","R3","R3",1.84,1.47,"à","SELON RÈGLEMENT SPORTIF LIGUE"]
["144802I","MELLET","PIERRE","MELLET PIERRE",2025,2025,"Méditerranée","CDB Vaucluse",19027,"ACADEMIE DE BILLARD DE BOLLENE","19027 – ACADEMIE DE BILLARD DE BOLLENE","Oui","R2","R3",1.57,1.26,"â","AUTORISÉ"]
["152604Z","METAIS","ALBAN","METAIS ALBAN",2025,2025,"Méditerranée","CDB Vaucluse",19006,"BILLARD CLUB CARPENTRASSIEN","19006 – BILLARD CLUB CARPENTRASSIEN","Oui","R3","R3",2.0699999999999998,1.65,"à","SELON RÈGLEMENT SPORTIF LIGUE"]
["022260E","MEYER","LUC","MEYER LUC",2024,2025,"Méditerranée","CDB Var",19023,"BILLARD CLUB GARDEEN","19023 – BILLARD CLUB GARDEEN","Oui","R1","R1",5.26,4.21,"à","SELON RÈGLEMENT SPORTIF LIGUE"]
["183513W","MICHEL","JACQUES","MICHEL JACQUES",2025,2025,"Méditerranée","CDB Vaucluse",19006,"BILLARD CLUB CARPENTRASSIEN","19006 – BILLARD CLUB CARPENTRASSIEN","Oui","-","R4",1.05,0.84,"à","SELON RÈGLEMENT SPORTIF LIGUE"]
["172218T","MILLOT","ROBERT","MILLOT ROBERT",2025,2025,"Méditerranée","CDB Alpes Haute Provence",19025,"BILLARD CLUB SISTERONNAIS","19025 – BILLARD CLUB SISTERONNAIS","Oui","R3","R3",1.39,1.1100000000000001,"à","SELON RÈGLEMENT SPORTIF LIGUE"]
["022266K","MOGLIA","EMILE","MOGLIA EMILE",2011,2025,"Méditerranée","CDB Vaucluse",19014,"BILLARD CLUB AVIGNONNAIS","19014 – BILLARD CLUB AVIGNONNAIS","Oui","R1","R1",5.16,4.13,"à","SELON RÈGLEMENT SPORTIF LIGUE"]
["022268M","MOLAND","PHILIPPE","MOLAND PHILIPPE",2025,2025,"Méditerranée","CDB Var",19059,"BILLARD CLUB ROQUEBRUNOIS","19059 – BILLARD CLUB ROQUEBRUNOIS","Oui","R2","R3",2.09,1.67,"â","AUTORISÉ"]
["022271P","MONNET","JEAN CLAUDE","MONNET JEAN CLAUDE",2025,2025,"Méditerranée","CDB Vaucluse",19021,"BILLARD CLUB CAVAILLONNAIS","19021 – BILLARD CLUB CAVAILLONNAIS","Oui","-","R2",3.09,2.4700000000000002,"à","SELON RÈGLEMENT SPORTIF LIGUE"]
["136279N","MONTESINOS","GILLES","MONTESINOS GILLES",2025,2025,"Méditerranée","CDB Bouches du Rhône",19012,"SALON BILLARD CLUB","19012 – SALON BILLARD CLUB","Oui","R4","R4",1.05,0.84,"à","SELON RÈGLEMENT SPORTIF LIGUE"]
["147624L","MOREELS","BERNARD","MOREELS BERNARD",2025,2025,"Méditerranée","CDB Var",19023,"BILLARD CLUB GARDEEN","19023 – BILLARD CLUB GARDEEN","Oui","R3","R3",1.3,1.04,"à","SELON RÈGLEMENT SPORTIF LIGUE"]
["151456B","MOUSSIER","PATRICK","MOUSSIER PATRICK",2025,2025,"Méditerranée","CDB Alpes Maritimes",19056,"BILLARD CLUB DE NICE","19056 – BILLARD CLUB DE NICE","Oui","R3","R3",1.46,1.1599999999999999,"à","SELON RÈGLEMENT SPORTIF LIGUE"]
["109063T","MUNOS","JEAN","MUNOS JEAN",2025,2025,"Méditerranée","CDB Bouches du Rhône",19050,"BILLARD CLUB SAUSSETOIS","19050 – BILLARD CLUB SAUSSETOIS","Oui","R1","R1",4.3899999999999997,3.51,"à","SELON RÈGLEMENT SPORTIF LIGUE"]
["109708O","MUNOS","VINCENT","MUNOS VINCENT",2025,2025,"Méditerranée","CDB Bouches du Rhône",19007,"BILLARD CLUB BERROIS","19007 – BILLARD CLUB BERROIS","Oui","R2","R2",2.5099999999999998,2.0099999999999998,"à","SELON RÈGLEMENT SPORTIF LIGUE"]
["141788K","N GUYEN VAN DUC","MAX","N GUYEN VAN DUC MAX",2015,2025,"Méditerranée","CDB Bouches du Rhône",19007,"BILLARD CLUB BERROIS","19007 – BILLARD CLUB BERROIS","Oui","R3","R3",1.27,1.02,"à","SELON RÈGLEMENT SPORTIF LIGUE"]
["166329S","NABHANE","EMILE","NABHANE EMILE",2024,2025,"Méditerranée","CDB Vaucluse",19006,"BILLARD CLUB CARPENTRASSIEN","19006 – BILLARD CLUB CARPENTRASSIEN","Oui","R4","R4",1.06,0.84,"à","SELON RÈGLEMENT SPORTIF LIGUE"]
["107150E","NAPOLI","SALVATORE","NAPOLI SALVATORE",2025,2025,"Méditerranée","CDB Vaucluse",19006,"BILLARD CLUB CARPENTRASSIEN","19006 – BILLARD CLUB CARPENTRASSIEN","Oui","R3","R4",1.1000000000000001,0.88,"â","AUTORISÉ"]
["174977S","NARDELLI","PASCAL","NARDELLI PASCAL",2024,2024,"Méditerranée","CDB Var",19061,"ACAD.BILLARD ST RAPHAEL","19061 – ACAD.BILLARD ST RAPHAEL","Oui","R3","R3",1.42,1.1299999999999999,"à","SELON RÈGLEMENT SPORTIF LIGUE"]
["154573P","NATELLA","IDA",{"$f":"B258&\" \"&C258","v":"NATELLA IDA"},2025,2025,"Méditerranée","CDB Alpes Maritimes",19056,"BILLARD CLUB DE NICE",{"$f":"I258&\" – \"&J258","v":"19056 – BILLARD CLUB DE NICE"},"Oui","R4","R4",0.56999999999999995,0.45,"à","SELON RÈGLEMENT SPORTIF LIGUE"]
["154572N","NATELLA","ROGER","NATELLA ROGER",2025,2025,"Méditerranée","CDB Alpes Maritimes",19056,"BILLARD CLUB DE NICE","19056 – BILLARD CLUB DE NICE","Oui","R3","R3",1.6,1.28,"à","SELON RÈGLEMENT SPORTIF LIGUE"]
["183754H","NGUYEN","PAUL","NGUYEN PAUL",2024,2025,"Méditerranée","CDB Alpes Maritimes",19055,"ACADEMIE DE BILLARD DE MENTON","19055 – ACADEMIE DE BILLARD DE MENTON","Oui","R3","R3",1.32,1.05,"à","SELON RÈGLEMENT SPORTIF LIGUE"]
["182190H","NOSSIN","MARC","NOSSIN MARC",2025,2025,"Méditerranée","CDB Alpes Maritimes",19058,"ACADEMIE DE BILLARD DE BARBOSSI MANDELIEU","19058 – ACADEMIE DE BILLARD DE BARBOSSI MANDELIEU","Oui","R4","R4",1.05,0.84,"à","SELON RÈGLEMENT SPORTIF LIGUE"]
["020258E","OLLIVIER","DANIEL","OLLIVIER DANIEL",2025,2025,"Méditerranée","CDB Bouches du Rhône",19009,"CLUB BILLARD ISTREEN","19009 – CLUB BILLARD ISTREEN","Oui","R2","R3",2.2599999999999998,1.81,"â","AUTORISÉ"]
["154378C","ORSAL","SERGE","ORSAL SERGE",2018,2024,"Méditerranée","CDB Bouches du Rhône",19012,"SALON BILLARD CLUB","19012 – SALON BILLARD CLUB","Oui","R4","R4",0.91,0.73,"à","SELON RÈGLEMENT SPORTIF LIGUE"]
["128468C","OUDOUX","GERARD","OUDOUX GERARD",2025,2025,"Méditerranée","CDB Var",19023,"BILLARD CLUB GARDEEN","19023 – BILLARD CLUB GARDEEN","Oui","R3","R3",1.3,1.04,"à","SELON RÈGLEMENT SPORTIF LIGUE"]
["150400D","PACZESNY","FABRICE","PACZESNY FABRICE",2025,2025,"Méditerranée","CDB Bouches du Rhône",19098,"BILLARD CLUB LA FARE","19098 – BILLARD CLUB LA FARE","Oui","R3","R2",2.48,1.98,"á","SELON RÈGLEMENT SPORTIF LIGUE"]
["177193B","PAU","CHRISTINE","PAU CHRISTINE",2025,2025,"Méditerranée","CDB Alpes Haute Provence",19025,"BILLARD CLUB SISTERONNAIS","19025 – BILLARD CLUB SISTERONNAIS","Oui","R4","R4",0.48,0.39,"à","SELON RÈGLEMENT SPORTIF LIGUE"]
["153692G","PAVIOT","DIDIER","PAVIOT DIDIER",2016,2020,"Méditerranée","CDB Var",19023,"BILLARD CLUB GARDEEN","19023 – BILLARD CLUB GARDEEN","Oui","R3","R3",1.89,1.51,"à","SELON RÈGLEMENT SPORTIF LIGUE"]
["141673Z","PELLAT","FRANCIS","PELLAT FRANCIS",2025,2025,"Méditerranée","CDB Alpes Haute Provence",19025,"BILLARD CLUB SISTERONNAIS","19025 – BILLARD CLUB SISTERONNAIS","Oui","R2","R2",2.56,2.0499999999999998,"à","SELON RÈGLEMENT SPORTIF LIGUE"]
["103577T","PENEDO","MANUEL","PENEDO MANUEL",2017,2024,"Méditerranée","CDB Var",19106,"BILLARD CLUB VINONNAIS","19106 – BILLARD CLUB VINONNAIS","Oui","R1","R1",5.9,4.72,"à","SELON RÈGLEMENT SPORTIF LIGUE"]
["130773T","PEREZ","CHRISTIAN","PEREZ CHRISTIAN",2025,2025,"Méditerranée","CDB Bouches du Rhône",19009,"CLUB BILLARD ISTREEN","19009 – CLUB BILLARD ISTREEN","Oui","R3","R3",1.56,1.25,"à","SELON RÈGLEMENT SPORTIF LIGUE"]
["022321N","PERIS","MICHEL","PERIS MICHEL",2025,2025,"Méditerranée","CDB Alpes Maritimes",19056,"BILLARD CLUB DE NICE","19056 – BILLARD CLUB DE NICE","Oui","R4","R4",0.55000000000000004,0.44,"à","SELON RÈGLEMENT SPORTIF LIGUE"]
["181624S","PERRIN","LIONEL","PERRIN LIONEL",2025,2025,"Méditerranée","CDB Var",19023,"BILLARD CLUB GARDEEN","19023 – BILLARD CLUB GARDEEN","Oui","R3","R3",1.35,1.08,"à","SELON RÈGLEMENT SPORTIF LIGUE"]
["130433R","PERRY","GUY","PERRY GUY",2017,2022,"Méditerranée","CDB Var",19061,"ACAD.BILLARD ST RAPHAEL","19061 – ACAD.BILLARD ST RAPHAEL","Oui","R4","R4",0.86,0.69,"à","SELON RÈGLEMENT SPORTIF LIGUE"]
["179786V","PERTUZON","NOLAN","PERTUZON NOLAN",2024,2025,"Méditerranée","CDB Bouches du Rhône",19009,"CLUB BILLARD ISTREEN","19009 – CLUB BILLARD ISTREEN","Oui","R4","R4",0.36,0.28000000000000003,"à","SELON RÈGLEMENT SPORTIF LIGUE"]
["179183P","PETIT","PHILIPPE","PETIT PHILIPPE",2024,2025,"Méditerranée","CDB Vaucluse",19014,"BILLARD CLUB AVIGNONNAIS","19014 – BILLARD CLUB AVIGNONNAIS","Oui","R4","R4",0.67,0.53,"à","SELON RÈGLEMENT SPORTIF LIGUE"]
["129330G","PICOLLET","MANUEL","PICOLLET MANUEL",2018,2022,"Méditerranée","CDB Bouches du Rhône",19090,"BILLARD AMATEUR ROGNAC","19090 – BILLARD AMATEUR ROGNAC","Oui","N3","N3",7.01,5.61,"à","SELON RÈGLEMENT SPORTIF LIGUE"]
["022330W","PIELIN","PASCAL","PIELIN PASCAL",2023,2025,"Méditerranée","CDB Bouches du Rhône",19012,"SALON BILLARD CLUB","19012 – SALON BILLARD CLUB","Oui","N3","N3",6.47,5.18,"à","SELON RÈGLEMENT SPORTIF LIGUE"]
["112316W","PIGNATEL","FLORENT","PIGNATEL FLORENT",2025,2025,"Méditerranée","CDB Vaucluse",19021,"BILLARD CLUB CAVAILLONNAIS","19021 – BILLARD CLUB CAVAILLONNAIS","Oui","N3","N3",8.6199999999999992,6.89,"à","SELON RÈGLEMENT SPORTIF LIGUE"]
["165118B","PILAVDJIAN","JACQUES","PILAVDJIAN JACQUES",2024,2025,"Méditerranée","CDB Bouches du Rhône",19017,"BILLARD CLUB PHOCEEN","19017 – BILLARD CLUB PHOCEEN","Oui","R4","R4",0.72,0.56999999999999995,"à","SELON RÈGLEMENT SPORTIF LIGUE"]
["105404A","PINARD","PATRICE","PINARD PATRICE",2015,2025,"Méditerranée","CDB Bouches du Rhône",19012,"SALON BILLARD CLUB","19012 – SALON BILLARD CLUB","Oui","R1","R1",4.5999999999999996,3.68,"à","SELON RÈGLEMENT SPORTIF LIGUE"]
["022332Y","PINNA","ALAIN","PINNA ALAIN",2008,2025,"Méditerranée","CDB Bouches du Rhône",19017,"BILLARD CLUB PHOCEEN","19017 – BILLARD CLUB PHOCEEN","Oui","N1","N1",27.66,22.13,"à","SELON RÈGLEMENT SPORTIF LIGUE"]
["148229T","PINNA","VINCENT","PINNA VINCENT",2014,2025,"Méditerranée","CDB Bouches du Rhône",19017,"BILLARD CLUB PHOCEEN","19017 – BILLARD CLUB PHOCEEN","Oui","R4","R4",0.59,0.47,"à","SELON RÈGLEMENT SPORTIF LIGUE"]
["177205P","PIRO COUDERC","MARIE LAURE","PIRO COUDERC MARIE LAURE",2025,2025,"Méditerranée","CDB Alpes Haute Provence",19025,"BILLARD CLUB SISTERONNAIS","19025 – BILLARD CLUB SISTERONNAIS","Oui","R4","R4",0.28999999999999998,0.23,"à","SELON RÈGLEMENT SPORTIF LIGUE"]
["108010G","POIRIER","DOMINIQUE","POIRIER DOMINIQUE",2025,2025,"Méditerranée","CDB Var",19061,"ACAD.BILLARD ST RAPHAEL","19061 – ACAD.BILLARD ST RAPHAEL","Oui","R3","R3",1.33,1.07,"à","SELON RÈGLEMENT SPORTIF LIGUE"]
["170697Q","PORA","JEAN PAUL","PORA JEAN PAUL",2025,2025,"Méditerranée","CDB Bouches du Rhône",19009,"CLUB BILLARD ISTREEN","19009 – CLUB BILLARD ISTREEN","Oui","R4","R4",1.1100000000000001,0.88,"à","SELON RÈGLEMENT SPORTIF LIGUE"]
["181316H","PORTET","PATRICK","PORTET PATRICK",2025,2025,"Méditerranée","CDB Var",19059,"BILLARD CLUB ROQUEBRUNOIS","19059 – BILLARD CLUB ROQUEBRUNOIS","Oui","R4","R4",0.7,0.56000000000000005,"à","SELON RÈGLEMENT SPORTIF LIGUE"]
["022346M","POUGIN","JEAN FRANCOIS","POUGIN JEAN FRANCOIS",2025,2025,"Méditerranée","CDB Var",19059,"BILLARD CLUB ROQUEBRUNOIS","19059 – BILLARD CLUB ROQUEBRUNOIS","Oui","R3","R3",2.11,1.69,"à","SELON RÈGLEMENT SPORTIF LIGUE"]
["022347N","POUJOL","JEAN PAUL","POUJOL JEAN PAUL",2025,2025,"Méditerranée","CDB Vaucluse",19014,"BILLARD CLUB AVIGNONNAIS","19014 – BILLARD CLUB AVIGNONNAIS","Oui","R3","R3",1.32,1.06,"à","SELON RÈGLEMENT SPORTIF LIGUE"]
["144719D","POULAIN","FREDERIC","POULAIN FREDERIC",2025,2025,"Méditerranée","CDB Vaucluse",19016,"BILLARD CLUB ORANGEOIS","19016 – BILLARD CLUB ORANGEOIS","Oui","R3","R2",2.4300000000000002,1.95,"á","SELON RÈGLEMENT SPORTIF LIGUE"]
["022349P","POZNANSKI","JEAN MICHEL","POZNANSKI JEAN MICHEL",2018,2025,"Méditerranée","CDB Bouches du Rhône",19012,"SALON BILLARD CLUB","19012 – SALON BILLARD CLUB","Oui","R2","R2",3.74,2.99,"à","SELON RÈGLEMENT SPORTIF LIGUE"]
["178400N","PREVOT","GABRIEL","PREVOT GABRIEL",2025,2025,"Méditerranée","CDB Alpes Maritimes",19056,"BILLARD CLUB DE NICE","19056 – BILLARD CLUB DE NICE","Oui","-","R4",0.53,0.42,"à","SELON RÈGLEMENT SPORTIF LIGUE"]
["143885B","PROFIT","GILBERT","PROFIT GILBERT",2018,2025,"Méditerranée","CDB Alpes Maritimes",19056,"BILLARD CLUB DE NICE","19056 – BILLARD CLUB DE NICE","Oui","R4","R4",0.6,0.48,"à","SELON RÈGLEMENT SPORTIF LIGUE"]
["172219V","PUICHAULT","REMY","PUICHAULT REMY",2025,2025,"Méditerranée","CDB Alpes Haute Provence",19025,"BILLARD CLUB SISTERONNAIS","19025 – BILLARD CLUB SISTERONNAIS","Oui","R3","R3",1.84,1.47,"à","SELON RÈGLEMENT SPORTIF LIGUE"]
["136544S","QUEZEL","ANDRE","QUEZEL ANDRE",2025,2025,"Méditerranée","CDB Vaucluse",19014,"BILLARD CLUB AVIGNONNAIS","19014 – BILLARD CLUB AVIGNONNAIS","Oui","R4","R3",1.4,1.1200000000000001,"á","SELON RÈGLEMENT SPORTIF LIGUE"]
["022357X","RAMOND","JEAN MARC","RAMOND JEAN MARC",2025,2025,"Méditerranée","CDB Alpes Maritimes",19058,"ACADEMIE DE BILLARD DE BARBOSSI MANDELIEU","19058 – ACADEMIE DE BILLARD DE BARBOSSI MANDELIEU","Oui","R2","R2",2.82,2.2599999999999998,"à","SELON RÈGLEMENT SPORTIF LIGUE"]
["136205R","RANC","ALAIN","RANC ALAIN",2017,2025,"Méditerranée","CDB Vaucluse",19027,"ACADEMIE DE BILLARD DE BOLLENE","19027 – ACADEMIE DE BILLARD DE BOLLENE","Oui","R3","R3",1.4,1.1200000000000001,"à","SELON RÈGLEMENT SPORTIF LIGUE"]
["161645B","RAUD","DANIEL","RAUD DANIEL",2025,2025,"Méditerranée","CDB Bouches du Rhône",19098,"BILLARD CLUB LA FARE","19098 – BILLARD CLUB LA FARE","Oui","R3","R3",1.81,1.44,"à","SELON RÈGLEMENT SPORTIF LIGUE"]
["157788J","RAVENET","FRANCIS","RAVENET FRANCIS",2025,2025,"Méditerranée","CDB Var",19059,"BILLARD CLUB ROQUEBRUNOIS","19059 – BILLARD CLUB ROQUEBRUNOIS","Oui","R3","R3",1.68,1.34,"à","SELON RÈGLEMENT SPORTIF LIGUE"]
["119696S","REVALOR","MICHEL","REVALOR MICHEL",2025,2025,"Méditerranée","CDB Bouches du Rhône",19050,"BILLARD CLUB SAUSSETOIS","19050 – BILLARD CLUB SAUSSETOIS","Oui","R2","R2",2.5,2,"à","SELON RÈGLEMENT SPORTIF LIGUE"]
["022366G","RIBOLLA","PATRICE","RIBOLLA PATRICE",2025,2025,"Méditerranée","CDB Alpes Maritimes",19056,"BILLARD CLUB DE NICE","19056 – BILLARD CLUB DE NICE","Oui","R1","R1",5.78,4.62,"à","SELON RÈGLEMENT SPORTIF LIGUE"]
["133646G","RICART","ANDRE","RICART ANDRE",2019,2019,"Méditerranée","CDB Bouches du Rhône",19009,"CLUB BILLARD ISTREEN","19009 – CLUB BILLARD ISTREEN","Oui","R3","R3",1.82,1.45,"à","SELON RÈGLEMENT SPORTIF LIGUE"]
["022367H","RICHARD","GUY","RICHARD GUY",2024,2025,"Méditerranée","CDB Var",19023,"BILLARD CLUB GARDEEN","19023 – BILLARD CLUB GARDEEN","Oui","R1","R1",4.0599999999999996,3.25,"à","SELON RÈGLEMENT SPORTIF LIGUE"]
["125943Z","RIFFET","BERNARD","RIFFET BERNARD",2013,2020,"Méditerranée","CDB Vaucluse",19014,"BILLARD CLUB AVIGNONNAIS","19014 – BILLARD CLUB AVIGNONNAIS","Oui","R3","R3",1.42,1.1399999999999999,"à","SELON RÈGLEMENT SPORTIF LIGUE"]
["022372M","RIGNOLS","PHILIPPE","RIGNOLS PHILIPPE",2012,2025,"Méditerranée","CDB Vaucluse",19021,"BILLARD CLUB CAVAILLONNAIS","19021 – BILLARD CLUB CAVAILLONNAIS","Oui","R2","R3",2.27,1.81,"â","AUTORISÉ"]
["023064C","RIGOLLET","PIERRE","RIGOLLET PIERRE",2025,2025,"Méditerranée","CDB Alpes Haute Provence",19025,"BILLARD CLUB SISTERONNAIS","19025 – BILLARD CLUB SISTERONNAIS","Oui","N1","N2",14.58,11.66,"â","AUTORISÉ"]
["170733E","RIVIER","PATRICE","RIVIER PATRICE",2025,2025,"Méditerranée","CDB Bouches du Rhône",19017,"BILLARD CLUB PHOCEEN","19017 – BILLARD CLUB PHOCEEN","Oui","-","R4",0.98,0.79,"à","SELON RÈGLEMENT SPORTIF LIGUE"]
["134183X","ROBBE","RAYMOND","ROBBE RAYMOND",2025,2025,"Méditerranée","CDB Bouches du Rhône",19009,"CLUB BILLARD ISTREEN","19009 – CLUB BILLARD ISTREEN","Oui","R3","R3",1.74,1.39,"à","SELON RÈGLEMENT SPORTIF LIGUE"]
["022450M","ROBERT","DIDIER","ROBERT DIDIER",2024,2025,"Méditerranée","CDB Vaucluse",19014,"BILLARD CLUB AVIGNONNAIS","19014 – BILLARD CLUB AVIGNONNAIS","Oui","N3","N3",8.14,6.51,"à","SELON RÈGLEMENT SPORTIF LIGUE"]
["171160T","RODRIGUES","STEVE","RODRIGUES STEVE",2025,2025,"Méditerranée","CDB Bouches du Rhône",19090,"BILLARD AMATEUR ROGNAC","19090 – BILLARD AMATEUR ROGNAC","Oui","R4","R4",1.07,0.85,"à","SELON RÈGLEMENT SPORTIF LIGUE"]
["134843H","ROGER","GERARD","ROGER GERARD",2018,2025,"Méditerranée","CDB Vaucluse",19021,"BILLARD CLUB CAVAILLONNAIS","19021 – BILLARD CLUB CAVAILLONNAIS","Oui","R4","R4",1.01,0.81,"à","SELON RÈGLEMENT SPORTIF LIGUE"]
["166175A","RONSAIN","JEAN JACQUES","RONSAIN JEAN JACQUES",2024,2025,"Méditerranée","CDB Bouches du Rhône",19012,"SALON BILLARD CLUB","19012 – SALON BILLARD CLUB","Oui","R3","R3",1.25,1,"à","SELON RÈGLEMENT SPORTIF LIGUE"]
["132526E","ROQUES","ALAIN","ROQUES ALAIN",2022,2024,"Méditerranée","CDB Alpes Maritimes",19056,"BILLARD CLUB DE NICE","19056 – BILLARD CLUB DE NICE","Oui","R4","R4",1.01,0.81,"à","SELON RÈGLEMENT SPORTIF LIGUE"]
["163166E","ROUANET","CLAUDE","ROUANET CLAUDE",2023,2025,"Méditerranée","CDB Alpes Haute Provence",19025,"BILLARD CLUB SISTERONNAIS","19025 – BILLARD CLUB SISTERONNAIS","Oui","R2","R2",2.33,1.87,"à","SELON RÈGLEMENT SPORTIF LIGUE"]
["101518O","ROUGON","ROBERT","ROUGON ROBERT",2025,2025,"Méditerranée","CDB Bouches du Rhône",19007,"BILLARD CLUB BERROIS","19007 – BILLARD CLUB BERROIS","Oui","R1","R2",3.47,2.78,"â","AUTORISÉ"]
["022384Y","ROUX","CLAUDE","ROUX CLAUDE",2008,2020,"Méditerranée","CDB Bouches du Rhône",19050,"BILLARD CLUB SAUSSETOIS","19050 – BILLARD CLUB SAUSSETOIS","Oui","R1","R1",4.8,3.84,"à","SELON RÈGLEMENT SPORTIF LIGUE"]
["121397D","RYCKELYNCK","LAURENT","RYCKELYNCK LAURENT",2025,2025,"Méditerranée","CDB Vaucluse",19006,"BILLARD CLUB CARPENTRASSIEN","19006 – BILLARD CLUB CARPENTRASSIEN","Oui","R2","R2",3.23,2.58,"à","SELON RÈGLEMENT SPORTIF LIGUE"]
["136546U","SALAMA","ALAIN","SALAMA ALAIN",2012,2025,"Méditerranée","CDB Vaucluse",19021,"BILLARD CLUB CAVAILLONNAIS","19021 – BILLARD CLUB CAVAILLONNAIS","Oui","R3","R3",1.65,1.32,"à","SELON RÈGLEMENT SPORTIF LIGUE"]
["175174G","SALES","THIERRY","SALES THIERRY",2025,2025,"Méditerranée","CDB Var",19061,"ACAD.BILLARD ST RAPHAEL","19061 – ACAD.BILLARD ST RAPHAEL","Oui","R3","R4",0.98,0.79,"â","AUTORISÉ"]
["022391F","SANTIAGO","JEAN JOSEPH","SANTIAGO JEAN JOSEPH",2019,2025,"Méditerranée","CDB Bouches du Rhône",19050,"BILLARD CLUB SAUSSETOIS","19050 – BILLARD CLUB SAUSSETOIS","Oui","N3","N3",6.44,5.15,"à","SELON RÈGLEMENT SPORTIF LIGUE"]
["014138U","SARRALDE","LOUIS","SARRALDE LOUIS",2024,2025,"Méditerranée","CDB Vaucluse",19021,"BILLARD CLUB CAVAILLONNAIS","19021 – BILLARD CLUB CAVAILLONNAIS","Oui","R4","R4",0.91,0.73,"à","SELON RÈGLEMENT SPORTIF LIGUE"]
["186195L","SAVI","OLIVIER","SAVI OLIVIER",2025,2025,"Méditerranée","CDB Bouches du Rhône",19050,"BILLARD CLUB SAUSSETOIS","19050 – BILLARD CLUB SAUSSETOIS","Oui","-","R3",1.34,1.07,"à","SELON RÈGLEMENT SPORTIF LIGUE"]
["113222S","SAVOIA","PATRICK",{"$f":"B322&\" \"&C322","v":"SAVOIA PATRICK"},2025,2025,"Méditerranée","CDB Bouches du Rhône",19050,"BILLARD CLUB SAUSSETOIS",{"$f":"I322&\" – \"&J322","v":"19050 – BILLARD CLUB SAUSSETOIS"},"Oui","R3","R3",1.34,1.07,"à","SELON RÈGLEMENT SPORTIF LIGUE"]
["149694L","SCHAEFER","ERNEST ROBERT","SCHAEFER ERNEST ROBERT",2025,2025,"Méditerranée","CDB Vaucluse",19006,"BILLARD CLUB CARPENTRASSIEN","19006 – BILLARD CLUB CARPENTRASSIEN","Oui","R3","R3",1.39,1.1100000000000001,"à","SELON RÈGLEMENT SPORTIF LIGUE"]
["022399N","SCHEKLER","JEAN FLORIAN","SCHEKLER JEAN FLORIAN",2022,2023,"Méditerranée","CDB Var",19061,"ACAD.BILLARD ST RAPHAEL","19061 – ACAD.BILLARD ST RAPHAEL","Oui","R3","R3",1.42,1.1399999999999999,"à","SELON RÈGLEMENT SPORTIF LIGUE"]
["187494Y","SCHEMBRI","BERNARD","SCHEMBRI BERNARD",2025,2025,"Méditerranée","CDB Bouches du Rhône",19017,"BILLARD CLUB PHOCEEN","19017 – BILLARD CLUB PHOCEEN","Oui","-","R4",0.68,0.55000000000000004,"à","SELON RÈGLEMENT SPORTIF LIGUE"]
["136540O","SCHENK","ROBERT","SCHENK ROBERT",2025,2025,"Méditerranée","CDB Alpes Maritimes",19056,"BILLARD CLUB DE NICE","19056 – BILLARD CLUB DE NICE","Oui","R4","R4",0.81,0.65,"à","SELON RÈGLEMENT SPORTIF LIGUE"]
["182883L","SEEMANN","MICHAEL","SEEMANN MICHAEL",2025,2025,"Méditerranée","CDB Alpes Haute Provence",19025,"BILLARD CLUB SISTERONNAIS","19025 – BILLARD CLUB SISTERONNAIS","Oui","-","R4",0.95,0.76,"à","SELON RÈGLEMENT SPORTIF LIGUE"]
["152347V","SEROR","BERNARD","SEROR BERNARD",2017,2021,"Méditerranée","CDB Alpes Maritimes",19058,"ACADEMIE DE BILLARD DE BARBOSSI MANDELIEU","19058 – ACADEMIE DE BILLARD DE BARBOSSI MANDELIEU","Oui","R4","R4",1.1100000000000001,0.89,"à","SELON RÈGLEMENT SPORTIF LIGUE"]
["163238H","SICARD","GEORGES","SICARD GEORGES",2025,2025,"Méditerranée","CDB Alpes Haute Provence",19025,"BILLARD CLUB SISTERONNAIS","19025 – BILLARD CLUB SISTERONNAIS","Oui","R3","R3",1.65,1.32,"à","SELON RÈGLEMENT SPORTIF LIGUE"]
["168834Q","SIEGLER","JEAN PIERRE","SIEGLER JEAN PIERRE",2025,2025,"Méditerranée","CDB Vaucluse",19006,"BILLARD CLUB CARPENTRASSIEN","19006 – BILLARD CLUB CARPENTRASSIEN","Oui","N3","R1",5.97,4.78,"â","AUTORISÉ"]
["010203L","SIMON","GERARD","SIMON GERARD",2025,2025,"Méditerranée","CDB Vaucluse",19014,"BILLARD CLUB AVIGNONNAIS","19014 – BILLARD CLUB AVIGNONNAIS","Oui","R2","R3",2.0699999999999998,1.65,"â","AUTORISÉ"]
["022412A","SINANIAN","JEAN PAUL","SINANIAN JEAN PAUL",2025,2025,"Méditerranée","CDB Bouches du Rhône",19017,"BILLARD CLUB PHOCEEN","19017 – BILLARD CLUB PHOCEEN","Oui","R1","R2",1.63,1.3,"â","AUTORISÉ"]
["103578U","SOLTANI","OMAR","SOLTANI OMAR",2025,2025,"Méditerranée","CDB Var",19106,"BILLARD CLUB VINONNAIS","19106 – BILLARD CLUB VINONNAIS","Oui","R2","R3",2.17,1.73,"â","AUTORISÉ"]
["125929L","SOULAS","GERARD","SOULAS GERARD",2013,2023,"Méditerranée","CDB Var",19019,"BILLARD CLUB DE LA BAIE","19019 – BILLARD CLUB DE LA BAIE","Oui","R3","R4",1.1299999999999999,0.9,"â","AUTORISÉ"]
["149696N","SOUTEYRAND","CHRISTIAN","SOUTEYRAND CHRISTIAN",2018,2022,"Méditerranée","CDB Vaucluse",19006,"BILLARD CLUB CARPENTRASSIEN","19006 – BILLARD CLUB CARPENTRASSIEN","Oui","R4","R4",1.1499999999999999,0.92,"à","SELON RÈGLEMENT SPORTIF LIGUE"]
["165931K","SPINNLER","JEAN LUC","SPINNLER JEAN LUC",2025,2025,"Méditerranée","CDB Vaucluse",19027,"ACADEMIE DE BILLARD DE BOLLENE","19027 – ACADEMIE DE BILLARD DE BOLLENE","Oui","-","R3",1.43,1.1399999999999999,"à","SELON RÈGLEMENT SPORTIF LIGUE"]
["020790Q","STEINMANN","SEBASTIEN","STEINMANN SEBASTIEN",2025,2025,"Méditerranée","CDB Var",19061,"ACAD.BILLARD ST RAPHAEL","19061 – ACAD.BILLARD ST RAPHAEL","Oui","R2","R2",2.4,1.92,"à","SELON RÈGLEMENT SPORTIF LIGUE"]
["125931N","STEPHAN","OLIVIER","STEPHAN OLIVIER",2011,2025,"Méditerranée","CDB Alpes Haute Provence",19025,"BILLARD CLUB SISTERONNAIS","19025 – BILLARD CLUB SISTERONNAIS","Oui","R1","R2",3.11,2.4900000000000002,"â","AUTORISÉ"]
["165039Q","SUEUR","PASCAL","SUEUR PASCAL",2024,2024,"Méditerranée","CDB Alpes Maritimes",19058,"ACADEMIE DE BILLARD DE BARBOSSI MANDELIEU","19058 – ACADEMIE DE BILLARD DE BARBOSSI MANDELIEU","Oui","R3","R3",1.32,1.05,"à","SELON RÈGLEMENT SPORTIF LIGUE"]
["022429R","TARDIEUX","LUC","TARDIEUX LUC",2025,2025,"Méditerranée","CDB Bouches du Rhône",19098,"BILLARD CLUB LA FARE","19098 – BILLARD CLUB LA FARE","Oui","R2","R2",2.86,2.29,"à","SELON RÈGLEMENT SPORTIF LIGUE"]
["133907H","TARDY","JEAN CLAUDE","TARDY JEAN CLAUDE",2022,2025,"Méditerranée","CDB Vaucluse",19014,"BILLARD CLUB AVIGNONNAIS","19014 – BILLARD CLUB AVIGNONNAIS","Oui","R4","R4",0.8,0.64,"à","SELON RÈGLEMENT SPORTIF LIGUE"]
["143024Y","TARDY","PIERRE YVES","TARDY PIERRE YVES",2014,2025,"Méditerranée","CDB Alpes Maritimes",19058,"ACADEMIE DE BILLARD DE BARBOSSI MANDELIEU","19058 – ACADEMIE DE BILLARD DE BARBOSSI MANDELIEU","Oui","R3","R3",1.55,1.24,"à","SELON RÈGLEMENT SPORTIF LIGUE"]
["123701T","TELOT","DOMINIQUE","TELOT DOMINIQUE",2018,2025,"Méditerranée","CDB Var",19059,"BILLARD CLUB ROQUEBRUNOIS","19059 – BILLARD CLUB ROQUEBRUNOIS","Oui","R2","R2",3.04,2.4300000000000002,"à","SELON RÈGLEMENT SPORTIF LIGUE"]
["132938A","TEYSSIER","SERGE","TEYSSIER SERGE",2025,2025,"Méditerranée","CDB Bouches du Rhône",19007,"BILLARD CLUB BERROIS","19007 – BILLARD CLUB BERROIS","Oui","R2","R2",2.59,2.0699999999999998,"à","SELON RÈGLEMENT SPORTIF LIGUE"]
["014232K","THEVENET","JEAN CLAUDE","THEVENET JEAN CLAUDE",2022,2025,"Méditerranée","CDB Alpes Haute Provence",19025,"BILLARD CLUB SISTERONNAIS","19025 – BILLARD CLUB SISTERONNAIS","Oui","R3","R3",1.38,1.1100000000000001,"à","SELON RÈGLEMENT SPORTIF LIGUE"]
["186654K","THIBOUT","HERVE","THIBOUT HERVE",2025,2025,"Méditerranée","CDB Bouches du Rhône",19017,"BILLARD CLUB PHOCEEN","19017 – BILLARD CLUB PHOCEEN","Oui","-","R4",0.72,0.57999999999999996,"à","SELON RÈGLEMENT SPORTIF LIGUE"]
["168687F","THOMAS","PHILIPPE","THOMAS PHILIPPE",2025,2025,"Méditerranée","CDB Var",19023,"BILLARD CLUB GARDEEN","19023 – BILLARD CLUB GARDEEN","Oui","R4","R4",0.95,0.76,"à","SELON RÈGLEMENT SPORTIF LIGUE"]
["148252T","TIMSIT","SERGE","TIMSIT SERGE",2025,2025,"Méditerranée","CDB Var",19023,"BILLARD CLUB GARDEEN","19023 – BILLARD CLUB GARDEEN","Oui","R4","R4",0.56000000000000005,0.44,"à","SELON RÈGLEMENT SPORTIF LIGUE"]
["111163N","TOLEDANO","ARMAND","TOLEDANO ARMAND",2015,2024,"Méditerranée","CDB Bouches du Rhône",19017,"BILLARD CLUB PHOCEEN","19017 – BILLARD CLUB PHOCEEN","Oui","R1","R1",4.21,3.37,"à","SELON RÈGLEMENT SPORTIF LIGUE"]
["132786E","TONNELIER","JEAN PIERRE","TONNELIER JEAN PIERRE",2023,2024,"Méditerranée","CDB Var",19106,"BILLARD CLUB VINONNAIS","19106 – BILLARD CLUB VINONNAIS","Oui","R3","R3",1.53,1.22,"à","SELON RÈGLEMENT SPORTIF LIGUE"]
["184495N","TORCHIO","GILBERT","TORCHIO GILBERT",2025,2025,"Méditerranée","CDB Bouches du Rhône",19017,"BILLARD CLUB PHOCEEN","19017 – BILLARD CLUB PHOCEEN","Oui","R4","R4",1.1499999999999999,0.92,"à","SELON RÈGLEMENT SPORTIF LIGUE"]
["135554Q","TORES","JEAN LUC","TORES JEAN LUC",2025,2025,"Méditerranée","CDB Bouches du Rhône",19009,"CLUB BILLARD ISTREEN","19009 – CLUB BILLARD ISTREEN","Oui","R2","R1",4.8,3.84,"á","SELON RÈGLEMENT SPORTIF LIGUE"]
["139062O","TOUREILLE","ALAIN","TOUREILLE ALAIN",2011,2025,"Méditerranée","CDB Alpes Haute Provence",19025,"BILLARD CLUB SISTERONNAIS","19025 – BILLARD CLUB SISTERONNAIS","Oui","R4","R4",1.1200000000000001,0.9,"à","SELON RÈGLEMENT SPORTIF LIGUE"]
["022446I","TRIVINO","RENE","TRIVINO RENE",2012,2022,"Méditerranée","CDB Var",19023,"BILLARD CLUB GARDEEN","19023 – BILLARD CLUB GARDEEN","Oui","N3","R1",4.7,3.76,"â","AUTORISÉ"]
["172679V","TURPIN","JEAN","TURPIN JEAN",2025,2025,"Méditerranée","CDB Bouches du Rhône",19001,"S. S. A. B. D AIX EN PROVENCE","19001 – S. S. A. B. D AIX EN PROVENCE","Oui","-","R3",1.35,1.08,"à","SELON RÈGLEMENT SPORTIF LIGUE"]
["153163G","VALVERDE","JEAN YVES","VALVERDE JEAN YVES",2025,2025,"Méditerranée","CDB Var",19023,"BILLARD CLUB GARDEEN","19023 – BILLARD CLUB GARDEEN","Oui","R4","R3",1.3,1.04,"á","SELON RÈGLEMENT SPORTIF LIGUE"]
["129880K","VASSE","JEAN PIERRE","VASSE JEAN PIERRE",2023,2023,"Méditerranée","CDB Var",19019,"BILLARD CLUB DE LA BAIE","19019 – BILLARD CLUB DE LA BAIE","Oui","R4","R4",0.86,0.69,"à","SELON RÈGLEMENT SPORTIF LIGUE"]
["163827Y","VASTEL","BERNARD","VASTEL BERNARD",2020,2024,"Méditerranée","CDB Alpes Maritimes",19056,"BILLARD CLUB DE NICE","19056 – BILLARD CLUB DE NICE","Oui","N3","N3",8.2899999999999991,6.63,"à","SELON RÈGLEMENT SPORTIF LIGUE"]
["022459V","VAUTRIN","JEAN","VAUTRIN JEAN",2025,2025,"Méditerranée","CDB Alpes Maritimes",19056,"BILLARD CLUB DE NICE","19056 – BILLARD CLUB DE NICE","Oui","R3","R2",2.5499999999999998,2.04,"á","SELON RÈGLEMENT SPORTIF LIGUE"]
["022467D","VIBOUREL","ETIENNE","VIBOUREL ETIENNE",2020,2022,"Méditerranée","CDB Var",19023,"BILLARD CLUB GARDEEN","19023 – BILLARD CLUB GARDEEN","Oui","R2","R2",2.84,2.27,"à","SELON RÈGLEMENT SPORTIF LIGUE"]
["147412F","VICTOR","DANIEL","VICTOR DANIEL",2025,2025,"Méditerranée","CDB Var",19019,"BILLARD CLUB DE LA BAIE","19019 – BILLARD CLUB DE LA BAIE","Oui","R4","R4",0.98,0.78,"à","SELON RÈGLEMENT SPORTIF LIGUE"]
["149593B","VIDAL","JEAN PIERRE","VIDAL JEAN PIERRE",2016,2019,"Méditerranée","CDB Vaucluse",19014,"BILLARD CLUB AVIGNONNAIS","19014 – BILLARD CLUB AVIGNONNAIS","Oui","R4","R4",1.05,0.84,"à","SELON RÈGLEMENT SPORTIF LIGUE"]
["181240A","VIDAL","RENE BERNARD","VIDAL RENE BERNARD",2025,2025,"Méditerranée","CDB Var",19106,"BILLARD CLUB VINONNAIS","19106 – BILLARD CLUB VINONNAIS","Oui","R2","R2",2.33,1.86,"à","SELON RÈGLEMENT SPORTIF LIGUE"]
["148051A","VIERA MAIA","ARLINDO","VIERA MAIA ARLINDO",2024,2025,"Méditerranée","CDB Var",19061,"ACAD.BILLARD ST RAPHAEL","19061 – ACAD.BILLARD ST RAPHAEL","Oui","R3","R3",1.82,1.46,"à","SELON RÈGLEMENT SPORTIF LIGUE"]
["014327B","VIGNE","PHILIPPE","VIGNE PHILIPPE",2019,2025,"Méditerranée","CDB Vaucluse",19014,"BILLARD CLUB AVIGNONNAIS","19014 – BILLARD CLUB AVIGNONNAIS","Oui","N3","N3",7.51,6.01,"à","SELON RÈGLEMENT SPORTIF LIGUE"]
["164317F","VILLARD","PATRICE","VILLARD PATRICE",2020,2023,"Méditerranée","CDB Vaucluse",19006,"BILLARD CLUB CARPENTRASSIEN","19006 – BILLARD CLUB CARPENTRASSIEN","Oui","R4","R4",1.05,0.84,"à","SELON RÈGLEMENT SPORTIF LIGUE"]
["101485H","VILLASEVIL","ANTONIO","VILLASEVIL ANTONIO",2019,2025,"Méditerranée","CDB Bouches du Rhône",19007,"BILLARD CLUB BERROIS","19007 – BILLARD CLUB BERROIS","Oui","R2","R2",3.6,2.88,"à","SELON RÈGLEMENT SPORTIF LIGUE"]
["147607S","VIOU","GERARD","VIOU GERARD",2025,2025,"Méditerranée","CDB Bouches du Rhône",19098,"BILLARD CLUB LA FARE","19098 – BILLARD CLUB LA FARE","Oui","R2","R2",3.15,2.52,"à","SELON RÈGLEMENT SPORTIF LIGUE"]
["138731V","VISCONTI","JEAN","VISCONTI JEAN",2025,2025,"Méditerranée","CDB Bouches du Rhône",19090,"BILLARD AMATEUR ROGNAC","19090 – BILLARD AMATEUR ROGNAC","Oui","R3","R3",1.22,0.98,"à","SELON RÈGLEMENT SPORTIF LIGUE"]
["119674W","VITALIEN","PIERRE","VITALIEN PIERRE",2025,2025,"Méditerranée","CDB Vaucluse",19016,"BILLARD CLUB ORANGEOIS","19016 – BILLARD CLUB ORANGEOIS","Oui","R3","R2",2.82,2.2599999999999998,"á","SELON RÈGLEMENT SPORTIF LIGUE"]
["022476M","VIVALDI","ANDRE","VIVALDI ANDRE",2025,2025,"Méditerranée","CDB Var",19106,"BILLARD CLUB VINONNAIS","19106 – BILLARD CLUB VINONNAIS","Oui","N3","N2",11.56,9.25,"á","SELON RÈGLEMENT SPORTIF LIGUE"]
["154571M","VUILLAUME","JEAN CLAUDE","VUILLAUME JEAN CLAUDE",2025,2025,"Méditerranée","CDB Alpes Maritimes",19056,"BILLARD CLUB DE NICE","19056 – BILLARD CLUB DE NICE","Oui","R3","R3",1.34,1.07,"à","SELON RÈGLEMENT SPORTIF LIGUE"]
["022480Q","VULTAGGIO","PIERRE","VULTAGGIO PIERRE",2013,2025,"Méditerranée","CDB Alpes Maritimes",19058,"ACADEMIE DE BILLARD DE BARBOSSI MANDELIEU","19058 – ACADEMIE DE BILLARD DE BARBOSSI MANDELIEU","Oui","R2","R2",2.58,2.06,"à","SELON RÈGLEMENT SPORTIF LIGUE"]
["176943E","WALLON","PATRICK","WALLON PATRICK",2025,2025,"Méditerranée","CDB Vaucluse",19027,"ACADEMIE DE BILLARD DE BOLLENE","19027 – ACADEMIE DE BILLARD DE BOLLENE","Oui","-","R4",0.64,0.51,"à","SELON RÈGLEMENT SPORTIF LIGUE"]
["152534Y","WILLAME","PHILIPPE","WILLAME PHILIPPE",2025,2025,"Méditerranée","CDB Bouches du Rhône",19001,"S. S. A. B. D AIX EN PROVENCE","19001 – S. S. A. B. D AIX EN PROVENCE","Oui","-","R4",0.88,0.7,"à","SELON RÈGLEMENT SPORTIF LIGUE"]
["022483T","WILLETTE","MARC","WILLETTE MARC",2013,2021,"Méditerranée","CDB Bouches du Rhône",19009,"CLUB BILLARD ISTREEN","19009 – CLUB BILLARD ISTREEN","Oui","R2","R2",2.77,2.2200000000000002,"à","SELON RÈGLEMENT SPORTIF LIGUE"]
["152049W","XUEREF","JEAN MARIE","XUEREF JEAN MARIE",2022,2025,"Méditerranée","CDB Var",19019,"BILLARD CLUB DE LA BAIE","19019 – BILLARD CLUB DE LA BAIE","Oui","R2","R2",2.83,2.2599999999999998,"à","SELON RÈGLEMENT SPORTIF LIGUE"]
["184288N","YVOZ","ALAIN","YVOZ ALAIN",2025,2025,"Méditerranée","CDB Vaucluse",19006,"BILLARD CLUB CARPENTRASSIEN","19006 – BILLARD CLUB CARPENTRASSIEN","Oui","R3","R3",2.04,1.63,"à","SELON RÈGLEMENT SPORTIF LIGUE"]
["134311V","ZANDRINO","ALAIN","ZANDRINO ALAIN",2025,2025,"Méditerranée","CDB Bouches du Rhône",19007,"BILLARD CLUB BERROIS","19007 – BILLARD CLUB BERROIS","Oui","R3","R3",1.65,1.32,"à","SELON RÈGLEMENT SPORTIF LIGUE"]
["144788U","ZOPPI","AIME","ZOPPI AIME",2024,2025,"Méditerranée","CDB Var",19106,"BILLARD CLUB VINONNAIS","19106 – BILLARD CLUB VINONNAIS","Oui","R1","R2",3.38,2.7,"â","AUTORISÉ"]
["125457H","ZOPPI","CEDRIC","ZOPPI CEDRIC",2025,2025,"Méditerranée","CDB Var",19106,"BILLARD CLUB VINONNAIS","19106 – BILLARD CLUB VINONNAIS","Oui","Masters","Masters",89.28,71.42,"à","SELON RÈGLEMENT SPORTIF LIGUE"]
["136075R","BLERVACQUE","ALAIN",{"$f":"B382&\" \"&C382","v":"BLERVACQUE ALAIN"},2013,2018,"Méditerranée","CDB Var",19106,"BILLARD CLUB VINONNAIS",{"$f":"I382&\" – \"&J382","v":"19106 – BILLARD CLUB VINONNAIS"},"Oui","R3","R3",1.24,0.99,"à","SELON RÈGLEMENT SPORTIF LIGUE"]
["145515T","FARINET","JEAN FRANCOIS","FARINET JEAN FRANCOIS",2014,2018,"Méditerranée","CDB Vaucluse",19027,"ACADEMIE DE BILLARD DE BOLLENE","19027 – ACADEMIE DE BILLARD DE BOLLENE","Oui","R3","R3",1.28,1.02,"à","SELON RÈGLEMENT SPORTIF LIGUE"]
["151649L","GUEZOU","MATHIS","GUEZOU MATHIS",2015,2018,"Méditerranée","CDB Bouches du Rhône",19012,"SALON BILLARD CLUB","19012 – SALON BILLARD CLUB","Oui","R4","R4",0.6,0.48,"à","SELON RÈGLEMENT SPORTIF LIGUE"]
["164991N","MANGROLLE","DIDIER","MANGROLLE DIDIER",2018,2018,"Méditerranée","CDB Alpes Maritimes",19057,"ACADEMIE VENCOISE DE BILLARD","19057 – ACADEMIE VENCOISE DE BILLARD","Oui","R4","R4",0.84,0.67,"à","SELON RÈGLEMENT SPORTIF LIGUE"]
["015513R","MASSON","DENIS",{"$f":"B386&\" \"&C386","v":"MASSON DENIS"},2017,2018,"Méditerranée","CDB Var",19023,"BILLARD CLUB GARDEEN",{"$f":"I386&\" – \"&J386","v":"19023 – BILLARD CLUB GARDEEN"},"Oui","R3","R3",1.9,1.52,"à","SELON RÈGLEMENT SPORTIF LIGUE"]
["014997V","MONTAY","JEAN CLAUDE","MONTAY JEAN CLAUDE",2016,2018,"Méditerranée","CDB Vaucluse",19027,"ACADEMIE DE BILLARD DE BOLLENE","19027 – ACADEMIE DE BILLARD DE BOLLENE","Oui","R2","R3",1.88,1.51,"â","AUTORISÉ"]
["022308A","PARINELLO","RENE","PARINELLO RENE",2008,2018,"Méditerranée","CDB Var",19023,"BILLARD CLUB GARDEEN","19023 – BILLARD CLUB GARDEEN","Oui","R1","R1",5.0999999999999996,4.08,"à","SELON RÈGLEMENT SPORTIF LIGUE"]
["022341H","POIRET","JEAN MARC","POIRET JEAN MARC",2016,2018,"Méditerranée","CDB Var",19061,"ACAD.BILLARD ST RAPHAEL","19061 – ACAD.BILLARD ST RAPHAEL","Oui","R3","R3",1.64,1.31,"à","SELON RÈGLEMENT SPORTIF LIGUE"]
["148464Z","TERZIAN","BERNARD","TERZIAN BERNARD",2013,2018,"Méditerranée","CDB Bouches du Rhône",19090,"BILLARD AMATEUR ROGNAC","19090 – BILLARD AMATEUR ROGNAC","Oui","R3","R3",1.8,1.44,"à","SELON RÈGLEMENT SPORTIF LIGUE"]
["106514S","BRIQUET","ERIC","BRIQUET ERIC",2014,2017,"Méditerranée","CDB Bouches du Rhône",19012,"SALON BILLARD CLUB","19012 – SALON BILLARD CLUB","Oui","R4","R4",1.07,0.85,"à","SELON RÈGLEMENT SPORTIF LIGUE"]
["022013R","DELAGE","JEAN MARIE","DELAGE JEAN MARIE",2012,2017,"Méditerranée","CDB Alpes Maritimes",19056,"BILLARD CLUB DE NICE","19056 – BILLARD CLUB DE NICE","Oui","R2","R2",2.34,1.87,"à","SELON RÈGLEMENT SPORTIF LIGUE"]
["149695M","DELMER","PHILIPPE","DELMER PHILIPPE",2014,2017,"Méditerranée","CDB Vaucluse",19006,"BILLARD CLUB CARPENTRASSIEN","19006 – BILLARD CLUB CARPENTRASSIEN","Oui","R4","R4",0.92,0.74,"à","SELON RÈGLEMENT SPORTIF LIGUE"]
["109448O","DUBOC","CLAUDE","DUBOC CLAUDE",2009,2017,"Méditerranée","CDB Var",19023,"BILLARD CLUB GARDEEN","19023 – BILLARD CLUB GARDEEN","Oui","R2","R2",3.19,2.5499999999999998,"à","SELON RÈGLEMENT SPORTIF LIGUE"]
["117567V","ESTRUGO","HENRI","ESTRUGO HENRI",2016,2017,"Méditerranée","CDB Bouches du Rhône",19012,"SALON BILLARD CLUB","19012 – SALON BILLARD CLUB","Oui","R4","R4",0.65,0.52,"à","SELON RÈGLEMENT SPORTIF LIGUE"]
["022101B","GEORGE","ALAIN","GEORGE ALAIN",2015,2017,"Méditerranée","CDB Alpes Maritimes",19057,"ACADEMIE VENCOISE DE BILLARD","19057 – ACADEMIE VENCOISE DE BILLARD","Oui","R2","R2",3.07,2.46,"à","SELON RÈGLEMENT SPORTIF LIGUE"]
["151648K","LECOQ","SYLVIE","LECOQ SYLVIE",2016,2017,"Méditerranée","CDB Bouches du Rhône",19012,"SALON BILLARD CLUB","19012 – SALON BILLARD CLUB","Oui","R4","R4",0.3,0.24,"à","SELON RÈGLEMENT SPORTIF LIGUE"]
["141067R","LEVEQUE","DAVID","LEVEQUE DAVID",2016,2017,"Méditerranée","CDB Bouches du Rhône",19007,"BILLARD CLUB BERROIS","19007 – BILLARD CLUB BERROIS","Oui","R2","R2",2.5,2,"à","SELON RÈGLEMENT SPORTIF LIGUE"]
["101279J","MORENO","BASTIEN","MORENO BASTIEN",2017,2017,"Méditerranée","CDB Bouches du Rhône",19007,"BILLARD CLUB BERROIS","19007 – BILLARD CLUB BERROIS","Oui","N3","N3",8.64,6.91,"à","SELON RÈGLEMENT SPORTIF LIGUE"]
["022278W","MORPOURGO","SIMON","MORPOURGO SIMON",2015,2017,"Méditerranée","CDB Bouches du Rhône",19007,"BILLARD CLUB BERROIS","19007 – BILLARD CLUB BERROIS","Oui","R3","R3",1.3,1.04,"à","SELON RÈGLEMENT SPORTIF LIGUE"]
["022314G","PEGULLO","PATRICK","PEGULLO PATRICK",2008,2017,"Méditerranée","CDB Var",19023,"BILLARD CLUB GARDEEN","19023 – BILLARD CLUB GARDEEN","Oui","R2","R2",2.35,1.88,"à","SELON RÈGLEMENT SPORTIF LIGUE"]
["112318Y","VUILLERMET","PIERRE","VUILLERMET PIERRE",2012,2017,"Méditerranée","CDB Bouches du Rhône",19098,"BILLARD CLUB LA FARE","19098 – BILLARD CLUB LA FARE","Oui","R3","R3",1.98,1.58,"à","SELON RÈGLEMENT SPORTIF LIGUE"]
["119264C","BAUDOIN","MICHEL","BAUDOIN MICHEL",2011,2016,"Méditerranée","CDB Var",19059,"BILLARD CLUB ROQUEBRUNOIS","19059 – BILLARD CLUB ROQUEBRUNOIS","Oui","R4","R4",1.1499999999999999,0.92,"à","SELON RÈGLEMENT SPORTIF LIGUE"]
["149070H","DEMANGE","DANIEL","DEMANGE DANIEL",2017,2016,"Méditerranée","CDB Alpes Maritimes",19058,"ACADEMIE DE BILLARD DE BARBOSSI MANDELIEU","19058 – ACADEMIE DE BILLARD DE BARBOSSI MANDELIEU","Oui","R4","R4",0.74,0.59,"à","SELON RÈGLEMENT SPORTIF LIGUE"]
["022200W","LEBRIEZ","MICHEL","LEBRIEZ MICHEL",2009,2016,"Méditerranée","CDB Alpes Maritimes",19058,"ACADEMIE DE BILLARD DE BARBOSSI MANDELIEU","19058 – ACADEMIE DE BILLARD DE BARBOSSI MANDELIEU","Oui","R2","R2",2.67,2.13,"à","SELON RÈGLEMENT SPORTIF LIGUE"]
["022206C","LEROY","ANDRE","LEROY ANDRE",2010,2016,"Méditerranée","CDB Alpes Maritimes",19058,"ACADEMIE DE BILLARD DE BARBOSSI MANDELIEU","19058 – ACADEMIE DE BILLARD DE BARBOSSI MANDELIEU","Oui","R3","R3",1.63,1.3,"à","SELON RÈGLEMENT SPORTIF LIGUE"]
["150633G","LEVEQUE","ARNAUD","LEVEQUE ARNAUD",2016,2016,"Méditerranée","CDB Bouches du Rhône",19007,"BILLARD CLUB BERROIS","19007 – BILLARD CLUB BERROIS","Oui","R4","R4",1.1100000000000001,0.89,"à","SELON RÈGLEMENT SPORTIF LIGUE"]
["157382S","MENENDEZ","LORENZO","MENENDEZ LORENZO",2016,2016,"Méditerranée","CDB Bouches du Rhône",19050,"BILLARD CLUB SAUSSETOIS","19050 – BILLARD CLUB SAUSSETOIS","Oui","R4","R4",0.57999999999999996,0.47,"à","SELON RÈGLEMENT SPORTIF LIGUE"]
["015932U","PERRIN","BERNARD","PERRIN BERNARD",2015,2016,"Méditerranée","CDB Bouches du Rhône",19098,"BILLARD CLUB LA FARE","19098 – BILLARD CLUB LA FARE","Oui","R3","R3",1.55,1.24,"à","SELON RÈGLEMENT SPORTIF LIGUE"]
["022354U","QUANTIN","MICHEL","QUANTIN MICHEL",2015,2016,"Méditerranée","CDB Bouches du Rhône",19098,"BILLARD CLUB LA FARE","19098 – BILLARD CLUB LA FARE","Oui","R2","R2",3.31,2.65,"à","SELON RÈGLEMENT SPORTIF LIGUE"]
["022380U","ROLLAND","JACQUES","ROLLAND JACQUES",2011,2016,"Méditerranée","CDB Bouches du Rhône",19009,"CLUB BILLARD ISTREEN","19009 – CLUB BILLARD ISTREEN","Oui","R3","R3",1.55,1.24,"à","SELON RÈGLEMENT SPORTIF LIGUE"]
["018691X","TREMEAU","PHILIPPE","TREMEAU PHILIPPE",2012,2016,"Méditerranée","CDB Var",19059,"BILLARD CLUB ROQUEBRUNOIS","19059 – BILLARD CLUB ROQUEBRUNOIS","Oui","N3","N2",9.7200000000000006,7.78,"á","SELON RÈGLEMENT SPORTIF LIGUE"]
["133645F","ARNOUX","THIERRY","ARNOUX THIERRY",2010,2015,"Méditerranée","CDB Var",19106,"BILLARD CLUB VINONNAIS","19106 – BILLARD CLUB VINONNAIS","Oui","R3","R3",2,1.6,"à","SELON RÈGLEMENT SPORTIF LIGUE"]
["016451T","BETTES","CECILE","BETTES CECILE",2009,2015,"Méditerranée","CDB Bouches du Rhône",19012,"SALON BILLARD CLUB","19012 – SALON BILLARD CLUB","Oui","R3","R3",1.88,1.5,"à","SELON RÈGLEMENT SPORTIF LIGUE"]
["021952I","CASTA","HELENE","CASTA HELENE",2013,2015,"Méditerranée","CDB Alpes Haute Provence",19025,"BILLARD CLUB SISTERONNAIS","19025 – BILLARD CLUB SISTERONNAIS","Oui","R4","R4",1,0.8,"à","SELON RÈGLEMENT SPORTIF LIGUE"]
["021953J","CASTA","JEAN","CASTA JEAN",2014,2015,"Méditerranée","CDB Alpes Haute Provence",19025,"BILLARD CLUB SISTERONNAIS","19025 – BILLARD CLUB SISTERONNAIS","Oui","R2","R2",2.87,2.29,"à","SELON RÈGLEMENT SPORTIF LIGUE"]
["021972C","CHAUVIN","JEAN PAUL","CHAUVIN JEAN PAUL",2013,2015,"Méditerranée","CDB Bouches du Rhône",19050,"BILLARD CLUB SAUSSETOIS","19050 – BILLARD CLUB SAUSSETOIS","Oui","R2","R2",2.4700000000000002,1.98,"à","SELON RÈGLEMENT SPORTIF LIGUE"]
["149116H","COATMEUR","ALAN","COATMEUR ALAN",2014,2015,"Méditerranée","CDB Vaucluse",19014,"BILLARD CLUB AVIGNONNAIS","19014 – BILLARD CLUB AVIGNONNAIS","Oui","R4","R4",1.01,0.8,"à","SELON RÈGLEMENT SPORTIF LIGUE"]
["109915N","GUSTIN","ANDRE","GUSTIN ANDRE",2015,2015,"Méditerranée","CDB Bouches du Rhône",19009,"CLUB BILLARD ISTREEN","19009 – CLUB BILLARD ISTREEN","Oui","R4","R4",0.94,0.75,"à","SELON RÈGLEMENT SPORTIF LIGUE"]
["022192O","LATIL","YVES","LATIL YVES",2014,2015,"Méditerranée","CDB Alpes Haute Provence",19025,"BILLARD CLUB SISTERONNAIS","19025 – BILLARD CLUB SISTERONNAIS","Oui","R3","R3",1.7,1.36,"à","SELON RÈGLEMENT SPORTIF LIGUE"]
["022319L","PERIES","MICHEL","PERIES MICHEL",2009,2015,"Méditerranée","CDB Alpes Haute Provence",19025,"BILLARD CLUB SISTERONNAIS","19025 – BILLARD CLUB SISTERONNAIS","Oui","R2","R2",2.4700000000000002,1.97,"à","SELON RÈGLEMENT SPORTIF LIGUE"]
["022335B","PIONE","GUY","PIONE GUY",2014,2015,"Méditerranée","CDB Bouches du Rhône",19007,"BILLARD CLUB BERROIS","19007 – BILLARD CLUB BERROIS","Oui","R2","R2",2.94,2.35,"à","SELON RÈGLEMENT SPORTIF LIGUE"]
["022348O","POURCHASSE","JOEL","POURCHASSE JOEL",2012,2015,"Méditerranée","CDB Var",19023,"BILLARD CLUB GARDEEN","19023 – BILLARD CLUB GARDEEN","Oui","R4","R4",1.01,0.81,"à","SELON RÈGLEMENT SPORTIF LIGUE"]
["121022S","PUJA","ANDRE","PUJA ANDRE",2014,2015,"Méditerranée","CDB Bouches du Rhône",19007,"BILLARD CLUB BERROIS","19007 – BILLARD CLUB BERROIS","Oui","R3","R3",1.52,1.21,"à","SELON RÈGLEMENT SPORTIF LIGUE"]
["114501X","CHADELAT","BERNARD","CHADELAT BERNARD",2014,2014,"Méditerranée","CDB Var",19106,"BILLARD CLUB VINONNAIS","19106 – BILLARD CLUB VINONNAIS","Oui","R3","R3",2.0099999999999998,1.61,"à","SELON RÈGLEMENT SPORTIF LIGUE"]
["147554K","DUPERRAY","ALEX","DUPERRAY ALEX",2014,2014,"Méditerranée","CDB Vaucluse",19016,"BILLARD CLUB ORANGEOIS","19016 – BILLARD CLUB ORANGEOIS","Oui","R4","R4",0.85,0.68,"à","SELON RÈGLEMENT SPORTIF LIGUE"]
["131535B","LEVAVASSEUR","ROBERT","LEVAVASSEUR ROBERT",2012,2014,"Méditerranée","CDB Alpes Haute Provence",19025,"BILLARD CLUB SISTERONNAIS","19025 – BILLARD CLUB SISTERONNAIS","Oui","R1","R1",5.15,4.12,"à","SELON RÈGLEMENT SPORTIF LIGUE"]
["148327A","MARCHETTO","HUGO","MARCHETTO HUGO",2014,2014,"Méditerranée","CDB Bouches du Rhône",19090,"BILLARD AMATEUR ROGNAC","19090 – BILLARD AMATEUR ROGNAC","Oui","R4","R4",0.77,0.62,"à","SELON RÈGLEMENT SPORTIF LIGUE"]
["017857V","PRACHAR","JEAN PIERRE","PRACHAR JEAN PIERRE",2014,2014,"Méditerranée","CDB Var",19059,"BILLARD CLUB ROQUEBRUNOIS","19059 – BILLARD CLUB ROQUEBRUNOIS","Oui","R3","R3",1.24,0.99,"à","SELON RÈGLEMENT SPORTIF LIGUE"]
["122939L","SAVOIA","MICKAEL","SAVOIA MICKAEL",2013,2014,"Méditerranée","CDB Bouches du Rhône",19050,"BILLARD CLUB SAUSSETOIS","19050 – BILLARD CLUB SAUSSETOIS","Oui","R3","R3",1.29,1.03,"à","SELON RÈGLEMENT SPORTIF LIGUE"]
["144720E","STERCKX","PIERRE","STERCKX PIERRE",2014,2014,"Méditerranée","CDB Vaucluse",19016,"BILLARD CLUB ORANGEOIS","19016 – BILLARD CLUB ORANGEOIS","Oui","R4","R4",1.02,0.81,"à","SELON RÈGLEMENT SPORTIF LIGUE"]
["022475L","VITALE","BENOIT","VITALE BENOIT",2011,2014,"Méditerranée","CDB Alpes Maritimes",19056,"BILLARD CLUB DE NICE","19056 – BILLARD CLUB DE NICE","Oui","R3","R3",1.34,1.07,"à","SELON RÈGLEMENT SPORTIF LIGUE"]
["101283N","WOILLEZ","FRANCIS","WOILLEZ FRANCIS",2012,2014,"Méditerranée","CDB Vaucluse",19014,"BILLARD CLUB AVIGNONNAIS","19014 – BILLARD CLUB AVIGNONNAIS","Oui","R4","R4",1.01,0.81,"à","SELON RÈGLEMENT SPORTIF LIGUE"]
["127970Y","CONSOLIN","DANIEL","CONSOLIN DANIEL",2010,2013,"Méditerranée","CDB Bouches du Rhône",19007,"BILLARD CLUB BERROIS","19007 – BILLARD CLUB BERROIS","Oui","R2","R2",2.71,2.16,"à","SELON RÈGLEMENT SPORTIF LIGUE"]
["020524K","DEMANET","CLAUDE","DEMANET CLAUDE",2011,2013,"Méditerranée","CDB Alpes Maritimes",19057,"ACADEMIE VENCOISE DE BILLARD","19057 – ACADEMIE VENCOISE DE BILLARD","Oui","R2","R2",3.21,2.57,"à","SELON RÈGLEMENT SPORTIF LIGUE"]
["013003D","DORNEL","GERARD","DORNEL GERARD",2009,2013,"Méditerranée","CDB Var",19061,"ACAD.BILLARD ST RAPHAEL","19061 – ACAD.BILLARD ST RAPHAEL","Oui","R3","R3",1.65,1.32,"à","SELON RÈGLEMENT SPORTIF LIGUE"]
["110799N","LEBAR","PATRICK","LEBAR PATRICK",2013,2013,"Méditerranée","CDB Bouches du Rhône",19090,"BILLARD AMATEUR ROGNAC","19090 – BILLARD AMATEUR ROGNAC","Oui","R1","R1",4.3099999999999996,3.44,"à","SELON RÈGLEMENT SPORTIF LIGUE"]
["137032M","MARTIN","THOMAS","MARTIN THOMAS",2012,2013,"Méditerranée","CDB Vaucluse",19027,"ACADEMIE DE BILLARD DE BOLLENE","19027 – ACADEMIE DE BILLARD DE BOLLENE","Oui","R3","R3",1.69,1.35,"à","SELON RÈGLEMENT SPORTIF LIGUE"]
["022302U","PAGANONI","GEORGES","PAGANONI GEORGES",2011,2013,"Méditerranée","CDB Var",19023,"BILLARD CLUB GARDEEN","19023 – BILLARD CLUB GARDEEN","Oui","N3","R1",4.63,3.7,"â","AUTORISÉ"]
["118668E","TATTIS","HENRI","TATTIS HENRI",2009,2013,"Méditerranée","CDB Bouches du Rhône",19050,"BILLARD CLUB SAUSSETOIS","19050 – BILLARD CLUB SAUSSETOIS","Oui","R3","R3",1.87,1.49,"à","SELON RÈGLEMENT SPORTIF LIGUE"]
["018722C","TROEGNER","DANIEL","TROEGNER DANIEL",2013,2013,"Méditerranée","CDB Var",19059,"BILLARD CLUB ROQUEBRUNOIS","19059 – BILLARD CLUB ROQUEBRUNOIS","Oui","R1","R1",5.92,4.74,"à","SELON RÈGLEMENT SPORTIF LIGUE"]
["107457Z","TRUCCO","DAMIEN","TRUCCO DAMIEN",2008,2013,"Méditerranée","CDB Var",19023,"BILLARD CLUB GARDEEN","19023 – BILLARD CLUB GARDEEN","Oui","N3","N3",7.25,5.8,"à","SELON RÈGLEMENT SPORTIF LIGUE"]
["125928K","VERRIER","JEAN PIERRE","VERRIER JEAN PIERRE",2010,2013,"Méditerranée","CDB Bouches du Rhône",19012,"SALON BILLARD CLUB","19012 – SALON BILLARD CLUB","Oui","N3","N3",6.72,5.37,"à","SELON RÈGLEMENT SPORTIF LIGUE"]
["135560W","BIETTI","ALEXIS","BIETTI ALEXIS",2020,2011,"Méditerranée","CDB Var",19119,"AMICALE SNOOKER DE FREJUS","19119 – AMICALE SNOOKER DE FREJUS","Oui","R4","R4",0.57999999999999996,0.46,"à","SELON RÈGLEMENT SPORTIF LIGUE"]
["021971B","CHARTIER","YVES","CHARTIER YVES",2009,2011,"Méditerranée","CDB Bouches du Rhône",19090,"BILLARD AMATEUR ROGNAC","19090 – BILLARD AMATEUR ROGNAC","Oui","R3","R3",1.62,1.29,"à","SELON RÈGLEMENT SPORTIF LIGUE"]
["022027F","DESLOIRES","MICHEL","DESLOIRES MICHEL",2009,2011,"Méditerranée","CDB Var",19106,"BILLARD CLUB VINONNAIS","19106 – BILLARD CLUB VINONNAIS","Oui","R3","R3",1.79,1.43,"à","SELON RÈGLEMENT SPORTIF LIGUE"]
["114274E","MACIA","RENE","MACIA RENE",2009,2011,"Méditerranée","CDB Alpes Maritimes",19057,"ACADEMIE VENCOISE DE BILLARD","19057 – ACADEMIE VENCOISE DE BILLARD","Oui","N3","N3",7.29,5.83,"à","SELON RÈGLEMENT SPORTIF LIGUE"]
["103565H","MARCHIOLLI","LAURE","MARCHIOLLI LAURE",2011,2011,"Méditerranée","CDB Bouches du Rhône",19007,"BILLARD CLUB BERROIS","19007 – BILLARD CLUB BERROIS","Oui","R4","R4",0.39,0.31,"à","SELON RÈGLEMENT SPORTIF LIGUE"]
["022248S","MAZAURIC","STEPHANE","MAZAURIC STEPHANE",2012,2011,"Méditerranée","CDB Var",19059,"BILLARD CLUB ROQUEBRUNOIS","19059 – BILLARD CLUB ROQUEBRUNOIS","Oui","N1","N2",11.89,9.51,"â","AUTORISÉ"]
["133204G","MICHEL GROSJEAN","CEDRIC",{"$f":"B450&\" \"&C450","v":"MICHEL GROSJEAN CEDRIC"},2012,2011,"Méditerranée","CDB Alpes Maritimes",19057,"ACADEMIE VENCOISE DE BILLARD",{"$f":"I450&\" – \"&J450","v":"19057 – ACADEMIE VENCOISE DE BILLARD"},"Oui","R2","R2",3.97,3.17,"à","SELON RÈGLEMENT SPORTIF LIGUE"]
["105442M","PARIZE","MICHEL","PARIZE MICHEL",2009,2011,"Méditerranée","CDB Alpes Maritimes",19058,"ACADEMIE DE BILLARD DE BARBOSSI MANDELIEU","19058 – ACADEMIE DE BILLARD DE BARBOSSI MANDELIEU","Oui","R1","R1",4.71,3.76,"à","SELON RÈGLEMENT SPORTIF LIGUE"]
["022353T","PUT","MARCEL","PUT MARCEL",2012,2011,"Méditerranée","CDB Vaucluse",19006,"BILLARD CLUB CARPENTRASSIEN","19006 – BILLARD CLUB CARPENTRASSIEN","Oui","R4","R4",0.93,0.74,"à","SELON RÈGLEMENT SPORTIF LIGUE"]
["103561D","RAVERDINO","JULIEN","RAVERDINO JULIEN",2012,2011,"Méditerranée","CDB Alpes Maritimes",19057,"ACADEMIE VENCOISE DE BILLARD","19057 – ACADEMIE VENCOISE DE BILLARD","Oui","N3","N3",6.92,5.53,"à","SELON RÈGLEMENT SPORTIF LIGUE"]
["112421X","SQUIZZARO","BERNARD","SQUIZZARO BERNARD",2009,2011,"Méditerranée","CDB Bouches du Rhône",19017,"BILLARD CLUB PHOCEEN","19017 – BILLARD CLUB PHOCEEN","Oui","R3","R3",1.26,1.01,"à","SELON RÈGLEMENT SPORTIF LIGUE"]
["118650M","ADAM","EDDY","ADAM EDDY",2009,2010,"Méditerranée","CDB Var",19106,"BILLARD CLUB VINONNAIS","19106 – BILLARD CLUB VINONNAIS","Oui","R2","R2",3.25,2.6,"à","SELON RÈGLEMENT SPORTIF LIGUE"]
["021969Z","CHARLOT","ALLAN","CHARLOT ALLAN",2008,2010,"Méditerranée","CDB Vaucluse",19027,"ACADEMIE DE BILLARD DE BOLLENE","19027 – ACADEMIE DE BILLARD DE BOLLENE","Oui","N3","N2",10.54,8.43,"á","SELON RÈGLEMENT SPORTIF LIGUE"]
["016445N","CREUGNY","LAURENT","CREUGNY LAURENT",2008,2010,"Méditerranée","CDB Vaucluse",19027,"ACADEMIE DE BILLARD DE BOLLENE","19027 – ACADEMIE DE BILLARD DE BOLLENE","Oui","R1","R1",4.25,3.4,"à","SELON RÈGLEMENT SPORTIF LIGUE"]
["135012U","GOMEZ","TONY","GOMEZ TONY",2009,2010,"Méditerranée","CDB Var",19061,"ACAD.BILLARD ST RAPHAEL","19061 – ACAD.BILLARD ST RAPHAEL","Oui","R3","R3",1.69,1.35,"à","SELON RÈGLEMENT SPORTIF LIGUE"]
["136543R","JOLY","FRANCOIS","JOLY FRANCOIS",2010,2010,"Méditerranée","CDB Vaucluse",19084,"PHOENIX BILLARD CLUB","19084 – PHOENIX BILLARD CLUB","Oui","R3","R3",1.34,1.07,"à","SELON RÈGLEMENT SPORTIF LIGUE"]
["135537Z","LEDU","GERARD","LEDU GERARD",2008,2010,"Méditerranée","CDB Vaucluse",19006,"BILLARD CLUB CARPENTRASSIEN","19006 – BILLARD CLUB CARPENTRASSIEN","Oui","R4","R4",0.55000000000000004,0.44,"à","SELON RÈGLEMENT SPORTIF LIGUE"]
["132349J","LEFEBVRE","RENE","LEFEBVRE RENE",2011,2010,"Méditerranée","CDB Alpes Maritimes",19056,"BILLARD CLUB DE NICE","19056 – BILLARD CLUB DE NICE","Oui","R3","R3",1.23,0.99,"à","SELON RÈGLEMENT SPORTIF LIGUE"]
["137031L","OUDIA","DYLAN","OUDIA DYLAN",2010,2010,"Méditerranée","CDB Vaucluse",19027,"ACADEMIE DE BILLARD DE BOLLENE","19027 – ACADEMIE DE BILLARD DE BOLLENE","Oui","R4","R4",0.38,0.3,"à","SELON RÈGLEMENT SPORTIF LIGUE"]
["132787F","PENEDO","JONATHAN","PENEDO JONATHAN",2009,2010,"Méditerranée","CDB Var",19106,"BILLARD CLUB VINONNAIS","19106 – BILLARD CLUB VINONNAIS","Oui","R2","R2",3.07,2.46,"à","SELON RÈGLEMENT SPORTIF LIGUE"]
["132699V","PEREIRA","NICOLAS","PEREIRA NICOLAS",2010,2010,"Méditerranée","CDB Var",19023,"BILLARD CLUB GARDEEN","19023 – BILLARD CLUB GARDEEN","Oui","R4","R4",1.1200000000000001,0.89,"à","SELON RÈGLEMENT SPORTIF LIGUE"]
["022401P","SCHMIDT","CLAUDE","SCHMIDT CLAUDE",2009,2010,"Méditerranée","CDB Var",19023,"BILLARD CLUB GARDEEN","19023 – BILLARD CLUB GARDEEN","Oui","N1","N2",9.23,7.38,"â","AUTORISÉ"]
["022444G","TRASTOUR","FREDERIC","TRASTOUR FREDERIC",2008,2010,"Méditerranée","CDB Alpes Maritimes",19057,"ACADEMIE VENCOISE DE BILLARD","19057 – ACADEMIE VENCOISE DE BILLARD","Oui","R1","R1",5.62,4.5,"à","SELON RÈGLEMENT SPORTIF LIGUE"]
["022448K","TRUCCO","DOMINIQUE","TRUCCO DOMINIQUE",2010,2010,"Méditerranée","CDB Var",19023,"BILLARD CLUB GARDEEN","19023 – BILLARD CLUB GARDEEN","Oui","N3","N3",7.9,6.32,"à","SELON RÈGLEMENT SPORTIF LIGUE"]
["021884S","BERTRAND CADI","YVES","BERTRAND CADI YVES",2008,2009,"Méditerranée","CDB Vaucluse",19016,"BILLARD CLUB ORANGEOIS","19016 – BILLARD CLUB ORANGEOIS","Oui","R3","R3",1.36,1.08,"à","SELON RÈGLEMENT SPORTIF LIGUE"]
["137033N","RICHARD","MATHIEU","RICHARD MATHIEU",2008,2009,"Méditerranée","CDB Vaucluse",19027,"ACADEMIE DE BILLARD DE BOLLENE","19027 – ACADEMIE DE BILLARD DE BOLLENE","Oui","R4","R4",0.43,0.34,"à","SELON RÈGLEMENT SPORTIF LIGUE"]
["134389V","ARMAND","ANTHONY","ARMAND ANTHONY",2008,2008,"Méditerranée","CDB Var",19106,"BILLARD CLUB VINONNAIS","19106 – BILLARD CLUB VINONNAIS","Oui","R4","R4",1,0.8,"à","SELON RÈGLEMENT SPORTIF LIGUE"]
["122653L","GANTOIS","NADINE","GANTOIS NADINE",2008,2008,"Méditerranée","CDB Vaucluse",19027,"ACADEMIE DE BILLARD DE BOLLENE","19027 – ACADEMIE DE BILLARD DE BOLLENE","Oui","R4","R4",1.1000000000000001,0.88,"à","SELON RÈGLEMENT SPORTIF LIGUE"]
["119705B","GODAERT","BERNARD","GODAERT BERNARD",2008,2008,"Méditerranée","CDB Bouches du Rhône",19050,"BILLARD CLUB SAUSSETOIS","19050 – BILLARD CLUB SAUSSETOIS","Oui","R4","R4",1.1499999999999999,0.92,"à","SELON RÈGLEMENT SPORTIF LIGUE"]
["136216C","LE MOING","FRANCOIS","LE MOING FRANCOIS",2009,2008,"Méditerranée","CDB Alpes Maritimes",19056,"BILLARD CLUB DE NICE","19056 – BILLARD CLUB DE NICE","Oui","R3","R3",1.44,1.1499999999999999,"à","SELON RÈGLEMENT SPORTIF LIGUE"]
["136398C","MAI","VIN","MAI VIN",2009,2008,"Méditerranée","CDB Var",19106,"BILLARD CLUB VINONNAIS","19106 – BILLARD CLUB VINONNAIS","Oui","R3","R3",1.52,1.22,"à","SELON RÈGLEMENT SPORTIF LIGUE"]
["022251V","MENCO","FRANCIS","MENCO FRANCIS",2009,2008,"Méditerranée","CDB Bouches du Rhône",19012,"SALON BILLARD CLUB","19012 – SALON BILLARD CLUB","Oui","N3","N3",6.64,5.31,"à","SELON RÈGLEMENT SPORTIF LIGUE"]
["105485D","POZNANSKI","LOIC","POZNANSKI LOIC",2008,2008,"Méditerranée","CDB Bouches du Rhône",19012,"SALON BILLARD CLUB","19012 – SALON BILLARD CLUB","Oui","R2","R2",3.3,2.64,"à","SELON RÈGLEMENT SPORTIF LIGUE"]

{"sheet":"Classification CADRE","index":1,"n_rows":200,"n_cols":18,"rows_kept":200,"cut":false,"hidden":false,"merged":[]}
["Licence","Nom","Prénom","CONCATENER","Saison","Saison Licence","Ligue","CDB","Num club","Nom club","CONCATENER2","Classifié","Catégorie au 01/09/24","Catégorie au 01/09/25","Moy 2.80  au 01/09/25","Moy 3.10 au 01/09/25","Tendance classification","Inscription catégorie supérieure"]
["106287Z","ABAD","YANNICK",{"$f":"B2&\" \"&C2","v":"ABAD YANNICK"},2025,2025,"Méditerranée","CDB Bouches du Rhône",19002,"SPORT AMAT.DE BILLARD MARSEILLAIS",{"$f":"I2&\" – \"&J2","v":"19002 – SPORT AMAT.DE BILLARD MARSEILLAIS"},"Oui","-","R1",2.44,1.95,"à","SELON RÈGLEMENT SPORTIF LIGUE"]
["021810W","AKNIN","GABRIEL","AKNIN GABRIEL",2020,2025,"Méditerranée","CDB Vaucluse",19027,"ACADEMIE DE BILLARD DE BOLLENE","19027 – ACADEMIE DE BILLARD DE BOLLENE","Oui","N3","R1",4.2300000000000004,3.39,"â","AUTORISÉ"]
["151459E","ALIBERT","BRUNO","ALIBERT BRUNO",2025,2025,"Méditerranée","CDB Alpes Maritimes",19056,"BILLARD CLUB DE NICE","19056 – BILLARD CLUB DE NICE","Oui","R1","R1",2.27,1.82,"à","SELON RÈGLEMENT SPORTIF LIGUE"]
["157036R","ALLIGIER","GERARD","ALLIGIER GERARD",2023,2025,"Méditerranée","CDB Var",19019,"BILLARD CLUB DE LA BAIE","19019 – BILLARD CLUB DE LA BAIE","Oui","R1","R1",2.25,1.8,"à","SELON RÈGLEMENT SPORTIF LIGUE"]
["159130S","ALVAREZ","PHILIPPE","ALVAREZ PHILIPPE",2024,2025,"Méditerranée","CDB Alpes Maritimes",19056,"BILLARD CLUB DE NICE","19056 – BILLARD CLUB DE NICE","Oui","R1","R1",2.33,1.87,"à","SELON RÈGLEMENT SPORTIF LIGUE"]
["155531F","AMOUROUX","LUC","AMOUROUX LUC",2025,2025,"Méditerranée","CDB Var",19023,"BILLARD CLUB GARDEEN","19023 – BILLARD CLUB GARDEEN","Oui","-","R1",1.04,0.83,"à","SELON RÈGLEMENT SPORTIF LIGUE"]
["021818E","ANDRY","JEAN FRANCOIS","ANDRY JEAN FRANCOIS",2025,2025,"Méditerranée","CDB Bouches du Rhône",19090,"BILLARD AMATEUR ROGNAC","19090 – BILLARD AMATEUR ROGNAC","Oui","R1","R1",1.74,1.39,"à","SELON RÈGLEMENT SPORTIF LIGUE"]
["021820G","ANNESTAY","JACQUES","ANNESTAY JACQUES",2024,2025,"Méditerranée","CDB Alpes Haute Provence",19025,"BILLARD CLUB SISTERONNAIS","19025 – BILLARD CLUB SISTERONNAIS","Oui","R1","R1",2.1,1.68,"à","SELON RÈGLEMENT SPORTIF LIGUE"]
["021821H","ANTONIN","ALAIN","ANTONIN ALAIN",2025,2025,"Méditerranée","CDB Vaucluse",19021,"BILLARD CLUB CAVAILLONNAIS","19021 – BILLARD CLUB CAVAILLONNAIS","Oui","N3","N3",6.15,4.92,"à","SELON RÈGLEMENT SPORTIF LIGUE"]
["180272Y","ARNOUX","LAURENT","ARNOUX LAURENT",2024,2025,"Méditerranée","CDB Alpes Maritimes",19058,"ACADEMIE DE BILLARD DE BARBOSSI MANDELIEU","19058 – ACADEMIE DE BILLARD DE BARBOSSI MANDELIEU","Oui","R1","R1",1.4,1.1200000000000001,"à","SELON RÈGLEMENT SPORTIF LIGUE"]
["148204R","AUBERT ROUECHE","LYDIA","AUBERT ROUECHE LYDIA",2025,2025,"Méditerranée","CDB Var",19106,"BILLARD CLUB VINONNAIS","19106 – BILLARD CLUB VINONNAIS","Oui","R1","R1",2.33,1.87,"à","SELON RÈGLEMENT SPORTIF LIGUE"]
["115304U","BAILLON","JEAN","BAILLON JEAN",2025,2025,"Méditerranée","CDB Alpes Maritimes",19058,"ACADEMIE DE BILLARD DE BARBOSSI MANDELIEU","19058 – ACADEMIE DE BILLARD DE BARBOSSI MANDELIEU","Oui","-","R1",0.88,0.7,"à","SELON RÈGLEMENT SPORTIF LIGUE"]
["150101D","BALESTRI","CHARLY","BALESTRI CHARLY",2014,2019,"Méditerranée","CDB Alpes Maritimes",19058,"ACADEMIE DE BILLARD DE BARBOSSI MANDELIEU","19058 – ACADEMIE DE BILLARD DE BARBOSSI MANDELIEU","Oui","R1","R1",3.25,2.6,"à","SELON RÈGLEMENT SPORTIF LIGUE"]
["023184S","BALLIGAND","SERGE","BALLIGAND SERGE",2025,2025,"Méditerranée","CDB Var",19059,"BILLARD CLUB ROQUEBRUNOIS","19059 – BILLARD CLUB ROQUEBRUNOIS","Oui","N3","R1",4.01,3.21,"â","AUTORISÉ"]
["109917P","BARBANNEAU","FREDERIC","BARBANNEAU FREDERIC",2011,2025,"Méditerranée","CDB Var",19106,"BILLARD CLUB VINONNAIS","19106 – BILLARD CLUB VINONNAIS","Oui","R1","R1",3.47,2.78,"à","SELON RÈGLEMENT SPORTIF LIGUE"]
["018535X","BARDET","JEAN PIERRE","BARDET JEAN PIERRE",2024,2025,"Méditerranée","CDB Var",19023,"BILLARD CLUB GARDEEN","19023 – BILLARD CLUB GARDEEN","Oui","R1","R1",2.71,2.16,"à","SELON RÈGLEMENT SPORTIF LIGUE"]
["122300W","BARRALLON","JEAN PAUL","BARRALLON JEAN PAUL",2025,2025,"Méditerranée","CDB Var",19023,"BILLARD CLUB GARDEEN","19023 – BILLARD CLUB GARDEEN","Oui","R1","R1",2.04,1.63,"à","SELON RÈGLEMENT SPORTIF LIGUE"]
["103568K","BASSOUL","JEAN MARIE","BASSOUL JEAN MARIE",2025,2025,"Méditerranée","CDB Vaucluse",19006,"BILLARD CLUB CARPENTRASSIEN","19006 – BILLARD CLUB CARPENTRASSIEN","Oui","R1","R1",2.2799999999999998,1.82,"à","SELON RÈGLEMENT SPORTIF LIGUE"]
["021863X","BEDOC","JACQUES","BEDOC JACQUES",2016,2025,"Méditerranée","CDB Bouches du Rhône",19007,"BILLARD CLUB BERROIS","19007 – BILLARD CLUB BERROIS","Oui","R1","R1",2.9,2.3199999999999998,"à","SELON RÈGLEMENT SPORTIF LIGUE"]
["132789H","BELTRITTI","JEAN YVES","BELTRITTI JEAN YVES",2025,2025,"Méditerranée","CDB Var",19106,"BILLARD CLUB VINONNAIS","19106 – BILLARD CLUB VINONNAIS","Oui","R1","R1",1.6,1.28,"à","SELON RÈGLEMENT SPORTIF LIGUE"]
["159238K","BENIER","PATRICK","BENIER PATRICK",2025,2025,"Méditerranée","CDB Var",19023,"BILLARD CLUB GARDEEN","19023 – BILLARD CLUB GARDEEN","Oui","R1","R1",1.36,1.08,"à","SELON RÈGLEMENT SPORTIF LIGUE"]
["125945B","BERNAT","JEAN PIERRE","BERNAT JEAN PIERRE",2025,2025,"Méditerranée","CDB Var",19023,"BILLARD CLUB GARDEEN","19023 – BILLARD CLUB GARDEEN","Oui","R1","R1",1.75,1.4,"à","SELON RÈGLEMENT SPORTIF LIGUE"]
["180334Q","BETTONI","GILLES","BETTONI GILLES",2024,2025,"Méditerranée","CDB Alpes Maritimes",19058,"ACADEMIE DE BILLARD DE BARBOSSI MANDELIEU","19058 – ACADEMIE DE BILLARD DE BARBOSSI MANDELIEU","Oui","R1","R1",0.85,0.68,"à","SELON RÈGLEMENT SPORTIF LIGUE"]
["125917Z","BIDDAU","FRANCOIS","BIDDAU FRANCOIS",2024,2025,"Méditerranée","CDB Bouches du Rhône",19009,"CLUB BILLARD ISTREEN","19009 – CLUB BILLARD ISTREEN","Oui","R1","R1",2.35,1.88,"à","SELON RÈGLEMENT SPORTIF LIGUE"]
["141828Y","BILDIK","MEHMET","BILDIK MEHMET",2024,2024,"Méditerranée","CDB Vaucluse",19006,"BILLARD CLUB CARPENTRASSIEN","19006 – BILLARD CLUB CARPENTRASSIEN","Oui","N3","N3",4.72,3.78,"à","SELON RÈGLEMENT SPORTIF LIGUE"]
["132947J","BONALD","YVES","BONALD YVES",2012,2019,"Méditerranée","CDB Bouches du Rhône",19001,"S. S. A. B. D AIX EN PROVENCE","19001 – S. S. A. B. D AIX EN PROVENCE","Oui","N3","R1",3.17,2.54,"â","AUTORISÉ"]
["187537V","BONTEMPS","PAUL","BONTEMPS PAUL",2025,2025,"Méditerranée","CDB Bouches du Rhône",19001,"S. S. A. B. D AIX EN PROVENCE","19001 – S. S. A. B. D AIX EN PROVENCE","Oui","-","R1",0.93,0.74,"à","SELON RÈGLEMENT SPORTIF LIGUE"]
["149287T","BORDES","BERNARD","BORDES BERNARD",2025,2025,"Méditerranée","CDB Var",19061,"ACAD.BILLARD ST RAPHAEL","19061 – ACAD.BILLARD ST RAPHAEL","Oui","N3","R1",3.25,2.6,"â","AUTORISÉ"]
["149288V","BORDES","CATHERINE","BORDES CATHERINE",2024,2025,"Méditerranée","CDB Var",19061,"ACAD.BILLARD ST RAPHAEL","19061 – ACAD.BILLARD ST RAPHAEL","Oui","R1","R1",0.66,0.53,"à","SELON RÈGLEMENT SPORTIF LIGUE"]
["012645J","BOULANDET","ALAIN","BOULANDET ALAIN",2015,2025,"Méditerranée","CDB Alpes Maritimes",19055,"ACADEMIE DE BILLARD DE MENTON","19055 – ACADEMIE DE BILLARD DE MENTON","Oui","R1","R1",1.88,1.51,"à","SELON RÈGLEMENT SPORTIF LIGUE"]
["155529D","BOULANT","CLAUDE","BOULANT CLAUDE",2023,2025,"Méditerranée","CDB Var",19019,"BILLARD CLUB DE LA BAIE","19019 – BILLARD CLUB DE LA BAIE","Oui","R1","R1",2.38,1.91,"à","SELON RÈGLEMENT SPORTIF LIGUE"]
["149613Y","BOVET","MICHEL","BOVET MICHEL",2022,2023,"Méditerranée","CDB Var",19059,"BILLARD CLUB ROQUEBRUNOIS","19059 – BILLARD CLUB ROQUEBRUNOIS","Oui","R1","R1",1.7,1.36,"à","SELON RÈGLEMENT SPORTIF LIGUE"]
["016411F","BRAYER","DENIS",{"$f":"B34&\" \"&C34","v":"BRAYER DENIS"},2025,2025,"Méditerranée","CDB Vaucluse",19008,"BRITISH BILLARD CLUB AVIGNON",{"$f":"I34&\" – \"&J34","v":"19008 – BRITISH BILLARD CLUB AVIGNON"},"Oui","N3","R1",4.17,3.34,"â","AUTORISÉ"]
["021918A","BREDAT","RENE","BREDAT RENE",2019,2025,"Méditerranée","CDB Alpes Haute Provence",19025,"BILLARD CLUB SISTERONNAIS","19025 – BILLARD CLUB SISTERONNAIS","Oui","N3","R1",2.34,1.87,"â","AUTORISÉ"]
["113104E","BRIAND","ALAIN","BRIAND ALAIN",2025,2025,"Méditerranée","CDB Bouches du Rhône",19002,"SPORT AMAT.DE BILLARD MARSEILLAIS","19002 – SPORT AMAT.DE BILLARD MARSEILLAIS","Oui","R1","R1",2.46,1.96,"à","SELON RÈGLEMENT SPORTIF LIGUE"]
["021922E","BRIOSNE","PASCAL","BRIOSNE PASCAL",2020,2025,"Méditerranée","CDB Bouches du Rhône",19001,"S. S. A. B. D AIX EN PROVENCE","19001 – S. S. A. B. D AIX EN PROVENCE","Oui","N3","R1",3.55,2.84,"â","AUTORISÉ"]
["114733V","BRUANT","SYLVAIN","BRUANT SYLVAIN",2023,2025,"Méditerranée","CDB Vaucluse",19016,"BILLARD CLUB ORANGEOIS","19016 – BILLARD CLUB ORANGEOIS","Oui","R1","R1",2.27,1.81,"à","SELON RÈGLEMENT SPORTIF LIGUE"]
["123684C","BURGANT","JEAN MARIE","BURGANT JEAN MARIE",2025,2025,"Méditerranée","CDB Var",19019,"BILLARD CLUB DE LA BAIE","19019 – BILLARD CLUB DE LA BAIE","Oui","N3","R1",3.48,2.78,"â","AUTORISÉ"]
["112311R","CACHO","DIDIER","CACHO DIDIER",2020,2025,"Méditerranée","CDB Bouches du Rhône",19098,"BILLARD CLUB LA FARE","19098 – BILLARD CLUB LA FARE","Oui","N3","R1",3.35,2.68,"â","AUTORISÉ"]
["021938U","CALDERON","LUC","CALDERON LUC",2025,2025,"Méditerranée","CDB Bouches du Rhône",19009,"CLUB BILLARD ISTREEN","19009 – CLUB BILLARD ISTREEN","Oui","R1","R1",3.55,2.84,"à","SELON RÈGLEMENT SPORTIF LIGUE"]
["021944A","CAO","HUU TUOI","CAO HUU TUOI",2024,2025,"Méditerranée","CDB Bouches du Rhône",19098,"BILLARD CLUB LA FARE","19098 – BILLARD CLUB LA FARE","Oui","N3","R1",3.8,3.04,"â","AUTORISÉ"]
["130701Z","CARRION","JEAN PHILIPPE","CARRION JEAN PHILIPPE",2016,2025,"Méditerranée","CDB Alpes Maritimes",19058,"ACADEMIE DE BILLARD DE BARBOSSI MANDELIEU","19058 – ACADEMIE DE BILLARD DE BARBOSSI MANDELIEU","Oui","N3","R1",3.55,2.84,"â","AUTORISÉ"]
["021953J","CASTA","JEAN","CASTA JEAN",2013,2015,"Méditerranée","CDB Alpes Haute Provence",19025,"BILLARD CLUB SISTERONNAIS","19025 – BILLARD CLUB SISTERONNAIS","Oui","N3","R1",3.07,2.46,"â","AUTORISÉ"]
["112516O","CESARINI","JEAN PAUL","CESARINI JEAN PAUL",2023,2023,"Méditerranée","CDB Var",19106,"BILLARD CLUB VINONNAIS","19106 – BILLARD CLUB VINONNAIS","Oui","N3","R1",3.23,2.58,"â","AUTORISÉ"]
["118684U","CESARO","JEAN CLAUDE","CESARO JEAN CLAUDE",2023,2025,"Méditerranée","CDB Bouches du Rhône",19007,"BILLARD CLUB BERROIS","19007 – BILLARD CLUB BERROIS","Oui","R1","R1",1.49,1.19,"à","SELON RÈGLEMENT SPORTIF LIGUE"]
["173622V","CHABASSIERE","DOMINIQUE","CHABASSIERE DOMINIQUE",2023,2024,"Méditerranée","CDB Bouches du Rhône",19098,"BILLARD CLUB LA FARE","19098 – BILLARD CLUB LA FARE","Oui","N3","R1",3.51,2.81,"â","AUTORISÉ"]
["104469B","CHAPUIS","ERIC","CHAPUIS ERIC",2025,2025,"Méditerranée","CDB Alpes Maritimes",19056,"BILLARD CLUB DE NICE","19056 – BILLARD CLUB DE NICE","Oui","N2","N2",7.66,6.13,"à","SELON RÈGLEMENT SPORTIF LIGUE"]
["021967X","CHARBIT","JEAN MARC","CHARBIT JEAN MARC",2025,2025,"Méditerranée","CDB Alpes Maritimes",19056,"BILLARD CLUB DE NICE","19056 – BILLARD CLUB DE NICE","Oui","R1","R1",3.31,2.65,"à","SELON RÈGLEMENT SPORTIF LIGUE"]
["021969Z","CHARLOT","ALLAN","CHARLOT ALLAN",2009,2010,"Méditerranée","CDB Vaucluse",19027,"ACADEMIE DE BILLARD DE BOLLENE","19027 – ACADEMIE DE BILLARD DE BOLLENE","Oui","N2","N3",7.01,5.61,"â","AUTORISÉ"]
["012782Q","CHASTAN","GEORGES","CHASTAN GEORGES",2025,2025,"Méditerranée","CDB Vaucluse",19021,"BILLARD CLUB CAVAILLONNAIS","19021 – BILLARD CLUB CAVAILLONNAIS","Oui","R1","R1",3.17,2.54,"à","SELON RÈGLEMENT SPORTIF LIGUE"]
["021972C","CHAUVIN","JEAN PAUL","CHAUVIN JEAN PAUL",2013,2015,"Méditerranée","CDB Bouches du Rhône",19050,"BILLARD CLUB SAUSSETOIS","19050 – BILLARD CLUB SAUSSETOIS","Oui","R1","R1",2.76,2.21,"à","SELON RÈGLEMENT SPORTIF LIGUE"]
["108854S","CHUZEVILLE","GILLES","CHUZEVILLE GILLES",2024,2025,"Méditerranée","CDB Alpes Haute Provence",19025,"BILLARD CLUB SISTERONNAIS","19025 – BILLARD CLUB SISTERONNAIS","Oui","R1","R1",3.05,2.44,"à","SELON RÈGLEMENT SPORTIF LIGUE"]
["148796K","COHEN","RICHARD","COHEN RICHARD",2025,2025,"Méditerranée","CDB Alpes Maritimes",19056,"BILLARD CLUB DE NICE","19056 – BILLARD CLUB DE NICE","Oui","-","R1",1.23,0.99,"à","SELON RÈGLEMENT SPORTIF LIGUE"]
["187055W","CORTES","JEAN LOUIS","CORTES JEAN LOUIS",2025,2025,"Méditerranée","CDB Bouches du Rhône",19009,"CLUB BILLARD ISTREEN","19009 – CLUB BILLARD ISTREEN","Oui","-","R1",2,1.6,"à","SELON RÈGLEMENT SPORTIF LIGUE"]
["016838Q","COURBOT","LUDWIG","COURBOT LUDWIG",2025,2025,"Méditerranée","CDB Bouches du Rhône",19001,"S. S. A. B. D AIX EN PROVENCE","19001 – S. S. A. B. D AIX EN PROVENCE","Oui","N3","R1",4.0999999999999996,3.28,"â","AUTORISÉ"]
["016445N","CREUGNY","LAURENT","CREUGNY LAURENT",2009,2010,"Méditerranée","CDB Vaucluse",19027,"ACADEMIE DE BILLARD DE BOLLENE","19027 – ACADEMIE DE BILLARD DE BOLLENE","Oui","N3","N3",5.3,4.24,"à","SELON RÈGLEMENT SPORTIF LIGUE"]
["014828I","DAUPHIN","MICHEL","DAUPHIN MICHEL",2023,2025,"Méditerranée","CDB Vaucluse",19014,"BILLARD CLUB AVIGNONNAIS","19014 – BILLARD CLUB AVIGNONNAIS","Oui","N3","N3",5.16,4.13,"à","SELON RÈGLEMENT SPORTIF LIGUE"]
["155526A","DAVID","THIERRY","DAVID THIERRY",2025,2025,"Méditerranée","CDB Alpes Haute Provence",19025,"BILLARD CLUB SISTERONNAIS","19025 – BILLARD CLUB SISTERONNAIS","Oui","R1","R1",1.78,1.43,"à","SELON RÈGLEMENT SPORTIF LIGUE"]
["163348C","DE LOOSE","FELIX","DE LOOSE FELIX",2025,2025,"Méditerranée","CDB Var",19106,"BILLARD CLUB VINONNAIS","19106 – BILLARD CLUB VINONNAIS","Oui","R1","R1",2.4300000000000002,1.94,"à","SELON RÈGLEMENT SPORTIF LIGUE"]
["113220Q","DEBRUYNE","TRISTAN","DEBRUYNE TRISTAN",2025,2025,"Méditerranée","CDB Var",19106,"BILLARD CLUB VINONNAIS","19106 – BILLARD CLUB VINONNAIS","Oui","-","R1",1.24,0.99,"à","SELON RÈGLEMENT SPORTIF LIGUE"]
["020635R","DEFRETIN","JOEL","DEFRETIN JOEL",2025,2025,"Méditerranée","CDB Var",19023,"BILLARD CLUB GARDEEN","19023 – BILLARD CLUB GARDEEN","Oui","N2","N3",6.42,5.13,"â","AUTORISÉ"]
["112719J","DELBEY","JULIEN","DELBEY JULIEN",2023,2025,"Méditerranée","CDB Bouches du Rhône",19012,"SALON BILLARD CLUB","19012 – SALON BILLARD CLUB","Oui","N3","R1",3.76,3.01,"â","AUTORISÉ"]
["140803N","DREMEAUX","JEAN PIERRE","DREMEAUX JEAN PIERRE",2025,2025,"Méditerranée","CDB Var",19023,"BILLARD CLUB GARDEEN","19023 – BILLARD CLUB GARDEEN","Oui","N2","N3",5.23,4.18,"â","AUTORISÉ"]
["013022W","DUBREUIL","FRANCK","DUBREUIL FRANCK",2024,2025,"Méditerranée","CDB Var",19061,"ACAD.BILLARD ST RAPHAEL","19061 – ACAD.BILLARD ST RAPHAEL","Oui","N3","N3",5.13,4.1100000000000003,"à","SELON RÈGLEMENT SPORTIF LIGUE"]
["013037L","DUMET","BRUNO",{"$f":"B66&\" \"&C66","v":"DUMET BRUNO"},2024,2024,"Méditerranée","CDB Var",19023,"BILLARD CLUB GARDEEN",{"$f":"I66&\" – \"&J66","v":"19023 – BILLARD CLUB GARDEEN"},"Oui","N3","R1",3.67,2.93,"â","AUTORISÉ"]
["022050C","DURAND","HERVE","DURAND HERVE",2009,2023,"Méditerranée","CDB Bouches du Rhône",19012,"SALON BILLARD CLUB","19012 – SALON BILLARD CLUB","Oui","N2","N2",8.7100000000000009,6.97,"à","SELON RÈGLEMENT SPORTIF LIGUE"]
["102285B","DUSSAULE","PIERRE","DUSSAULE PIERRE",2024,2025,"Méditerranée","CDB Vaucluse",19027,"ACADEMIE DE BILLARD DE BOLLENE","19027 – ACADEMIE DE BILLARD DE BOLLENE","Oui","R1","R1",1.77,1.41,"à","SELON RÈGLEMENT SPORTIF LIGUE"]
["163467G","ELEOUET","DANIEL","ELEOUET DANIEL",2025,2025,"Méditerranée","CDB Vaucluse",19006,"BILLARD CLUB CARPENTRASSIEN","19006 – BILLARD CLUB CARPENTRASSIEN","Oui","R1","R1",2.0499999999999998,1.64,"à","SELON RÈGLEMENT SPORTIF LIGUE"]
["147622J","ESTABLIER","PIERRE","ESTABLIER PIERRE",2025,2025,"Méditerranée","CDB Var",19023,"BILLARD CLUB GARDEEN","19023 – BILLARD CLUB GARDEEN","Oui","R1","R1",1.05,0.84,"à","SELON RÈGLEMENT SPORTIF LIGUE"]
["101511H","FAGET","FRANCIS","FAGET FRANCIS",2016,2020,"Méditerranée","CDB Bouches du Rhône",19001,"S. S. A. B. D AIX EN PROVENCE","19001 – S. S. A. B. D AIX EN PROVENCE","Oui","R1","R1",2.4,1.92,"à","SELON RÈGLEMENT SPORTIF LIGUE"]
["022065R","FAURE","EMILE","FAURE EMILE",2015,2025,"Méditerranée","CDB Vaucluse",19016,"BILLARD CLUB ORANGEOIS","19016 – BILLARD CLUB ORANGEOIS","Oui","R1","R1",2.0299999999999998,1.62,"à","SELON RÈGLEMENT SPORTIF LIGUE"]
["022067T","FERAUD","GERARD","FERAUD GERARD",2025,2025,"Méditerranée","CDB Vaucluse",19027,"ACADEMIE DE BILLARD DE BOLLENE","19027 – ACADEMIE DE BILLARD DE BOLLENE","Oui","N2","N3",5.85,4.68,"â","AUTORISÉ"]
["129036Y","FERHAT","ACHOUR","FERHAT ACHOUR",2025,2025,"Méditerranée","CDB Var",19106,"BILLARD CLUB VINONNAIS","19106 – BILLARD CLUB VINONNAIS","Oui","N2","N3",4.0999999999999996,3.28,"â","AUTORISÉ"]
["013111H","FERNANDEZ","MARC","FERNANDEZ MARC",2025,2025,"Méditerranée","CDB Bouches du Rhône",19007,"BILLARD CLUB BERROIS","19007 – BILLARD CLUB BERROIS","Oui","N3","N3",5.13,4.0999999999999996,"à","SELON RÈGLEMENT SPORTIF LIGUE"]
["122658Q","FERRO","PHILIPPE","FERRO PHILIPPE",2025,2025,"Méditerranée","CDB Bouches du Rhône",19009,"CLUB BILLARD ISTREEN","19009 – CLUB BILLARD ISTREEN","Oui","R1","R1",1.78,1.42,"à","SELON RÈGLEMENT SPORTIF LIGUE"]
["101139Z","FONTAINE","DANY","FONTAINE DANY",2025,2025,"Méditerranée","CDB Var",19106,"BILLARD CLUB VINONNAIS","19106 – BILLARD CLUB VINONNAIS","Oui","N2","N3",7.24,5.79,"â","AUTORISÉ"]
["022082I","FOSSATI","BRUNO","FOSSATI BRUNO",2018,2021,"Méditerranée","CDB Var",19023,"BILLARD CLUB GARDEEN","19023 – BILLARD CLUB GARDEEN","Oui","R1","R1",1.85,1.48,"à","SELON RÈGLEMENT SPORTIF LIGUE"]
["022084K","FRANCO","ALBERT","FRANCO ALBERT",2018,2025,"Méditerranée","CDB Var",19019,"BILLARD CLUB DE LA BAIE","19019 – BILLARD CLUB DE LA BAIE","Oui","R1","R1",2.5099999999999998,2.0099999999999998,"à","SELON RÈGLEMENT SPORTIF LIGUE"]
["103216W","GABETTO","STEPHANE","GABETTO STEPHANE",2025,2025,"Méditerranée","CDB Var",19023,"BILLARD CLUB GARDEEN","19023 – BILLARD CLUB GARDEEN","Oui","R1","R1",2.94,2.35,"à","SELON RÈGLEMENT SPORTIF LIGUE"]
["022092S","GANTOIS","GILLES","GANTOIS GILLES",2025,2025,"Méditerranée","CDB Vaucluse",19016,"BILLARD CLUB ORANGEOIS","19016 – BILLARD CLUB ORANGEOIS","Oui","N3","R1",4.0599999999999996,3.25,"â","AUTORISÉ"]
["022097X","GATTO","ANTOINE","GATTO ANTOINE",2018,2025,"Méditerranée","CDB Bouches du Rhône",19050,"BILLARD CLUB SAUSSETOIS","19050 – BILLARD CLUB SAUSSETOIS","Oui","R1","R1",1.86,1.48,"à","SELON RÈGLEMENT SPORTIF LIGUE"]
["163279C","GELAS","BERNARD","GELAS BERNARD",2025,2025,"Méditerranée","CDB Bouches du Rhône",19098,"BILLARD CLUB LA FARE","19098 – BILLARD CLUB LA FARE","Oui","R1","R1",1.18,0.94,"à","SELON RÈGLEMENT SPORTIF LIGUE"]
["022103D","GERARD","PASCAL","GERARD PASCAL",2025,2025,"Méditerranée","CDB Alpes Maritimes",19056,"BILLARD CLUB DE NICE","19056 – BILLARD CLUB DE NICE","Oui","N2","N1",13.39,10.71,"á","SELON RÈGLEMENT SPORTIF LIGUE"]
["022104E","GERVAIS","GUILLAUME","GERVAIS GUILLAUME",2020,2025,"Méditerranée","CDB Vaucluse",19021,"BILLARD CLUB CAVAILLONNAIS","19021 – BILLARD CLUB CAVAILLONNAIS","Oui","N2","N3",4.95,3.96,"â","AUTORISÉ"]
["101282M","GHU","GERARD","GHU GERARD",2025,2025,"Méditerranée","CDB Vaucluse",19016,"BILLARD CLUB ORANGEOIS","19016 – BILLARD CLUB ORANGEOIS","Oui","R1","R1",2.16,1.73,"à","SELON RÈGLEMENT SPORTIF LIGUE"]
["022108I","GIANNATTASIO","LUCIEN","GIANNATTASIO LUCIEN",2025,2025,"Méditerranée","CDB Bouches du Rhône",19009,"CLUB BILLARD ISTREEN","19009 – CLUB BILLARD ISTREEN","Oui","R1","R1",1.94,1.55,"à","SELON RÈGLEMENT SPORTIF LIGUE"]
["118661X","GIBARROUX","CHRISTOPHE","GIBARROUX CHRISTOPHE",2025,2025,"Méditerranée","CDB Bouches du Rhône",19001,"S. S. A. B. D AIX EN PROVENCE","19001 – S. S. A. B. D AIX EN PROVENCE","Oui","N3","R1",3.96,3.17,"â","AUTORISÉ"]
["149390F","GIFFARD","PHILIPPE","GIFFARD PHILIPPE",2024,2025,"Méditerranée","CDB Var",19023,"BILLARD CLUB GARDEEN","19023 – BILLARD CLUB GARDEEN","Oui","N3","N3",5.0199999999999996,4.01,"à","SELON RÈGLEMENT SPORTIF LIGUE"]
["129718E","GIRARD","JACQUES","GIRARD JACQUES",2015,2025,"Méditerranée","CDB Alpes Maritimes",19058,"ACADEMIE DE BILLARD DE BARBOSSI MANDELIEU","19058 – ACADEMIE DE BILLARD DE BARBOSSI MANDELIEU","Oui","R1","R1",1.44,1.1499999999999999,"à","SELON RÈGLEMENT SPORTIF LIGUE"]
["157852D","GODARD","PASCAL","GODARD PASCAL",2025,2025,"Méditerranée","CDB Vaucluse",19006,"BILLARD CLUB CARPENTRASSIEN","19006 – BILLARD CLUB CARPENTRASSIEN","Oui","R1","R1",2.73,2.1800000000000002,"à","SELON RÈGLEMENT SPORTIF LIGUE"]
["104054C","GOURSEAUD","YVES","GOURSEAUD YVES",2024,2025,"Méditerranée","CDB Vaucluse",19016,"BILLARD CLUB ORANGEOIS","19016 – BILLARD CLUB ORANGEOIS","Oui","N3","N3",4.62,3.7,"à","SELON RÈGLEMENT SPORTIF LIGUE"]
["022135J","GUERINEAU","THIERRY","GUERINEAU THIERRY",2017,2025,"Méditerranée","CDB Vaucluse",19021,"BILLARD CLUB CAVAILLONNAIS","19021 – BILLARD CLUB CAVAILLONNAIS","Oui","N3","N3",6.17,4.9400000000000004,"à","SELON RÈGLEMENT SPORTIF LIGUE"]
["104475H","GUEUG","PIERRE","GUEUG PIERRE",2025,2025,"Méditerranée","CDB Alpes Maritimes",19056,"BILLARD CLUB DE NICE","19056 – BILLARD CLUB DE NICE","Oui","R1","R1",2.13,1.71,"à","SELON RÈGLEMENT SPORTIF LIGUE"]
["022137L","GUIBERT","JEAN MARIE","GUIBERT JEAN MARIE",2020,2024,"Méditerranée","CDB Bouches du Rhône",19009,"CLUB BILLARD ISTREEN","19009 – CLUB BILLARD ISTREEN","Oui","R1","R1",1.93,1.54,"à","SELON RÈGLEMENT SPORTIF LIGUE"]
["154530S","GUIZELIN","PASCAL","GUIZELIN PASCAL",2025,2025,"Méditerranée","CDB Var",19106,"BILLARD CLUB VINONNAIS","19106 – BILLARD CLUB VINONNAIS","Oui","R1","R1",1.46,1.17,"à","SELON RÈGLEMENT SPORTIF LIGUE"]
["011966G","HAHN","DANIEL","HAHN DANIEL",2025,2025,"Méditerranée","CDB Bouches du Rhône",19017,"BILLARD CLUB PHOCEEN","19017 – BILLARD CLUB PHOCEEN","Oui","R1","R1",1.81,1.44,"à","SELON RÈGLEMENT SPORTIF LIGUE"]
["137523J","HAZE","PATRICK",{"$f":"B98&\" \"&C98","v":"HAZE PATRICK"},2025,2025,"Méditerranée","CDB Vaucluse",19021,"BILLARD CLUB CAVAILLONNAIS",{"$f":"I98&\" – \"&J98","v":"19021 – BILLARD CLUB CAVAILLONNAIS"},"Oui","R1","R1",1.38,1.1000000000000001,"à","SELON RÈGLEMENT SPORTIF LIGUE"]
["119933V","HERREMAN","SERGE","HERREMAN SERGE",2025,2025,"Méditerranée","CDB Var",19023,"BILLARD CLUB GARDEEN","19023 – BILLARD CLUB GARDEEN","Oui","R1","R1",1.31,1.05,"à","SELON RÈGLEMENT SPORTIF LIGUE"]
["132460Q","HMAYDA","YOUSSEF","HMAYDA YOUSSEF",2009,2019,"Méditerranée","CDB Alpes Maritimes",19056,"BILLARD CLUB DE NICE","19056 – BILLARD CLUB DE NICE","Oui","N3","N3",6.19,4.95,"à","SELON RÈGLEMENT SPORTIF LIGUE"]
["181239Z","IVACHEFF","MICHEL","IVACHEFF MICHEL",2025,2025,"Méditerranée","CDB Var",19106,"BILLARD CLUB VINONNAIS","19106 – BILLARD CLUB VINONNAIS","Oui","-","R1",1.0900000000000001,0.87,"à","SELON RÈGLEMENT SPORTIF LIGUE"]
["022173V","KOSKACH","JEAN PAUL","KOSKACH JEAN PAUL",2011,2024,"Méditerranée","CDB Bouches du Rhône",19017,"BILLARD CLUB PHOCEEN","19017 – BILLARD CLUB PHOCEEN","Oui","N3","N3",5.07,4.0599999999999996,"à","SELON RÈGLEMENT SPORTIF LIGUE"]
["109977X","LACOSSE","JEAN PAUL","LACOSSE JEAN PAUL",2023,2025,"Méditerranée","CDB Var",19019,"BILLARD CLUB DE LA BAIE","19019 – BILLARD CLUB DE LA BAIE","Oui","N3","R1",3.37,2.7,"â","AUTORISÉ"]
["147195V","LACOSTE","BRUNO","LACOSTE BRUNO",2023,2024,"Méditerranée","CDB Var",19061,"ACAD.BILLARD ST RAPHAEL","19061 – ACAD.BILLARD ST RAPHAEL","Oui","R1","R1",2.5299999999999998,2.02,"à","SELON RÈGLEMENT SPORTIF LIGUE"]
["181199F","LANDERECTHE","PASCAL","LANDERECTHE PASCAL",2025,2025,"Méditerranée","CDB Bouches du Rhône",19007,"BILLARD CLUB BERROIS","19007 – BILLARD CLUB BERROIS","Oui","R1","R1",1.4,1.1200000000000001,"à","SELON RÈGLEMENT SPORTIF LIGUE"]
["168288X","LANNURIEN","THIERRY","LANNURIEN THIERRY",2025,2025,"Méditerranée","CDB Var",19023,"BILLARD CLUB GARDEEN","19023 – BILLARD CLUB GARDEEN","Oui","R1","R1",2.92,2.33,"à","SELON RÈGLEMENT SPORTIF LIGUE"]
["022190M","LAPLANCHE","YVON","LAPLANCHE YVON",2018,2023,"Méditerranée","CDB Var",19059,"BILLARD CLUB ROQUEBRUNOIS","19059 – BILLARD CLUB ROQUEBRUNOIS","Oui","R1","R1",2.31,1.85,"à","SELON RÈGLEMENT SPORTIF LIGUE"]
["163278B","LE FAUCHEUR","LAURENT","LE FAUCHEUR LAURENT",2025,2025,"Méditerranée","CDB Bouches du Rhône",19098,"BILLARD CLUB LA FARE","19098 – BILLARD CLUB LA FARE","Oui","-","R1",1.46,1.17,"à","SELON RÈGLEMENT SPORTIF LIGUE"]
["110799N","LEBAR","PATRICK","LEBAR PATRICK",2013,2013,"Méditerranée","CDB Bouches du Rhône",19090,"BILLARD AMATEUR ROGNAC","19090 – BILLARD AMATEUR ROGNAC","Oui","R1","R1",3.27,2.62,"à","SELON RÈGLEMENT SPORTIF LIGUE"]
["110379J","LEMARTINET","ROBERT","LEMARTINET ROBERT",2020,2025,"Méditerranée","CDB Var",19019,"BILLARD CLUB DE LA BAIE","19019 – BILLARD CLUB DE LA BAIE","Oui","R1","R1",1.79,1.43,"à","SELON RÈGLEMENT SPORTIF LIGUE"]
["176350K","LETELLIER","ALAIN","LETELLIER ALAIN",2025,2025,"Méditerranée","CDB Bouches du Rhône",19090,"BILLARD AMATEUR ROGNAC","19090 – BILLARD AMATEUR ROGNAC","Oui","R1","R1",1.1100000000000001,0.89,"à","SELON RÈGLEMENT SPORTIF LIGUE"]
["131535B","LEVAVASSEUR","ROBERT","LEVAVASSEUR ROBERT",2010,2014,"Méditerranée","CDB Alpes Haute Provence",19025,"BILLARD CLUB SISTERONNAIS","19025 – BILLARD CLUB SISTERONNAIS","Oui","N2","N3",4.2300000000000004,3.38,"â","AUTORISÉ"]
["141067R","LEVEQUE","DAVID","LEVEQUE DAVID",2015,2017,"Méditerranée","CDB Bouches du Rhône",19007,"BILLARD CLUB BERROIS","19007 – BILLARD CLUB BERROIS","Oui","R1","R1",2.52,2.02,"à","SELON RÈGLEMENT SPORTIF LIGUE"]
["022209F","LIEGEOIS","DOMINIQUE","LIEGEOIS DOMINIQUE",2025,2025,"Méditerranée","CDB Vaucluse",19027,"ACADEMIE DE BILLARD DE BOLLENE","19027 – ACADEMIE DE BILLARD DE BOLLENE","Oui","N3","R1",3.55,2.84,"â","AUTORISÉ"]
["146375V","LISI","ROGER","LISI ROGER",2025,2025,"Méditerranée","CDB Bouches du Rhône",19007,"BILLARD CLUB BERROIS","19007 – BILLARD CLUB BERROIS","Oui","R1","R1",0.99,0.79,"à","SELON RÈGLEMENT SPORTIF LIGUE"]
["162076V","LUCENET","PAUL","LUCENET PAUL",2025,2025,"Méditerranée","CDB Bouches du Rhône",19009,"CLUB BILLARD ISTREEN","19009 – CLUB BILLARD ISTREEN","Oui","R1","R1",1.71,1.37,"à","SELON RÈGLEMENT SPORTIF LIGUE"]
["186880F","LUNEAU","JEAN CLAUDE","LUNEAU JEAN CLAUDE",2025,2025,"Méditerranée","CDB Var",19023,"BILLARD CLUB GARDEEN","19023 – BILLARD CLUB GARDEEN","Oui","-","R1",2.59,2.0699999999999998,"à","SELON RÈGLEMENT SPORTIF LIGUE"]
["157809G","MASSIDDA","CHRISTOPHE","MASSIDDA CHRISTOPHE",2016,2016,"Méditerranée","CDB Alpes Maritimes",19057,"ACADEMIE VENCOISE DE BILLARD","19057 – ACADEMIE VENCOISE DE BILLARD","Oui","N3","R1",3.92,3.13,"â","AUTORISÉ"]
["129498S","MATHIEU","CLAUDE","MATHIEU CLAUDE",2023,2025,"Méditerranée","CDB Bouches du Rhône",19098,"BILLARD CLUB LA FARE","19098 – BILLARD CLUB LA FARE","Oui","R1","R1",1.48,1.18,"à","SELON RÈGLEMENT SPORTIF LIGUE"]
["017615N","MAUDUIT","DIDIER","MAUDUIT DIDIER",2024,2025,"Méditerranée","CDB Bouches du Rhône",19009,"CLUB BILLARD ISTREEN","19009 – CLUB BILLARD ISTREEN","Oui","R1","R1",1.1399999999999999,0.91,"à","SELON RÈGLEMENT SPORTIF LIGUE"]
["112015H","MAYNARD","ALEXANDRE","MAYNARD ALEXANDRE",2025,2025,"Méditerranée","CDB Alpes Maritimes",19056,"BILLARD CLUB DE NICE","19056 – BILLARD CLUB DE NICE","Oui","R1","R1",1.54,1.23,"à","SELON RÈGLEMENT SPORTIF LIGUE"]
["022248S","MAZAURIC","STEPHANE","MAZAURIC STEPHANE",2009,2011,"Méditerranée","CDB Var",19059,"BILLARD CLUB ROQUEBRUNOIS","19059 – BILLARD CLUB ROQUEBRUNOIS","Oui","N2","N2",7.97,6.38,"à","SELON RÈGLEMENT SPORTIF LIGUE"]
["144802I","MELLET","PIERRE","MELLET PIERRE",2025,2025,"Méditerranée","CDB Vaucluse",19027,"ACADEMIE DE BILLARD DE BOLLENE","19027 – ACADEMIE DE BILLARD DE BOLLENE","Oui","R1","R1",1.2,0.96,"à","SELON RÈGLEMENT SPORTIF LIGUE"]
["022251V","MENCO","FRANCIS","MENCO FRANCIS",2009,2008,"Méditerranée","CDB Bouches du Rhône",19012,"SALON BILLARD CLUB","19012 – SALON BILLARD CLUB","Oui","N3","N3",4.95,3.96,"à","SELON RÈGLEMENT SPORTIF LIGUE"]
["022260E","MEYER","LUC","MEYER LUC",2023,2025,"Méditerranée","CDB Var",19023,"BILLARD CLUB GARDEEN","19023 – BILLARD CLUB GARDEEN","Oui","N3","N3",5.35,4.28,"à","SELON RÈGLEMENT SPORTIF LIGUE"]
["172218T","MILLOT","ROBERT","MILLOT ROBERT",2023,2025,"Méditerranée","CDB Alpes Haute Provence",19025,"BILLARD CLUB SISTERONNAIS","19025 – BILLARD CLUB SISTERONNAIS","Oui","R1","R1",1.27,1.02,"à","SELON RÈGLEMENT SPORTIF LIGUE"]
["022266K","MOGLIA","EMILE","MOGLIA EMILE",2009,2025,"Méditerranée","CDB Vaucluse",19014,"BILLARD CLUB AVIGNONNAIS","19014 – BILLARD CLUB AVIGNONNAIS","Oui","N3","R1",4.03,3.22,"â","AUTORISÉ"]
["022268M","MOLAND","PHILIPPE","MOLAND PHILIPPE",2025,2025,"Méditerranée","CDB Var",19059,"BILLARD CLUB ROQUEBRUNOIS","19059 – BILLARD CLUB ROQUEBRUNOIS","Oui","N3","R1",2.16,1.73,"â","AUTORISÉ"]
["022271P","MONNET","JEAN CLAUDE","MONNET JEAN CLAUDE",2025,2025,"Méditerranée","CDB Vaucluse",19021,"BILLARD CLUB CAVAILLONNAIS","19021 – BILLARD CLUB CAVAILLONNAIS","Oui","-","R1",2.76,2.21,"à","SELON RÈGLEMENT SPORTIF LIGUE"]
["014997V","MONTAY","JEAN CLAUDE",{"$f":"B130&\" \"&C130","v":"MONTAY JEAN CLAUDE"},2010,2018,"Méditerranée","CDB Vaucluse",19027,"ACADEMIE DE BILLARD DE BOLLENE",{"$f":"I130&\" – \"&J130","v":"19027 – ACADEMIE DE BILLARD DE BOLLENE"},"Oui","N2","N3",5.03,4.0199999999999996,"â","AUTORISÉ"]
["147624L","MOREELS","BERNARD","MOREELS BERNARD",2025,2025,"Méditerranée","CDB Var",19023,"BILLARD CLUB GARDEEN","19023 – BILLARD CLUB GARDEEN","Oui","-","R1",1.24,0.99,"à","SELON RÈGLEMENT SPORTIF LIGUE"]
["101279J","MORENO","BASTIEN","MORENO BASTIEN",2017,2017,"Méditerranée","CDB Bouches du Rhône",19007,"BILLARD CLUB BERROIS","19007 – BILLARD CLUB BERROIS","Oui","N3","N3",5.63,4.51,"à","SELON RÈGLEMENT SPORTIF LIGUE"]
["151456B","MOUSSIER","PATRICK","MOUSSIER PATRICK",2020,2025,"Méditerranée","CDB Alpes Maritimes",19056,"BILLARD CLUB DE NICE","19056 – BILLARD CLUB DE NICE","Oui","R1","R1",0.88,0.7,"à","SELON RÈGLEMENT SPORTIF LIGUE"]
["109063T","MUNOS","JEAN","MUNOS JEAN",2025,2025,"Méditerranée","CDB Bouches du Rhône",19050,"BILLARD CLUB SAUSSETOIS","19050 – BILLARD CLUB SAUSSETOIS","Oui","N3","R1",3.4,2.72,"â","AUTORISÉ"]
["109708O","MUNOS","VINCENT","MUNOS VINCENT",2024,2025,"Méditerranée","CDB Bouches du Rhône",19007,"BILLARD CLUB BERROIS","19007 – BILLARD CLUB BERROIS","Oui","N3","R1",2.98,2.38,"â","AUTORISÉ"]
["141788K","N GUYEN VAN DUC","MAX","N GUYEN VAN DUC MAX",2025,2025,"Méditerranée","CDB Bouches du Rhône",19007,"BILLARD CLUB BERROIS","19007 – BILLARD CLUB BERROIS","Oui","-","R1",1.08,0.87,"à","SELON RÈGLEMENT SPORTIF LIGUE"]
["154572N","NATELLA","ROGER","NATELLA ROGER",2025,2025,"Méditerranée","CDB Alpes Maritimes",19056,"BILLARD CLUB DE NICE","19056 – BILLARD CLUB DE NICE","Oui","R1","R1",1.42,1.1299999999999999,"à","SELON RÈGLEMENT SPORTIF LIGUE"]
["020258E","OLLIVIER","DANIEL","OLLIVIER DANIEL",2025,2025,"Méditerranée","CDB Bouches du Rhône",19009,"CLUB BILLARD ISTREEN","19009 – CLUB BILLARD ISTREEN","Oui","R1","R1",1.81,1.45,"à","SELON RÈGLEMENT SPORTIF LIGUE"]
["128468C","OUDOUX","GERARD","OUDOUX GERARD",2024,2025,"Méditerranée","CDB Var",19023,"BILLARD CLUB GARDEEN","19023 – BILLARD CLUB GARDEEN","Oui","R1","R1",1.53,1.22,"à","SELON RÈGLEMENT SPORTIF LIGUE"]
["150400D","PACZESNY","FABRICE","PACZESNY FABRICE",2025,2025,"Méditerranée","CDB Bouches du Rhône",19098,"BILLARD CLUB LA FARE","19098 – BILLARD CLUB LA FARE","Oui","R1","R1",1.78,1.42,"à","SELON RÈGLEMENT SPORTIF LIGUE"]
["022302U","PAGANONI","GEORGES","PAGANONI GEORGES",2009,2013,"Méditerranée","CDB Var",19023,"BILLARD CLUB GARDEEN","19023 – BILLARD CLUB GARDEEN","Oui","N2","N3",6.43,5.14,"â","AUTORISÉ"]
["141673Z","PELLAT","FRANCIS","PELLAT FRANCIS",2025,2025,"Méditerranée","CDB Alpes Haute Provence",19025,"BILLARD CLUB SISTERONNAIS","19025 – BILLARD CLUB SISTERONNAIS","Oui","R1","R1",2.17,1.73,"à","SELON RÈGLEMENT SPORTIF LIGUE"]
["132787F","PENEDO","JONATHAN","PENEDO JONATHAN",2010,2010,"Méditerranée","CDB Var",19106,"BILLARD CLUB VINONNAIS","19106 – BILLARD CLUB VINONNAIS","Oui","R1","R1",2.09,1.67,"à","SELON RÈGLEMENT SPORTIF LIGUE"]
["103577T","PENEDO","MANUEL","PENEDO MANUEL",2017,2024,"Méditerranée","CDB Var",19106,"BILLARD CLUB VINONNAIS","19106 – BILLARD CLUB VINONNAIS","Oui","N3","R1",4.32,3.46,"â","AUTORISÉ"]
["130773T","PEREZ","CHRISTIAN","PEREZ CHRISTIAN",2025,2025,"Méditerranée","CDB Bouches du Rhône",19009,"CLUB BILLARD ISTREEN","19009 – CLUB BILLARD ISTREEN","Oui","R1","R1",1.41,1.1299999999999999,"à","SELON RÈGLEMENT SPORTIF LIGUE"]
["181624S","PERRIN","LIONEL","PERRIN LIONEL",2025,2025,"Méditerranée","CDB Var",19023,"BILLARD CLUB GARDEEN","19023 – BILLARD CLUB GARDEEN","Oui","-","R1",1.59,1.27,"à","SELON RÈGLEMENT SPORTIF LIGUE"]
["129330G","PICOLLET","MANUEL","PICOLLET MANUEL",2018,2022,"Méditerranée","CDB Bouches du Rhône",19090,"BILLARD AMATEUR ROGNAC","19090 – BILLARD AMATEUR ROGNAC","Oui","N3","N3",5.35,4.28,"à","SELON RÈGLEMENT SPORTIF LIGUE"]
["022330W","PIELIN","PASCAL","PIELIN PASCAL",2012,2025,"Méditerranée","CDB Bouches du Rhône",19012,"SALON BILLARD CLUB","19012 – SALON BILLARD CLUB","Oui","N3","N3",5.08,4.0599999999999996,"à","SELON RÈGLEMENT SPORTIF LIGUE"]
["112316W","PIGNATEL","FLORENT","PIGNATEL FLORENT",2018,2025,"Méditerranée","CDB Vaucluse",19021,"BILLARD CLUB CAVAILLONNAIS","19021 – BILLARD CLUB CAVAILLONNAIS","Oui","N2","N2",10.97,8.7799999999999994,"à","SELON RÈGLEMENT SPORTIF LIGUE"]
["105404A","PINARD","PATRICE","PINARD PATRICE",2011,2025,"Méditerranée","CDB Bouches du Rhône",19012,"SALON BILLARD CLUB","19012 – SALON BILLARD CLUB","Oui","N3","R1",3.69,2.95,"â","AUTORISÉ"]
["022335B","PIONE","GUY","PIONE GUY",2014,2015,"Méditerranée","CDB Bouches du Rhône",19007,"BILLARD CLUB BERROIS","19007 – BILLARD CLUB BERROIS","Oui","N3","R1",2.65,2.12,"â","AUTORISÉ"]
["181316H","PORTET","PATRICK","PORTET PATRICK",2025,2025,"Méditerranée","CDB Var",19059,"BILLARD CLUB ROQUEBRUNOIS","19059 – BILLARD CLUB ROQUEBRUNOIS","Oui","R1","R1",0.81,0.65,"à","SELON RÈGLEMENT SPORTIF LIGUE"]
["022346M","POUGIN","JEAN FRANCOIS","POUGIN JEAN FRANCOIS",2025,2025,"Méditerranée","CDB Var",19059,"BILLARD CLUB ROQUEBRUNOIS","19059 – BILLARD CLUB ROQUEBRUNOIS","Oui","R1","R1",2.37,1.9,"à","SELON RÈGLEMENT SPORTIF LIGUE"]
["144719D","POULAIN","FREDERIC","POULAIN FREDERIC",2025,2025,"Méditerranée","CDB Vaucluse",19016,"BILLARD CLUB ORANGEOIS","19016 – BILLARD CLUB ORANGEOIS","Oui","R1","R1",1.82,1.45,"à","SELON RÈGLEMENT SPORTIF LIGUE"]
["103561D","RAVERDINO","JULIEN","RAVERDINO JULIEN",2009,2011,"Méditerranée","CDB Alpes Maritimes",19057,"ACADEMIE VENCOISE DE BILLARD","19057 – ACADEMIE VENCOISE DE BILLARD","Oui","N2","N3",6.85,5.48,"â","AUTORISÉ"]
["119696S","REVALOR","MICHEL","REVALOR MICHEL",2023,2025,"Méditerranée","CDB Bouches du Rhône",19050,"BILLARD CLUB SAUSSETOIS","19050 – BILLARD CLUB SAUSSETOIS","Oui","N3","R1",2.13,1.7,"â","AUTORISÉ"]
["022366G","RIBOLLA","PATRICE","RIBOLLA PATRICE",2025,2025,"Méditerranée","CDB Alpes Maritimes",19056,"BILLARD CLUB DE NICE","19056 – BILLARD CLUB DE NICE","Oui","N3","R1",3.3,2.64,"â","AUTORISÉ"]
["133646G","RICART","ANDRE","RICART ANDRE",2019,2019,"Méditerranée","CDB Bouches du Rhône",19009,"CLUB BILLARD ISTREEN","19009 – CLUB BILLARD ISTREEN","Oui","R1","R1",2.1800000000000002,1.74,"à","SELON RÈGLEMENT SPORTIF LIGUE"]
["022367H","RICHARD","GUY","RICHARD GUY",2024,2025,"Méditerranée","CDB Var",19023,"BILLARD CLUB GARDEEN","19023 – BILLARD CLUB GARDEEN","Oui","R1","R1",3,2.4,"à","SELON RÈGLEMENT SPORTIF LIGUE"]
["023064C","RIGOLLET","PIERRE","RIGOLLET PIERRE",2025,2025,"Méditerranée","CDB Alpes Haute Provence",19025,"BILLARD CLUB SISTERONNAIS","19025 – BILLARD CLUB SISTERONNAIS","Oui","N3","N3",7.14,5.71,"à","SELON RÈGLEMENT SPORTIF LIGUE"]
["134183X","ROBBE","RAYMOND","ROBBE RAYMOND",2025,2025,"Méditerranée","CDB Bouches du Rhône",19009,"CLUB BILLARD ISTREEN","19009 – CLUB BILLARD ISTREEN","Oui","R1","R1",1.6,1.28,"à","SELON RÈGLEMENT SPORTIF LIGUE"]
["022450M","ROBERT","DIDIER",{"$f":"B162&\" \"&C162","v":"ROBERT DIDIER"},2025,2025,"Méditerranée","CDB Vaucluse",19014,"BILLARD CLUB AVIGNONNAIS",{"$f":"I162&\" – \"&J162","v":"19014 – BILLARD CLUB AVIGNONNAIS"},"Oui","N3","R1",3.85,3.08,"â","AUTORISÉ"]
["163166E","ROUANET","CLAUDE","ROUANET CLAUDE",2023,2025,"Méditerranée","CDB Alpes Haute Provence",19025,"BILLARD CLUB SISTERONNAIS","19025 – BILLARD CLUB SISTERONNAIS","Oui","R1","R1",2.1,1.68,"à","SELON RÈGLEMENT SPORTIF LIGUE"]
["101518O","ROUGON","ROBERT","ROUGON ROBERT",2025,2025,"Méditerranée","CDB Bouches du Rhône",19007,"BILLARD CLUB BERROIS","19007 – BILLARD CLUB BERROIS","Oui","N3","R1",3.53,2.82,"â","AUTORISÉ"]
["121397D","RYCKELYNCK","LAURENT","RYCKELYNCK LAURENT",2025,2025,"Méditerranée","CDB Vaucluse",19006,"BILLARD CLUB CARPENTRASSIEN","19006 – BILLARD CLUB CARPENTRASSIEN","Oui","-","R1",2.12,1.69,"à","SELON RÈGLEMENT SPORTIF LIGUE"]
["120008S","SAMUEL","CHRISTIAN","SAMUEL CHRISTIAN",2022,2025,"Méditerranée","CDB Var",19023,"BILLARD CLUB GARDEEN","19023 – BILLARD CLUB GARDEEN","Oui","R1","R1",1.59,1.27,"à","SELON RÈGLEMENT SPORTIF LIGUE"]
["022391F","SANTIAGO","JEAN JOSEPH","SANTIAGO JEAN JOSEPH",2024,2025,"Méditerranée","CDB Bouches du Rhône",19050,"BILLARD CLUB SAUSSETOIS","19050 – BILLARD CLUB SAUSSETOIS","Oui","N2","N3",7.14,5.71,"â","AUTORISÉ"]
["022399N","SCHEKLER","JEAN FLORIAN","SCHEKLER JEAN FLORIAN",2018,2023,"Méditerranée","CDB Var",19061,"ACAD.BILLARD ST RAPHAEL","19061 – ACAD.BILLARD ST RAPHAEL","Oui","R1","R1",2.5499999999999998,2.04,"à","SELON RÈGLEMENT SPORTIF LIGUE"]
["136540O","SCHENK","ROBERT","SCHENK ROBERT",2020,2025,"Méditerranée","CDB Alpes Maritimes",19056,"BILLARD CLUB DE NICE","19056 – BILLARD CLUB DE NICE","Oui","R1","R1",0.88,0.7,"à","SELON RÈGLEMENT SPORTIF LIGUE"]
["022401P","SCHMIDT","CLAUDE","SCHMIDT CLAUDE",2009,2010,"Méditerranée","CDB Var",19023,"BILLARD CLUB GARDEEN","19023 – BILLARD CLUB GARDEEN","Oui","N2","N2",7.83,6.26,"à","SELON RÈGLEMENT SPORTIF LIGUE"]
["168834Q","SIEGLER","JEAN PIERRE","SIEGLER JEAN PIERRE",2025,2025,"Méditerranée","CDB Vaucluse",19006,"BILLARD CLUB CARPENTRASSIEN","19006 – BILLARD CLUB CARPENTRASSIEN","Oui","N3","R1",4.47,3.57,"â","AUTORISÉ"]
["010203L","SIMON","GERARD","SIMON GERARD",2025,2025,"Méditerranée","CDB Vaucluse",19014,"BILLARD CLUB AVIGNONNAIS","19014 – BILLARD CLUB AVIGNONNAIS","Oui","R1","R1",1.94,1.55,"à","SELON RÈGLEMENT SPORTIF LIGUE"]
["022412A","SINANIAN","JEAN PAUL","SINANIAN JEAN PAUL",2025,2025,"Méditerranée","CDB Bouches du Rhône",19017,"BILLARD CLUB PHOCEEN","19017 – BILLARD CLUB PHOCEEN","Oui","-","R1",3.36,2.69,"à","SELON RÈGLEMENT SPORTIF LIGUE"]
["103578U","SOLTANI","OMAR","SOLTANI OMAR",2025,2025,"Méditerranée","CDB Var",19106,"BILLARD CLUB VINONNAIS","19106 – BILLARD CLUB VINONNAIS","Oui","R1","R1",2.41,1.92,"à","SELON RÈGLEMENT SPORTIF LIGUE"]
["020790Q","STEINMANN","SEBASTIEN","STEINMANN SEBASTIEN",2025,2025,"Méditerranée","CDB Var",19061,"ACAD.BILLARD ST RAPHAEL","19061 – ACAD.BILLARD ST RAPHAEL","Oui","R1","R1",1.95,1.56,"à","SELON RÈGLEMENT SPORTIF LIGUE"]
["125931N","STEPHAN","OLIVIER","STEPHAN OLIVIER",2023,2025,"Méditerranée","CDB Alpes Haute Provence",19025,"BILLARD CLUB SISTERONNAIS","19025 – BILLARD CLUB SISTERONNAIS","Oui","R1","R1",3.41,2.73,"à","SELON RÈGLEMENT SPORTIF LIGUE"]
["022429R","TARDIEUX","LUC","TARDIEUX LUC",2025,2025,"Méditerranée","CDB Bouches du Rhône",19098,"BILLARD CLUB LA FARE","19098 – BILLARD CLUB LA FARE","Oui","R1","R1",2.38,1.91,"à","SELON RÈGLEMENT SPORTIF LIGUE"]
["123701T","TELOT","DOMINIQUE","TELOT DOMINIQUE",2024,2025,"Méditerranée","CDB Var",19059,"BILLARD CLUB ROQUEBRUNOIS","19059 – BILLARD CLUB ROQUEBRUNOIS","Oui","R1","R1",2.61,2.09,"à","SELON RÈGLEMENT SPORTIF LIGUE"]
["132938A","TEYSSIER","SERGE","TEYSSIER SERGE",2025,2025,"Méditerranée","CDB Bouches du Rhône",19007,"BILLARD CLUB BERROIS","19007 – BILLARD CLUB BERROIS","Oui","-","R1",2.2799999999999998,1.82,"à","SELON RÈGLEMENT SPORTIF LIGUE"]
["111163N","TOLEDANO","ARMAND","TOLEDANO ARMAND",2011,2024,"Méditerranée","CDB Bouches du Rhône",19017,"BILLARD CLUB PHOCEEN","19017 – BILLARD CLUB PHOCEEN","Oui","N3","N3",4.62,3.69,"à","SELON RÈGLEMENT SPORTIF LIGUE"]
["022438A","TONOLI","PASCAL","TONOLI PASCAL",2025,2025,"Méditerranée","CDB Var",19059,"BILLARD CLUB ROQUEBRUNOIS","19059 – BILLARD CLUB ROQUEBRUNOIS","Oui","N3","R1",3.32,2.65,"â","AUTORISÉ"]
["135554Q","TORES","JEAN LUC","TORES JEAN LUC",2025,2025,"Méditerranée","CDB Bouches du Rhône",19009,"CLUB BILLARD ISTREEN","19009 – CLUB BILLARD ISTREEN","Oui","R1","R1",2.31,1.85,"à","SELON RÈGLEMENT SPORTIF LIGUE"]
["018691X","TREMEAU","PHILIPPE","TREMEAU PHILIPPE",2012,2016,"Méditerranée","CDB Var",19059,"BILLARD CLUB ROQUEBRUNOIS","19059 – BILLARD CLUB ROQUEBRUNOIS","Oui","N2","N2",9.2200000000000006,7.37,"à","SELON RÈGLEMENT SPORTIF LIGUE"]
["022446I","TRIVINO","RENE","TRIVINO RENE",2014,2022,"Méditerranée","CDB Var",19023,"BILLARD CLUB GARDEEN","19023 – BILLARD CLUB GARDEEN","Oui","N3","R1",3.14,2.5099999999999998,"â","AUTORISÉ"]
["022448K","TRUCCO","DOMINIQUE","TRUCCO DOMINIQUE",2009,2010,"Méditerranée","CDB Var",19023,"BILLARD CLUB GARDEEN","19023 – BILLARD CLUB GARDEEN","Oui","N3","N3",5.6,4.4800000000000004,"à","SELON RÈGLEMENT SPORTIF LIGUE"]
["163827Y","VASTEL","BERNARD","VASTEL BERNARD",2022,2024,"Méditerranée","CDB Alpes Maritimes",19056,"BILLARD CLUB DE NICE","19056 – BILLARD CLUB DE NICE","Oui","R1","R1",2.27,1.82,"à","SELON RÈGLEMENT SPORTIF LIGUE"]
["125928K","VERRIER","JEAN PIERRE","VERRIER JEAN PIERRE",2011,2013,"Méditerranée","CDB Bouches du Rhône",19012,"SALON BILLARD CLUB","19012 – SALON BILLARD CLUB","Oui","N3","N3",5.42,4.33,"à","SELON RÈGLEMENT SPORTIF LIGUE"]
["014327B","VIGNE","PHILIPPE","VIGNE PHILIPPE",2016,2025,"Méditerranée","CDB Vaucluse",19014,"BILLARD CLUB AVIGNONNAIS","19014 – BILLARD CLUB AVIGNONNAIS","Oui","N2","N2",8.57,6.85,"à","SELON RÈGLEMENT SPORTIF LIGUE"]
["101485H","VILLASEVIL","ANTONIO","VILLASEVIL ANTONIO",2019,2025,"Méditerranée","CDB Bouches du Rhône",19007,"BILLARD CLUB BERROIS","19007 – BILLARD CLUB BERROIS","Oui","R1","R1",2.23,1.78,"à","SELON RÈGLEMENT SPORTIF LIGUE"]
["147607S","VIOU","GERARD","VIOU GERARD",2025,2025,"Méditerranée","CDB Bouches du Rhône",19098,"BILLARD CLUB LA FARE","19098 – BILLARD CLUB LA FARE","Oui","R1","R1",2.64,2.11,"à","SELON RÈGLEMENT SPORTIF LIGUE"]
["138731V","VISCONTI","JEAN","VISCONTI JEAN",2025,2025,"Méditerranée","CDB Bouches du Rhône",19090,"BILLARD AMATEUR ROGNAC","19090 – BILLARD AMATEUR ROGNAC","Oui","-","R1",1.23,0.98,"à","SELON RÈGLEMENT SPORTIF LIGUE"]
["119674W","VITALIEN","PIERRE","VITALIEN PIERRE",2025,2025,"Méditerranée","CDB Vaucluse",19016,"BILLARD CLUB ORANGEOIS","19016 – BILLARD CLUB ORANGEOIS","Oui","R1","R1",2.27,1.82,"à","SELON RÈGLEMENT SPORTIF LIGUE"]
["022476M","VIVALDI","ANDRE","VIVALDI ANDRE",2025,2025,"Méditerranée","CDB Var",19106,"BILLARD CLUB VINONNAIS","19106 – BILLARD CLUB VINONNAIS","Oui","N2","N3",6.9,5.52,"â","AUTORISÉ"]
["154571M","VUILLAUME","JEAN CLAUDE",{"$f":"B194&\" \"&C194","v":"VUILLAUME JEAN CLAUDE"},2025,2025,"Méditerranée","CDB Alpes Maritimes",19056,"BILLARD CLUB DE NICE",{"$f":"I194&\" – \"&J194","v":"19056 – BILLARD CLUB DE NICE"},"Oui","R1","R1",1.22,0.98,"à","SELON RÈGLEMENT SPORTIF LIGUE"]
["152534Y","WILLAME","PHILIPPE","WILLAME PHILIPPE",2025,2025,"Méditerranée","CDB Bouches du Rhône",19001,"S. S. A. B. D AIX EN PROVENCE","19001 – S. S. A. B. D AIX EN PROVENCE","Oui","-","R1",0.88,0.71,"à","SELON RÈGLEMENT SPORTIF LIGUE"]
["022483T","WILLETTE","MARC","WILLETTE MARC",2013,2021,"Méditerranée","CDB Bouches du Rhône",19009,"CLUB BILLARD ISTREEN","19009 – CLUB BILLARD ISTREEN","Oui","R1","R1",3.1,2.48,"à","SELON RÈGLEMENT SPORTIF LIGUE"]
["152049W","XUEREF","JEAN MARIE","XUEREF JEAN MARIE",2023,2025,"Méditerranée","CDB Var",19019,"BILLARD CLUB DE LA BAIE","19019 – BILLARD CLUB DE LA BAIE","Oui","R1","R1",1.98,1.58,"à","SELON RÈGLEMENT SPORTIF LIGUE"]
["134311V","ZANDRINO","ALAIN","ZANDRINO ALAIN",2025,2025,"Méditerranée","CDB Bouches du Rhône",19007,"BILLARD CLUB BERROIS","19007 – BILLARD CLUB BERROIS","Oui","R1","R1",1.64,1.31,"à","SELON RÈGLEMENT SPORTIF LIGUE"]
["144788U","ZOPPI","AIME","ZOPPI AIME",2025,2025,"Méditerranée","CDB Var",19106,"BILLARD CLUB VINONNAIS","19106 – BILLARD CLUB VINONNAIS","Oui","N3","R1",3.43,2.75,"â","AUTORISÉ"]
["125457H","ZOPPI","CEDRIC","ZOPPI CEDRIC",2025,2025,"Méditerranée","CDB Var",19106,"BILLARD CLUB VINONNAIS","19106 – BILLARD CLUB VINONNAIS","Oui","Masters","Masters",31.97,25.58,"à","SELON RÈGLEMENT SPORTIF LIGUE"]

{"sheet":"Classification 1BANDE","index":2,"n_rows":385,"n_cols":18,"rows_kept":385,"cut":false,"hidden":false,"merged":[]}
["Licence","Nom","Prénom","CONCATENER","Saison","Saison Licence","Ligue","CDB","Num club","Nom club","CONCATENER2","Classifié","Catégorie au 01/09/24","Catégorie au 01/09/25","Moy 2.80  au 01/09/25","Moy 3.10 au 01/09/25","Tendance classification","Inscription catégorie supérieure"]
["106287Z","ABAD","YANNICK",{"$f":"B2&\" \"&C2","v":"ABAD YANNICK"},2025,2025,"Méditerranée","CDB Bouches du Rhône",19002,"SPORT AMAT.DE BILLARD MARSEILLAIS",{"$f":"I2&\" – \"&J2","v":"19002 – SPORT AMAT.DE BILLARD MARSEILLAIS"},"Oui","R1","N3",2.14,1.9,"á","SELON RÈGLEMENT SPORTIF LIGUE"]
["106902Q","ABEAUZIT","JACQUES","ABEAUZIT JACQUES",2025,2025,"Méditerranée","CDB Vaucluse",19014,"BILLARD CLUB AVIGNONNAIS","19014 – BILLARD CLUB AVIGNONNAIS","Oui","-","R2",0.78,0.69,"à","SELON RÈGLEMENT SPORTIF LIGUE"]
["021810W","AKNIN","GABRIEL","AKNIN GABRIEL",2024,2025,"Méditerranée","CDB Vaucluse",19027,"ACADEMIE DE BILLARD DE BOLLENE","19027 – ACADEMIE DE BILLARD DE BOLLENE","Oui","N3","R1",1.38,1.23,"â","AUTORISÉ"]
["151459E","ALIBERT","BRUNO","ALIBERT BRUNO",2025,2025,"Méditerranée","CDB Alpes Maritimes",19056,"BILLARD CLUB DE NICE","19056 – BILLARD CLUB DE NICE","Oui","R1","R1",1.34,1.19,"à","SELON RÈGLEMENT SPORTIF LIGUE"]
["157036R","ALLIGIER","GERARD","ALLIGIER GERARD",2025,2025,"Méditerranée","CDB Var",19019,"BILLARD CLUB DE LA BAIE","19019 – BILLARD CLUB DE LA BAIE","Oui","R1","R2",1.04,0.92,"â","AUTORISÉ"]
["159130S","ALVAREZ","PHILIPPE","ALVAREZ PHILIPPE",2023,2025,"Méditerranée","CDB Alpes Maritimes",19056,"BILLARD CLUB DE NICE","19056 – BILLARD CLUB DE NICE","Oui","R1","R2",1.08,0.96,"â","AUTORISÉ"]
["152035F","ALVISET","GUY","ALVISET GUY",2023,2025,"Méditerranée","CDB Bouches du Rhône",19050,"BILLARD CLUB SAUSSETOIS","19050 – BILLARD CLUB SAUSSETOIS","Oui","R2","R2",0.68,0.61,"à","SELON RÈGLEMENT SPORTIF LIGUE"]
["155531F","AMOUROUX","LUC","AMOUROUX LUC",2025,2025,"Méditerranée","CDB Var",19023,"BILLARD CLUB GARDEEN","19023 – BILLARD CLUB GARDEEN","Oui","R2","R2",0.83,0.74,"à","SELON RÈGLEMENT SPORTIF LIGUE"]
["021818E","ANDRY","JEAN FRANCOIS","ANDRY JEAN FRANCOIS",2025,2025,"Méditerranée","CDB Bouches du Rhône",19090,"BILLARD AMATEUR ROGNAC","19090 – BILLARD AMATEUR ROGNAC","Oui","R1","R2",1.05,0.93,"â","AUTORISÉ"]
["127654U","ANGIOLINI","PIERRE","ANGIOLINI PIERRE",2012,2011,"Méditerranée","CDB Alpes Maritimes",19057,"ACADEMIE VENCOISE DE BILLARD","19057 – ACADEMIE VENCOISE DE BILLARD","Oui","R1","R1",1.24,1.1000000000000001,"à","SELON RÈGLEMENT SPORTIF LIGUE"]
["021820G","ANNESTAY","JACQUES","ANNESTAY JACQUES",2024,2025,"Méditerranée","CDB Alpes Haute Provence",19025,"BILLARD CLUB SISTERONNAIS","19025 – BILLARD CLUB SISTERONNAIS","Oui","R1","R1",1.24,1.1000000000000001,"à","SELON RÈGLEMENT SPORTIF LIGUE"]
["021821H","ANTONIN","ALAIN","ANTONIN ALAIN",2025,2025,"Méditerranée","CDB Vaucluse",19021,"BILLARD CLUB CAVAILLONNAIS","19021 – BILLARD CLUB CAVAILLONNAIS","Oui","N3","N3",2.16,1.93,"à","SELON RÈGLEMENT SPORTIF LIGUE"]
["180272Y","ARNOUX","LAURENT","ARNOUX LAURENT",2025,2025,"Méditerranée","CDB Alpes Maritimes",19058,"ACADEMIE DE BILLARD DE BARBOSSI MANDELIEU","19058 – ACADEMIE DE BILLARD DE BARBOSSI MANDELIEU","Oui","R2","R2",0.62,0.55000000000000004,"à","SELON RÈGLEMENT SPORTIF LIGUE"]
["148204R","AUBERT ROUECHE","LYDIA","AUBERT ROUECHE LYDIA",2025,2025,"Méditerranée","CDB Var",19106,"BILLARD CLUB VINONNAIS","19106 – BILLARD CLUB VINONNAIS","Oui","R1","R1",1.43,1.27,"à","SELON RÈGLEMENT SPORTIF LIGUE"]
["106513R","AUDIBERT","JEAN PIERRE","AUDIBERT JEAN PIERRE",2018,2025,"Méditerranée","CDB Bouches du Rhône",19012,"SALON BILLARD CLUB","19012 – SALON BILLARD CLUB","Oui","R1","R2",0.91,0.81,"â","AUTORISÉ"]
["021839Z","AZOULAY","ALAIN","AZOULAY ALAIN",2025,2025,"Méditerranée","CDB Bouches du Rhône",19017,"BILLARD CLUB PHOCEEN","19017 – BILLARD CLUB PHOCEEN","Oui","R1","R1",1.73,1.54,"à","SELON RÈGLEMENT SPORTIF LIGUE"]
["115304U","BAILLON","JEAN","BAILLON JEAN",2025,2025,"Méditerranée","CDB Alpes Maritimes",19058,"ACADEMIE DE BILLARD DE BARBOSSI MANDELIEU","19058 – ACADEMIE DE BILLARD DE BARBOSSI MANDELIEU","Oui","R2","R2",0.55000000000000004,0.49,"à","SELON RÈGLEMENT SPORTIF LIGUE"]
["153554G","BALESTRI","MAURICE","BALESTRI MAURICE",2025,2025,"Méditerranée","CDB Alpes Maritimes",19058,"ACADEMIE DE BILLARD DE BARBOSSI MANDELIEU","19058 – ACADEMIE DE BILLARD DE BARBOSSI MANDELIEU","Oui","R2","R2",0.57999999999999996,0.52,"à","SELON RÈGLEMENT SPORTIF LIGUE"]
["023184S","BALLIGAND","SERGE","BALLIGAND SERGE",2025,2025,"Méditerranée","CDB Var",19059,"BILLARD CLUB ROQUEBRUNOIS","19059 – BILLARD CLUB ROQUEBRUNOIS","Oui","R1","R1",1.73,1.54,"à","SELON RÈGLEMENT SPORTIF LIGUE"]
["149693K","BANO","SERGE","BANO SERGE",2020,2025,"Méditerranée","CDB Bouches du Rhône",19001,"S. S. A. B. D AIX EN PROVENCE","19001 – S. S. A. B. D AIX EN PROVENCE","Oui","R2","R2",0.82,0.73,"à","SELON RÈGLEMENT SPORTIF LIGUE"]
["109917P","BARBANNEAU","FREDERIC","BARBANNEAU FREDERIC",2025,2025,"Méditerranée","CDB Var",19106,"BILLARD CLUB VINONNAIS","19106 – BILLARD CLUB VINONNAIS","Oui","N3","N3",2.15,1.91,"à","SELON RÈGLEMENT SPORTIF LIGUE"]
["018535X","BARDET","JEAN PIERRE","BARDET JEAN PIERRE",2024,2025,"Méditerranée","CDB Var",19023,"BILLARD CLUB GARDEEN","19023 – BILLARD CLUB GARDEEN","Oui","R1","R2",1.03,0.91,"â","AUTORISÉ"]
["122300W","BARRALLON","JEAN PAUL","BARRALLON JEAN PAUL",2025,2025,"Méditerranée","CDB Var",19023,"BILLARD CLUB GARDEEN","19023 – BILLARD CLUB GARDEEN","Oui","R1","R2",1.1000000000000001,0.97,"â","AUTORISÉ"]
["129911P","BASSIGNANA","ROBERT","BASSIGNANA ROBERT",2016,2025,"Méditerranée","CDB Var",19023,"BILLARD CLUB GARDEEN","19023 – BILLARD CLUB GARDEEN","Oui","R1","R1",1.1599999999999999,1.03,"à","SELON RÈGLEMENT SPORTIF LIGUE"]
["103568K","BASSOUL","JEAN MARIE","BASSOUL JEAN MARIE",2025,2025,"Méditerranée","CDB Vaucluse",19006,"BILLARD CLUB CARPENTRASSIEN","19006 – BILLARD CLUB CARPENTRASSIEN","Oui","R1","R2",1.07,0.95,"â","AUTORISÉ"]
["021860U","BAYARD","JEAN CLAUDE","BAYARD JEAN CLAUDE",2017,2025,"Méditerranée","CDB Vaucluse",19021,"BILLARD CLUB CAVAILLONNAIS","19021 – BILLARD CLUB CAVAILLONNAIS","Oui","R2","R2",0.5,0.45,"à","SELON RÈGLEMENT SPORTIF LIGUE"]
["021863X","BEDOC","JACQUES","BEDOC JACQUES",2017,2025,"Méditerranée","CDB Bouches du Rhône",19007,"BILLARD CLUB BERROIS","19007 – BILLARD CLUB BERROIS","Oui","R1","R2",0.86,0.76,"â","AUTORISÉ"]
["132789H","BELTRITTI","JEAN YVES","BELTRITTI JEAN YVES",2025,2025,"Méditerranée","CDB Var",19106,"BILLARD CLUB VINONNAIS","19106 – BILLARD CLUB VINONNAIS","Oui","R2","R2",0.66,0.59,"à","SELON RÈGLEMENT SPORTIF LIGUE"]
["159238K","BENIER","PATRICK","BENIER PATRICK",2025,2025,"Méditerranée","CDB Var",19023,"BILLARD CLUB GARDEEN","19023 – BILLARD CLUB GARDEEN","Oui","R2","R2",0.88,0.78,"à","SELON RÈGLEMENT SPORTIF LIGUE"]
["159790K","BENOIT","MICHEL","BENOIT MICHEL",2025,2025,"Méditerranée","CDB Vaucluse",19027,"ACADEMIE DE BILLARD DE BOLLENE","19027 – ACADEMIE DE BILLARD DE BOLLENE","Oui","-","R2",0.7,0.62,"à","SELON RÈGLEMENT SPORTIF LIGUE"]
["125945B","BERNAT","JEAN PIERRE","BERNAT JEAN PIERRE",2025,2025,"Méditerranée","CDB Var",19023,"BILLARD CLUB GARDEEN","19023 – BILLARD CLUB GARDEEN","Oui","R1","R2",1.06,0.94,"â","AUTORISÉ"]
["021884S","BERTRAND CADI","YVES","BERTRAND CADI YVES",2009,2009,"Méditerranée","CDB Vaucluse",19016,"BILLARD CLUB ORANGEOIS","19016 – BILLARD CLUB ORANGEOIS","Oui","R2","R2",0.52,0.46,"à","SELON RÈGLEMENT SPORTIF LIGUE"]
["180334Q","BETTONI","GILLES","BETTONI GILLES",2025,2025,"Méditerranée","CDB Alpes Maritimes",19058,"ACADEMIE DE BILLARD DE BARBOSSI MANDELIEU","19058 – ACADEMIE DE BILLARD DE BARBOSSI MANDELIEU","Oui","R2","R2",0.63,0.56000000000000005,"à","SELON RÈGLEMENT SPORTIF LIGUE"]
["159202W","BIARD","ANDRE","BIARD ANDRE",2023,2025,"Méditerranée","CDB Bouches du Rhône",19009,"CLUB BILLARD ISTREEN","19009 – CLUB BILLARD ISTREEN","Oui","R2","R2",0.47,0.42,"à","SELON RÈGLEMENT SPORTIF LIGUE"]
["141828Y","BILDIK","MEHMET","BILDIK MEHMET",2024,2024,"Méditerranée","CDB Vaucluse",19006,"BILLARD CLUB CARPENTRASSIEN","19006 – BILLARD CLUB CARPENTRASSIEN","Oui","R1","R1",1.64,1.46,"à","SELON RÈGLEMENT SPORTIF LIGUE"]
["177185S","BIZEUL","GUY","BIZEUL GUY",2023,2023,"Méditerranée","CDB Alpes Haute Provence",19025,"BILLARD CLUB SISTERONNAIS","19025 – BILLARD CLUB SISTERONNAIS","Oui","R1","R1",1.56,1.39,"à","SELON RÈGLEMENT SPORTIF LIGUE"]
["016248Y","BOFFA","BERNARD","BOFFA BERNARD",2020,2021,"Méditerranée","CDB Var",19023,"BILLARD CLUB GARDEEN","19023 – BILLARD CLUB GARDEEN","Oui","R2","R2",0.9,0.8,"à","SELON RÈGLEMENT SPORTIF LIGUE"]
["132947J","BONALD","YVES","BONALD YVES",2011,2019,"Méditerranée","CDB Bouches du Rhône",19001,"S. S. A. B. D AIX EN PROVENCE","19001 – S. S. A. B. D AIX EN PROVENCE","Oui","N3","N3",2.09,1.86,"à","SELON RÈGLEMENT SPORTIF LIGUE"]
["021894C","BONELLO","LUCIEN","BONELLO LUCIEN",2023,2025,"Méditerranée","CDB Bouches du Rhône",19090,"BILLARD AMATEUR ROGNAC","19090 – BILLARD AMATEUR ROGNAC","Oui","R2","R2",0.56000000000000005,0.5,"à","SELON RÈGLEMENT SPORTIF LIGUE"]
["150422C","BONNEMAISON","DENIS","BONNEMAISON DENIS",2024,2025,"Méditerranée","CDB Bouches du Rhône",19009,"CLUB BILLARD ISTREEN","19009 – CLUB BILLARD ISTREEN","Oui","R2","R2",0.62,0.55000000000000004,"à","SELON RÈGLEMENT SPORTIF LIGUE"]
["149287T","BORDES","BERNARD","BORDES BERNARD",2025,2025,"Méditerranée","CDB Var",19061,"ACAD.BILLARD ST RAPHAEL","19061 – ACAD.BILLARD ST RAPHAEL","Oui","N3","R1",1.61,1.43,"â","AUTORISÉ"]
["160000N","BOSSOT","JEAN","BOSSOT JEAN",2025,2025,"Méditerranée","CDB Vaucluse",19027,"ACADEMIE DE BILLARD DE BOLLENE","19027 – ACADEMIE DE BILLARD DE BOLLENE","Oui","R1","R2",0.95,0.85,"â","AUTORISÉ"]
["012645J","BOULANDET","ALAIN","BOULANDET ALAIN",2017,2025,"Méditerranée","CDB Alpes Maritimes",19055,"ACADEMIE DE BILLARD DE MENTON","19055 – ACADEMIE DE BILLARD DE MENTON","Oui","R1","R2",0.96,0.85,"â","AUTORISÉ"]
["155529D","BOULANT","CLAUDE","BOULANT CLAUDE",2024,2025,"Méditerranée","CDB Var",19019,"BILLARD CLUB DE LA BAIE","19019 – BILLARD CLUB DE LA BAIE","Oui","R1","R1",1.23,1.0900000000000001,"à","SELON RÈGLEMENT SPORTIF LIGUE"]
["122662U","BOUTILLE","NICOLAS","BOUTILLE NICOLAS",2009,2025,"Méditerranée","CDB Vaucluse",19027,"ACADEMIE DE BILLARD DE BOLLENE","19027 – ACADEMIE DE BILLARD DE BOLLENE","Oui","R1","R2",1.01,0.9,"â","AUTORISÉ"]
["149613Y","BOVET","MICHEL","BOVET MICHEL",2022,2023,"Méditerranée","CDB Var",19059,"BILLARD CLUB ROQUEBRUNOIS","19059 – BILLARD CLUB ROQUEBRUNOIS","Oui","R2","R2",0.67,0.6,"à","SELON RÈGLEMENT SPORTIF LIGUE"]
["016411F","BRAYER","DENIS","BRAYER DENIS",2023,2025,"Méditerranée","CDB Vaucluse",19008,"BRITISH BILLARD CLUB AVIGNON","19008 – BRITISH BILLARD CLUB AVIGNON","Oui","N3","R1",1.51,1.34,"â","AUTORISÉ"]
["021918A","BREDAT","RENE","BREDAT RENE",2024,2025,"Méditerranée","CDB Alpes Haute Provence",19025,"BILLARD CLUB SISTERONNAIS","19025 – BILLARD CLUB SISTERONNAIS","Oui","R1","R1",1.3,1.1499999999999999,"à","SELON RÈGLEMENT SPORTIF LIGUE"]
["152345S","BREPSON","MARTIAL","BREPSON MARTIAL",2025,2025,"Méditerranée","CDB Alpes Maritimes",19058,"ACADEMIE DE BILLARD DE BARBOSSI MANDELIEU","19058 – ACADEMIE DE BILLARD DE BARBOSSI MANDELIEU","Oui","R2","R2",0.97,0.86,"à","SELON RÈGLEMENT SPORTIF LIGUE"]
["021919B","BRESSE","JEAN LOUIS","BRESSE JEAN LOUIS",2025,2025,"Méditerranée","CDB Vaucluse",19016,"BILLARD CLUB ORANGEOIS","19016 – BILLARD CLUB ORANGEOIS","Oui","-","R2",0.76,0.67,"à","SELON RÈGLEMENT SPORTIF LIGUE"]
["113104E","BRIAND","ALAIN","BRIAND ALAIN",2025,2025,"Méditerranée","CDB Bouches du Rhône",19002,"SPORT AMAT.DE BILLARD MARSEILLAIS","19002 – SPORT AMAT.DE BILLARD MARSEILLAIS","Oui","R1","R1",1.18,1.05,"à","SELON RÈGLEMENT SPORTIF LIGUE"]
["106514S","BRIQUET","ERIC","BRIQUET ERIC",2014,2017,"Méditerranée","CDB Bouches du Rhône",19012,"SALON BILLARD CLUB","19012 – SALON BILLARD CLUB","Oui","R2","R2",0.6,0.53,"à","SELON RÈGLEMENT SPORTIF LIGUE"]
["114733V","BRUANT","SYLVAIN","BRUANT SYLVAIN",2013,2025,"Méditerranée","CDB Vaucluse",19016,"BILLARD CLUB ORANGEOIS","19016 – BILLARD CLUB ORANGEOIS","Oui","R1","R1",1.1000000000000001,0.98,"à","SELON RÈGLEMENT SPORTIF LIGUE"]
["021929L","BRUN","ROGER","BRUN ROGER",2024,2025,"Méditerranée","CDB Bouches du Rhône",19017,"BILLARD CLUB PHOCEEN","19017 – BILLARD CLUB PHOCEEN","Oui","R2","R2",0.84,0.75,"à","SELON RÈGLEMENT SPORTIF LIGUE"]
["155679R","BURELLI","GEORGES","BURELLI GEORGES",2019,2020,"Méditerranée","CDB Bouches du Rhône",19050,"BILLARD CLUB SAUSSETOIS","19050 – BILLARD CLUB SAUSSETOIS","Oui","R2","R2",0.56999999999999995,0.5,"à","SELON RÈGLEMENT SPORTIF LIGUE"]
["123684C","BURGANT","JEAN MARIE","BURGANT JEAN MARIE",2025,2025,"Méditerranée","CDB Var",19019,"BILLARD CLUB DE LA BAIE","19019 – BILLARD CLUB DE LA BAIE","Oui","R1","R1",1.61,1.43,"à","SELON RÈGLEMENT SPORTIF LIGUE"]
["112311R","CACHO","DIDIER","CACHO DIDIER",2019,2025,"Méditerranée","CDB Bouches du Rhône",19098,"BILLARD CLUB LA FARE","19098 – BILLARD CLUB LA FARE","Oui","R1","R1",1.6,1.42,"à","SELON RÈGLEMENT SPORTIF LIGUE"]
["021938U","CALDERON","LUC","CALDERON LUC",2025,2025,"Méditerranée","CDB Bouches du Rhône",19009,"CLUB BILLARD ISTREEN","19009 – CLUB BILLARD ISTREEN","Oui","R1","R1",1.1599999999999999,1.04,"à","SELON RÈGLEMENT SPORTIF LIGUE"]
["021944A","CAO","HUU TUOI","CAO HUU TUOI",2024,2025,"Méditerranée","CDB Bouches du Rhône",19098,"BILLARD CLUB LA FARE","19098 – BILLARD CLUB LA FARE","Oui","R1","R1",1.32,1.18,"à","SELON RÈGLEMENT SPORTIF LIGUE"]
["141066Q","CARRILLON","MICHEL","CARRILLON MICHEL",2013,2025,"Méditerranée","CDB Bouches du Rhône",19001,"S. S. A. B. D AIX EN PROVENCE","19001 – S. S. A. B. D AIX EN PROVENCE","Oui","R2","R2",0.84,0.75,"à","SELON RÈGLEMENT SPORTIF LIGUE"]
["130701Z","CARRION","JEAN PHILIPPE","CARRION JEAN PHILIPPE",2025,2025,"Méditerranée","CDB Alpes Maritimes",19058,"ACADEMIE DE BILLARD DE BARBOSSI MANDELIEU","19058 – ACADEMIE DE BILLARD DE BARBOSSI MANDELIEU","Oui","R1","N3",1.98,1.77,"á","SELON RÈGLEMENT SPORTIF LIGUE"]
["021953J","CASTA","JEAN","CASTA JEAN",2014,2015,"Méditerranée","CDB Alpes Haute Provence",19025,"BILLARD CLUB SISTERONNAIS","19025 – BILLARD CLUB SISTERONNAIS","Oui","N3","N3",1.88,1.68,"à","SELON RÈGLEMENT SPORTIF LIGUE"]
["112516O","CESARINI","JEAN PAUL","CESARINI JEAN PAUL",2023,2023,"Méditerranée","CDB Var",19106,"BILLARD CLUB VINONNAIS","19106 – BILLARD CLUB VINONNAIS","Oui","R1","R1",1.6,1.42,"à","SELON RÈGLEMENT SPORTIF LIGUE"]
["118684U","CESARO","JEAN CLAUDE","CESARO JEAN CLAUDE",2017,2025,"Méditerranée","CDB Bouches du Rhône",19007,"BILLARD CLUB BERROIS","19007 – BILLARD CLUB BERROIS","Oui","R2","R2",0.88,0.78,"à","SELON RÈGLEMENT SPORTIF LIGUE"]
["104469B","CHAPUIS","ERIC",{"$f":"B66&\" \"&C66","v":"CHAPUIS ERIC"},2024,2025,"Méditerranée","CDB Alpes Maritimes",19056,"BILLARD CLUB DE NICE",{"$f":"I66&\" – \"&J66","v":"19056 – BILLARD CLUB DE NICE"},"Oui","N3","N3",2.54,2.2599999999999998,"à","SELON RÈGLEMENT SPORTIF LIGUE"]
["122456W","CHARBAUT","CLAUDE","CHARBAUT CLAUDE",2024,2025,"Méditerranée","CDB Var",19059,"BILLARD CLUB ROQUEBRUNOIS","19059 – BILLARD CLUB ROQUEBRUNOIS","Oui","R2","R2",0.9,0.8,"à","SELON RÈGLEMENT SPORTIF LIGUE"]
["021967X","CHARBIT","JEAN MARC","CHARBIT JEAN MARC",2025,2025,"Méditerranée","CDB Alpes Maritimes",19056,"BILLARD CLUB DE NICE","19056 – BILLARD CLUB DE NICE","Oui","N3","N3",2.27,2.02,"à","SELON RÈGLEMENT SPORTIF LIGUE"]
["021969Z","CHARLOT","ALLAN","CHARLOT ALLAN",2009,2010,"Méditerranée","CDB Vaucluse",19027,"ACADEMIE DE BILLARD DE BOLLENE","19027 – ACADEMIE DE BILLARD DE BOLLENE","Oui","N1","N2",2.66,2.37,"â","AUTORISÉ"]
["012782Q","CHASTAN","GEORGES","CHASTAN GEORGES",2025,2025,"Méditerranée","CDB Vaucluse",19021,"BILLARD CLUB CAVAILLONNAIS","19021 – BILLARD CLUB CAVAILLONNAIS","Oui","R1","R1",1.55,1.38,"à","SELON RÈGLEMENT SPORTIF LIGUE"]
["021972C","CHAUVIN","JEAN PAUL","CHAUVIN JEAN PAUL",2013,2015,"Méditerranée","CDB Bouches du Rhône",19050,"BILLARD CLUB SAUSSETOIS","19050 – BILLARD CLUB SAUSSETOIS","Oui","R1","R1",1.1599999999999999,1.03,"à","SELON RÈGLEMENT SPORTIF LIGUE"]
["137581P","CHEMLA","ELIE","CHEMLA ELIE",2025,2025,"Méditerranée","CDB Vaucluse",19014,"BILLARD CLUB AVIGNONNAIS","19014 – BILLARD CLUB AVIGNONNAIS","Oui","R1","R1",1.26,1.1200000000000001,"à","SELON RÈGLEMENT SPORTIF LIGUE"]
["187031V","CHEURF","SELIMANE","CHEURF SELIMANE",2025,2025,"Méditerranée","CDB Bouches du Rhône",19090,"BILLARD AMATEUR ROGNAC","19090 – BILLARD AMATEUR ROGNAC","Oui","-","R2",0.64,0.56999999999999995,"à","SELON RÈGLEMENT SPORTIF LIGUE"]
["160332Z","CHICARD","ALAIN","CHICARD ALAIN",2023,2025,"Méditerranée","CDB Vaucluse",19006,"BILLARD CLUB CARPENTRASSIEN","19006 – BILLARD CLUB CARPENTRASSIEN","Oui","R2","R2",0.53,0.47,"à","SELON RÈGLEMENT SPORTIF LIGUE"]
["108854S","CHUZEVILLE","GILLES","CHUZEVILLE GILLES",2025,2025,"Méditerranée","CDB Alpes Haute Provence",19025,"BILLARD CLUB SISTERONNAIS","19025 – BILLARD CLUB SISTERONNAIS","Oui","R1","N3",1.94,1.72,"á","SELON RÈGLEMENT SPORTIF LIGUE"]
["148126G","CLAUDON","PHILIPPE","CLAUDON PHILIPPE",2025,2025,"Méditerranée","CDB Alpes Maritimes",19056,"BILLARD CLUB DE NICE","19056 – BILLARD CLUB DE NICE","Oui","R2","R2",0.46,0.41,"à","SELON RÈGLEMENT SPORTIF LIGUE"]
["129497R","CLEMENT","GERARD","CLEMENT GERARD",2024,2025,"Méditerranée","CDB Bouches du Rhône",19050,"BILLARD CLUB SAUSSETOIS","19050 – BILLARD CLUB SAUSSETOIS","Oui","R1","R2",0.85,0.76,"â","AUTORISÉ"]
["149116H","COATMEUR","ALAN","COATMEUR ALAN",2014,2015,"Méditerranée","CDB Vaucluse",19014,"BILLARD CLUB AVIGNONNAIS","19014 – BILLARD CLUB AVIGNONNAIS","Oui","R2","R2",0.64,0.56999999999999995,"à","SELON RÈGLEMENT SPORTIF LIGUE"]
["012827J","COHEN","RICHARD","COHEN RICHARD",2025,2025,"Méditerranée","CDB Alpes Maritimes",19058,"ACADEMIE DE BILLARD DE BARBOSSI MANDELIEU","19058 – ACADEMIE DE BILLARD DE BARBOSSI MANDELIEU","Oui","R2","R2",0.72,0.64,"à","SELON RÈGLEMENT SPORTIF LIGUE"]
["148796K","COHEN","RICHARD","COHEN RICHARD",2025,2025,"Méditerranée","CDB Alpes Maritimes",19056,"BILLARD CLUB DE NICE","19056 – BILLARD CLUB DE NICE","Oui","R2","R2",0.86,0.77,"à","SELON RÈGLEMENT SPORTIF LIGUE"]
["113219P","COLLEMINE","BERNARD","COLLEMINE BERNARD",2022,2022,"Méditerranée","CDB Bouches du Rhône",19050,"BILLARD CLUB SAUSSETOIS","19050 – BILLARD CLUB SAUSSETOIS","Oui","R1","R2",1,0.89,"â","AUTORISÉ"]
["127970Y","CONSOLIN","DANIEL","CONSOLIN DANIEL",2012,2013,"Méditerranée","CDB Bouches du Rhône",19007,"BILLARD CLUB BERROIS","19007 – BILLARD CLUB BERROIS","Oui","R1","R1",1.34,1.19,"à","SELON RÈGLEMENT SPORTIF LIGUE"]
["166177C","CONTRAIN","JEROME","CONTRAIN JEROME",2023,2025,"Méditerranée","CDB Bouches du Rhône",19012,"SALON BILLARD CLUB","19012 – SALON BILLARD CLUB","Oui","R2","R2",0.74,0.66,"à","SELON RÈGLEMENT SPORTIF LIGUE"]
["021985P","COPPIN","JEAN MICHEL","COPPIN JEAN MICHEL",2023,2025,"Méditerranée","CDB Vaucluse",19027,"ACADEMIE DE BILLARD DE BOLLENE","19027 – ACADEMIE DE BILLARD DE BOLLENE","Oui","R1","R2",0.73,0.65,"â","AUTORISÉ"]
["106512Q","CORDONNIER","ROGER","CORDONNIER ROGER",2015,2020,"Méditerranée","CDB Vaucluse",19027,"ACADEMIE DE BILLARD DE BOLLENE","19027 – ACADEMIE DE BILLARD DE BOLLENE","Oui","R1","R2",1.02,0.91,"â","AUTORISÉ"]
["187055W","CORTES","JEAN LOUIS","CORTES JEAN LOUIS",2025,2025,"Méditerranée","CDB Bouches du Rhône",19009,"CLUB BILLARD ISTREEN","19009 – CLUB BILLARD ISTREEN","Oui","-","R1",1.1200000000000001,1,"à","SELON RÈGLEMENT SPORTIF LIGUE"]
["148136S","COSTAZ","ALAIN","COSTAZ ALAIN",2024,2024,"Méditerranée","CDB Var",19019,"BILLARD CLUB DE LA BAIE","19019 – BILLARD CLUB DE LA BAIE","Oui","R2","R2",0.44,0.39,"à","SELON RÈGLEMENT SPORTIF LIGUE"]
["120419N","COUPE","GILBERT","COUPE GILBERT",2013,2020,"Méditerranée","CDB Bouches du Rhône",19017,"BILLARD CLUB PHOCEEN","19017 – BILLARD CLUB PHOCEEN","Oui","R1","R1",1.36,1.21,"à","SELON RÈGLEMENT SPORTIF LIGUE"]
["119932U","COUPET","PHILIPPE","COUPET PHILIPPE",2022,2025,"Méditerranée","CDB Var",19023,"BILLARD CLUB GARDEEN","19023 – BILLARD CLUB GARDEEN","Oui","N3","N3",1.94,1.73,"à","SELON RÈGLEMENT SPORTIF LIGUE"]
["016838Q","COURBOT","LUDWIG","COURBOT LUDWIG",2025,2025,"Méditerranée","CDB Bouches du Rhône",19001,"S. S. A. B. D AIX EN PROVENCE","19001 – S. S. A. B. D AIX EN PROVENCE","Oui","-","N3",1.96,1.74,"à","SELON RÈGLEMENT SPORTIF LIGUE"]
["016445N","CREUGNY","LAURENT","CREUGNY LAURENT",2009,2010,"Méditerranée","CDB Vaucluse",19027,"ACADEMIE DE BILLARD DE BOLLENE","19027 – ACADEMIE DE BILLARD DE BOLLENE","Oui","R1","R1",1.69,1.5,"à","SELON RÈGLEMENT SPORTIF LIGUE"]
["152067Q","CROUZET","JEAN ANDRE","CROUZET JEAN ANDRE",2016,2025,"Méditerranée","CDB Vaucluse",19027,"ACADEMIE DE BILLARD DE BOLLENE","19027 – ACADEMIE DE BILLARD DE BOLLENE","Oui","R1","R2",1.05,0.93,"â","AUTORISÉ"]
["119971H","D HERET","ERIC","D HERET ERIC",2010,2020,"Méditerranée","CDB Vaucluse",19006,"BILLARD CLUB CARPENTRASSIEN","19006 – BILLARD CLUB CARPENTRASSIEN","Oui","R1","R1",1.31,1.17,"à","SELON RÈGLEMENT SPORTIF LIGUE"]
["022002G","DAMON","GERARD","DAMON GERARD",2017,2025,"Méditerranée","CDB Alpes Maritimes",19056,"BILLARD CLUB DE NICE","19056 – BILLARD CLUB DE NICE","Oui","R2","R2",0.8,0.71,"à","SELON RÈGLEMENT SPORTIF LIGUE"]
["022003H","DAMON","OLIVIER","DAMON OLIVIER",2017,2025,"Méditerranée","CDB Bouches du Rhône",19012,"SALON BILLARD CLUB","19012 – SALON BILLARD CLUB","Oui","N3","N3",2.5499999999999998,2.27,"à","SELON RÈGLEMENT SPORTIF LIGUE"]
["014828I","DAUPHIN","MICHEL","DAUPHIN MICHEL",2024,2025,"Méditerranée","CDB Vaucluse",19014,"BILLARD CLUB AVIGNONNAIS","19014 – BILLARD CLUB AVIGNONNAIS","Oui","N3","N3",2.44,2.17,"à","SELON RÈGLEMENT SPORTIF LIGUE"]
["155526A","DAVID","THIERRY","DAVID THIERRY",2024,2025,"Méditerranée","CDB Alpes Haute Provence",19025,"BILLARD CLUB SISTERONNAIS","19025 – BILLARD CLUB SISTERONNAIS","Oui","R2","R2",0.82,0.73,"à","SELON RÈGLEMENT SPORTIF LIGUE"]
["163348C","DE LOOSE","FELIX","DE LOOSE FELIX",2024,2025,"Méditerranée","CDB Var",19106,"BILLARD CLUB VINONNAIS","19106 – BILLARD CLUB VINONNAIS","Oui","R1","R1",1.36,1.21,"à","SELON RÈGLEMENT SPORTIF LIGUE"]
["184548W","DEBRUYNE","ANNE","DEBRUYNE ANNE",2025,2025,"Méditerranée","CDB Var",19106,"BILLARD CLUB VINONNAIS","19106 – BILLARD CLUB VINONNAIS","Oui","R2","R2",0.19,0.17,"à","SELON RÈGLEMENT SPORTIF LIGUE"]
["113220Q","DEBRUYNE","TRISTAN","DEBRUYNE TRISTAN",2025,2025,"Méditerranée","CDB Var",19106,"BILLARD CLUB VINONNAIS","19106 – BILLARD CLUB VINONNAIS","Oui","R2","R2",0.7,0.62,"à","SELON RÈGLEMENT SPORTIF LIGUE"]
["178356Q","DEBUYSER","ANNE","DEBUYSER ANNE",2025,2025,"Méditerranée","CDB Alpes Maritimes",19058,"ACADEMIE DE BILLARD DE BARBOSSI MANDELIEU","19058 – ACADEMIE DE BILLARD DE BARBOSSI MANDELIEU","Oui","-","R2",0.47,0.42,"à","SELON RÈGLEMENT SPORTIF LIGUE"]
["138297D","DECARPENTRIE","FREDDY","DECARPENTRIE FREDDY",2011,2019,"Méditerranée","CDB Bouches du Rhône",19050,"BILLARD CLUB SAUSSETOIS","19050 – BILLARD CLUB SAUSSETOIS","Oui","R1","R2",1.04,0.93,"â","AUTORISÉ"]
["177233V","DEDON","RICHARD","DEDON RICHARD",2025,2025,"Méditerranée","CDB Bouches du Rhône",19007,"BILLARD CLUB BERROIS","19007 – BILLARD CLUB BERROIS","Oui","R2","R2",0.83,0.74,"à","SELON RÈGLEMENT SPORTIF LIGUE"]
["119889D","DEFFE","MICHEL","DEFFE MICHEL",2013,2022,"Méditerranée","CDB Bouches du Rhône",19068,"BILLARD CLUB ARLESIEN","19068 – BILLARD CLUB ARLESIEN","Oui","R2","R2",0.94,0.84,"à","SELON RÈGLEMENT SPORTIF LIGUE"]
["020635R","DEFRETIN","JOEL","DEFRETIN JOEL",2025,2025,"Méditerranée","CDB Var",19023,"BILLARD CLUB GARDEEN","19023 – BILLARD CLUB GARDEEN","Oui","N3","N3",1.84,1.64,"à","SELON RÈGLEMENT SPORTIF LIGUE"]
["022013R","DELAGE","JEAN MARIE","DELAGE JEAN MARIE",2016,2017,"Méditerranée","CDB Alpes Maritimes",19056,"BILLARD CLUB DE NICE","19056 – BILLARD CLUB DE NICE","Oui","R1","R1",1.21,1.08,"à","SELON RÈGLEMENT SPORTIF LIGUE"]
["160334B","DELAPORTE","YVES","DELAPORTE YVES",2025,2025,"Méditerranée","CDB Vaucluse",19006,"BILLARD CLUB CARPENTRASSIEN","19006 – BILLARD CLUB CARPENTRASSIEN","Oui","R2","R2",0.61,0.54,"à","SELON RÈGLEMENT SPORTIF LIGUE"]
["022014S","DELATTRE","RAYMOND","DELATTRE RAYMOND",2015,2024,"Méditerranée","CDB Bouches du Rhône",19090,"BILLARD AMATEUR ROGNAC","19090 – BILLARD AMATEUR ROGNAC","Oui","R1","R1",1.17,1.04,"à","SELON RÈGLEMENT SPORTIF LIGUE"]
["112719J","DELBEY","JULIEN","DELBEY JULIEN",2018,2025,"Méditerranée","CDB Bouches du Rhône",19012,"SALON BILLARD CLUB","19012 – SALON BILLARD CLUB","Oui","N3","N3",1.91,1.7,"à","SELON RÈGLEMENT SPORTIF LIGUE"]
["149695M","DELMER","PHILIPPE","DELMER PHILIPPE",2014,2017,"Méditerranée","CDB Vaucluse",19006,"BILLARD CLUB CARPENTRASSIEN","19006 – BILLARD CLUB CARPENTRASSIEN","Oui","R2","R2",0.5,0.44,"à","SELON RÈGLEMENT SPORTIF LIGUE"]
["166346L","DELUC","BERNARD","DELUC BERNARD",2020,2020,"Méditerranée","CDB Bouches du Rhône",19098,"BILLARD CLUB LA FARE","19098 – BILLARD CLUB LA FARE","Oui","R2","R2",0.78,0.69,"à","SELON RÈGLEMENT SPORTIF LIGUE"]
["159076J","DEMERLIAC","BRUNO","DEMERLIAC BRUNO",2024,2025,"Méditerranée","CDB Bouches du Rhône",19007,"BILLARD CLUB BERROIS","19007 – BILLARD CLUB BERROIS","Oui","R2","R2",0.56999999999999995,0.51,"à","SELON RÈGLEMENT SPORTIF LIGUE"]
["142358I","DESMERO","RAYMOND","DESMERO RAYMOND",2023,2025,"Méditerranée","CDB Bouches du Rhône",19007,"BILLARD CLUB BERROIS","19007 – BILLARD CLUB BERROIS","Oui","R2","R2",0.6,0.53,"à","SELON RÈGLEMENT SPORTIF LIGUE"]
["022028G","DESPLANQUE","FRANCIS","DESPLANQUE FRANCIS",2019,2019,"Méditerranée","CDB Var",19023,"BILLARD CLUB GARDEEN","19023 – BILLARD CLUB GARDEEN","Oui","R1","R1",1.28,1.1299999999999999,"à","SELON RÈGLEMENT SPORTIF LIGUE"]
["115051B","DESWAZIERE","MICHEL","DESWAZIERE MICHEL",2024,2025,"Méditerranée","CDB Vaucluse",19027,"ACADEMIE DE BILLARD DE BOLLENE","19027 – ACADEMIE DE BILLARD DE BOLLENE","Oui","R1","R1",1.28,1.1399999999999999,"à","SELON RÈGLEMENT SPORTIF LIGUE"]
["144569J","DI CINTIO","PHILIPPE","DI CINTIO PHILIPPE",2016,2022,"Méditerranée","CDB Vaucluse",19014,"BILLARD CLUB AVIGNONNAIS","19014 – BILLARD CLUB AVIGNONNAIS","Oui","R1","R1",1.35,1.2,"à","SELON RÈGLEMENT SPORTIF LIGUE"]
["144687X","DI MICELI","LOUIS","DI MICELI LOUIS",2012,2013,"Méditerranée","CDB Alpes Maritimes",19057,"ACADEMIE VENCOISE DE BILLARD","19057 – ACADEMIE VENCOISE DE BILLARD","Oui","R1","R1",1.63,1.45,"à","SELON RÈGLEMENT SPORTIF LIGUE"]
["142363N","DONABEDIAN","DANIEL","DONABEDIAN DANIEL",2023,2025,"Méditerranée","CDB Var",19019,"BILLARD CLUB DE LA BAIE","19019 – BILLARD CLUB DE LA BAIE","Oui","R2","R2",0.76,0.68,"à","SELON RÈGLEMENT SPORTIF LIGUE"]
["022039R","DOS SANTOS","FRANCIS","DOS SANTOS FRANCIS",2018,2025,"Méditerranée","CDB Bouches du Rhône",19050,"BILLARD CLUB SAUSSETOIS","19050 – BILLARD CLUB SAUSSETOIS","Oui","N3","N3",2.19,1.94,"à","SELON RÈGLEMENT SPORTIF LIGUE"]
["174348J","DOUSSET","RENE","DOUSSET RENE",2025,2025,"Méditerranée","CDB Var",19023,"BILLARD CLUB GARDEEN","19023 – BILLARD CLUB GARDEEN","Oui","R2","R2",0.5,0.44,"à","SELON RÈGLEMENT SPORTIF LIGUE"]
["140803N","DREMEAUX","JEAN PIERRE","DREMEAUX JEAN PIERRE",2025,2025,"Méditerranée","CDB Var",19023,"BILLARD CLUB GARDEEN","19023 – BILLARD CLUB GARDEEN","Oui","N3","N3",2.14,1.91,"à","SELON RÈGLEMENT SPORTIF LIGUE"]
["013022W","DUBREUIL","FRANCK","DUBREUIL FRANCK",2025,2025,"Méditerranée","CDB Var",19061,"ACAD.BILLARD ST RAPHAEL","19061 – ACAD.BILLARD ST RAPHAEL","Oui","N3","N3",1.97,1.76,"à","SELON RÈGLEMENT SPORTIF LIGUE"]
["154651Z","DUCA","ALFONSO","DUCA ALFONSO",2022,2023,"Méditerranée","CDB Bouches du Rhône",19090,"BILLARD AMATEUR ROGNAC","19090 – BILLARD AMATEUR ROGNAC","Oui","R2","R2",0.4,0.35,"à","SELON RÈGLEMENT SPORTIF LIGUE"]
["022049B","DURAND","FREDERIC","DURAND FREDERIC",2013,2020,"Méditerranée","CDB Bouches du Rhône",19012,"SALON BILLARD CLUB","19012 – SALON BILLARD CLUB","Oui","R1","R2",1.08,0.96,"â","AUTORISÉ"]
["022050C","DURAND","HERVE","DURAND HERVE",2015,2023,"Méditerranée","CDB Bouches du Rhône",19012,"SALON BILLARD CLUB","19012 – SALON BILLARD CLUB","Oui","N3","N3",2.06,1.83,"à","SELON RÈGLEMENT SPORTIF LIGUE"]
["022052E","DUSFOUR","RENE","DUSFOUR RENE",2016,2021,"Méditerranée","CDB Bouches du Rhône",19012,"SALON BILLARD CLUB","19012 – SALON BILLARD CLUB","Oui","R1","R1",1.29,1.1499999999999999,"à","SELON RÈGLEMENT SPORTIF LIGUE"]
["102285B","DUSSAULE","PIERRE","DUSSAULE PIERRE",2025,2025,"Méditerranée","CDB Vaucluse",19027,"ACADEMIE DE BILLARD DE BOLLENE","19027 – ACADEMIE DE BILLARD DE BOLLENE","Oui","R1","R1",1.48,1.32,"à","SELON RÈGLEMENT SPORTIF LIGUE"]
["140809T","EL MEGHARY","MAROUANE","EL MEGHARY MAROUANE",2014,2025,"Méditerranée","CDB Bouches du Rhône",19002,"SPORT AMAT.DE BILLARD MARSEILLAIS","19002 – SPORT AMAT.DE BILLARD MARSEILLAIS","Oui","R2","R2",0.67,0.6,"à","SELON RÈGLEMENT SPORTIF LIGUE"]
["163467G","ELEOUET","DANIEL","ELEOUET DANIEL",2025,2025,"Méditerranée","CDB Vaucluse",19006,"BILLARD CLUB CARPENTRASSIEN","19006 – BILLARD CLUB CARPENTRASSIEN","Oui","R1","R1",1.1399999999999999,1.02,"à","SELON RÈGLEMENT SPORTIF LIGUE"]
["147622J","ESTABLIER","PIERRE",{"$f":"B130&\" \"&C130","v":"ESTABLIER PIERRE"},2025,2025,"Méditerranée","CDB Var",19023,"BILLARD CLUB GARDEEN",{"$f":"I130&\" – \"&J130","v":"19023 – BILLARD CLUB GARDEEN"},"Oui","R2","R2",0.53,0.47,"à","SELON RÈGLEMENT SPORTIF LIGUE"]
["117567V","ESTRUGO","HENRI","ESTRUGO HENRI",2016,2017,"Méditerranée","CDB Bouches du Rhône",19012,"SALON BILLARD CLUB","19012 – SALON BILLARD CLUB","Oui","R2","R2",0.43,0.38,"à","SELON RÈGLEMENT SPORTIF LIGUE"]
["101511H","FAGET","FRANCIS","FAGET FRANCIS",2016,2020,"Méditerranée","CDB Bouches du Rhône",19001,"S. S. A. B. D AIX EN PROVENCE","19001 – S. S. A. B. D AIX EN PROVENCE","Oui","R1","R1",1.42,1.27,"à","SELON RÈGLEMENT SPORTIF LIGUE"]
["145515T","FARINET","JEAN FRANCOIS","FARINET JEAN FRANCOIS",2014,2018,"Méditerranée","CDB Vaucluse",19027,"ACADEMIE DE BILLARD DE BOLLENE","19027 – ACADEMIE DE BILLARD DE BOLLENE","Oui","R2","R2",0.51,0.45,"à","SELON RÈGLEMENT SPORTIF LIGUE"]
["022065R","FAURE","EMILE","FAURE EMILE",2013,2025,"Méditerranée","CDB Vaucluse",19016,"BILLARD CLUB ORANGEOIS","19016 – BILLARD CLUB ORANGEOIS","Oui","R1","R2",0.95,0.85,"â","AUTORISÉ"]
["022066S","FAVARIO","CHRISTIAN","FAVARIO CHRISTIAN",2017,2025,"Méditerranée","CDB Vaucluse",19027,"ACADEMIE DE BILLARD DE BOLLENE","19027 – ACADEMIE DE BILLARD DE BOLLENE","Oui","R1","R2",0.96,0.86,"â","AUTORISÉ"]
["022067T","FERAUD","GERARD","FERAUD GERARD",2025,2025,"Méditerranée","CDB Vaucluse",19027,"ACADEMIE DE BILLARD DE BOLLENE","19027 – ACADEMIE DE BILLARD DE BOLLENE","Oui","N3","N3",2.4500000000000002,2.1800000000000002,"à","SELON RÈGLEMENT SPORTIF LIGUE"]
["129036Y","FERHAT","ACHOUR","FERHAT ACHOUR",2025,2025,"Méditerranée","CDB Var",19106,"BILLARD CLUB VINONNAIS","19106 – BILLARD CLUB VINONNAIS","Oui","N3","R1",1.65,1.47,"â","AUTORISÉ"]
["013111H","FERNANDEZ","MARC","FERNANDEZ MARC",2025,2025,"Méditerranée","CDB Bouches du Rhône",19007,"BILLARD CLUB BERROIS","19007 – BILLARD CLUB BERROIS","Oui","N3","N3",2.42,2.15,"à","SELON RÈGLEMENT SPORTIF LIGUE"]
["120704M","FERRE","DIDIER","FERRE DIDIER",2025,2025,"Méditerranée","CDB Alpes Maritimes",19058,"ACADEMIE DE BILLARD DE BARBOSSI MANDELIEU","19058 – ACADEMIE DE BILLARD DE BARBOSSI MANDELIEU","Oui","R1","R1",1.2,1.06,"à","SELON RÈGLEMENT SPORTIF LIGUE"]
["122658Q","FERRO","PHILIPPE","FERRO PHILIPPE",2025,2025,"Méditerranée","CDB Bouches du Rhône",19009,"CLUB BILLARD ISTREEN","19009 – CLUB BILLARD ISTREEN","Oui","R1","R1",1.1599999999999999,1.03,"à","SELON RÈGLEMENT SPORTIF LIGUE"]
["173138T","FLEURIOT","PATRICK","FLEURIOT PATRICK",2024,2025,"Méditerranée","CDB Vaucluse",19014,"BILLARD CLUB AVIGNONNAIS","19014 – BILLARD CLUB AVIGNONNAIS","Oui","R2","R2",0.71,0.63,"à","SELON RÈGLEMENT SPORTIF LIGUE"]
["101139Z","FONTAINE","DANY","FONTAINE DANY",2025,2025,"Méditerranée","CDB Var",19106,"BILLARD CLUB VINONNAIS","19106 – BILLARD CLUB VINONNAIS","Oui","N1","N2",2.11,1.87,"â","AUTORISÉ"]
["152014H","FORGET","LIONEL","FORGET LIONEL",2015,2022,"Méditerranée","CDB Bouches du Rhône",19007,"BILLARD CLUB BERROIS","19007 – BILLARD CLUB BERROIS","Oui","R2","R2",0.61,0.55000000000000004,"à","SELON RÈGLEMENT SPORTIF LIGUE"]
["022082I","FOSSATI","BRUNO","FOSSATI BRUNO",2017,2021,"Méditerranée","CDB Var",19023,"BILLARD CLUB GARDEEN","19023 – BILLARD CLUB GARDEEN","Oui","R1","R2",1.02,0.91,"â","AUTORISÉ"]
["022084K","FRANCO","ALBERT","FRANCO ALBERT",2025,2025,"Méditerranée","CDB Var",19019,"BILLARD CLUB DE LA BAIE","19019 – BILLARD CLUB DE LA BAIE","Oui","R1","R1",1.6,1.42,"à","SELON RÈGLEMENT SPORTIF LIGUE"]
["167290M","FROMEYER","CORINNE","FROMEYER CORINNE",2025,2025,"Méditerranée","CDB Alpes Maritimes",19058,"ACADEMIE DE BILLARD DE BARBOSSI MANDELIEU","19058 – ACADEMIE DE BILLARD DE BARBOSSI MANDELIEU","Oui","R2","R2",0.55000000000000004,0.49,"à","SELON RÈGLEMENT SPORTIF LIGUE"]
["159060R","FURNON","ROGER","FURNON ROGER",2023,2025,"Méditerranée","CDB Vaucluse",19014,"BILLARD CLUB AVIGNONNAIS","19014 – BILLARD CLUB AVIGNONNAIS","Oui","R2","R2",0.71,0.63,"à","SELON RÈGLEMENT SPORTIF LIGUE"]
["022088O","FUTERAL","MAX","FUTERAL MAX",2009,2011,"Méditerranée","CDB Var",983,"Licenciés indépendants 83","983 – Licenciés indépendants 83","Oui","R1","R1",1.32,1.17,"à","SELON RÈGLEMENT SPORTIF LIGUE"]
["103216W","GABETTO","STEPHANE","GABETTO STEPHANE",2024,2025,"Méditerranée","CDB Var",19023,"BILLARD CLUB GARDEEN","19023 – BILLARD CLUB GARDEEN","Oui","R1","R2",1.06,0.94,"â","AUTORISÉ"]
["142316S","GALARDINI","RICHARD","GALARDINI RICHARD",2017,2025,"Méditerranée","CDB Bouches du Rhône",19050,"BILLARD CLUB SAUSSETOIS","19050 – BILLARD CLUB SAUSSETOIS","Oui","R2","R2",0.89,0.79,"à","SELON RÈGLEMENT SPORTIF LIGUE"]
["022091R","GALLUCCI","STEPHANE","GALLUCCI STEPHANE",2025,2025,"Méditerranée","CDB Alpes Maritimes",19056,"BILLARD CLUB DE NICE","19056 – BILLARD CLUB DE NICE","Oui","-","N3",2.0299999999999998,1.8,"à","SELON RÈGLEMENT SPORTIF LIGUE"]
["147288W","GAMEN","ANDRE","GAMEN ANDRE",2024,2025,"Méditerranée","CDB Var",19023,"BILLARD CLUB GARDEEN","19023 – BILLARD CLUB GARDEEN","Oui","R2","R2",0.37,0.33,"à","SELON RÈGLEMENT SPORTIF LIGUE"]
["022092S","GANTOIS","GILLES","GANTOIS GILLES",2025,2025,"Méditerranée","CDB Vaucluse",19016,"BILLARD CLUB ORANGEOIS","19016 – BILLARD CLUB ORANGEOIS","Oui","N3","R1",1.77,1.58,"â","AUTORISÉ"]
["122653L","GANTOIS","NADINE","GANTOIS NADINE",2009,2008,"Méditerranée","CDB Vaucluse",19027,"ACADEMIE DE BILLARD DE BOLLENE","19027 – ACADEMIE DE BILLARD DE BOLLENE","Oui","R2","R2",0.7,0.63,"à","SELON RÈGLEMENT SPORTIF LIGUE"]
["022097X","GATTO","ANTOINE","GATTO ANTOINE",2019,2025,"Méditerranée","CDB Bouches du Rhône",19050,"BILLARD CLUB SAUSSETOIS","19050 – BILLARD CLUB SAUSSETOIS","Oui","R2","R2",0.68,0.61,"à","SELON RÈGLEMENT SPORTIF LIGUE"]
["116278G","GAVALDA","PIERRE","GAVALDA PIERRE",2025,2025,"Méditerranée","CDB Vaucluse",19006,"BILLARD CLUB CARPENTRASSIEN","19006 – BILLARD CLUB CARPENTRASSIEN","Oui","R1","N3",1.94,1.72,"á","SELON RÈGLEMENT SPORTIF LIGUE"]
["125944A","GAVANON","ANDRE","GAVANON ANDRE",2009,2022,"Méditerranée","CDB Var",19023,"BILLARD CLUB GARDEEN","19023 – BILLARD CLUB GARDEEN","Oui","R1","R1",1.29,1.1399999999999999,"à","SELON RÈGLEMENT SPORTIF LIGUE"]
["143227T","GAYRAUD","FRANCOISE","GAYRAUD FRANCOISE",2022,2025,"Méditerranée","CDB Alpes Maritimes",19056,"BILLARD CLUB DE NICE","19056 – BILLARD CLUB DE NICE","Oui","R2","R2",0.28999999999999998,0.26,"à","SELON RÈGLEMENT SPORTIF LIGUE"]
["163279C","GELAS","BERNARD","GELAS BERNARD",2025,2025,"Méditerranée","CDB Bouches du Rhône",19098,"BILLARD CLUB LA FARE","19098 – BILLARD CLUB LA FARE","Oui","R2","R2",0.63,0.56000000000000005,"à","SELON RÈGLEMENT SPORTIF LIGUE"]
["022101B","GEORGE","ALAIN","GEORGE ALAIN",2012,2017,"Méditerranée","CDB Alpes Maritimes",19057,"ACADEMIE VENCOISE DE BILLARD","19057 – ACADEMIE VENCOISE DE BILLARD","Oui","R1","R1",1.67,1.48,"à","SELON RÈGLEMENT SPORTIF LIGUE"]
["022103D","GERARD","PASCAL","GERARD PASCAL",2017,2025,"Méditerranée","CDB Alpes Maritimes",19056,"BILLARD CLUB DE NICE","19056 – BILLARD CLUB DE NICE","Oui","N1","N2",2.52,2.25,"â","AUTORISÉ"]
["022104E","GERVAIS","GUILLAUME","GERVAIS GUILLAUME",2019,2025,"Méditerranée","CDB Vaucluse",19021,"BILLARD CLUB CAVAILLONNAIS","19021 – BILLARD CLUB CAVAILLONNAIS","Oui","N3","N3",2.2200000000000002,1.98,"à","SELON RÈGLEMENT SPORTIF LIGUE"]
["101282M","GHU","GERARD","GHU GERARD",2025,2025,"Méditerranée","CDB Vaucluse",19016,"BILLARD CLUB ORANGEOIS","19016 – BILLARD CLUB ORANGEOIS","Oui","R1","R2",0.97,0.87,"â","AUTORISÉ"]
["022108I","GIANNATTASIO","LUCIEN","GIANNATTASIO LUCIEN",2016,2025,"Méditerranée","CDB Bouches du Rhône",19009,"CLUB BILLARD ISTREEN","19009 – CLUB BILLARD ISTREEN","Oui","R1","R1",1.2,1.07,"à","SELON RÈGLEMENT SPORTIF LIGUE"]
["118661X","GIBARROUX","CHRISTOPHE","GIBARROUX CHRISTOPHE",2025,2025,"Méditerranée","CDB Bouches du Rhône",19001,"S. S. A. B. D AIX EN PROVENCE","19001 – S. S. A. B. D AIX EN PROVENCE","Oui","N3","R1",1.75,1.56,"â","AUTORISÉ"]
["149390F","GIFFARD","PHILIPPE","GIFFARD PHILIPPE",2023,2025,"Méditerranée","CDB Var",19023,"BILLARD CLUB GARDEEN","19023 – BILLARD CLUB GARDEEN","Oui","N3","R1",1.61,1.43,"â","AUTORISÉ"]
["180514L","GILLET","PHILIPPE","GILLET PHILIPPE",2025,2025,"Méditerranée","CDB Alpes Maritimes",19058,"ACADEMIE DE BILLARD DE BARBOSSI MANDELIEU","19058 – ACADEMIE DE BILLARD DE BARBOSSI MANDELIEU","Oui","-","R2",0.56000000000000005,0.49,"à","SELON RÈGLEMENT SPORTIF LIGUE"]
["022115P","GIOVANNETTI","DAMIEN","GIOVANNETTI DAMIEN",2024,2024,"Méditerranée","CDB Bouches du Rhône",19050,"BILLARD CLUB SAUSSETOIS","19050 – BILLARD CLUB SAUSSETOIS","Oui","R2","R2",0.97,0.87,"à","SELON RÈGLEMENT SPORTIF LIGUE"]
["129718E","GIRARD","JACQUES","GIRARD JACQUES",2024,2025,"Méditerranée","CDB Alpes Maritimes",19058,"ACADEMIE DE BILLARD DE BARBOSSI MANDELIEU","19058 – ACADEMIE DE BILLARD DE BARBOSSI MANDELIEU","Oui","R2","R2",0.95,0.85,"à","SELON RÈGLEMENT SPORTIF LIGUE"]
["157852D","GODARD","PASCAL","GODARD PASCAL",2025,2025,"Méditerranée","CDB Vaucluse",19006,"BILLARD CLUB CARPENTRASSIEN","19006 – BILLARD CLUB CARPENTRASSIEN","Oui","R1","R1",1.47,1.31,"à","SELON RÈGLEMENT SPORTIF LIGUE"]
["120100G","GOMES","VITOR","GOMES VITOR",2016,2025,"Méditerranée","CDB Bouches du Rhône",19001,"S. S. A. B. D AIX EN PROVENCE","19001 – S. S. A. B. D AIX EN PROVENCE","Oui","N3","N3",1.97,1.75,"à","SELON RÈGLEMENT SPORTIF LIGUE"]
["131925B","GOUDENECHE","BERNARD","GOUDENECHE BERNARD",2019,2024,"Méditerranée","CDB Bouches du Rhône",19098,"BILLARD CLUB LA FARE","19098 – BILLARD CLUB LA FARE","Oui","R2","R2",0.67,0.6,"à","SELON RÈGLEMENT SPORTIF LIGUE"]
["022129D","GOUIRAN","GEORGES","GOUIRAN GEORGES",2025,2025,"Méditerranée","CDB Bouches du Rhône",19050,"BILLARD CLUB SAUSSETOIS","19050 – BILLARD CLUB SAUSSETOIS","Oui","R1","R2",0.68,0.61,"â","AUTORISÉ"]
["113216M","GOUKASSIAN","JACQUES","GOUKASSIAN JACQUES",2018,2019,"Méditerranée","CDB Bouches du Rhône",19050,"BILLARD CLUB SAUSSETOIS","19050 – BILLARD CLUB SAUSSETOIS","Oui","R1","R1",1.25,1.1100000000000001,"à","SELON RÈGLEMENT SPORTIF LIGUE"]
["104054C","GOURSEAUD","YVES","GOURSEAUD YVES",2025,2025,"Méditerranée","CDB Vaucluse",19016,"BILLARD CLUB ORANGEOIS","19016 – BILLARD CLUB ORANGEOIS","Oui","N3","N2",2.72,2.42,"á","SELON RÈGLEMENT SPORTIF LIGUE"]
["149576H","GREGOIRE","JEAN CLAUDE","GREGOIRE JEAN CLAUDE",2020,2022,"Méditerranée","CDB Vaucluse",19016,"BILLARD CLUB ORANGEOIS","19016 – BILLARD CLUB ORANGEOIS","Oui","R2","R2",0.74,0.66,"à","SELON RÈGLEMENT SPORTIF LIGUE"]
["135013V","GUERI","ROBERT","GUERI ROBERT",2018,2025,"Méditerranée","CDB Vaucluse",19027,"ACADEMIE DE BILLARD DE BOLLENE","19027 – ACADEMIE DE BILLARD DE BOLLENE","Oui","R2","R2",0.66,0.59,"à","SELON RÈGLEMENT SPORTIF LIGUE"]
["144796C","GUERINEAU","BRUNO","GUERINEAU BRUNO",2022,2025,"Méditerranée","CDB Vaucluse",19021,"BILLARD CLUB CAVAILLONNAIS","19021 – BILLARD CLUB CAVAILLONNAIS","Oui","R2","R2",0.94,0.83,"à","SELON RÈGLEMENT SPORTIF LIGUE"]
["022135J","GUERINEAU","THIERRY","GUERINEAU THIERRY",2017,2025,"Méditerranée","CDB Vaucluse",19021,"BILLARD CLUB CAVAILLONNAIS","19021 – BILLARD CLUB CAVAILLONNAIS","Oui","N3","N3",2.37,2.11,"à","SELON RÈGLEMENT SPORTIF LIGUE"]
["104475H","GUEUG","PIERRE","GUEUG PIERRE",2025,2025,"Méditerranée","CDB Alpes Maritimes",19056,"BILLARD CLUB DE NICE","19056 – BILLARD CLUB DE NICE","Oui","R1","R1",1.36,1.21,"à","SELON RÈGLEMENT SPORTIF LIGUE"]
["151649L","GUEZOU","MATHIS","GUEZOU MATHIS",2017,2018,"Méditerranée","CDB Bouches du Rhône",19012,"SALON BILLARD CLUB","19012 – SALON BILLARD CLUB","Oui","R2","R2",0.49,0.44,"à","SELON RÈGLEMENT SPORTIF LIGUE"]
["022137L","GUIBERT","JEAN MARIE","GUIBERT JEAN MARIE",2019,2024,"Méditerranée","CDB Bouches du Rhône",19009,"CLUB BILLARD ISTREEN","19009 – CLUB BILLARD ISTREEN","Oui","R1","R2",0.92,0.82,"â","AUTORISÉ"]
["154530S","GUIZELIN","PASCAL","GUIZELIN PASCAL",2025,2025,"Méditerranée","CDB Var",19106,"BILLARD CLUB VINONNAIS","19106 – BILLARD CLUB VINONNAIS","Oui","R2","R2",0.82,0.73,"à","SELON RÈGLEMENT SPORTIF LIGUE"]
["022138M","GUTIERREZ","FRANCOIS","GUTIERREZ FRANCOIS",2015,2024,"Méditerranée","CDB Bouches du Rhône",19017,"BILLARD CLUB PHOCEEN","19017 – BILLARD CLUB PHOCEEN","Oui","R2","R2",0.78,0.7,"à","SELON RÈGLEMENT SPORTIF LIGUE"]
["011966G","HAHN","DANIEL","HAHN DANIEL",2025,2025,"Méditerranée","CDB Bouches du Rhône",19017,"BILLARD CLUB PHOCEEN","19017 – BILLARD CLUB PHOCEEN","Oui","R2","R2",0.91,0.81,"à","SELON RÈGLEMENT SPORTIF LIGUE"]
["022141P","HAROUTUNIAN","PIERRE","HAROUTUNIAN PIERRE",2022,2022,"Méditerranée","CDB Bouches du Rhône",19050,"BILLARD CLUB SAUSSETOIS","19050 – BILLARD CLUB SAUSSETOIS","Oui","R2","R2",0.54,0.48,"à","SELON RÈGLEMENT SPORTIF LIGUE"]
["137523J","HAZE","PATRICK","HAZE PATRICK",2024,2025,"Méditerranée","CDB Vaucluse",19021,"BILLARD CLUB CAVAILLONNAIS","19021 – BILLARD CLUB CAVAILLONNAIS","Oui","R1","R2",1,0.89,"â","AUTORISÉ"]
["159610P","HERBER","DOMINIQUE","HERBER DOMINIQUE",2023,2024,"Méditerranée","CDB Vaucluse",19027,"ACADEMIE DE BILLARD DE BOLLENE","19027 – ACADEMIE DE BILLARD DE BOLLENE","Oui","R2","R2",0.91,0.81,"à","SELON RÈGLEMENT SPORTIF LIGUE"]
["119933V","HERREMAN","SERGE","HERREMAN SERGE",2025,2025,"Méditerranée","CDB Var",19023,"BILLARD CLUB GARDEEN","19023 – BILLARD CLUB GARDEEN","Oui","R2","R2",0.79,0.7,"à","SELON RÈGLEMENT SPORTIF LIGUE"]
["137004K","HEURTAULT","JACKY","HEURTAULT JACKY",2023,2025,"Méditerranée","CDB Bouches du Rhône",19012,"SALON BILLARD CLUB","19012 – SALON BILLARD CLUB","Oui","R1","R2",0.78,0.7,"â","AUTORISÉ"]
["132460Q","HMAYDA","YOUSSEF","HMAYDA YOUSSEF",2009,2019,"Méditerranée","CDB Alpes Maritimes",19056,"BILLARD CLUB DE NICE","19056 – BILLARD CLUB DE NICE","Oui","N1","N2",2.71,2.41,"â","AUTORISÉ"]
["172086A","HUGUET","PATRICK","HUGUET PATRICK",2025,2025,"Méditerranée","CDB Bouches du Rhône",19017,"BILLARD CLUB PHOCEEN","19017 – BILLARD CLUB PHOCEEN","Oui","N3","N2",2.59,2.31,"á","SELON RÈGLEMENT SPORTIF LIGUE"]
["172214P","IDJERI","GILBERT","IDJERI GILBERT",2024,2025,"Méditerranée","CDB Bouches du Rhône",19050,"BILLARD CLUB SAUSSETOIS","19050 – BILLARD CLUB SAUSSETOIS","Oui","R2","R2",0.97,0.86,"à","SELON RÈGLEMENT SPORTIF LIGUE"]
["181239Z","IVACHEFF","MICHEL",{"$f":"B194&\" \"&C194","v":"IVACHEFF MICHEL"},2025,2025,"Méditerranée","CDB Var",19106,"BILLARD CLUB VINONNAIS",{"$f":"I194&\" – \"&J194","v":"19106 – BILLARD CLUB VINONNAIS"},"Oui","R2","R2",0.78,0.69,"à","SELON RÈGLEMENT SPORTIF LIGUE"]
["120276A","JAVEY","JEAN FRANCOIS","JAVEY JEAN FRANCOIS",2015,2023,"Méditerranée","CDB Var",19019,"BILLARD CLUB DE LA BAIE","19019 – BILLARD CLUB DE LA BAIE","Oui","R2","R2",0.95,0.85,"à","SELON RÈGLEMENT SPORTIF LIGUE"]
["162905W","JUMEL","RENE","JUMEL RENE",2025,2025,"Méditerranée","CDB Vaucluse",19027,"ACADEMIE DE BILLARD DE BOLLENE","19027 – ACADEMIE DE BILLARD DE BOLLENE","Oui","R2","R2",0.6,0.53,"à","SELON RÈGLEMENT SPORTIF LIGUE"]
["116642G","KOPACZEWSKI","DANIEL","KOPACZEWSKI DANIEL",2018,2020,"Méditerranée","CDB Var",19061,"ACAD.BILLARD ST RAPHAEL","19061 – ACAD.BILLARD ST RAPHAEL","Oui","R1","R2",1.06,0.95,"â","AUTORISÉ"]
["022173V","KOSKACH","JEAN PAUL","KOSKACH JEAN PAUL",2022,2024,"Méditerranée","CDB Bouches du Rhône",19017,"BILLARD CLUB PHOCEEN","19017 – BILLARD CLUB PHOCEEN","Oui","R1","R1",1.33,1.19,"à","SELON RÈGLEMENT SPORTIF LIGUE"]
["109977X","LACOSSE","JEAN PAUL","LACOSSE JEAN PAUL",2025,2025,"Méditerranée","CDB Var",19019,"BILLARD CLUB DE LA BAIE","19019 – BILLARD CLUB DE LA BAIE","Oui","R1","R1",1.37,1.22,"à","SELON RÈGLEMENT SPORTIF LIGUE"]
["147195V","LACOSTE","BRUNO","LACOSTE BRUNO",2022,2024,"Méditerranée","CDB Var",19061,"ACAD.BILLARD ST RAPHAEL","19061 – ACAD.BILLARD ST RAPHAEL","Oui","R1","R1",1.25,1.1100000000000001,"à","SELON RÈGLEMENT SPORTIF LIGUE"]
["168708D","LACROIX","JEAN MARC","LACROIX JEAN MARC",2020,2020,"Méditerranée","CDB Bouches du Rhône",19098,"BILLARD CLUB LA FARE","19098 – BILLARD CLUB LA FARE","Oui","R2","R2",0.67,0.59,"à","SELON RÈGLEMENT SPORTIF LIGUE"]
["151312V","LAGIERE","CHRISTIAN","LAGIERE CHRISTIAN",2018,2022,"Méditerranée","CDB Var",19019,"BILLARD CLUB DE LA BAIE","19019 – BILLARD CLUB DE LA BAIE","Oui","R2","R2",0.49,0.43,"à","SELON RÈGLEMENT SPORTIF LIGUE"]
["175999D","LANARI","PIERRE","LANARI PIERRE",2025,2025,"Méditerranée","CDB Alpes Maritimes",19056,"BILLARD CLUB DE NICE","19056 – BILLARD CLUB DE NICE","Oui","-","R2",0.62,0.55000000000000004,"à","SELON RÈGLEMENT SPORTIF LIGUE"]
["016084Q","LANDE","GERARD","LANDE GERARD",2024,2025,"Méditerranée","CDB Vaucluse",19014,"BILLARD CLUB AVIGNONNAIS","19014 – BILLARD CLUB AVIGNONNAIS","Oui","R1","R1",1.22,1.08,"à","SELON RÈGLEMENT SPORTIF LIGUE"]
["181199F","LANDERECTHE","PASCAL","LANDERECTHE PASCAL",2025,2025,"Méditerranée","CDB Bouches du Rhône",19007,"BILLARD CLUB BERROIS","19007 – BILLARD CLUB BERROIS","Oui","R2","R2",0.85,0.75,"à","SELON RÈGLEMENT SPORTIF LIGUE"]
["179135M","LANDOIS","DOMINIQUE","LANDOIS DOMINIQUE",2025,2025,"Méditerranée","CDB Alpes Maritimes",19055,"ACADEMIE DE BILLARD DE MENTON","19055 – ACADEMIE DE BILLARD DE MENTON","Oui","-","R2",0.42,0.38,"à","SELON RÈGLEMENT SPORTIF LIGUE"]
["168288X","LANNURIEN","THIERRY","LANNURIEN THIERRY",2025,2025,"Méditerranée","CDB Var",19023,"BILLARD CLUB GARDEEN","19023 – BILLARD CLUB GARDEEN","Oui","R1","R1",1.64,1.46,"à","SELON RÈGLEMENT SPORTIF LIGUE"]
["022190M","LAPLANCHE","YVON","LAPLANCHE YVON",2017,2023,"Méditerranée","CDB Var",19059,"BILLARD CLUB ROQUEBRUNOIS","19059 – BILLARD CLUB ROQUEBRUNOIS","Oui","R2","R2",0.97,0.86,"à","SELON RÈGLEMENT SPORTIF LIGUE"]
["187426Z","LAUDY","JEAN","LAUDY JEAN",2025,2025,"Méditerranée","CDB Alpes Maritimes",19058,"ACADEMIE DE BILLARD DE BARBOSSI MANDELIEU","19058 – ACADEMIE DE BILLARD DE BARBOSSI MANDELIEU","Oui","-","R2",0.48,0.43,"à","SELON RÈGLEMENT SPORTIF LIGUE"]
["178352L","LAUNAY","MICHEL","LAUNAY MICHEL",2025,2025,"Méditerranée","CDB Alpes Maritimes",19058,"ACADEMIE DE BILLARD DE BARBOSSI MANDELIEU","19058 – ACADEMIE DE BILLARD DE BARBOSSI MANDELIEU","Oui","-","R2",0.43,0.38,"à","SELON RÈGLEMENT SPORTIF LIGUE"]
["163278B","LE FAUCHEUR","LAURENT","LE FAUCHEUR LAURENT",2024,2025,"Méditerranée","CDB Bouches du Rhône",19098,"BILLARD CLUB LA FARE","19098 – BILLARD CLUB LA FARE","Oui","R2","R2",0.7,0.62,"à","SELON RÈGLEMENT SPORTIF LIGUE"]
["110799N","LEBAR","PATRICK","LEBAR PATRICK",2013,2013,"Méditerranée","CDB Bouches du Rhône",19090,"BILLARD AMATEUR ROGNAC","19090 – BILLARD AMATEUR ROGNAC","Oui","R1","R1",1.32,1.18,"à","SELON RÈGLEMENT SPORTIF LIGUE"]
["141504M","LECOQ","ARNAUD","LECOQ ARNAUD",2024,2025,"Méditerranée","CDB Bouches du Rhône",19012,"SALON BILLARD CLUB","19012 – SALON BILLARD CLUB","Oui","R1","R1",1.3,1.1499999999999999,"à","SELON RÈGLEMENT SPORTIF LIGUE"]
["151648K","LECOQ","SYLVIE","LECOQ SYLVIE",2016,2017,"Méditerranée","CDB Bouches du Rhône",19012,"SALON BILLARD CLUB","19012 – SALON BILLARD CLUB","Oui","R2","R2",0.25,0.22,"à","SELON RÈGLEMENT SPORTIF LIGUE"]
["135537Z","LEDU","GERARD","LEDU GERARD",2009,2010,"Méditerranée","CDB Vaucluse",19006,"BILLARD CLUB CARPENTRASSIEN","19006 – BILLARD CLUB CARPENTRASSIEN","Oui","R2","R2",0.46,0.41,"à","SELON RÈGLEMENT SPORTIF LIGUE"]
["105373V","LEDUCQ","MORGAN","LEDUCQ MORGAN",2025,2025,"Méditerranée","CDB Vaucluse",19014,"BILLARD CLUB AVIGNONNAIS","19014 – BILLARD CLUB AVIGNONNAIS","Oui","N3","N3",2.08,1.85,"à","SELON RÈGLEMENT SPORTIF LIGUE"]
["110379J","LEMARTINET","ROBERT","LEMARTINET ROBERT",2025,2025,"Méditerranée","CDB Var",19019,"BILLARD CLUB DE LA BAIE","19019 – BILLARD CLUB DE LA BAIE","Oui","R1","R2",1.08,0.96,"â","AUTORISÉ"]
["022205B","LEMESLE","FABRICE","LEMESLE FABRICE",2010,2025,"Méditerranée","CDB Bouches du Rhône",19017,"BILLARD CLUB PHOCEEN","19017 – BILLARD CLUB PHOCEEN","Oui","R2","R2",0.71,0.63,"à","SELON RÈGLEMENT SPORTIF LIGUE"]
["104233Z","LEMIERE","JEAN NOEL","LEMIERE JEAN NOEL",2025,2025,"Méditerranée","CDB Var",19023,"BILLARD CLUB GARDEEN","19023 – BILLARD CLUB GARDEEN","Oui","-","R1",1.51,1.34,"à","SELON RÈGLEMENT SPORTIF LIGUE"]
["176350K","LETELLIER","ALAIN","LETELLIER ALAIN",2025,2025,"Méditerranée","CDB Bouches du Rhône",19090,"BILLARD AMATEUR ROGNAC","19090 – BILLARD AMATEUR ROGNAC","Oui","R2","R2",0.8,0.72,"à","SELON RÈGLEMENT SPORTIF LIGUE"]
["131535B","LEVAVASSEUR","ROBERT","LEVAVASSEUR ROBERT",2013,2014,"Méditerranée","CDB Alpes Haute Provence",19025,"BILLARD CLUB SISTERONNAIS","19025 – BILLARD CLUB SISTERONNAIS","Oui","N3","N3",2.4,2.13,"à","SELON RÈGLEMENT SPORTIF LIGUE"]
["141067R","LEVEQUE","DAVID","LEVEQUE DAVID",2015,2017,"Méditerranée","CDB Bouches du Rhône",19007,"BILLARD CLUB BERROIS","19007 – BILLARD CLUB BERROIS","Oui","R2","R2",0.8,0.71,"à","SELON RÈGLEMENT SPORTIF LIGUE"]
["184858H","LEVISTRE","ALAIN","LEVISTRE ALAIN",2025,2025,"Méditerranée","CDB Vaucluse",19014,"BILLARD CLUB AVIGNONNAIS","19014 – BILLARD CLUB AVIGNONNAIS","Oui","-","R2",0.96,0.85,"à","SELON RÈGLEMENT SPORTIF LIGUE"]
["022209F","LIEGEOIS","DOMINIQUE","LIEGEOIS DOMINIQUE",2025,2025,"Méditerranée","CDB Vaucluse",19027,"ACADEMIE DE BILLARD DE BOLLENE","19027 – ACADEMIE DE BILLARD DE BOLLENE","Oui","N3","N3",1.8,1.6,"à","SELON RÈGLEMENT SPORTIF LIGUE"]
["146375V","LISI","ROGER","LISI ROGER",2025,2025,"Méditerranée","CDB Bouches du Rhône",19007,"BILLARD CLUB BERROIS","19007 – BILLARD CLUB BERROIS","Oui","R2","R2",0.62,0.55000000000000004,"à","SELON RÈGLEMENT SPORTIF LIGUE"]
["174810L","LOCKS","TIMOTHY","LOCKS TIMOTHY",2022,2022,"Méditerranée","CDB Alpes Haute Provence",19025,"BILLARD CLUB SISTERONNAIS","19025 – BILLARD CLUB SISTERONNAIS","Oui","R2","R2",0.69,0.61,"à","SELON RÈGLEMENT SPORTIF LIGUE"]
["022215L","LOMBARDO","PHILIPPE","LOMBARDO PHILIPPE",2016,2018,"Méditerranée","CDB Alpes Maritimes",19055,"ACADEMIE DE BILLARD DE MENTON","19055 – ACADEMIE DE BILLARD DE MENTON","Oui","R1","R1",1.28,1.1399999999999999,"à","SELON RÈGLEMENT SPORTIF LIGUE"]
["107094A","LOPEZ","JOSE","LOPEZ JOSE",2013,2018,"Méditerranée","CDB Var",19106,"BILLARD CLUB VINONNAIS","19106 – BILLARD CLUB VINONNAIS","Oui","N3","R1",1.76,1.57,"â","AUTORISÉ"]
["162076V","LUCENET","PAUL","LUCENET PAUL",2024,2025,"Méditerranée","CDB Bouches du Rhône",19009,"CLUB BILLARD ISTREEN","19009 – CLUB BILLARD ISTREEN","Oui","R1","R1",1.25,1.1100000000000001,"à","SELON RÈGLEMENT SPORTIF LIGUE"]
["186880F","LUNEAU","JEAN CLAUDE","LUNEAU JEAN CLAUDE",2025,2025,"Méditerranée","CDB Var",19023,"BILLARD CLUB GARDEEN","19023 – BILLARD CLUB GARDEEN","Oui","-","R1",1.28,1.1399999999999999,"à","SELON RÈGLEMENT SPORTIF LIGUE"]
["022221R","LUVISON","JEAN","LUVISON JEAN",2019,2025,"Méditerranée","CDB Bouches du Rhône",19012,"SALON BILLARD CLUB","19012 – SALON BILLARD CLUB","Oui","R2","R2",0.47,0.42,"à","SELON RÈGLEMENT SPORTIF LIGUE"]
["114274E","MACIA","RENE","MACIA RENE",2012,2011,"Méditerranée","CDB Alpes Maritimes",19057,"ACADEMIE VENCOISE DE BILLARD","19057 – ACADEMIE VENCOISE DE BILLARD","Oui","N1","N2",2.71,2.41,"â","AUTORISÉ"]
["165843P","MAGNIER","PIERRE","MAGNIER PIERRE",2025,2025,"Méditerranée","CDB Var",19023,"BILLARD CLUB GARDEEN","19023 – BILLARD CLUB GARDEEN","Oui","R2","R2",0.38,0.34,"à","SELON RÈGLEMENT SPORTIF LIGUE"]
["100910E","MALLEVAL","GERARD","MALLEVAL GERARD",2024,2025,"Méditerranée","CDB Var",19023,"BILLARD CLUB GARDEEN","19023 – BILLARD CLUB GARDEEN","Oui","R2","R2",0.9,0.8,"à","SELON RÈGLEMENT SPORTIF LIGUE"]
["164047M","MARCHAND","PHILIPPE","MARCHAND PHILIPPE",2025,2025,"Méditerranée","CDB Bouches du Rhône",19001,"S. S. A. B. D AIX EN PROVENCE","19001 – S. S. A. B. D AIX EN PROVENCE","Oui","-","R2",0.66,0.59,"à","SELON RÈGLEMENT SPORTIF LIGUE"]
["108280Q","MARCIANO","GEORGES","MARCIANO GEORGES",2018,2025,"Méditerranée","CDB Alpes Maritimes",19058,"ACADEMIE DE BILLARD DE BARBOSSI MANDELIEU","19058 – ACADEMIE DE BILLARD DE BARBOSSI MANDELIEU","Oui","R1","R1",1.18,1.05,"à","SELON RÈGLEMENT SPORTIF LIGUE"]
["022239J","MARTIN","MICHEL","MARTIN MICHEL",2012,2014,"Méditerranée","CDB Bouches du Rhône",19090,"BILLARD AMATEUR ROGNAC","19090 – BILLARD AMATEUR ROGNAC","Oui","R2","R2",0.94,0.83,"à","SELON RÈGLEMENT SPORTIF LIGUE"]
["137032M","MARTIN","THOMAS","MARTIN THOMAS",2011,2013,"Méditerranée","CDB Vaucluse",19027,"ACADEMIE DE BILLARD DE BOLLENE","19027 – ACADEMIE DE BILLARD DE BOLLENE","Oui","R2","R2",0.86,0.76,"à","SELON RÈGLEMENT SPORTIF LIGUE"]
["103581X","MASSERAN","PHILIPPE","MASSERAN PHILIPPE",2020,2025,"Méditerranée","CDB Alpes Maritimes",19058,"ACADEMIE DE BILLARD DE BARBOSSI MANDELIEU","19058 – ACADEMIE DE BILLARD DE BARBOSSI MANDELIEU","Oui","R2","R2",0.91,0.81,"à","SELON RÈGLEMENT SPORTIF LIGUE"]
["172680W","MASSIAS","GUY","MASSIAS GUY",2025,2025,"Méditerranée","CDB Bouches du Rhône",19001,"S. S. A. B. D AIX EN PROVENCE","19001 – S. S. A. B. D AIX EN PROVENCE","Oui","-","R2",0.6,0.53,"à","SELON RÈGLEMENT SPORTIF LIGUE"]
["015513R","MASSON","DENIS","MASSON DENIS",2017,2018,"Méditerranée","CDB Var",19023,"BILLARD CLUB GARDEEN","19023 – BILLARD CLUB GARDEEN","Oui","R1","R2",1,0.89,"â","AUTORISÉ"]
["159674J","MASSOT","SEBASTIEN","MASSOT SEBASTIEN",2023,2025,"Méditerranée","CDB Alpes Haute Provence",19025,"BILLARD CLUB SISTERONNAIS","19025 – BILLARD CLUB SISTERONNAIS","Oui","R1","R1",1.3,1.1499999999999999,"à","SELON RÈGLEMENT SPORTIF LIGUE"]
["129498S","MATHIEU","CLAUDE","MATHIEU CLAUDE",2024,2025,"Méditerranée","CDB Bouches du Rhône",19098,"BILLARD CLUB LA FARE","19098 – BILLARD CLUB LA FARE","Oui","R2","R2",0.74,0.66,"à","SELON RÈGLEMENT SPORTIF LIGUE"]
["017615N","MAUDUIT","DIDIER","MAUDUIT DIDIER",2024,2025,"Méditerranée","CDB Bouches du Rhône",19009,"CLUB BILLARD ISTREEN","19009 – CLUB BILLARD ISTREEN","Oui","R2","R2",0.7,0.62,"à","SELON RÈGLEMENT SPORTIF LIGUE"]
["149391G","MAURON","BERNARD","MAURON BERNARD",2024,2025,"Méditerranée","CDB Var",19023,"BILLARD CLUB GARDEEN","19023 – BILLARD CLUB GARDEEN","Oui","R1","R1",1.1499999999999999,1.02,"à","SELON RÈGLEMENT SPORTIF LIGUE"]
["022246Q","MAYEUR","JACQUES","MAYEUR JACQUES",2011,2021,"Méditerranée","CDB Var",19059,"BILLARD CLUB ROQUEBRUNOIS","19059 – BILLARD CLUB ROQUEBRUNOIS","Oui","R1","R1",1.4,1.24,"à","SELON RÈGLEMENT SPORTIF LIGUE"]
["112015H","MAYNARD","ALEXANDRE","MAYNARD ALEXANDRE",2025,2025,"Méditerranée","CDB Alpes Maritimes",19056,"BILLARD CLUB DE NICE","19056 – BILLARD CLUB DE NICE","Oui","R2","R2",0.86,0.76,"à","SELON RÈGLEMENT SPORTIF LIGUE"]
["144802I","MELLET","PIERRE","MELLET PIERRE",2025,2025,"Méditerranée","CDB Vaucluse",19027,"ACADEMIE DE BILLARD DE BOLLENE","19027 – ACADEMIE DE BILLARD DE BOLLENE","Oui","R1","R2",1.07,0.95,"â","AUTORISÉ"]
["152604Z","METAIS","ALBAN","METAIS ALBAN",2025,2025,"Méditerranée","CDB Vaucluse",19006,"BILLARD CLUB CARPENTRASSIEN","19006 – BILLARD CLUB CARPENTRASSIEN","Oui","R1","R1",1.19,1.06,"à","SELON RÈGLEMENT SPORTIF LIGUE"]
["022260E","MEYER","LUC","MEYER LUC",2019,2025,"Méditerranée","CDB Var",19023,"BILLARD CLUB GARDEEN","19023 – BILLARD CLUB GARDEEN","Oui","N3","R1",1.79,1.59,"â","AUTORISÉ"]
["183513W","MICHEL","JACQUES","MICHEL JACQUES",2025,2025,"Méditerranée","CDB Vaucluse",19006,"BILLARD CLUB CARPENTRASSIEN","19006 – BILLARD CLUB CARPENTRASSIEN","Oui","-","R2",0.6,0.53,"à","SELON RÈGLEMENT SPORTIF LIGUE"]
["176968G","MILANA","NICOLAS","MILANA NICOLAS",2024,2024,"Méditerranée","CDB Bouches du Rhône",19007,"BILLARD CLUB BERROIS","19007 – BILLARD CLUB BERROIS","Oui","R2","R2",0.51,0.46,"à","SELON RÈGLEMENT SPORTIF LIGUE"]
["022266K","MOGLIA","EMILE","MOGLIA EMILE",2018,2025,"Méditerranée","CDB Vaucluse",19014,"BILLARD CLUB AVIGNONNAIS","19014 – BILLARD CLUB AVIGNONNAIS","Oui","N3","N3",1.83,1.63,"à","SELON RÈGLEMENT SPORTIF LIGUE"]
["022268M","MOLAND","PHILIPPE","MOLAND PHILIPPE",2025,2025,"Méditerranée","CDB Var",19059,"BILLARD CLUB ROQUEBRUNOIS","19059 – BILLARD CLUB ROQUEBRUNOIS","Oui","R1","R1",1.1200000000000001,0.99,"à","SELON RÈGLEMENT SPORTIF LIGUE"]
["022271P","MONNET","JEAN CLAUDE","MONNET JEAN CLAUDE",2025,2025,"Méditerranée","CDB Vaucluse",19021,"BILLARD CLUB CAVAILLONNAIS","19021 – BILLARD CLUB CAVAILLONNAIS","Oui","N3","N3",1.8,1.61,"à","SELON RÈGLEMENT SPORTIF LIGUE"]
["014997V","MONTAY","JEAN CLAUDE","MONTAY JEAN CLAUDE",2017,2018,"Méditerranée","CDB Vaucluse",19027,"ACADEMIE DE BILLARD DE BOLLENE","19027 – ACADEMIE DE BILLARD DE BOLLENE","Oui","R1","R2",1.04,0.93,"â","AUTORISÉ"]
["136279N","MONTESINOS","GILLES","MONTESINOS GILLES",2025,2025,"Méditerranée","CDB Bouches du Rhône",19012,"SALON BILLARD CLUB","19012 – SALON BILLARD CLUB","Oui","R2","R2",0.59,0.52,"à","SELON RÈGLEMENT SPORTIF LIGUE"]
["147624L","MOREELS","BERNARD",{"$f":"B258&\" \"&C258","v":"MOREELS BERNARD"},2025,2025,"Méditerranée","CDB Var",19023,"BILLARD CLUB GARDEEN",{"$f":"I258&\" – \"&J258","v":"19023 – BILLARD CLUB GARDEEN"},"Oui","R1","R2",0.81,0.72,"â","AUTORISÉ"]
["101279J","MORENO","BASTIEN","MORENO BASTIEN",2017,2017,"Méditerranée","CDB Bouches du Rhône",19007,"BILLARD CLUB BERROIS","19007 – BILLARD CLUB BERROIS","Oui","N3","N3",2.37,2.11,"à","SELON RÈGLEMENT SPORTIF LIGUE"]
["022278W","MORPOURGO","SIMON","MORPOURGO SIMON",2016,2017,"Méditerranée","CDB Bouches du Rhône",19007,"BILLARD CLUB BERROIS","19007 – BILLARD CLUB BERROIS","Oui","R2","R2",0.65,0.56999999999999995,"à","SELON RÈGLEMENT SPORTIF LIGUE"]
["151456B","MOUSSIER","PATRICK","MOUSSIER PATRICK",2025,2025,"Méditerranée","CDB Alpes Maritimes",19056,"BILLARD CLUB DE NICE","19056 – BILLARD CLUB DE NICE","Oui","R2","R2",0.72,0.64,"à","SELON RÈGLEMENT SPORTIF LIGUE"]
["109063T","MUNOS","JEAN","MUNOS JEAN",2025,2025,"Méditerranée","CDB Bouches du Rhône",19050,"BILLARD CLUB SAUSSETOIS","19050 – BILLARD CLUB SAUSSETOIS","Oui","N3","R1",1.74,1.55,"â","AUTORISÉ"]
["109708O","MUNOS","VINCENT","MUNOS VINCENT",2022,2025,"Méditerranée","CDB Bouches du Rhône",19007,"BILLARD CLUB BERROIS","19007 – BILLARD CLUB BERROIS","Oui","N3","N3",1.85,1.65,"à","SELON RÈGLEMENT SPORTIF LIGUE"]
["022284C","MUNOZ","CHRISTIAN","MUNOZ CHRISTIAN",2009,2025,"Méditerranée","CDB Vaucluse",19021,"BILLARD CLUB CAVAILLONNAIS","19021 – BILLARD CLUB CAVAILLONNAIS","Oui","R1","R1",1.4,1.24,"à","SELON RÈGLEMENT SPORTIF LIGUE"]
["141788K","N GUYEN VAN DUC","MAX","N GUYEN VAN DUC MAX",2025,2025,"Méditerranée","CDB Bouches du Rhône",19007,"BILLARD CLUB BERROIS","19007 – BILLARD CLUB BERROIS","Oui","R2","R2",0.71,0.63,"à","SELON RÈGLEMENT SPORTIF LIGUE"]
["166329S","NABHANE","EMILE","NABHANE EMILE",2024,2025,"Méditerranée","CDB Vaucluse",19006,"BILLARD CLUB CARPENTRASSIEN","19006 – BILLARD CLUB CARPENTRASSIEN","Oui","R2","R2",0.67,0.6,"à","SELON RÈGLEMENT SPORTIF LIGUE"]
["154572N","NATELLA","ROGER","NATELLA ROGER",2023,2025,"Méditerranée","CDB Alpes Maritimes",19056,"BILLARD CLUB DE NICE","19056 – BILLARD CLUB DE NICE","Oui","R2","R2",0.82,0.73,"à","SELON RÈGLEMENT SPORTIF LIGUE"]
["182190H","NOSSIN","MARC","NOSSIN MARC",2025,2025,"Méditerranée","CDB Alpes Maritimes",19058,"ACADEMIE DE BILLARD DE BARBOSSI MANDELIEU","19058 – ACADEMIE DE BILLARD DE BARBOSSI MANDELIEU","Oui","R2","R2",0.52,0.46,"à","SELON RÈGLEMENT SPORTIF LIGUE"]
["020258E","OLLIVIER","DANIEL","OLLIVIER DANIEL",2025,2025,"Méditerranée","CDB Bouches du Rhône",19009,"CLUB BILLARD ISTREEN","19009 – CLUB BILLARD ISTREEN","Oui","R1","R2",0.91,0.81,"â","AUTORISÉ"]
["128468C","OUDOUX","GERARD","OUDOUX GERARD",2025,2025,"Méditerranée","CDB Var",19023,"BILLARD CLUB GARDEEN","19023 – BILLARD CLUB GARDEEN","Oui","R2","R2",0.69,0.61,"à","SELON RÈGLEMENT SPORTIF LIGUE"]
["150400D","PACZESNY","FABRICE","PACZESNY FABRICE",2025,2025,"Méditerranée","CDB Bouches du Rhône",19098,"BILLARD CLUB LA FARE","19098 – BILLARD CLUB LA FARE","Oui","R1","R2",1.07,0.95,"â","AUTORISÉ"]
["022308A","PARINELLO","RENE","PARINELLO RENE",2009,2018,"Méditerranée","CDB Var",19023,"BILLARD CLUB GARDEEN","19023 – BILLARD CLUB GARDEEN","Oui","N3","N3",2.29,2.04,"à","SELON RÈGLEMENT SPORTIF LIGUE"]
["153692G","PAVIOT","DIDIER","PAVIOT DIDIER",2016,2020,"Méditerranée","CDB Var",19023,"BILLARD CLUB GARDEEN","19023 – BILLARD CLUB GARDEEN","Oui","R2","R2",0.97,0.86,"à","SELON RÈGLEMENT SPORTIF LIGUE"]
["141673Z","PELLAT","FRANCIS","PELLAT FRANCIS",2025,2025,"Méditerranée","CDB Alpes Haute Provence",19025,"BILLARD CLUB SISTERONNAIS","19025 – BILLARD CLUB SISTERONNAIS","Oui","R1","R1",1.1200000000000001,0.99,"à","SELON RÈGLEMENT SPORTIF LIGUE"]
["103577T","PENEDO","MANUEL","PENEDO MANUEL",2017,2024,"Méditerranée","CDB Var",19106,"BILLARD CLUB VINONNAIS","19106 – BILLARD CLUB VINONNAIS","Oui","R1","R1",1.58,1.41,"à","SELON RÈGLEMENT SPORTIF LIGUE"]
["130773T","PEREZ","CHRISTIAN","PEREZ CHRISTIAN",2025,2025,"Méditerranée","CDB Bouches du Rhône",19009,"CLUB BILLARD ISTREEN","19009 – CLUB BILLARD ISTREEN","Oui","R2","R2",0.82,0.73,"à","SELON RÈGLEMENT SPORTIF LIGUE"]
["022319L","PERIES","MICHEL","PERIES MICHEL",2014,2015,"Méditerranée","CDB Alpes Haute Provence",19025,"BILLARD CLUB SISTERONNAIS","19025 – BILLARD CLUB SISTERONNAIS","Oui","N3","N3",2.0499999999999998,1.83,"à","SELON RÈGLEMENT SPORTIF LIGUE"]
["022321N","PERIS","MICHEL","PERIS MICHEL",2025,2025,"Méditerranée","CDB Alpes Maritimes",19056,"BILLARD CLUB DE NICE","19056 – BILLARD CLUB DE NICE","Oui","R2","R2",0.39,0.34,"à","SELON RÈGLEMENT SPORTIF LIGUE"]
["104401L","PERRE","OLIVIER","PERRE OLIVIER",2016,2003,"Méditerranée","CDB Alpes Maritimes",19064,"NIZZA BILLARD CLUB","19064 – NIZZA BILLARD CLUB","Oui","R1","R2",1.02,0.9,"â","AUTORISÉ"]
["015932U","PERRIN","BERNARD","PERRIN BERNARD",2015,2016,"Méditerranée","CDB Bouches du Rhône",19098,"BILLARD CLUB LA FARE","19098 – BILLARD CLUB LA FARE","Oui","R1","R2",0.92,0.81,"â","AUTORISÉ"]
["181624S","PERRIN","LIONEL","PERRIN LIONEL",2025,2025,"Méditerranée","CDB Var",19023,"BILLARD CLUB GARDEEN","19023 – BILLARD CLUB GARDEEN","Oui","R2","R2",0.62,0.55000000000000004,"à","SELON RÈGLEMENT SPORTIF LIGUE"]
["179183P","PETIT","PHILIPPE","PETIT PHILIPPE",2025,2025,"Méditerranée","CDB Vaucluse",19014,"BILLARD CLUB AVIGNONNAIS","19014 – BILLARD CLUB AVIGNONNAIS","Oui","-","R2",0.54,0.48,"à","SELON RÈGLEMENT SPORTIF LIGUE"]
["129330G","PICOLLET","MANUEL","PICOLLET MANUEL",2019,2022,"Méditerranée","CDB Bouches du Rhône",19090,"BILLARD AMATEUR ROGNAC","19090 – BILLARD AMATEUR ROGNAC","Oui","N3","R1",1.75,1.56,"â","AUTORISÉ"]
["022330W","PIELIN","PASCAL","PIELIN PASCAL",2024,2025,"Méditerranée","CDB Bouches du Rhône",19012,"SALON BILLARD CLUB","19012 – SALON BILLARD CLUB","Oui","N3","N3",2.2400000000000002,1.99,"à","SELON RÈGLEMENT SPORTIF LIGUE"]
["112316W","PIGNATEL","FLORENT","PIGNATEL FLORENT",2025,2025,"Méditerranée","CDB Vaucluse",19021,"BILLARD CLUB CAVAILLONNAIS","19021 – BILLARD CLUB CAVAILLONNAIS","Oui","N1","N2",2.15,1.91,"â","AUTORISÉ"]
["105404A","PINARD","PATRICE","PINARD PATRICE",2023,2025,"Méditerranée","CDB Bouches du Rhône",19012,"SALON BILLARD CLUB","19012 – SALON BILLARD CLUB","Oui","N3","R1",1.56,1.39,"â","AUTORISÉ"]
["022332Y","PINNA","ALAIN","PINNA ALAIN",2025,2025,"Méditerranée","CDB Bouches du Rhône",19017,"BILLARD CLUB PHOCEEN","19017 – BILLARD CLUB PHOCEEN","Oui","N1","N2",2.2999999999999998,2.0499999999999998,"â","AUTORISÉ"]
["148229T","PINNA","VINCENT","PINNA VINCENT",2015,2025,"Méditerranée","CDB Bouches du Rhône",19017,"BILLARD CLUB PHOCEEN","19017 – BILLARD CLUB PHOCEEN","Oui","R2","R2",0.47,0.42,"à","SELON RÈGLEMENT SPORTIF LIGUE"]
["022335B","PIONE","GUY","PIONE GUY",2014,2015,"Méditerranée","CDB Bouches du Rhône",19007,"BILLARD CLUB BERROIS","19007 – BILLARD CLUB BERROIS","Oui","R1","R1",1.17,1.04,"à","SELON RÈGLEMENT SPORTIF LIGUE"]
["138458I","POIRE","DANIEL","POIRE DANIEL",2014,2022,"Méditerranée","CDB Alpes Maritimes",19058,"ACADEMIE DE BILLARD DE BARBOSSI MANDELIEU","19058 – ACADEMIE DE BILLARD DE BARBOSSI MANDELIEU","Oui","R1","R1",1.26,1.1200000000000001,"à","SELON RÈGLEMENT SPORTIF LIGUE"]
["108010G","POIRIER","DOMINIQUE","POIRIER DOMINIQUE",2017,2025,"Méditerranée","CDB Var",19061,"ACAD.BILLARD ST RAPHAEL","19061 – ACAD.BILLARD ST RAPHAEL","Oui","R1","R2",0.96,0.85,"â","AUTORISÉ"]
["170697Q","PORA","JEAN PAUL","PORA JEAN PAUL",2025,2025,"Méditerranée","CDB Bouches du Rhône",19009,"CLUB BILLARD ISTREEN","19009 – CLUB BILLARD ISTREEN","Oui","R2","R2",0.64,0.56999999999999995,"à","SELON RÈGLEMENT SPORTIF LIGUE"]
["181316H","PORTET","PATRICK","PORTET PATRICK",2025,2025,"Méditerranée","CDB Var",19059,"BILLARD CLUB ROQUEBRUNOIS","19059 – BILLARD CLUB ROQUEBRUNOIS","Oui","R2","R2",0.52,0.46,"à","SELON RÈGLEMENT SPORTIF LIGUE"]
["022346M","POUGIN","JEAN FRANCOIS","POUGIN JEAN FRANCOIS",2025,2025,"Méditerranée","CDB Var",19059,"BILLARD CLUB ROQUEBRUNOIS","19059 – BILLARD CLUB ROQUEBRUNOIS","Oui","R2","R2",0.93,0.83,"à","SELON RÈGLEMENT SPORTIF LIGUE"]
["022347N","POUJOL","JEAN PAUL","POUJOL JEAN PAUL",2025,2025,"Méditerranée","CDB Vaucluse",19014,"BILLARD CLUB AVIGNONNAIS","19014 – BILLARD CLUB AVIGNONNAIS","Oui","R2","R2",0.78,0.7,"à","SELON RÈGLEMENT SPORTIF LIGUE"]
["144719D","POULAIN","FREDERIC","POULAIN FREDERIC",2025,2025,"Méditerranée","CDB Vaucluse",19016,"BILLARD CLUB ORANGEOIS","19016 – BILLARD CLUB ORANGEOIS","Oui","R1","R2",0.98,0.87,"â","AUTORISÉ"]
["022349P","POZNANSKI","JEAN MICHEL","POZNANSKI JEAN MICHEL",2023,2025,"Méditerranée","CDB Bouches du Rhône",19012,"SALON BILLARD CLUB","19012 – SALON BILLARD CLUB","Oui","R1","R1",1.57,1.39,"à","SELON RÈGLEMENT SPORTIF LIGUE"]
["172219V","PUICHAULT","REMY","PUICHAULT REMY",2024,2025,"Méditerranée","CDB Alpes Haute Provence",19025,"BILLARD CLUB SISTERONNAIS","19025 – BILLARD CLUB SISTERONNAIS","Oui","R1","R2",1.02,0.9,"â","AUTORISÉ"]
["022353T","PUT","MARCEL","PUT MARCEL",2010,2011,"Méditerranée","CDB Vaucluse",19006,"BILLARD CLUB CARPENTRASSIEN","19006 – BILLARD CLUB CARPENTRASSIEN","Oui","R2","R2",0.35,0.31,"à","SELON RÈGLEMENT SPORTIF LIGUE"]
["022354U","QUANTIN","MICHEL","QUANTIN MICHEL",2015,2016,"Méditerranée","CDB Bouches du Rhône",19098,"BILLARD CLUB LA FARE","19098 – BILLARD CLUB LA FARE","Oui","R1","R1",1.31,1.17,"à","SELON RÈGLEMENT SPORTIF LIGUE"]
["136544S","QUEZEL","ANDRE","QUEZEL ANDRE",2025,2025,"Méditerranée","CDB Vaucluse",19014,"BILLARD CLUB AVIGNONNAIS","19014 – BILLARD CLUB AVIGNONNAIS","Oui","R2","R2",0.62,0.55000000000000004,"à","SELON RÈGLEMENT SPORTIF LIGUE"]
["022357X","RAMOND","JEAN MARC","RAMOND JEAN MARC",2025,2025,"Méditerranée","CDB Alpes Maritimes",19058,"ACADEMIE DE BILLARD DE BARBOSSI MANDELIEU","19058 – ACADEMIE DE BILLARD DE BARBOSSI MANDELIEU","Oui","R1","R1",1.19,1.05,"à","SELON RÈGLEMENT SPORTIF LIGUE"]
["136205R","RANC","ALAIN","RANC ALAIN",2022,2025,"Méditerranée","CDB Vaucluse",19027,"ACADEMIE DE BILLARD DE BOLLENE","19027 – ACADEMIE DE BILLARD DE BOLLENE","Oui","R2","R2",0.63,0.56000000000000005,"à","SELON RÈGLEMENT SPORTIF LIGUE"]
["161645B","RAUD","DANIEL","RAUD DANIEL",2025,2025,"Méditerranée","CDB Bouches du Rhône",19098,"BILLARD CLUB LA FARE","19098 – BILLARD CLUB LA FARE","Oui","R1","R2",1.03,0.91,"â","AUTORISÉ"]
["157788J","RAVENET","FRANCIS","RAVENET FRANCIS",2025,2025,"Méditerranée","CDB Var",19059,"BILLARD CLUB ROQUEBRUNOIS","19059 – BILLARD CLUB ROQUEBRUNOIS","Oui","R1","R1",1.18,1.05,"à","SELON RÈGLEMENT SPORTIF LIGUE"]
["103561D","RAVERDINO","JULIEN","RAVERDINO JULIEN",2012,2011,"Méditerranée","CDB Alpes Maritimes",19057,"ACADEMIE VENCOISE DE BILLARD","19057 – ACADEMIE VENCOISE DE BILLARD","Oui","N1","N2",3.03,2.7,"â","AUTORISÉ"]
["119696S","REVALOR","MICHEL","REVALOR MICHEL",2024,2025,"Méditerranée","CDB Bouches du Rhône",19050,"BILLARD CLUB SAUSSETOIS","19050 – BILLARD CLUB SAUSSETOIS","Oui","R1","R1",1.1100000000000001,0.98,"à","SELON RÈGLEMENT SPORTIF LIGUE"]
["022366G","RIBOLLA","PATRICE","RIBOLLA PATRICE",2025,2025,"Méditerranée","CDB Alpes Maritimes",19056,"BILLARD CLUB DE NICE","19056 – BILLARD CLUB DE NICE","Oui","R1","R1",1.39,1.24,"à","SELON RÈGLEMENT SPORTIF LIGUE"]
["133646G","RICART","ANDRE","RICART ANDRE",2019,2019,"Méditerranée","CDB Bouches du Rhône",19009,"CLUB BILLARD ISTREEN","19009 – CLUB BILLARD ISTREEN","Oui","R1","R1",1.1000000000000001,0.98,"à","SELON RÈGLEMENT SPORTIF LIGUE"]
["137033N","RICHARD","MATHIEU","RICHARD MATHIEU",2009,2009,"Méditerranée","CDB Vaucluse",19027,"ACADEMIE DE BILLARD DE BOLLENE","19027 – ACADEMIE DE BILLARD DE BOLLENE","Oui","R2","R2",0.34,0.3,"à","SELON RÈGLEMENT SPORTIF LIGUE"]
["125943Z","RIFFET","BERNARD","RIFFET BERNARD",2020,2020,"Méditerranée","CDB Vaucluse",19014,"BILLARD CLUB AVIGNONNAIS","19014 – BILLARD CLUB AVIGNONNAIS","Oui","R2","R2",0.51,0.45,"à","SELON RÈGLEMENT SPORTIF LIGUE"]
["022372M","RIGNOLS","PHILIPPE","RIGNOLS PHILIPPE",2013,2025,"Méditerranée","CDB Vaucluse",19021,"BILLARD CLUB CAVAILLONNAIS","19021 – BILLARD CLUB CAVAILLONNAIS","Oui","R1","R1",1.33,1.18,"à","SELON RÈGLEMENT SPORTIF LIGUE"]
["023064C","RIGOLLET","PIERRE","RIGOLLET PIERRE",2025,2025,"Méditerranée","CDB Alpes Haute Provence",19025,"BILLARD CLUB SISTERONNAIS","19025 – BILLARD CLUB SISTERONNAIS","Oui","N3","N2",2.65,2.36,"á","SELON RÈGLEMENT SPORTIF LIGUE"]
["134183X","ROBBE","RAYMOND","ROBBE RAYMOND",2025,2025,"Méditerranée","CDB Bouches du Rhône",19009,"CLUB BILLARD ISTREEN","19009 – CLUB BILLARD ISTREEN","Oui","R1","R2",0.94,0.83,"â","AUTORISÉ"]
["171160T","RODRIGUES","STEVE","RODRIGUES STEVE",2024,2025,"Méditerranée","CDB Bouches du Rhône",19090,"BILLARD AMATEUR ROGNAC","19090 – BILLARD AMATEUR ROGNAC","Oui","R2","R2",0.53,0.47,"à","SELON RÈGLEMENT SPORTIF LIGUE"]
["134843H","ROGER","GERARD","ROGER GERARD",2018,2025,"Méditerranée","CDB Vaucluse",19021,"BILLARD CLUB CAVAILLONNAIS","19021 – BILLARD CLUB CAVAILLONNAIS","Oui","R2","R2",0.68,0.61,"à","SELON RÈGLEMENT SPORTIF LIGUE"]
["022380U","ROLLAND","JACQUES","ROLLAND JACQUES",2011,2016,"Méditerranée","CDB Bouches du Rhône",19009,"CLUB BILLARD ISTREEN","19009 – CLUB BILLARD ISTREEN","Oui","R1","R2",0.93,0.83,"â","AUTORISÉ"]
["166175A","RONSAIN","JEAN JACQUES","RONSAIN JEAN JACQUES",2025,2025,"Méditerranée","CDB Bouches du Rhône",19012,"SALON BILLARD CLUB","19012 – SALON BILLARD CLUB","Oui","R2","R2",0.8,0.71,"à","SELON RÈGLEMENT SPORTIF LIGUE"]
["132526E","ROQUES","ALAIN","ROQUES ALAIN",2019,2024,"Méditerranée","CDB Alpes Maritimes",19056,"BILLARD CLUB DE NICE","19056 – BILLARD CLUB DE NICE","Oui","R2","R2",0.56000000000000005,0.5,"à","SELON RÈGLEMENT SPORTIF LIGUE"]
["163166E","ROUANET","CLAUDE","ROUANET CLAUDE",2022,2025,"Méditerranée","CDB Alpes Haute Provence",19025,"BILLARD CLUB SISTERONNAIS","19025 – BILLARD CLUB SISTERONNAIS","Oui","R1","R1",1.3,1.1599999999999999,"à","SELON RÈGLEMENT SPORTIF LIGUE"]
["101518O","ROUGON","ROBERT","ROUGON ROBERT",2025,2025,"Méditerranée","CDB Bouches du Rhône",19007,"BILLARD CLUB BERROIS","19007 – BILLARD CLUB BERROIS","Oui","R1","R1",1.59,1.41,"à","SELON RÈGLEMENT SPORTIF LIGUE"]
["022384Y","ROUX","CLAUDE",{"$f":"B322&\" \"&C322","v":"ROUX CLAUDE"},2017,2020,"Méditerranée","CDB Bouches du Rhône",19050,"BILLARD CLUB SAUSSETOIS",{"$f":"I322&\" – \"&J322","v":"19050 – BILLARD CLUB SAUSSETOIS"},"Oui","N3","R1",1.66,1.48,"â","AUTORISÉ"]
["121397D","RYCKELYNCK","LAURENT","RYCKELYNCK LAURENT",2025,2025,"Méditerranée","CDB Vaucluse",19006,"BILLARD CLUB CARPENTRASSIEN","19006 – BILLARD CLUB CARPENTRASSIEN","Oui","-","R1",1.23,1.0900000000000001,"à","SELON RÈGLEMENT SPORTIF LIGUE"]
["136546U","SALAMA","ALAIN","SALAMA ALAIN",2022,2025,"Méditerranée","CDB Vaucluse",19021,"BILLARD CLUB CAVAILLONNAIS","19021 – BILLARD CLUB CAVAILLONNAIS","Oui","R1","R2",0.9,0.8,"â","AUTORISÉ"]
["175174G","SALES","THIERRY","SALES THIERRY",2024,2025,"Méditerranée","CDB Var",19061,"ACAD.BILLARD ST RAPHAEL","19061 – ACAD.BILLARD ST RAPHAEL","Oui","R2","R2",0.78,0.69,"à","SELON RÈGLEMENT SPORTIF LIGUE"]
["120008S","SAMUEL","CHRISTIAN","SAMUEL CHRISTIAN",2025,2025,"Méditerranée","CDB Var",19023,"BILLARD CLUB GARDEEN","19023 – BILLARD CLUB GARDEEN","Oui","R1","R1",1.19,1.06,"à","SELON RÈGLEMENT SPORTIF LIGUE"]
["118693D","SANTIAGO","EMMANUEL","SANTIAGO EMMANUEL",2025,2025,"Méditerranée","CDB Vaucluse",19021,"BILLARD CLUB CAVAILLONNAIS","19021 – BILLARD CLUB CAVAILLONNAIS","Oui","-","R2",1.03,0.92,"à","SELON RÈGLEMENT SPORTIF LIGUE"]
["022391F","SANTIAGO","JEAN JOSEPH","SANTIAGO JEAN JOSEPH",2024,2025,"Méditerranée","CDB Bouches du Rhône",19050,"BILLARD CLUB SAUSSETOIS","19050 – BILLARD CLUB SAUSSETOIS","Oui","N3","N3",2.34,2.09,"à","SELON RÈGLEMENT SPORTIF LIGUE"]
["014138U","SARRALDE","LOUIS","SARRALDE LOUIS",2025,2025,"Méditerranée","CDB Vaucluse",19021,"BILLARD CLUB CAVAILLONNAIS","19021 – BILLARD CLUB CAVAILLONNAIS","Oui","R2","R2",0.59,0.52,"à","SELON RÈGLEMENT SPORTIF LIGUE"]
["122939L","SAVOIA","MICKAEL","SAVOIA MICKAEL",2013,2014,"Méditerranée","CDB Bouches du Rhône",19050,"BILLARD CLUB SAUSSETOIS","19050 – BILLARD CLUB SAUSSETOIS","Oui","R2","R2",0.85,0.76,"à","SELON RÈGLEMENT SPORTIF LIGUE"]
["113222S","SAVOIA","PATRICK","SAVOIA PATRICK",2023,2025,"Méditerranée","CDB Bouches du Rhône",19050,"BILLARD CLUB SAUSSETOIS","19050 – BILLARD CLUB SAUSSETOIS","Oui","R1","R2",1.03,0.91,"â","AUTORISÉ"]
["149694L","SCHAEFER","ERNEST ROBERT","SCHAEFER ERNEST ROBERT",2025,2025,"Méditerranée","CDB Vaucluse",19006,"BILLARD CLUB CARPENTRASSIEN","19006 – BILLARD CLUB CARPENTRASSIEN","Oui","R2","R2",0.69,0.61,"à","SELON RÈGLEMENT SPORTIF LIGUE"]
["022399N","SCHEKLER","JEAN FLORIAN","SCHEKLER JEAN FLORIAN",2019,2023,"Méditerranée","CDB Var",19061,"ACAD.BILLARD ST RAPHAEL","19061 – ACAD.BILLARD ST RAPHAEL","Oui","R1","R1",1.2,1.06,"à","SELON RÈGLEMENT SPORTIF LIGUE"]
["136540O","SCHENK","ROBERT","SCHENK ROBERT",2025,2025,"Méditerranée","CDB Alpes Maritimes",19056,"BILLARD CLUB DE NICE","19056 – BILLARD CLUB DE NICE","Oui","R2","R2",0.5,0.44,"à","SELON RÈGLEMENT SPORTIF LIGUE"]
["022401P","SCHMIDT","CLAUDE","SCHMIDT CLAUDE",2009,2010,"Méditerranée","CDB Var",19023,"BILLARD CLUB GARDEEN","19023 – BILLARD CLUB GARDEEN","Oui","N1","N2",3.07,2.73,"â","AUTORISÉ"]
["163238H","SICARD","GEORGES","SICARD GEORGES",2022,2025,"Méditerranée","CDB Alpes Haute Provence",19025,"BILLARD CLUB SISTERONNAIS","19025 – BILLARD CLUB SISTERONNAIS","Oui","R2","R2",0.84,0.75,"à","SELON RÈGLEMENT SPORTIF LIGUE"]
["168834Q","SIEGLER","JEAN PIERRE","SIEGLER JEAN PIERRE",2025,2025,"Méditerranée","CDB Vaucluse",19006,"BILLARD CLUB CARPENTRASSIEN","19006 – BILLARD CLUB CARPENTRASSIEN","Oui","N3","R1",1.74,1.55,"â","AUTORISÉ"]
["010203L","SIMON","GERARD","SIMON GERARD",2025,2025,"Méditerranée","CDB Vaucluse",19014,"BILLARD CLUB AVIGNONNAIS","19014 – BILLARD CLUB AVIGNONNAIS","Oui","R1","R1",1.27,1.1299999999999999,"à","SELON RÈGLEMENT SPORTIF LIGUE"]
["022412A","SINANIAN","JEAN PAUL","SINANIAN JEAN PAUL",2025,2025,"Méditerranée","CDB Bouches du Rhône",19017,"BILLARD CLUB PHOCEEN","19017 – BILLARD CLUB PHOCEEN","Oui","R1","R1",1.6,1.43,"à","SELON RÈGLEMENT SPORTIF LIGUE"]
["103578U","SOLTANI","OMAR","SOLTANI OMAR",2024,2025,"Méditerranée","CDB Var",19106,"BILLARD CLUB VINONNAIS","19106 – BILLARD CLUB VINONNAIS","Oui","R1","R1",1.48,1.31,"à","SELON RÈGLEMENT SPORTIF LIGUE"]
["125929L","SOULAS","GERARD","SOULAS GERARD",2013,2023,"Méditerranée","CDB Var",19019,"BILLARD CLUB DE LA BAIE","19019 – BILLARD CLUB DE LA BAIE","Oui","R2","R2",0.67,0.6,"à","SELON RÈGLEMENT SPORTIF LIGUE"]
["149696N","SOUTEYRAND","CHRISTIAN","SOUTEYRAND CHRISTIAN",2018,2022,"Méditerranée","CDB Vaucluse",19006,"BILLARD CLUB CARPENTRASSIEN","19006 – BILLARD CLUB CARPENTRASSIEN","Oui","R2","R2",0.45,0.4,"à","SELON RÈGLEMENT SPORTIF LIGUE"]
["165931K","SPINNLER","JEAN LUC","SPINNLER JEAN LUC",2025,2025,"Méditerranée","CDB Vaucluse",19027,"ACADEMIE DE BILLARD DE BOLLENE","19027 – ACADEMIE DE BILLARD DE BOLLENE","Oui","-","R2",0.84,0.74,"à","SELON RÈGLEMENT SPORTIF LIGUE"]
["020790Q","STEINMANN","SEBASTIEN","STEINMANN SEBASTIEN",2025,2025,"Méditerranée","CDB Var",19061,"ACAD.BILLARD ST RAPHAEL","19061 – ACAD.BILLARD ST RAPHAEL","Oui","R1","R1",1.1399999999999999,1.02,"à","SELON RÈGLEMENT SPORTIF LIGUE"]
["144720E","STERCKX","PIERRE","STERCKX PIERRE",2014,2014,"Méditerranée","CDB Vaucluse",19016,"BILLARD CLUB ORANGEOIS","19016 – BILLARD CLUB ORANGEOIS","Oui","R2","R2",0.57999999999999996,0.52,"à","SELON RÈGLEMENT SPORTIF LIGUE"]
["165039Q","SUEUR","PASCAL","SUEUR PASCAL",2024,2024,"Méditerranée","CDB Alpes Maritimes",19058,"ACADEMIE DE BILLARD DE BARBOSSI MANDELIEU","19058 – ACADEMIE DE BILLARD DE BARBOSSI MANDELIEU","Oui","R2","R2",0.94,0.83,"à","SELON RÈGLEMENT SPORTIF LIGUE"]
["022429R","TARDIEUX","LUC","TARDIEUX LUC",2025,2025,"Méditerranée","CDB Bouches du Rhône",19098,"BILLARD CLUB LA FARE","19098 – BILLARD CLUB LA FARE","Oui","R1","R1",1.44,1.28,"à","SELON RÈGLEMENT SPORTIF LIGUE"]
["133907H","TARDY","JEAN CLAUDE","TARDY JEAN CLAUDE",2025,2025,"Méditerranée","CDB Vaucluse",19014,"BILLARD CLUB AVIGNONNAIS","19014 – BILLARD CLUB AVIGNONNAIS","Oui","R2","R2",0.48,0.43,"à","SELON RÈGLEMENT SPORTIF LIGUE"]
["118668E","TATTIS","HENRI","TATTIS HENRI",2011,2013,"Méditerranée","CDB Bouches du Rhône",19050,"BILLARD CLUB SAUSSETOIS","19050 – BILLARD CLUB SAUSSETOIS","Oui","R2","R2",0.77,0.69,"à","SELON RÈGLEMENT SPORTIF LIGUE"]
["123701T","TELOT","DOMINIQUE","TELOT DOMINIQUE",2024,2025,"Méditerranée","CDB Var",19059,"BILLARD CLUB ROQUEBRUNOIS","19059 – BILLARD CLUB ROQUEBRUNOIS","Oui","R1","R1",1.48,1.32,"à","SELON RÈGLEMENT SPORTIF LIGUE"]
["148464Z","TERZIAN","BERNARD","TERZIAN BERNARD",2013,2018,"Méditerranée","CDB Bouches du Rhône",19090,"BILLARD AMATEUR ROGNAC","19090 – BILLARD AMATEUR ROGNAC","Oui","R1","R1",1.1100000000000001,0.99,"à","SELON RÈGLEMENT SPORTIF LIGUE"]
["132938A","TEYSSIER","SERGE","TEYSSIER SERGE",2025,2025,"Méditerranée","CDB Bouches du Rhône",19007,"BILLARD CLUB BERROIS","19007 – BILLARD CLUB BERROIS","Oui","R1","R1",1.22,1.0900000000000001,"à","SELON RÈGLEMENT SPORTIF LIGUE"]
["168687F","THOMAS","PHILIPPE","THOMAS PHILIPPE",2025,2025,"Méditerranée","CDB Var",19023,"BILLARD CLUB GARDEEN","19023 – BILLARD CLUB GARDEEN","Oui","R2","R2",0.61,0.55000000000000004,"à","SELON RÈGLEMENT SPORTIF LIGUE"]
["148252T","TIMSIT","SERGE","TIMSIT SERGE",2025,2025,"Méditerranée","CDB Var",19023,"BILLARD CLUB GARDEEN","19023 – BILLARD CLUB GARDEEN","Oui","R2","R2",0.38,0.33,"à","SELON RÈGLEMENT SPORTIF LIGUE"]
["132786E","TONNELIER","JEAN PIERRE","TONNELIER JEAN PIERRE",2023,2024,"Méditerranée","CDB Var",19106,"BILLARD CLUB VINONNAIS","19106 – BILLARD CLUB VINONNAIS","Oui","R1","R2",0.8,0.72,"â","AUTORISÉ"]
["184495N","TORCHIO","GILBERT","TORCHIO GILBERT",2025,2025,"Méditerranée","CDB Bouches du Rhône",19017,"BILLARD CLUB PHOCEEN","19017 – BILLARD CLUB PHOCEEN","Oui","-","R2",0.64,0.56999999999999995,"à","SELON RÈGLEMENT SPORTIF LIGUE"]
["135554Q","TORES","JEAN LUC","TORES JEAN LUC",2025,2025,"Méditerranée","CDB Bouches du Rhône",19009,"CLUB BILLARD ISTREEN","19009 – CLUB BILLARD ISTREEN","Oui","R2","R1",1.1499999999999999,1.03,"á","SELON RÈGLEMENT SPORTIF LIGUE"]
["131929F","TRAN DINH","VUONG","TRAN DINH VUONG",2014,2025,"Méditerranée","CDB Bouches du Rhône",19002,"SPORT AMAT.DE BILLARD MARSEILLAIS","19002 – SPORT AMAT.DE BILLARD MARSEILLAIS","Oui","N3","R1",1.76,1.57,"â","AUTORISÉ"]
["018691X","TREMEAU","PHILIPPE","TREMEAU PHILIPPE",2016,2016,"Méditerranée","CDB Var",19059,"BILLARD CLUB ROQUEBRUNOIS","19059 – BILLARD CLUB ROQUEBRUNOIS","Oui","N3","R1",1.59,1.42,"â","AUTORISÉ"]
["022448K","TRUCCO","DOMINIQUE","TRUCCO DOMINIQUE",2009,2010,"Méditerranée","CDB Var",19023,"BILLARD CLUB GARDEEN","19023 – BILLARD CLUB GARDEEN","Oui","N3","R1",1.75,1.56,"â","AUTORISÉ"]
["172679V","TURPIN","JEAN","TURPIN JEAN",2025,2025,"Méditerranée","CDB Bouches du Rhône",19001,"S. S. A. B. D AIX EN PROVENCE","19001 – S. S. A. B. D AIX EN PROVENCE","Oui","-","R2",0.73,0.65,"à","SELON RÈGLEMENT SPORTIF LIGUE"]
["153163G","VALVERDE","JEAN YVES","VALVERDE JEAN YVES",2025,2025,"Méditerranée","CDB Var",19023,"BILLARD CLUB GARDEEN","19023 – BILLARD CLUB GARDEEN","Oui","R2","R2",0.61,0.54,"à","SELON RÈGLEMENT SPORTIF LIGUE"]
["129880K","VASSE","JEAN PIERRE","VASSE JEAN PIERRE",2023,2023,"Méditerranée","CDB Var",19019,"BILLARD CLUB DE LA BAIE","19019 – BILLARD CLUB DE LA BAIE","Oui","R2","R2",0.48,0.43,"à","SELON RÈGLEMENT SPORTIF LIGUE"]
["022459V","VAUTRIN","JEAN","VAUTRIN JEAN",2025,2025,"Méditerranée","CDB Alpes Maritimes",19056,"BILLARD CLUB DE NICE","19056 – BILLARD CLUB DE NICE","Oui","R1","R1",1.4,1.25,"à","SELON RÈGLEMENT SPORTIF LIGUE"]
["139061N","VERRIER","CLEMENT","VERRIER CLEMENT",2009,2010,"Méditerranée","CDB Bouches du Rhône",19012,"SALON BILLARD CLUB","19012 – SALON BILLARD CLUB","Oui","R2","R2",0.45,0.4,"à","SELON RÈGLEMENT SPORTIF LIGUE"]
["022466C","VIALATTE","ANDRE","VIALATTE ANDRE",2009,2023,"Méditerranée","CDB Vaucluse",19021,"BILLARD CLUB CAVAILLONNAIS","19021 – BILLARD CLUB CAVAILLONNAIS","Oui","R1","R1",1.31,1.1599999999999999,"à","SELON RÈGLEMENT SPORTIF LIGUE"]
["022467D","VIBOUREL","ETIENNE","VIBOUREL ETIENNE",2020,2022,"Méditerranée","CDB Var",19023,"BILLARD CLUB GARDEEN","19023 – BILLARD CLUB GARDEEN","Oui","R1","R1",1.27,1.1299999999999999,"à","SELON RÈGLEMENT SPORTIF LIGUE"]
["147412F","VICTOR","DANIEL","VICTOR DANIEL",2025,2025,"Méditerranée","CDB Var",19019,"BILLARD CLUB DE LA BAIE","19019 – BILLARD CLUB DE LA BAIE","Oui","R2","R2",0.52,0.46,"à","SELON RÈGLEMENT SPORTIF LIGUE"]
["149593B","VIDAL","JEAN PIERRE","VIDAL JEAN PIERRE",2015,2019,"Méditerranée","CDB Vaucluse",19014,"BILLARD CLUB AVIGNONNAIS","19014 – BILLARD CLUB AVIGNONNAIS","Oui","R2","R2",0.68,0.6,"à","SELON RÈGLEMENT SPORTIF LIGUE"]
["148051A","VIERA MAIA","ARLINDO","VIERA MAIA ARLINDO",2024,2025,"Méditerranée","CDB Var",19061,"ACAD.BILLARD ST RAPHAEL","19061 – ACAD.BILLARD ST RAPHAEL","Oui","R1","R2",1.08,0.96,"â","AUTORISÉ"]
["014327B","VIGNE","PHILIPPE","VIGNE PHILIPPE",2019,2025,"Méditerranée","CDB Vaucluse",19014,"BILLARD CLUB AVIGNONNAIS","19014 – BILLARD CLUB AVIGNONNAIS","Oui","N1","N2",2.57,2.29,"â","AUTORISÉ"]
["164317F","VILLARD","PATRICE","VILLARD PATRICE",2019,2023,"Méditerranée","CDB Vaucluse",19006,"BILLARD CLUB CARPENTRASSIEN","19006 – BILLARD CLUB CARPENTRASSIEN","Oui","R2","R2",0.56999999999999995,0.51,"à","SELON RÈGLEMENT SPORTIF LIGUE"]
["101485H","VILLASEVIL","ANTONIO","VILLASEVIL ANTONIO",2019,2025,"Méditerranée","CDB Bouches du Rhône",19007,"BILLARD CLUB BERROIS","19007 – BILLARD CLUB BERROIS","Oui","N3","N3",1.86,1.66,"à","SELON RÈGLEMENT SPORTIF LIGUE"]
["147607S","VIOU","GERARD","VIOU GERARD",2025,2025,"Méditerranée","CDB Bouches du Rhône",19098,"BILLARD CLUB LA FARE","19098 – BILLARD CLUB LA FARE","Oui","R1","R1",1.32,1.17,"à","SELON RÈGLEMENT SPORTIF LIGUE"]
["138731V","VISCONTI","JEAN","VISCONTI JEAN",2025,2025,"Méditerranée","CDB Bouches du Rhône",19090,"BILLARD AMATEUR ROGNAC","19090 – BILLARD AMATEUR ROGNAC","Oui","R2","R2",0.8,0.71,"à","SELON RÈGLEMENT SPORTIF LIGUE"]
["119674W","VITALIEN","PIERRE","VITALIEN PIERRE",2025,2025,"Méditerranée","CDB Vaucluse",19016,"BILLARD CLUB ORANGEOIS","19016 – BILLARD CLUB ORANGEOIS","Oui","R1","R1",1.23,1.1000000000000001,"à","SELON RÈGLEMENT SPORTIF LIGUE"]
["022476M","VIVALDI","ANDRE","VIVALDI ANDRE",2025,2025,"Méditerranée","CDB Var",19106,"BILLARD CLUB VINONNAIS","19106 – BILLARD CLUB VINONNAIS","Oui","N3","N3",2.4300000000000002,2.16,"à","SELON RÈGLEMENT SPORTIF LIGUE"]
["154571M","VUILLAUME","JEAN CLAUDE","VUILLAUME JEAN CLAUDE",2025,2025,"Méditerranée","CDB Alpes Maritimes",19056,"BILLARD CLUB DE NICE","19056 – BILLARD CLUB DE NICE","Oui","R2","R2",0.75,0.67,"à","SELON RÈGLEMENT SPORTIF LIGUE"]
["117872O","WARLET","JEAN CLAUDE","WARLET JEAN CLAUDE",2016,2025,"Méditerranée","CDB Var",19061,"ACAD.BILLARD ST RAPHAEL","19061 – ACAD.BILLARD ST RAPHAEL","Oui","N3","N3",1.8,1.6,"à","SELON RÈGLEMENT SPORTIF LIGUE"]
["152534Y","WILLAME","PHILIPPE","WILLAME PHILIPPE",2025,2025,"Méditerranée","CDB Bouches du Rhône",19001,"S. S. A. B. D AIX EN PROVENCE","19001 – S. S. A. B. D AIX EN PROVENCE","Oui","-","R2",0.63,0.56000000000000005,"à","SELON RÈGLEMENT SPORTIF LIGUE"]
["022483T","WILLETTE","MARC","WILLETTE MARC",2013,2021,"Méditerranée","CDB Bouches du Rhône",19009,"CLUB BILLARD ISTREEN","19009 – CLUB BILLARD ISTREEN","Oui","R1","R1",1.19,1.06,"à","SELON RÈGLEMENT SPORTIF LIGUE"]
["184288N","YVOZ","ALAIN","YVOZ ALAIN",2025,2025,"Méditerranée","CDB Vaucluse",19006,"BILLARD CLUB CARPENTRASSIEN","19006 – BILLARD CLUB CARPENTRASSIEN","Oui","-","R2",0.9,0.8,"à","SELON RÈGLEMENT SPORTIF LIGUE"]
["134311V","ZANDRINO","ALAIN","ZANDRINO ALAIN",2025,2025,"Méditerranée","CDB Bouches du Rhône",19007,"BILLARD CLUB BERROIS","19007 – BILLARD CLUB BERROIS","Oui","R1","R1",1.1399999999999999,1.01,"à","SELON RÈGLEMENT SPORTIF LIGUE"]
["144788U","ZOPPI","AIME","ZOPPI AIME",2024,2025,"Méditerranée","CDB Var",19106,"BILLARD CLUB VINONNAIS","19106 – BILLARD CLUB VINONNAIS","Oui","N3","R1",1.75,1.56,"â","AUTORISÉ"]
["125457H","ZOPPI","CEDRIC","ZOPPI CEDRIC",2024,2025,"Méditerranée","CDB Var",19106,"BILLARD CLUB VINONNAIS","19106 – BILLARD CLUB VINONNAIS","Oui","Masters","Masters",7.49,6.66,"à","SELON RÈGLEMENT SPORTIF LIGUE"]

{"sheet":"Classification 3BANDES","index":3,"n_rows":401,"n_cols":18,"rows_kept":401,"cut":false,"hidden":false,"merged":[]}
["Licence","Nom","Prénom","CONCATENER","Saison","Saison Licence","Ligue","CDB","Num club","Nom club","CONCATENER2","Classifié","Catégorie au 01/09/24","Catégorie au 01/09/25","Moy 2.80  au 01/09/25","Moy 3.10 au 01/09/25","Tendance classification","Inscription catégorie supérieure"]
["106287Z","ABAD","YANNICK",{"$f":"B2&\" \"&C2","v":"ABAD YANNICK"},2025,2025,"Méditerranée","CDB Bouches du Rhône",19002,"SPORT AMAT.DE BILLARD MARSEILLAIS",{"$f":"I2&\" – \"&J2","v":"19002 – SPORT AMAT.DE BILLARD MARSEILLAIS"},"Oui","N2","N3",0.56499999999999995,0.48599999999999999,"â","AUTORISÉ"]
["106902Q","ABEAUZIT","JACQUES","ABEAUZIT JACQUES",2025,2025,"Méditerranée","CDB Vaucluse",19014,"BILLARD CLUB AVIGNONNAIS","19014 – BILLARD CLUB AVIGNONNAIS","Oui","N3","N3",0.45900000000000002,0.39500000000000002,"à","SELON RÈGLEMENT SPORTIF LIGUE"]
["021810W","AKNIN","GABRIEL","AKNIN GABRIEL",2023,2025,"Méditerranée","CDB Vaucluse",19027,"ACADEMIE DE BILLARD DE BOLLENE","19027 – ACADEMIE DE BILLARD DE BOLLENE","Oui","N2","N3",0.55700000000000005,0.47899999999999998,"â","AUTORISÉ"]
["151459E","ALIBERT","BRUNO","ALIBERT BRUNO",2025,2025,"Méditerranée","CDB Alpes Maritimes",19056,"BILLARD CLUB DE NICE","19056 – BILLARD CLUB DE NICE","Oui","-","R2",0.18099999999999999,0.155,"à","SELON RÈGLEMENT SPORTIF LIGUE"]
["157036R","ALLIGIER","GERARD","ALLIGIER GERARD",2018,2025,"Méditerranée","CDB Var",19019,"BILLARD CLUB DE LA BAIE","19019 – BILLARD CLUB DE LA BAIE","Oui","R1","R1",0.26,0.223,"à","SELON RÈGLEMENT SPORTIF LIGUE"]
["159130S","ALVAREZ","PHILIPPE","ALVAREZ PHILIPPE",2025,2025,"Méditerranée","CDB Alpes Maritimes",19056,"BILLARD CLUB DE NICE","19056 – BILLARD CLUB DE NICE","Oui","N3","N3",0.42099999999999999,0.36199999999999999,"à","SELON RÈGLEMENT SPORTIF LIGUE"]
["155531F","AMOUROUX","LUC","AMOUROUX LUC",2025,2025,"Méditerranée","CDB Var",19023,"BILLARD CLUB GARDEEN","19023 – BILLARD CLUB GARDEEN","Oui","R1","R2",0.246,0.21199999999999999,"â","AUTORISÉ"]
["021818E","ANDRY","JEAN FRANCOIS","ANDRY JEAN FRANCOIS",2009,2025,"Méditerranée","CDB Bouches du Rhône",19090,"BILLARD AMATEUR ROGNAC","19090 – BILLARD AMATEUR ROGNAC","Oui","R1","R1",0.33300000000000002,0.28599999999999998,"à","SELON RÈGLEMENT SPORTIF LIGUE"]
["021819F","ANGUE","PATRICK","ANGUE PATRICK",2025,2025,"Méditerranée","CDB Alpes Maritimes",19056,"BILLARD CLUB DE NICE","19056 – BILLARD CLUB DE NICE","Oui","N1","N2",0.76100000000000001,0.65400000000000003,"â","AUTORISÉ"]
["021820G","ANNESTAY","JACQUES","ANNESTAY JACQUES",2024,2025,"Méditerranée","CDB Alpes Haute Provence",19025,"BILLARD CLUB SISTERONNAIS","19025 – BILLARD CLUB SISTERONNAIS","Oui","R1","R1",0.30599999999999999,0.26300000000000001,"à","SELON RÈGLEMENT SPORTIF LIGUE"]
["021821H","ANTONIN","ALAIN","ANTONIN ALAIN",2025,2025,"Méditerranée","CDB Vaucluse",19021,"BILLARD CLUB CAVAILLONNAIS","19021 – BILLARD CLUB CAVAILLONNAIS","Oui","N3","N3",0.47,0.40400000000000003,"à","SELON RÈGLEMENT SPORTIF LIGUE"]
["021825L","ARDITI","GERALD","ARDITI GERALD",2008,2024,"Méditerranée","CDB Alpes Maritimes",19056,"BILLARD CLUB DE NICE","19056 – BILLARD CLUB DE NICE","Oui","N3","N3",0.44600000000000001,0.38400000000000001,"à","SELON RÈGLEMENT SPORTIF LIGUE"]
["180272Y","ARNOUX","LAURENT","ARNOUX LAURENT",2024,2025,"Méditerranée","CDB Alpes Maritimes",19058,"ACADEMIE DE BILLARD DE BARBOSSI MANDELIEU","19058 – ACADEMIE DE BILLARD DE BARBOSSI MANDELIEU","Oui","R2","R2",0.222,0.191,"à","SELON RÈGLEMENT SPORTIF LIGUE"]
["148204R","AUBERT ROUECHE","LYDIA","AUBERT ROUECHE LYDIA",2024,2025,"Méditerranée","CDB Var",19106,"BILLARD CLUB VINONNAIS","19106 – BILLARD CLUB VINONNAIS","Oui","R2","R2",0.158,0.13600000000000001,"à","SELON RÈGLEMENT SPORTIF LIGUE"]
["012464K","AZERAD","HUGO","AZERAD HUGO",2020,2025,"Méditerranée","CDB Alpes Maritimes",19058,"ACADEMIE DE BILLARD DE BARBOSSI MANDELIEU","19058 – ACADEMIE DE BILLARD DE BARBOSSI MANDELIEU","Oui","N1","N2",0.71499999999999997,0.61499999999999999,"â","AUTORISÉ"]
["021839Z","AZOULAY","ALAIN","AZOULAY ALAIN",2025,2025,"Méditerranée","CDB Bouches du Rhône",19017,"BILLARD CLUB PHOCEEN","19017 – BILLARD CLUB PHOCEEN","Oui","N2","N2",0.62,0.53300000000000003,"à","SELON RÈGLEMENT SPORTIF LIGUE"]
["115304U","BAILLON","JEAN","BAILLON JEAN",2025,2025,"Méditerranée","CDB Alpes Maritimes",19058,"ACADEMIE DE BILLARD DE BARBOSSI MANDELIEU","19058 – ACADEMIE DE BILLARD DE BARBOSSI MANDELIEU","Oui","R2","R1",0.26800000000000002,0.23,"á","SELON RÈGLEMENT SPORTIF LIGUE"]
["153554G","BALESTRI","MAURICE","BALESTRI MAURICE",2025,2025,"Méditerranée","CDB Alpes Maritimes",19058,"ACADEMIE DE BILLARD DE BARBOSSI MANDELIEU","19058 – ACADEMIE DE BILLARD DE BARBOSSI MANDELIEU","Oui","R1","R2",0.23200000000000001,0.19900000000000001,"â","AUTORISÉ"]
["023184S","BALLIGAND","SERGE","BALLIGAND SERGE",2025,2025,"Méditerranée","CDB Var",19059,"BILLARD CLUB ROQUEBRUNOIS","19059 – BILLARD CLUB ROQUEBRUNOIS","Oui","N3","N3",0.46500000000000002,0.4,"à","SELON RÈGLEMENT SPORTIF LIGUE"]
["149693K","BANO","SERGE","BANO SERGE",2020,2025,"Méditerranée","CDB Bouches du Rhône",19001,"S. S. A. B. D AIX EN PROVENCE","19001 – S. S. A. B. D AIX EN PROVENCE","Oui","R2","R2",0.216,0.186,"à","SELON RÈGLEMENT SPORTIF LIGUE"]
["109917P","BARBANNEAU","FREDERIC","BARBANNEAU FREDERIC",2025,2025,"Méditerranée","CDB Var",19106,"BILLARD CLUB VINONNAIS","19106 – BILLARD CLUB VINONNAIS","Oui","N1","N2",0.71599999999999997,0.61599999999999999,"â","AUTORISÉ"]
["135538A","BASELGA","PASCAL","BASELGA PASCAL",2025,2025,"Méditerranée","CDB Alpes Maritimes",19093,"AMERICAN CLUB LOUIS XI","19093 – AMERICAN CLUB LOUIS XI","Oui","R1","R1",0.34499999999999997,0.29599999999999999,"à","SELON RÈGLEMENT SPORTIF LIGUE"]
["103568K","BASSOUL","JEAN MARIE","BASSOUL JEAN MARIE",2025,2025,"Méditerranée","CDB Vaucluse",19006,"BILLARD CLUB CARPENTRASSIEN","19006 – BILLARD CLUB CARPENTRASSIEN","Oui","R2","R2",0.20200000000000001,0.17299999999999999,"à","SELON RÈGLEMENT SPORTIF LIGUE"]
["021860U","BAYARD","JEAN CLAUDE","BAYARD JEAN CLAUDE",2016,2025,"Méditerranée","CDB Vaucluse",19021,"BILLARD CLUB CAVAILLONNAIS","19021 – BILLARD CLUB CAVAILLONNAIS","Oui","R2","R2",0.214,0.184,"à","SELON RÈGLEMENT SPORTIF LIGUE"]
["011797T","BECK","MICHEL","BECK MICHEL",2014,2025,"Méditerranée","CDB Var",19061,"ACAD.BILLARD ST RAPHAEL","19061 – ACAD.BILLARD ST RAPHAEL","Oui","N2","N3",0.45800000000000002,0.39400000000000002,"â","AUTORISÉ"]
["021863X","BEDOC","JACQUES","BEDOC JACQUES",2017,2025,"Méditerranée","CDB Bouches du Rhône",19007,"BILLARD CLUB BERROIS","19007 – BILLARD CLUB BERROIS","Oui","R1","R1",0.35199999999999998,0.30299999999999999,"à","SELON RÈGLEMENT SPORTIF LIGUE"]
["138275H","BENAVIDES","GERARD","BENAVIDES GERARD",2009,2025,"Méditerranée","CDB Bouches du Rhône",19012,"SALON BILLARD CLUB","19012 – SALON BILLARD CLUB","Oui","R2","R2",0.24099999999999999,0.20699999999999999,"à","SELON RÈGLEMENT SPORTIF LIGUE"]
["159238K","BENIER","PATRICK","BENIER PATRICK",2025,2025,"Méditerranée","CDB Var",19023,"BILLARD CLUB GARDEEN","19023 – BILLARD CLUB GARDEEN","Oui","R2","R1",0.26,0.223,"á","SELON RÈGLEMENT SPORTIF LIGUE"]
["125945B","BERNAT","JEAN PIERRE","BERNAT JEAN PIERRE",2025,2025,"Méditerranée","CDB Var",19023,"BILLARD CLUB GARDEEN","19023 – BILLARD CLUB GARDEEN","Oui","R2","R1",0.28999999999999998,0.249,"á","SELON RÈGLEMENT SPORTIF LIGUE"]
["180334Q","BETTONI","GILLES","BETTONI GILLES",2024,2025,"Méditerranée","CDB Alpes Maritimes",19058,"ACADEMIE DE BILLARD DE BARBOSSI MANDELIEU","19058 – ACADEMIE DE BILLARD DE BARBOSSI MANDELIEU","Oui","R2","R2",0.22600000000000001,0.19400000000000001,"à","SELON RÈGLEMENT SPORTIF LIGUE"]
["159202W","BIARD","ANDRE","BIARD ANDRE",2025,2025,"Méditerranée","CDB Bouches du Rhône",19009,"CLUB BILLARD ISTREEN","19009 – CLUB BILLARD ISTREEN","Oui","R2","R2",0.17100000000000001,0.14699999999999999,"à","SELON RÈGLEMENT SPORTIF LIGUE"]
["141828Y","BILDIK","MEHMET","BILDIK MEHMET",2023,2024,"Méditerranée","CDB Vaucluse",19006,"BILLARD CLUB CARPENTRASSIEN","19006 – BILLARD CLUB CARPENTRASSIEN","Oui","N3","N3",0.42699999999999999,0.36699999999999999,"à","SELON RÈGLEMENT SPORTIF LIGUE"]
["179744Z","BLANC SANTELLI","ERIC","BLANC SANTELLI ERIC",2025,2025,"Méditerranée","CDB Bouches du Rhône",19009,"CLUB BILLARD ISTREEN","19009 – CLUB BILLARD ISTREEN","Oui","-","R2",0.14299999999999999,0.123,"à","SELON RÈGLEMENT SPORTIF LIGUE"]
["016248Y","BOFFA","BERNARD","BOFFA BERNARD",2020,2021,"Méditerranée","CDB Var",19023,"BILLARD CLUB GARDEEN","19023 – BILLARD CLUB GARDEEN","Oui","R2","R2",0.223,0.192,"à","SELON RÈGLEMENT SPORTIF LIGUE"]
["132947J","BONALD","YVES","BONALD YVES",2013,2019,"Méditerranée","CDB Bouches du Rhône",19001,"S. S. A. B. D AIX EN PROVENCE","19001 – S. S. A. B. D AIX EN PROVENCE","Oui","N3","R1",0.38900000000000001,0.33400000000000002,"â","AUTORISÉ"]
["150422C","BONNEMAISON","DENIS","BONNEMAISON DENIS",2025,2025,"Méditerranée","CDB Bouches du Rhône",19009,"CLUB BILLARD ISTREEN","19009 – CLUB BILLARD ISTREEN","Oui","R2","R1",0.29499999999999998,0.254,"á","SELON RÈGLEMENT SPORTIF LIGUE"]
["021900I","BONTOUX","MAX","BONTOUX MAX",2013,2025,"Méditerranée","CDB Bouches du Rhône",19007,"BILLARD CLUB BERROIS","19007 – BILLARD CLUB BERROIS","Oui","N3","N3",0.40300000000000002,0.34599999999999997,"à","SELON RÈGLEMENT SPORTIF LIGUE"]
["118781N","BORNMANN","ROBERT","BORNMANN ROBERT",2009,2025,"Méditerranée","CDB Bouches du Rhône",19017,"BILLARD CLUB PHOCEEN","19017 – BILLARD CLUB PHOCEEN","Oui","N2","N2",0.64400000000000002,0.55400000000000005,"à","SELON RÈGLEMENT SPORTIF LIGUE"]
["012645J","BOULANDET","ALAIN","BOULANDET ALAIN",2015,2025,"Méditerranée","CDB Alpes Maritimes",19055,"ACADEMIE DE BILLARD DE MENTON","19055 – ACADEMIE DE BILLARD DE MENTON","Oui","R1","R2",0.24099999999999999,0.20699999999999999,"â","AUTORISÉ"]
["155529D","BOULANT","CLAUDE","BOULANT CLAUDE",2023,2025,"Méditerranée","CDB Var",19019,"BILLARD CLUB DE LA BAIE","19019 – BILLARD CLUB DE LA BAIE","Oui","R1","R2",0.24299999999999999,0.20899999999999999,"â","AUTORISÉ"]
["021911T","BOURDELLES","LAURENT","BOURDELLES LAURENT",2024,2025,"Méditerranée","CDB Alpes Maritimes",19055,"ACADEMIE DE BILLARD DE MENTON","19055 – ACADEMIE DE BILLARD DE MENTON","Oui","N3","N3",0.42699999999999999,0.36699999999999999,"à","SELON RÈGLEMENT SPORTIF LIGUE"]
["122662U","BOUTILLE","NICOLAS","BOUTILLE NICOLAS",2023,2025,"Méditerranée","CDB Vaucluse",19027,"ACADEMIE DE BILLARD DE BOLLENE","19027 – ACADEMIE DE BILLARD DE BOLLENE","Oui","N3","R1",0.39200000000000002,0.33700000000000002,"â","AUTORISÉ"]
["149613Y","BOVET","MICHEL","BOVET MICHEL",2022,2023,"Méditerranée","CDB Var",19059,"BILLARD CLUB ROQUEBRUNOIS","19059 – BILLARD CLUB ROQUEBRUNOIS","Oui","R2","R2",0.152,0.13,"à","SELON RÈGLEMENT SPORTIF LIGUE"]
["016411F","BRAYER","DENIS","BRAYER DENIS",2022,2025,"Méditerranée","CDB Vaucluse",19008,"BRITISH BILLARD CLUB AVIGNON","19008 – BRITISH BILLARD CLUB AVIGNON","Oui","N3","N3",0.46300000000000002,0.39800000000000002,"à","SELON RÈGLEMENT SPORTIF LIGUE"]
["021918A","BREDAT","RENE","BREDAT RENE",2024,2025,"Méditerranée","CDB Alpes Haute Provence",19025,"BILLARD CLUB SISTERONNAIS","19025 – BILLARD CLUB SISTERONNAIS","Oui","N3","R1",0.33900000000000002,0.29099999999999998,"â","AUTORISÉ"]
["152345S","BREPSON","MARTIAL","BREPSON MARTIAL",2025,2025,"Méditerranée","CDB Alpes Maritimes",19058,"ACADEMIE DE BILLARD DE BARBOSSI MANDELIEU","19058 – ACADEMIE DE BILLARD DE BARBOSSI MANDELIEU","Oui","N3","R1",0.39200000000000002,0.33700000000000002,"â","AUTORISÉ"]
["113104E","BRIAND","ALAIN","BRIAND ALAIN",2019,2025,"Méditerranée","CDB Bouches du Rhône",19002,"SPORT AMAT.DE BILLARD MARSEILLAIS","19002 – SPORT AMAT.DE BILLARD MARSEILLAIS","Oui","R1","R1",0.28199999999999997,0.24299999999999999,"à","SELON RÈGLEMENT SPORTIF LIGUE"]
["021920C","BRIOIT","DOMINIQUE","BRIOIT DOMINIQUE",2024,2025,"Méditerranée","CDB Alpes Maritimes",19055,"ACADEMIE DE BILLARD DE MENTON","19055 – ACADEMIE DE BILLARD DE MENTON","Oui","N3","R1",0.25,0.215,"â","AUTORISÉ"]
["109188O","BUI THAI","NINH","BUI THAI NINH",2008,2020,"Méditerranée","CDB Alpes Maritimes",19055,"ACADEMIE DE BILLARD DE MENTON","19055 – ACADEMIE DE BILLARD DE MENTON","Oui","N3","R1",0.375,0.32300000000000001,"â","AUTORISÉ"]
["155679R","BURELLI","GEORGES","BURELLI GEORGES",2020,2020,"Méditerranée","CDB Bouches du Rhône",19050,"BILLARD CLUB SAUSSETOIS","19050 – BILLARD CLUB SAUSSETOIS","Oui","R2","R2",0.158,0.13600000000000001,"à","SELON RÈGLEMENT SPORTIF LIGUE"]
["112311R","CACHO","DIDIER","CACHO DIDIER",2014,2025,"Méditerranée","CDB Bouches du Rhône",19098,"BILLARD CLUB LA FARE","19098 – BILLARD CLUB LA FARE","Oui","R1","R1",0.33400000000000002,0.28699999999999998,"à","SELON RÈGLEMENT SPORTIF LIGUE"]
["144785R","CAILLAUD","DANIEL","CAILLAUD DANIEL",2025,2025,"Méditerranée","CDB Var",19023,"BILLARD CLUB GARDEEN","19023 – BILLARD CLUB GARDEEN","Oui","R1","R1",0.29199999999999998,0.251,"à","SELON RÈGLEMENT SPORTIF LIGUE"]
["021938U","CALDERON","LUC","CALDERON LUC",2023,2025,"Méditerranée","CDB Bouches du Rhône",19009,"CLUB BILLARD ISTREEN","19009 – CLUB BILLARD ISTREEN","Oui","N3","N3",0.41099999999999998,0.35399999999999998,"à","SELON RÈGLEMENT SPORTIF LIGUE"]
["021944A","CAO","HUU TUOI","CAO HUU TUOI",2025,2025,"Méditerranée","CDB Bouches du Rhône",19098,"BILLARD CLUB LA FARE","19098 – BILLARD CLUB LA FARE","Oui","R1","R1",0.378,0.32500000000000001,"à","SELON RÈGLEMENT SPORTIF LIGUE"]
["021946C","CARDINALI","DENIS","CARDINALI DENIS",2008,2025,"Méditerranée","CDB Alpes Maritimes",19056,"BILLARD CLUB DE NICE","19056 – BILLARD CLUB DE NICE","Oui","N3","R1",0.39,0.33500000000000002,"â","AUTORISÉ"]
["141066Q","CARRILLON","MICHEL","CARRILLON MICHEL",2023,2025,"Méditerranée","CDB Bouches du Rhône",19001,"S. S. A. B. D AIX EN PROVENCE","19001 – S. S. A. B. D AIX EN PROVENCE","Oui","R1","R1",0.28899999999999998,0.248,"à","SELON RÈGLEMENT SPORTIF LIGUE"]
["130701Z","CARRION","JEAN PHILIPPE","CARRION JEAN PHILIPPE",2025,2025,"Méditerranée","CDB Alpes Maritimes",19058,"ACADEMIE DE BILLARD DE BARBOSSI MANDELIEU","19058 – ACADEMIE DE BILLARD DE BARBOSSI MANDELIEU","Oui","N3","N3",0.55200000000000005,0.47499999999999998,"à","SELON RÈGLEMENT SPORTIF LIGUE"]
["021955L","CATONI","LAURENT","CATONI LAURENT",2025,2025,"Méditerranée","CDB Vaucluse",19014,"BILLARD CLUB AVIGNONNAIS","19014 – BILLARD CLUB AVIGNONNAIS","Oui","N2","N2",0.59399999999999997,0.51,"à","SELON RÈGLEMENT SPORTIF LIGUE"]
["173622V","CHABASSIERE","DOMINIQUE","CHABASSIERE DOMINIQUE",2024,2024,"Méditerranée","CDB Bouches du Rhône",19098,"BILLARD CLUB LA FARE","19098 – BILLARD CLUB LA FARE","Oui","N2","N3",0.56299999999999994,0.48399999999999999,"â","AUTORISÉ"]
["161620Z","CHABOUD","JACQUES","CHABOUD JACQUES",2024,2025,"Méditerranée","CDB Var",19023,"BILLARD CLUB GARDEEN","19023 – BILLARD CLUB GARDEEN","Oui","R2","R2",0.16600000000000001,0.14299999999999999,"à","SELON RÈGLEMENT SPORTIF LIGUE"]
["021960Q","CHAIX","JOEL","CHAIX JOEL",2024,2025,"Méditerranée","CDB Alpes Haute Provence",19025,"BILLARD CLUB SISTERONNAIS","19025 – BILLARD CLUB SISTERONNAIS","Oui","R1","R1",0.311,0.26800000000000002,"à","SELON RÈGLEMENT SPORTIF LIGUE"]
["021965V","CHANOINA","YANICK","CHANOINA YANICK",2015,2019,"Méditerranée","CDB Var",19061,"ACAD.BILLARD ST RAPHAEL","19061 – ACAD.BILLARD ST RAPHAEL","Oui","N2","N3",0.56499999999999995,0.48599999999999999,"â","AUTORISÉ"]
["163134V","CHAPUIS","GERARD","CHAPUIS GERARD",2018,2020,"Méditerranée","CDB Alpes Maritimes",19093,"AMERICAN CLUB LOUIS XI","19093 – AMERICAN CLUB LOUIS XI","Oui","R2","R2",0.151,0.129,"à","SELON RÈGLEMENT SPORTIF LIGUE"]
["122456W","CHARBAUT","CLAUDE","CHARBAUT CLAUDE",2025,2025,"Méditerranée","CDB Var",19059,"BILLARD CLUB ROQUEBRUNOIS","19059 – BILLARD CLUB ROQUEBRUNOIS","Oui","R1","R1",0.255,0.219,"à","SELON RÈGLEMENT SPORTIF LIGUE"]
["021967X","CHARBIT","JEAN MARC",{"$f":"B66&\" \"&C66","v":"CHARBIT JEAN MARC"},2025,2025,"Méditerranée","CDB Alpes Maritimes",19056,"BILLARD CLUB DE NICE",{"$f":"I66&\" – \"&J66","v":"19056 – BILLARD CLUB DE NICE"},"Oui","N1","N2",0.67500000000000004,0.58099999999999996,"â","AUTORISÉ"]
["107542G","CHARBONNIER","DAVID","CHARBONNIER DAVID",2016,2021,"Méditerranée","CDB Var",19019,"BILLARD CLUB DE LA BAIE","19019 – BILLARD CLUB DE LA BAIE","Oui","N1","N2",0.74099999999999999,0.63700000000000001,"â","AUTORISÉ"]
["012782Q","CHASTAN","GEORGES","CHASTAN GEORGES",2025,2025,"Méditerranée","CDB Vaucluse",19021,"BILLARD CLUB CAVAILLONNAIS","19021 – BILLARD CLUB CAVAILLONNAIS","Oui","N3","N3",0.44,0.378,"à","SELON RÈGLEMENT SPORTIF LIGUE"]
["187031V","CHEURF","SELIMANE","CHEURF SELIMANE",2025,2025,"Méditerranée","CDB Bouches du Rhône",19090,"BILLARD AMATEUR ROGNAC","19090 – BILLARD AMATEUR ROGNAC","Oui","-","R2",0.18099999999999999,0.156,"à","SELON RÈGLEMENT SPORTIF LIGUE"]
["108854S","CHUZEVILLE","GILLES","CHUZEVILLE GILLES",2025,2025,"Méditerranée","CDB Alpes Haute Provence",19025,"BILLARD CLUB SISTERONNAIS","19025 – BILLARD CLUB SISTERONNAIS","Oui","N2","N3",0.47699999999999998,0.41,"â","AUTORISÉ"]
["129497R","CLEMENT","GERARD","CLEMENT GERARD",2024,2025,"Méditerranée","CDB Bouches du Rhône",19050,"BILLARD CLUB SAUSSETOIS","19050 – BILLARD CLUB SAUSSETOIS","Oui","N3","R1",0.38200000000000001,0.32900000000000001,"â","AUTORISÉ"]
["012827J","COHEN","RICHARD","COHEN RICHARD",2025,2025,"Méditerranée","CDB Alpes Maritimes",19058,"ACADEMIE DE BILLARD DE BARBOSSI MANDELIEU","19058 – ACADEMIE DE BILLARD DE BARBOSSI MANDELIEU","Oui","R1","R1",0.28100000000000003,0.24099999999999999,"à","SELON RÈGLEMENT SPORTIF LIGUE"]
["113219P","COLLEMINE","BERNARD","COLLEMINE BERNARD",2011,2022,"Méditerranée","CDB Bouches du Rhône",19050,"BILLARD CLUB SAUSSETOIS","19050 – BILLARD CLUB SAUSSETOIS","Oui","R1","R1",0.33300000000000002,0.28599999999999998,"à","SELON RÈGLEMENT SPORTIF LIGUE"]
["021985P","COPPIN","JEAN MICHEL","COPPIN JEAN MICHEL",2017,2025,"Méditerranée","CDB Vaucluse",19027,"ACADEMIE DE BILLARD DE BOLLENE","19027 – ACADEMIE DE BILLARD DE BOLLENE","Oui","R1","R2",0.16300000000000001,0.14000000000000001,"â","AUTORISÉ"]
["021986Q","CORANOTTO","SERGE","CORANOTTO SERGE",2010,2024,"Méditerranée","CDB Alpes Maritimes",19056,"BILLARD CLUB DE NICE","19056 – BILLARD CLUB DE NICE","Oui","N1","N1",0.95499999999999996,0.82099999999999995,"à","SELON RÈGLEMENT SPORTIF LIGUE"]
["106512Q","CORDONNIER","ROGER","CORDONNIER ROGER",2015,2020,"Méditerranée","CDB Vaucluse",19027,"ACADEMIE DE BILLARD DE BOLLENE","19027 – ACADEMIE DE BILLARD DE BOLLENE","Oui","R1","R1",0.28000000000000003,0.24099999999999999,"à","SELON RÈGLEMENT SPORTIF LIGUE"]
["187055W","CORTES","JEAN LOUIS","CORTES JEAN LOUIS",2025,2025,"Méditerranée","CDB Bouches du Rhône",19009,"CLUB BILLARD ISTREEN","19009 – CLUB BILLARD ISTREEN","Oui","-","R1",0.28999999999999998,0.249,"à","SELON RÈGLEMENT SPORTIF LIGUE"]
["148136S","COSTAZ","ALAIN","COSTAZ ALAIN",2019,2024,"Méditerranée","CDB Var",19019,"BILLARD CLUB DE LA BAIE","19019 – BILLARD CLUB DE LA BAIE","Oui","R2","R2",0.17100000000000001,0.14699999999999999,"à","SELON RÈGLEMENT SPORTIF LIGUE"]
["125938U","COSTE","PHILIPPE","COSTE PHILIPPE",2025,2025,"Méditerranée","CDB Var",19061,"ACAD.BILLARD ST RAPHAEL","19061 – ACAD.BILLARD ST RAPHAEL","Oui","N3","N3",0.441,0.379,"à","SELON RÈGLEMENT SPORTIF LIGUE"]
["119932U","COUPET","PHILIPPE","COUPET PHILIPPE",2023,2025,"Méditerranée","CDB Var",19023,"BILLARD CLUB GARDEEN","19023 – BILLARD CLUB GARDEEN","Oui","N1","N2",0.79,0.67900000000000005,"â","AUTORISÉ"]
["016838Q","COURBOT","LUDWIG","COURBOT LUDWIG",2025,2025,"Méditerranée","CDB Bouches du Rhône",19001,"S. S. A. B. D AIX EN PROVENCE","19001 – S. S. A. B. D AIX EN PROVENCE","Oui","-","N3",0.443,0.38100000000000001,"à","SELON RÈGLEMENT SPORTIF LIGUE"]
["021996A","CREUZOT","PATRICE","CREUZOT PATRICE",2025,2025,"Méditerranée","CDB Bouches du Rhône",19017,"BILLARD CLUB PHOCEEN","19017 – BILLARD CLUB PHOCEEN","Oui","N3","N3",0.498,0.42799999999999999,"à","SELON RÈGLEMENT SPORTIF LIGUE"]
["142586C","CUADRADO","HECTOR","CUADRADO HECTOR",2025,2025,"Méditerranée","CDB Vaucluse",19021,"BILLARD CLUB CAVAILLONNAIS","19021 – BILLARD CLUB CAVAILLONNAIS","Oui","-","N2",0.63,0.54200000000000004,"à","SELON RÈGLEMENT SPORTIF LIGUE"]
["119971H","D HERET","ERIC","D HERET ERIC",2010,2020,"Méditerranée","CDB Vaucluse",19006,"BILLARD CLUB CARPENTRASSIEN","19006 – BILLARD CLUB CARPENTRASSIEN","Oui","R1","R1",0.34200000000000003,0.29399999999999998,"à","SELON RÈGLEMENT SPORTIF LIGUE"]
["022002G","DAMON","GERARD","DAMON GERARD",2020,2025,"Méditerranée","CDB Alpes Maritimes",19056,"BILLARD CLUB DE NICE","19056 – BILLARD CLUB DE NICE","Oui","N3","R1",0.30399999999999999,0.26100000000000001,"â","AUTORISÉ"]
["022003H","DAMON","OLIVIER","DAMON OLIVIER",2025,2025,"Méditerranée","CDB Bouches du Rhône",19012,"SALON BILLARD CLUB","19012 – SALON BILLARD CLUB","Oui","N1","N2",0.64500000000000002,0.55500000000000005,"â","AUTORISÉ"]
["014828I","DAUPHIN","MICHEL","DAUPHIN MICHEL",2025,2025,"Méditerranée","CDB Vaucluse",19014,"BILLARD CLUB AVIGNONNAIS","19014 – BILLARD CLUB AVIGNONNAIS","Oui","N1","N2",0.73599999999999999,0.63300000000000001,"â","AUTORISÉ"]
["140113Z","DE HAAN","PATRICK","DE HAAN PATRICK",2025,2025,"Méditerranée","CDB Var",19023,"BILLARD CLUB GARDEEN","19023 – BILLARD CLUB GARDEEN","Oui","N1","N2",0.63900000000000001,0.55000000000000004,"â","AUTORISÉ"]
["163348C","DE LOOSE","FELIX","DE LOOSE FELIX",2024,2025,"Méditerranée","CDB Var",19106,"BILLARD CLUB VINONNAIS","19106 – BILLARD CLUB VINONNAIS","Oui","N3","R1",0.36399999999999999,0.313,"â","AUTORISÉ"]
["177233V","DEDON","RICHARD","DEDON RICHARD",2025,2025,"Méditerranée","CDB Bouches du Rhône",19007,"BILLARD CLUB BERROIS","19007 – BILLARD CLUB BERROIS","Oui","R2","R1",0.28699999999999998,0.247,"á","SELON RÈGLEMENT SPORTIF LIGUE"]
["119889D","DEFFE","MICHEL","DEFFE MICHEL",2020,2022,"Méditerranée","CDB Bouches du Rhône",19068,"BILLARD CLUB ARLESIEN","19068 – BILLARD CLUB ARLESIEN","Oui","R1","R1",0.30299999999999999,0.26,"à","SELON RÈGLEMENT SPORTIF LIGUE"]
["020635R","DEFRETIN","JOEL","DEFRETIN JOEL",2015,2025,"Méditerranée","CDB Var",19023,"BILLARD CLUB GARDEEN","19023 – BILLARD CLUB GARDEEN","Oui","N3","N3",0.42799999999999999,0.36799999999999999,"à","SELON RÈGLEMENT SPORTIF LIGUE"]
["112719J","DELBEY","JULIEN","DELBEY JULIEN",2025,2025,"Méditerranée","CDB Bouches du Rhône",19012,"SALON BILLARD CLUB","19012 – SALON BILLARD CLUB","Oui","N2","N3",0.56499999999999995,0.48599999999999999,"â","AUTORISÉ"]
["115051B","DESWAZIERE","MICHEL","DESWAZIERE MICHEL",2019,2025,"Méditerranée","CDB Vaucluse",19027,"ACADEMIE DE BILLARD DE BOLLENE","19027 – ACADEMIE DE BILLARD DE BOLLENE","Oui","N2","N3",0.54800000000000004,0.47099999999999997,"â","AUTORISÉ"]
["022033L","DHAINAUT","JEAN FRANCOIS","DHAINAUT JEAN FRANCOIS",2023,2024,"Méditerranée","CDB Alpes Maritimes",19056,"BILLARD CLUB DE NICE","19056 – BILLARD CLUB DE NICE","Oui","N2","N3",0.57899999999999996,0.498,"â","AUTORISÉ"]
["159059Q","DI CINTIO","BENJAMIN","DI CINTIO BENJAMIN",2020,2022,"Méditerranée","CDB Vaucluse",19014,"BILLARD CLUB AVIGNONNAIS","19014 – BILLARD CLUB AVIGNONNAIS","Oui","R1","R1",0.26300000000000001,0.22600000000000001,"à","SELON RÈGLEMENT SPORTIF LIGUE"]
["144569J","DI CINTIO","PHILIPPE","DI CINTIO PHILIPPE",2019,2022,"Méditerranée","CDB Vaucluse",19014,"BILLARD CLUB AVIGNONNAIS","19014 – BILLARD CLUB AVIGNONNAIS","Oui","N3","N3",0.46700000000000003,0.40100000000000002,"à","SELON RÈGLEMENT SPORTIF LIGUE"]
["109528Q","DI CRESCENZO","PIERRE","DI CRESCENZO PIERRE",2025,2025,"Méditerranée","CDB Bouches du Rhône",19017,"BILLARD CLUB PHOCEEN","19017 – BILLARD CLUB PHOCEEN","Oui","N3","R1",0.317,0.27300000000000002,"â","AUTORISÉ"]
["142363N","DONABEDIAN","DANIEL","DONABEDIAN DANIEL",2025,2025,"Méditerranée","CDB Var",19019,"BILLARD CLUB DE LA BAIE","19019 – BILLARD CLUB DE LA BAIE","Oui","N3","R1",0.32500000000000001,0.27900000000000003,"â","AUTORISÉ"]
["022039R","DOS SANTOS","FRANCIS","DOS SANTOS FRANCIS",2025,2025,"Méditerranée","CDB Bouches du Rhône",19050,"BILLARD CLUB SAUSSETOIS","19050 – BILLARD CLUB SAUSSETOIS","Oui","N2","N3",0.499,0.42899999999999999,"â","AUTORISÉ"]
["174348J","DOUSSET","RENE","DOUSSET RENE",2025,2025,"Méditerranée","CDB Var",19023,"BILLARD CLUB GARDEEN","19023 – BILLARD CLUB GARDEEN","Oui","R2","R2",0.16700000000000001,0.14399999999999999,"à","SELON RÈGLEMENT SPORTIF LIGUE"]
["013022W","DUBREUIL","FRANCK","DUBREUIL FRANCK",2025,2025,"Méditerranée","CDB Var",19061,"ACAD.BILLARD ST RAPHAEL","19061 – ACAD.BILLARD ST RAPHAEL","Oui","N2","N3",0.53600000000000003,0.46100000000000002,"â","AUTORISÉ"]
["154651Z","DUCA","ALFONSO","DUCA ALFONSO",2022,2023,"Méditerranée","CDB Bouches du Rhône",19090,"BILLARD AMATEUR ROGNAC","19090 – BILLARD AMATEUR ROGNAC","Oui","R2","R2",0.125,0.107,"à","SELON RÈGLEMENT SPORTIF LIGUE"]
["013037L","DUMET","BRUNO","DUMET BRUNO",2011,2024,"Méditerranée","CDB Var",19023,"BILLARD CLUB GARDEEN","19023 – BILLARD CLUB GARDEEN","Oui","N3","R1",0.38400000000000001,0.33,"â","AUTORISÉ"]
["105621J","DUPUIS","MICHEL","DUPUIS MICHEL",2009,2023,"Méditerranée","CDB Var",19019,"BILLARD CLUB DE LA BAIE","19019 – BILLARD CLUB DE LA BAIE","Oui","R1","R1",0.26,0.223,"à","SELON RÈGLEMENT SPORTIF LIGUE"]
["011522E","DUPUY","MICHEL","DUPUY MICHEL",2023,2025,"Méditerranée","CDB Alpes Maritimes",19058,"ACADEMIE DE BILLARD DE BARBOSSI MANDELIEU","19058 – ACADEMIE DE BILLARD DE BARBOSSI MANDELIEU","Oui","R1","R1",0.25600000000000001,0.22,"à","SELON RÈGLEMENT SPORTIF LIGUE"]
["022049B","DURAND","FREDERIC","DURAND FREDERIC",2010,2020,"Méditerranée","CDB Bouches du Rhône",19012,"SALON BILLARD CLUB","19012 – SALON BILLARD CLUB","Oui","N3","R1",0.35,0.30099999999999999,"â","AUTORISÉ"]
["022050C","DURAND","HERVE","DURAND HERVE",2017,2023,"Méditerranée","CDB Bouches du Rhône",19012,"SALON BILLARD CLUB","19012 – SALON BILLARD CLUB","Oui","N2","N2",0.67300000000000004,0.57899999999999996,"à","SELON RÈGLEMENT SPORTIF LIGUE"]
["022052E","DUSFOUR","RENE","DUSFOUR RENE",2018,2021,"Méditerranée","CDB Bouches du Rhône",19012,"SALON BILLARD CLUB","19012 – SALON BILLARD CLUB","Oui","N3","R1",0.38900000000000001,0.33400000000000002,"â","AUTORISÉ"]
["102285B","DUSSAULE","PIERRE","DUSSAULE PIERRE",2025,2025,"Méditerranée","CDB Vaucluse",19027,"ACADEMIE DE BILLARD DE BOLLENE","19027 – ACADEMIE DE BILLARD DE BOLLENE","Oui","N3","R1",0.377,0.32400000000000001,"â","AUTORISÉ"]
["175172E","DUVAL","THIERRY","DUVAL THIERRY",2025,2025,"Méditerranée","CDB Var",19061,"ACAD.BILLARD ST RAPHAEL","19061 – ACAD.BILLARD ST RAPHAEL","Oui","R1","R1",0.29899999999999999,0.25700000000000001,"à","SELON RÈGLEMENT SPORTIF LIGUE"]
["140809T","EL MEGHARY","MAROUANE","EL MEGHARY MAROUANE",2023,2025,"Méditerranée","CDB Bouches du Rhône",19002,"SPORT AMAT.DE BILLARD MARSEILLAIS","19002 – SPORT AMAT.DE BILLARD MARSEILLAIS","Oui","N2","N2",0.59499999999999997,0.51100000000000001,"à","SELON RÈGLEMENT SPORTIF LIGUE"]
["163467G","ELEOUET","DANIEL","ELEOUET DANIEL",2025,2025,"Méditerranée","CDB Vaucluse",19006,"BILLARD CLUB CARPENTRASSIEN","19006 – BILLARD CLUB CARPENTRASSIEN","Oui","N3","R1",0.32100000000000001,0.27600000000000002,"â","AUTORISÉ"]
["105440K","ENJOLRAS","PIERRE","ENJOLRAS PIERRE",2019,2025,"Méditerranée","CDB Bouches du Rhône",19007,"BILLARD CLUB BERROIS","19007 – BILLARD CLUB BERROIS","Oui","R1","R1",0.315,0.27100000000000002,"à","SELON RÈGLEMENT SPORTIF LIGUE"]
["147622J","ESTABLIER","PIERRE","ESTABLIER PIERRE",2025,2025,"Méditerranée","CDB Var",19023,"BILLARD CLUB GARDEEN","19023 – BILLARD CLUB GARDEEN","Oui","R2","R2",0.19,0.16300000000000001,"à","SELON RÈGLEMENT SPORTIF LIGUE"]
["101511H","FAGET","FRANCIS","FAGET FRANCIS",2016,2020,"Méditerranée","CDB Bouches du Rhône",19001,"S. S. A. B. D AIX EN PROVENCE","19001 – S. S. A. B. D AIX EN PROVENCE","Oui","N3","N3",0.41099999999999998,0.35299999999999998,"à","SELON RÈGLEMENT SPORTIF LIGUE"]
["022061N","FAIVRE D ARCIER","PATRICK","FAIVRE D ARCIER PATRICK",2025,2025,"Méditerranée","CDB Alpes Maritimes",19056,"BILLARD CLUB DE NICE","19056 – BILLARD CLUB DE NICE","Oui","N1","N2",0.73199999999999998,0.63,"â","AUTORISÉ"]
["176105T","FARINA","GENNARO","FARINA GENNARO",2022,2022,"Méditerranée","CDB Var",19061,"ACAD.BILLARD ST RAPHAEL","19061 – ACAD.BILLARD ST RAPHAEL","Oui","R2","R2",0.22900000000000001,0.19700000000000001,"à","SELON RÈGLEMENT SPORTIF LIGUE"]
["022065R","FAURE","EMILE","FAURE EMILE",2015,2025,"Méditerranée","CDB Vaucluse",19016,"BILLARD CLUB ORANGEOIS","19016 – BILLARD CLUB ORANGEOIS","Oui","R1","R1",0.28999999999999998,0.249,"à","SELON RÈGLEMENT SPORTIF LIGUE"]
["022067T","FERAUD","GERARD","FERAUD GERARD",2016,2025,"Méditerranée","CDB Vaucluse",19027,"ACADEMIE DE BILLARD DE BOLLENE","19027 – ACADEMIE DE BILLARD DE BOLLENE","Oui","N3","R1",0.379,0.32600000000000001,"â","AUTORISÉ"]
["129036Y","FERHAT","ACHOUR","FERHAT ACHOUR",2025,2025,"Méditerranée","CDB Var",19106,"BILLARD CLUB VINONNAIS","19106 – BILLARD CLUB VINONNAIS","Oui","N3","R1",0.39500000000000002,0.34,"â","AUTORISÉ"]
["022071X","FERNANDES","VINCENT","FERNANDES VINCENT",2019,2022,"Méditerranée","CDB Var",19061,"ACAD.BILLARD ST RAPHAEL","19061 – ACAD.BILLARD ST RAPHAEL","Oui","N3","R1",0.34599999999999997,0.29799999999999999,"â","AUTORISÉ"]
["013111H","FERNANDEZ","MARC","FERNANDEZ MARC",2025,2025,"Méditerranée","CDB Bouches du Rhône",19007,"BILLARD CLUB BERROIS","19007 – BILLARD CLUB BERROIS","Oui","N3","N3",0.503,0.433,"à","SELON RÈGLEMENT SPORTIF LIGUE"]
["122658Q","FERRO","PHILIPPE","FERRO PHILIPPE",2025,2025,"Méditerranée","CDB Bouches du Rhône",19009,"CLUB BILLARD ISTREEN","19009 – CLUB BILLARD ISTREEN","Oui","R1","R1",0.38200000000000001,0.32800000000000001,"à","SELON RÈGLEMENT SPORTIF LIGUE"]
["173138T","FLEURIOT","PATRICK","FLEURIOT PATRICK",2024,2025,"Méditerranée","CDB Vaucluse",19014,"BILLARD CLUB AVIGNONNAIS","19014 – BILLARD CLUB AVIGNONNAIS","Oui","R2","R2",0.152,0.13100000000000001,"à","SELON RÈGLEMENT SPORTIF LIGUE"]
["101139Z","FONTAINE","DANY","FONTAINE DANY",2025,2025,"Méditerranée","CDB Var",19106,"BILLARD CLUB VINONNAIS","19106 – BILLARD CLUB VINONNAIS","Oui","N2","N3",0.55700000000000005,0.47899999999999998,"â","AUTORISÉ"]
["022082I","FOSSATI","BRUNO","FOSSATI BRUNO",2019,2021,"Méditerranée","CDB Var",19023,"BILLARD CLUB GARDEEN","19023 – BILLARD CLUB GARDEEN","Oui","N3","R1",0.36299999999999999,0.312,"â","AUTORISÉ"]
["022084K","FRANCO","ALBERT","FRANCO ALBERT",2021,2025,"Méditerranée","CDB Var",19019,"BILLARD CLUB DE LA BAIE","19019 – BILLARD CLUB DE LA BAIE","Oui","N2","N3",0.50600000000000001,0.435,"â","AUTORISÉ"]
["118688Y","FRANCO","HENRY","FRANCO HENRY",2024,2025,"Méditerranée","CDB Alpes Maritimes",19055,"ACADEMIE DE BILLARD DE MENTON","19055 – ACADEMIE DE BILLARD DE MENTON","Oui","N3","N3",0.45,0.38700000000000001,"à","SELON RÈGLEMENT SPORTIF LIGUE"]
["167290M","FROMEYER","CORINNE",{"$f":"B130&\" \"&C130","v":"FROMEYER CORINNE"},2025,2025,"Méditerranée","CDB Alpes Maritimes",19058,"ACADEMIE DE BILLARD DE BARBOSSI MANDELIEU",{"$f":"I130&\" – \"&J130","v":"19058 – ACADEMIE DE BILLARD DE BARBOSSI MANDELIEU"},"Oui","R2","R2",0.14099999999999999,0.121,"à","SELON RÈGLEMENT SPORTIF LIGUE"]
["142316S","GALARDINI","RICHARD","GALARDINI RICHARD",2019,2025,"Méditerranée","CDB Bouches du Rhône",19050,"BILLARD CLUB SAUSSETOIS","19050 – BILLARD CLUB SAUSSETOIS","Oui","R1","R1",0.28100000000000003,0.24199999999999999,"à","SELON RÈGLEMENT SPORTIF LIGUE"]
["022091R","GALLUCCI","STEPHANE","GALLUCCI STEPHANE",2025,2025,"Méditerranée","CDB Alpes Maritimes",19056,"BILLARD CLUB DE NICE","19056 – BILLARD CLUB DE NICE","Oui","N1","N2",0.746,0.64100000000000001,"â","AUTORISÉ"]
["147288W","GAMEN","ANDRE","GAMEN ANDRE",2024,2025,"Méditerranée","CDB Var",19023,"BILLARD CLUB GARDEEN","19023 – BILLARD CLUB GARDEEN","Oui","R2","R2",2.7E-2,2.3E-2,"à","SELON RÈGLEMENT SPORTIF LIGUE"]
["022092S","GANTOIS","GILLES","GANTOIS GILLES",2024,2025,"Méditerranée","CDB Vaucluse",19016,"BILLARD CLUB ORANGEOIS","19016 – BILLARD CLUB ORANGEOIS","Oui","N2","N3",0.44700000000000001,0.38500000000000001,"â","AUTORISÉ"]
["147262S","GATTINO","MARCO","GATTINO MARCO",2023,2025,"Méditerranée","CDB Alpes Maritimes",19055,"ACADEMIE DE BILLARD DE MENTON","19055 – ACADEMIE DE BILLARD DE MENTON","Non","R2","R2",0.23499999999999999,0.20200000000000001,"à","SELON RÈGLEMENT SPORTIF LIGUE"]
["022097X","GATTO","ANTOINE","GATTO ANTOINE",2020,2025,"Méditerranée","CDB Bouches du Rhône",19050,"BILLARD CLUB SAUSSETOIS","19050 – BILLARD CLUB SAUSSETOIS","Oui","R2","R2",0.20200000000000001,0.17299999999999999,"à","SELON RÈGLEMENT SPORTIF LIGUE"]
["116278G","GAVALDA","PIERRE","GAVALDA PIERRE",2024,2025,"Méditerranée","CDB Vaucluse",19006,"BILLARD CLUB CARPENTRASSIEN","19006 – BILLARD CLUB CARPENTRASSIEN","Oui","N2","N3",0.54900000000000004,0.47199999999999998,"â","AUTORISÉ"]
["125944A","GAVANON","ANDRE","GAVANON ANDRE",2009,2022,"Méditerranée","CDB Var",19023,"BILLARD CLUB GARDEEN","19023 – BILLARD CLUB GARDEEN","Oui","N3","R1",0.38600000000000001,0.33200000000000002,"â","AUTORISÉ"]
["143227T","GAYRAUD","FRANCOISE","GAYRAUD FRANCOISE",2023,2025,"Méditerranée","CDB Alpes Maritimes",19056,"BILLARD CLUB DE NICE","19056 – BILLARD CLUB DE NICE","Oui","R2","R2",0.10299999999999999,8.7999999999999995E-2,"à","SELON RÈGLEMENT SPORTIF LIGUE"]
["163279C","GELAS","BERNARD","GELAS BERNARD",2024,2025,"Méditerranée","CDB Bouches du Rhône",19098,"BILLARD CLUB LA FARE","19098 – BILLARD CLUB LA FARE","Oui","R2","R2",0.22500000000000001,0.193,"à","SELON RÈGLEMENT SPORTIF LIGUE"]
["022104E","GERVAIS","GUILLAUME","GERVAIS GUILLAUME",2018,2025,"Méditerranée","CDB Vaucluse",19021,"BILLARD CLUB CAVAILLONNAIS","19021 – BILLARD CLUB CAVAILLONNAIS","Oui","N2","N3",0.56599999999999995,0.48699999999999999,"â","AUTORISÉ"]
["101282M","GHU","GERARD","GHU GERARD",2020,2025,"Méditerranée","CDB Vaucluse",19016,"BILLARD CLUB ORANGEOIS","19016 – BILLARD CLUB ORANGEOIS","Oui","R1","R1",0.35299999999999998,0.30299999999999999,"à","SELON RÈGLEMENT SPORTIF LIGUE"]
["104472E","GIACONIA","HERBERT","GIACONIA HERBERT",2018,2020,"Méditerranée","CDB Alpes Maritimes",19058,"ACADEMIE DE BILLARD DE BARBOSSI MANDELIEU","19058 – ACADEMIE DE BILLARD DE BARBOSSI MANDELIEU","Oui","R1","R1",0.26500000000000001,0.22800000000000001,"à","SELON RÈGLEMENT SPORTIF LIGUE"]
["118661X","GIBARROUX","CHRISTOPHE","GIBARROUX CHRISTOPHE",2025,2025,"Méditerranée","CDB Bouches du Rhône",19001,"S. S. A. B. D AIX EN PROVENCE","19001 – S. S. A. B. D AIX EN PROVENCE","Oui","R1","R1",0.33800000000000002,0.29099999999999998,"à","SELON RÈGLEMENT SPORTIF LIGUE"]
["149390F","GIFFARD","PHILIPPE","GIFFARD PHILIPPE",2023,2025,"Méditerranée","CDB Var",19023,"BILLARD CLUB GARDEEN","19023 – BILLARD CLUB GARDEEN","Oui","N2","N3",0.49,0.42099999999999999,"â","AUTORISÉ"]
["022115P","GIOVANNETTI","DAMIEN","GIOVANNETTI DAMIEN",2014,2024,"Méditerranée","CDB Bouches du Rhône",19050,"BILLARD CLUB SAUSSETOIS","19050 – BILLARD CLUB SAUSSETOIS","Oui","R1","R1",0.28399999999999997,0.24399999999999999,"à","SELON RÈGLEMENT SPORTIF LIGUE"]
["129718E","GIRARD","JACQUES","GIRARD JACQUES",2024,2025,"Méditerranée","CDB Alpes Maritimes",19058,"ACADEMIE DE BILLARD DE BARBOSSI MANDELIEU","19058 – ACADEMIE DE BILLARD DE BARBOSSI MANDELIEU","Oui","R1","R1",0.32600000000000001,0.28100000000000003,"à","SELON RÈGLEMENT SPORTIF LIGUE"]
["181920P","GOAILLARD","JEAN MARC","GOAILLARD JEAN MARC",2025,2025,"Méditerranée","CDB Bouches du Rhône",19017,"BILLARD CLUB PHOCEEN","19017 – BILLARD CLUB PHOCEEN","Oui","-","R1",0.39300000000000002,0.33800000000000002,"à","SELON RÈGLEMENT SPORTIF LIGUE"]
["157852D","GODARD","PASCAL","GODARD PASCAL",2025,2025,"Méditerranée","CDB Vaucluse",19006,"BILLARD CLUB CARPENTRASSIEN","19006 – BILLARD CLUB CARPENTRASSIEN","Oui","R1","R1",0.378,0.32500000000000001,"à","SELON RÈGLEMENT SPORTIF LIGUE"]
["120100G","GOMES","VITOR","GOMES VITOR",2016,2025,"Méditerranée","CDB Bouches du Rhône",19001,"S. S. A. B. D AIX EN PROVENCE","19001 – S. S. A. B. D AIX EN PROVENCE","Oui","N2","N2",0.58499999999999996,0.503,"à","SELON RÈGLEMENT SPORTIF LIGUE"]
["131925B","GOUDENECHE","BERNARD","GOUDENECHE BERNARD",2015,2024,"Méditerranée","CDB Bouches du Rhône",19098,"BILLARD CLUB LA FARE","19098 – BILLARD CLUB LA FARE","Oui","R1","R1",0.29399999999999998,0.253,"à","SELON RÈGLEMENT SPORTIF LIGUE"]
["022129D","GOUIRAN","GEORGES","GOUIRAN GEORGES",2015,2025,"Méditerranée","CDB Bouches du Rhône",19050,"BILLARD CLUB SAUSSETOIS","19050 – BILLARD CLUB SAUSSETOIS","Oui","R2","R2",0.193,0.16600000000000001,"à","SELON RÈGLEMENT SPORTIF LIGUE"]
["113216M","GOUKASSIAN","JACQUES","GOUKASSIAN JACQUES",2013,2019,"Méditerranée","CDB Bouches du Rhône",19050,"BILLARD CLUB SAUSSETOIS","19050 – BILLARD CLUB SAUSSETOIS","Oui","N3","N3",0.46800000000000003,0.40300000000000002,"à","SELON RÈGLEMENT SPORTIF LIGUE"]
["104054C","GOURSEAUD","YVES","GOURSEAUD YVES",2024,2025,"Méditerranée","CDB Vaucluse",19016,"BILLARD CLUB ORANGEOIS","19016 – BILLARD CLUB ORANGEOIS","Oui","N3","R1",0.379,0.32600000000000001,"â","AUTORISÉ"]
["149576H","GREGOIRE","JEAN CLAUDE","GREGOIRE JEAN CLAUDE",2020,2022,"Méditerranée","CDB Vaucluse",19016,"BILLARD CLUB ORANGEOIS","19016 – BILLARD CLUB ORANGEOIS","Oui","R2","R2",0.216,0.186,"à","SELON RÈGLEMENT SPORTIF LIGUE"]
["022134I","GRUAT","ALAIN","GRUAT ALAIN",2016,2019,"Méditerranée","CDB Bouches du Rhône",19002,"SPORT AMAT.DE BILLARD MARSEILLAIS","19002 – SPORT AMAT.DE BILLARD MARSEILLAIS","Oui","N2","N3",0.54100000000000004,0.46500000000000002,"â","AUTORISÉ"]
["135013V","GUERI","ROBERT","GUERI ROBERT",2015,2025,"Méditerranée","CDB Vaucluse",19027,"ACADEMIE DE BILLARD DE BOLLENE","19027 – ACADEMIE DE BILLARD DE BOLLENE","Oui","R2","R2",0.18,0.154,"à","SELON RÈGLEMENT SPORTIF LIGUE"]
["144796C","GUERINEAU","BRUNO","GUERINEAU BRUNO",2020,2025,"Méditerranée","CDB Vaucluse",19021,"BILLARD CLUB CAVAILLONNAIS","19021 – BILLARD CLUB CAVAILLONNAIS","Oui","N3","R1",0.39400000000000002,0.33900000000000002,"â","AUTORISÉ"]
["104475H","GUEUG","PIERRE","GUEUG PIERRE",2022,2025,"Méditerranée","CDB Alpes Maritimes",19056,"BILLARD CLUB DE NICE","19056 – BILLARD CLUB DE NICE","Oui","R1","R1",0.26700000000000002,0.23,"à","SELON RÈGLEMENT SPORTIF LIGUE"]
["022137L","GUIBERT","JEAN MARIE","GUIBERT JEAN MARIE",2024,2024,"Méditerranée","CDB Bouches du Rhône",19009,"CLUB BILLARD ISTREEN","19009 – CLUB BILLARD ISTREEN","Oui","R1","R1",0.30599999999999999,0.26300000000000001,"à","SELON RÈGLEMENT SPORTIF LIGUE"]
["022138M","GUTIERREZ","FRANCOIS","GUTIERREZ FRANCOIS",2015,2024,"Méditerranée","CDB Bouches du Rhône",19017,"BILLARD CLUB PHOCEEN","19017 – BILLARD CLUB PHOCEEN","Oui","R1","R1",0.317,0.27300000000000002,"à","SELON RÈGLEMENT SPORTIF LIGUE"]
["011966G","HAHN","DANIEL","HAHN DANIEL",2020,2025,"Méditerranée","CDB Bouches du Rhône",19017,"BILLARD CLUB PHOCEEN","19017 – BILLARD CLUB PHOCEEN","Oui","R1","R1",0.26800000000000002,0.23,"à","SELON RÈGLEMENT SPORTIF LIGUE"]
["022141P","HAROUTUNIAN","PIERRE","HAROUTUNIAN PIERRE",2022,2022,"Méditerranée","CDB Bouches du Rhône",19050,"BILLARD CLUB SAUSSETOIS","19050 – BILLARD CLUB SAUSSETOIS","Oui","R1","R2",0.19800000000000001,0.17100000000000001,"â","AUTORISÉ"]
["137523J","HAZE","PATRICK","HAZE PATRICK",2024,2025,"Méditerranée","CDB Vaucluse",19021,"BILLARD CLUB CAVAILLONNAIS","19021 – BILLARD CLUB CAVAILLONNAIS","Oui","R1","R1",0.28499999999999998,0.245,"à","SELON RÈGLEMENT SPORTIF LIGUE"]
["159610P","HERBER","DOMINIQUE","HERBER DOMINIQUE",2020,2024,"Méditerranée","CDB Vaucluse",19027,"ACADEMIE DE BILLARD DE BOLLENE","19027 – ACADEMIE DE BILLARD DE BOLLENE","Oui","R1","R1",0.33100000000000002,0.28399999999999997,"à","SELON RÈGLEMENT SPORTIF LIGUE"]
["119933V","HERREMAN","SERGE","HERREMAN SERGE",2025,2025,"Méditerranée","CDB Var",19023,"BILLARD CLUB GARDEEN","19023 – BILLARD CLUB GARDEEN","Oui","R1","R1",0.30399999999999999,0.26200000000000001,"à","SELON RÈGLEMENT SPORTIF LIGUE"]
["137004K","HEURTAULT","JACKY","HEURTAULT JACKY",2024,2025,"Méditerranée","CDB Bouches du Rhône",19012,"SALON BILLARD CLUB","19012 – SALON BILLARD CLUB","Oui","N3","R1",0.29199999999999998,0.251,"â","AUTORISÉ"]
["132460Q","HMAYDA","YOUSSEF","HMAYDA YOUSSEF",2011,2019,"Méditerranée","CDB Alpes Maritimes",19056,"BILLARD CLUB DE NICE","19056 – BILLARD CLUB DE NICE","Oui","N2","N2",0.64200000000000002,0.55200000000000005,"à","SELON RÈGLEMENT SPORTIF LIGUE"]
["172086A","HUGUET","PATRICK","HUGUET PATRICK",2025,2025,"Méditerranée","CDB Bouches du Rhône",19017,"BILLARD CLUB PHOCEEN","19017 – BILLARD CLUB PHOCEEN","Oui","N2","N2",0.59399999999999997,0.51100000000000001,"à","SELON RÈGLEMENT SPORTIF LIGUE"]
["172214P","IDJERI","GILBERT","IDJERI GILBERT",2025,2025,"Méditerranée","CDB Bouches du Rhône",19050,"BILLARD CLUB SAUSSETOIS","19050 – BILLARD CLUB SAUSSETOIS","Oui","-","R1",0.376,0.32400000000000001,"à","SELON RÈGLEMENT SPORTIF LIGUE"]
["179136N","JAMET","PIERRE","JAMET PIERRE",2024,2025,"Méditerranée","CDB Alpes Maritimes",19055,"ACADEMIE DE BILLARD DE MENTON","19055 – ACADEMIE DE BILLARD DE MENTON","Oui","R2","R2",0.158,0.13600000000000001,"à","SELON RÈGLEMENT SPORTIF LIGUE"]
["120276A","JAVEY","JEAN FRANCOIS","JAVEY JEAN FRANCOIS",2012,2023,"Méditerranée","CDB Var",19019,"BILLARD CLUB DE LA BAIE","19019 – BILLARD CLUB DE LA BAIE","Oui","R2","R2",0.222,0.191,"à","SELON RÈGLEMENT SPORTIF LIGUE"]
["109065V","JIMENEZ","RICARDO","JIMENEZ RICARDO",2024,2024,"Méditerranée","CDB Alpes Maritimes",19055,"ACADEMIE DE BILLARD DE MENTON","19055 – ACADEMIE DE BILLARD DE MENTON","Oui","N3","N3",0.40200000000000002,0.34499999999999997,"à","SELON RÈGLEMENT SPORTIF LIGUE"]
["120814S","JONNARD","FREDERIC","JONNARD FREDERIC",2022,2025,"Méditerranée","CDB Var",19023,"BILLARD CLUB GARDEEN","19023 – BILLARD CLUB GARDEEN","Oui","N2","N2",0.59299999999999997,0.51,"à","SELON RÈGLEMENT SPORTIF LIGUE"]
["127033X","JUBILEU","DANIEL","JUBILEU DANIEL",2009,2022,"Méditerranée","CDB Alpes Maritimes",19058,"ACADEMIE DE BILLARD DE BARBOSSI MANDELIEU","19058 – ACADEMIE DE BILLARD DE BARBOSSI MANDELIEU","Oui","N3","N3",0.44900000000000001,0.38600000000000001,"à","SELON RÈGLEMENT SPORTIF LIGUE"]
["162905W","JUMEL","RENE","JUMEL RENE",2024,2025,"Méditerranée","CDB Vaucluse",19027,"ACADEMIE DE BILLARD DE BOLLENE","19027 – ACADEMIE DE BILLARD DE BOLLENE","Oui","R1","R2",0.246,0.21199999999999999,"â","AUTORISÉ"]
["116642G","KOPACZEWSKI","DANIEL","KOPACZEWSKI DANIEL",2019,2020,"Méditerranée","CDB Var",19061,"ACAD.BILLARD ST RAPHAEL","19061 – ACAD.BILLARD ST RAPHAEL","Oui","N3","N3",0.42099999999999999,0.36199999999999999,"à","SELON RÈGLEMENT SPORTIF LIGUE"]
["022173V","KOSKACH","JEAN PAUL","KOSKACH JEAN PAUL",2022,2024,"Méditerranée","CDB Bouches du Rhône",19017,"BILLARD CLUB PHOCEEN","19017 – BILLARD CLUB PHOCEEN","Oui","N3","N3",0.44700000000000001,0.38400000000000001,"à","SELON RÈGLEMENT SPORTIF LIGUE"]
["109977X","LACOSSE","JEAN PAUL","LACOSSE JEAN PAUL",2018,2025,"Méditerranée","CDB Var",19019,"BILLARD CLUB DE LA BAIE","19019 – BILLARD CLUB DE LA BAIE","Oui","R1","R2",0.221,0.19,"â","AUTORISÉ"]
["147195V","LACOSTE","BRUNO","LACOSTE BRUNO",2024,2024,"Méditerranée","CDB Var",19061,"ACAD.BILLARD ST RAPHAEL","19061 – ACAD.BILLARD ST RAPHAEL","Oui","N2","N3",0.48699999999999999,0.41899999999999998,"â","AUTORISÉ"]
["151312V","LAGIERE","CHRISTIAN","LAGIERE CHRISTIAN",2017,2022,"Méditerranée","CDB Var",19019,"BILLARD CLUB DE LA BAIE","19019 – BILLARD CLUB DE LA BAIE","Oui","R2","R2",0.14399999999999999,0.124,"à","SELON RÈGLEMENT SPORTIF LIGUE"]
["016084Q","LANDE","GERARD","LANDE GERARD",2025,2025,"Méditerranée","CDB Vaucluse",19014,"BILLARD CLUB AVIGNONNAIS","19014 – BILLARD CLUB AVIGNONNAIS","Oui","N2","N3",0.49099999999999999,0.42199999999999999,"â","AUTORISÉ"]
["181199F","LANDERECTHE","PASCAL","LANDERECTHE PASCAL",2025,2025,"Méditerranée","CDB Bouches du Rhône",19007,"BILLARD CLUB BERROIS","19007 – BILLARD CLUB BERROIS","Oui","R2","R1",0.32100000000000001,0.27600000000000002,"á","SELON RÈGLEMENT SPORTIF LIGUE"]
["168288X","LANNURIEN","THIERRY","LANNURIEN THIERRY",2024,2025,"Méditerranée","CDB Var",19023,"BILLARD CLUB GARDEEN","19023 – BILLARD CLUB GARDEEN","Oui","N3","N3",0.44900000000000001,0.38600000000000001,"à","SELON RÈGLEMENT SPORTIF LIGUE"]
["132346G","LE","THAN HAI","LE THAN HAI",2009,2024,"Méditerranée","CDB Alpes Maritimes",19056,"BILLARD CLUB DE NICE","19056 – BILLARD CLUB DE NICE","Oui","N3","N3",0.41199999999999998,0.35399999999999998,"à","SELON RÈGLEMENT SPORTIF LIGUE"]
["141504M","LECOQ","ARNAUD","LECOQ ARNAUD",2025,2025,"Méditerranée","CDB Bouches du Rhône",19012,"SALON BILLARD CLUB","19012 – SALON BILLARD CLUB","Oui","N3","N3",0.41699999999999998,0.35899999999999999,"à","SELON RÈGLEMENT SPORTIF LIGUE"]
["105373V","LEDUCQ","MORGAN","LEDUCQ MORGAN",2025,2025,"Méditerranée","CDB Vaucluse",19014,"BILLARD CLUB AVIGNONNAIS","19014 – BILLARD CLUB AVIGNONNAIS","Oui","N1","N2",0.72499999999999998,0.624,"â","AUTORISÉ"]
["117411V","LEFAUX","JEAN JACQUES","LEFAUX JEAN JACQUES",2024,2025,"Méditerranée","CDB Alpes Haute Provence",19025,"BILLARD CLUB SISTERONNAIS","19025 – BILLARD CLUB SISTERONNAIS","Oui","N3","R1",0.374,0.32200000000000001,"â","AUTORISÉ"]
["110379J","LEMARTINET","ROBERT","LEMARTINET ROBERT",2023,2025,"Méditerranée","CDB Var",19019,"BILLARD CLUB DE LA BAIE","19019 – BILLARD CLUB DE LA BAIE","Oui","R1","R1",0.29299999999999998,0.252,"à","SELON RÈGLEMENT SPORTIF LIGUE"]
["022205B","LEMESLE","FABRICE","LEMESLE FABRICE",2013,2025,"Méditerranée","CDB Bouches du Rhône",19017,"BILLARD CLUB PHOCEEN","19017 – BILLARD CLUB PHOCEEN","Oui","R1","R1",0.31,0.26600000000000001,"à","SELON RÈGLEMENT SPORTIF LIGUE"]
["104233Z","LEMIERE","JEAN NOEL","LEMIERE JEAN NOEL",2023,2025,"Méditerranée","CDB Var",19023,"BILLARD CLUB GARDEEN","19023 – BILLARD CLUB GARDEEN","Oui","N2","N3",0.55600000000000005,0.47799999999999998,"â","AUTORISÉ"]
["176350K","LETELLIER","ALAIN","LETELLIER ALAIN",2025,2025,"Méditerranée","CDB Bouches du Rhône",19090,"BILLARD AMATEUR ROGNAC","19090 – BILLARD AMATEUR ROGNAC","Oui","-","R2",0.187,0.16,"à","SELON RÈGLEMENT SPORTIF LIGUE"]
["122673F","LIOU","THAI HUNG","LIOU THAI HUNG",2019,2021,"Méditerranée","CDB Alpes Maritimes",19058,"ACADEMIE DE BILLARD DE BARBOSSI MANDELIEU","19058 – ACADEMIE DE BILLARD DE BARBOSSI MANDELIEU","Oui","N1","N2",0.74099999999999999,0.63700000000000001,"â","AUTORISÉ"]
["146375V","LISI","ROGER",{"$f":"B194&\" \"&C194","v":"LISI ROGER"},2025,2025,"Méditerranée","CDB Bouches du Rhône",19007,"BILLARD CLUB BERROIS",{"$f":"I194&\" – \"&J194","v":"19007 – BILLARD CLUB BERROIS"},"Oui","R2","R2",0.18,0.154,"à","SELON RÈGLEMENT SPORTIF LIGUE"]
["174810L","LOCKS","TIMOTHY","LOCKS TIMOTHY",2022,2022,"Méditerranée","CDB Alpes Haute Provence",19025,"BILLARD CLUB SISTERONNAIS","19025 – BILLARD CLUB SISTERONNAIS","Oui","R2","R2",0.183,0.157,"à","SELON RÈGLEMENT SPORTIF LIGUE"]
["162076V","LUCENET","PAUL","LUCENET PAUL",2022,2025,"Méditerranée","CDB Bouches du Rhône",19009,"CLUB BILLARD ISTREEN","19009 – CLUB BILLARD ISTREEN","Oui","R1","R2",0.20799999999999999,0.17899999999999999,"â","AUTORISÉ"]
["186880F","LUNEAU","JEAN CLAUDE","LUNEAU JEAN CLAUDE",2025,2025,"Méditerranée","CDB Var",19023,"BILLARD CLUB GARDEEN","19023 – BILLARD CLUB GARDEEN","Oui","-","N3",0.51800000000000002,0.44500000000000001,"à","SELON RÈGLEMENT SPORTIF LIGUE"]
["022221R","LUVISON","JEAN","LUVISON JEAN",2019,2025,"Méditerranée","CDB Bouches du Rhône",19012,"SALON BILLARD CLUB","19012 – SALON BILLARD CLUB","Oui","R2","R2",0.11899999999999999,0.10199999999999999,"à","SELON RÈGLEMENT SPORTIF LIGUE"]
["022223T","MACQUET","PATRICK","MACQUET PATRICK",2025,2025,"Méditerranée","CDB Alpes Maritimes",19056,"BILLARD CLUB DE NICE","19056 – BILLARD CLUB DE NICE","Oui","N1","N1",0.96799999999999997,0.83199999999999996,"à","SELON RÈGLEMENT SPORTIF LIGUE"]
["165843P","MAGNIER","PIERRE","MAGNIER PIERRE",2025,2025,"Méditerranée","CDB Var",19023,"BILLARD CLUB GARDEEN","19023 – BILLARD CLUB GARDEEN","Oui","R2","R2",0.13200000000000001,0.113,"à","SELON RÈGLEMENT SPORTIF LIGUE"]
["108280Q","MARCIANO","GEORGES","MARCIANO GEORGES",2022,2025,"Méditerranée","CDB Alpes Maritimes",19058,"ACADEMIE DE BILLARD DE BARBOSSI MANDELIEU","19058 – ACADEMIE DE BILLARD DE BARBOSSI MANDELIEU","Oui","N3","R1",0.32500000000000001,0.27900000000000003,"â","AUTORISÉ"]
["103581X","MASSERAN","PHILIPPE","MASSERAN PHILIPPE",2025,2025,"Méditerranée","CDB Alpes Maritimes",19058,"ACADEMIE DE BILLARD DE BARBOSSI MANDELIEU","19058 – ACADEMIE DE BILLARD DE BARBOSSI MANDELIEU","Oui","N1","N2",0.68,0.58399999999999996,"â","AUTORISÉ"]
["172680W","MASSIAS","GUY","MASSIAS GUY",2025,2025,"Méditerranée","CDB Bouches du Rhône",19001,"S. S. A. B. D AIX EN PROVENCE","19001 – S. S. A. B. D AIX EN PROVENCE","Oui","-","R2",0.216,0.186,"à","SELON RÈGLEMENT SPORTIF LIGUE"]
["129498S","MATHIEU","CLAUDE","MATHIEU CLAUDE",2024,2025,"Méditerranée","CDB Bouches du Rhône",19098,"BILLARD CLUB LA FARE","19098 – BILLARD CLUB LA FARE","Oui","R1","R1",0.27200000000000002,0.23400000000000001,"à","SELON RÈGLEMENT SPORTIF LIGUE"]
["017615N","MAUDUIT","DIDIER","MAUDUIT DIDIER",2022,2025,"Méditerranée","CDB Bouches du Rhône",19009,"CLUB BILLARD ISTREEN","19009 – CLUB BILLARD ISTREEN","Oui","R1","R1",0.25,0.215,"à","SELON RÈGLEMENT SPORTIF LIGUE"]
["149391G","MAURON","BERNARD","MAURON BERNARD",2024,2025,"Méditerranée","CDB Var",19023,"BILLARD CLUB GARDEEN","19023 – BILLARD CLUB GARDEEN","Oui","N3","R1",0.32300000000000001,0.27800000000000002,"â","AUTORISÉ"]
["103621L","MENGUY","PHILIPPE","MENGUY PHILIPPE",2018,2019,"Méditerranée","CDB Alpes Maritimes",19055,"ACADEMIE DE BILLARD DE MENTON","19055 – ACADEMIE DE BILLARD DE MENTON","Oui","N3","N3",0.41599999999999998,0.35799999999999998,"à","SELON RÈGLEMENT SPORTIF LIGUE"]
["152604Z","METAIS","ALBAN","METAIS ALBAN",2025,2025,"Méditerranée","CDB Vaucluse",19006,"BILLARD CLUB CARPENTRASSIEN","19006 – BILLARD CLUB CARPENTRASSIEN","Oui","R1","R1",0.317,0.27300000000000002,"à","SELON RÈGLEMENT SPORTIF LIGUE"]
["172218T","MILLOT","ROBERT","MILLOT ROBERT",2022,2025,"Méditerranée","CDB Alpes Haute Provence",19025,"BILLARD CLUB SISTERONNAIS","19025 – BILLARD CLUB SISTERONNAIS","Oui","R2","R2",0.245,0.21099999999999999,"à","SELON RÈGLEMENT SPORTIF LIGUE"]
["022266K","MOGLIA","EMILE","MOGLIA EMILE",2024,2025,"Méditerranée","CDB Vaucluse",19014,"BILLARD CLUB AVIGNONNAIS","19014 – BILLARD CLUB AVIGNONNAIS","Oui","N3","N3",0.40600000000000003,0.34899999999999998,"à","SELON RÈGLEMENT SPORTIF LIGUE"]
["022268M","MOLAND","PHILIPPE","MOLAND PHILIPPE",2025,2025,"Méditerranée","CDB Var",19059,"BILLARD CLUB ROQUEBRUNOIS","19059 – BILLARD CLUB ROQUEBRUNOIS","Oui","R1","R1",0.314,0.27,"à","SELON RÈGLEMENT SPORTIF LIGUE"]
["022270O","MOLINAS","ROBERT","MOLINAS ROBERT",2011,2025,"Méditerranée","CDB Vaucluse",19021,"BILLARD CLUB CAVAILLONNAIS","19021 – BILLARD CLUB CAVAILLONNAIS","Oui","R1","R1",0.35399999999999998,0.30399999999999999,"à","SELON RÈGLEMENT SPORTIF LIGUE"]
["022271P","MONNET","JEAN CLAUDE","MONNET JEAN CLAUDE",2025,2025,"Méditerranée","CDB Vaucluse",19021,"BILLARD CLUB CAVAILLONNAIS","19021 – BILLARD CLUB CAVAILLONNAIS","Oui","N2","N3",0.56499999999999995,0.48599999999999999,"â","AUTORISÉ"]
["147624L","MOREELS","BERNARD","MOREELS BERNARD",2025,2025,"Méditerranée","CDB Var",19023,"BILLARD CLUB GARDEEN","19023 – BILLARD CLUB GARDEEN","Oui","-","R2",0.17100000000000001,0.14699999999999999,"à","SELON RÈGLEMENT SPORTIF LIGUE"]
["151456B","MOUSSIER","PATRICK","MOUSSIER PATRICK",2025,2025,"Méditerranée","CDB Alpes Maritimes",19056,"BILLARD CLUB DE NICE","19056 – BILLARD CLUB DE NICE","Oui","-","R2",0.14099999999999999,0.121,"à","SELON RÈGLEMENT SPORTIF LIGUE"]
["109063T","MUNOS","JEAN","MUNOS JEAN",2025,2025,"Méditerranée","CDB Bouches du Rhône",19050,"BILLARD CLUB SAUSSETOIS","19050 – BILLARD CLUB SAUSSETOIS","Oui","N3","N3",0.42599999999999999,0.36599999999999999,"à","SELON RÈGLEMENT SPORTIF LIGUE"]
["109708O","MUNOS","VINCENT","MUNOS VINCENT",2025,2025,"Méditerranée","CDB Bouches du Rhône",19007,"BILLARD CLUB BERROIS","19007 – BILLARD CLUB BERROIS","Oui","N3","N3",0.42199999999999999,0.36299999999999999,"à","SELON RÈGLEMENT SPORTIF LIGUE"]
["022284C","MUNOZ","CHRISTIAN","MUNOZ CHRISTIAN",2025,2025,"Méditerranée","CDB Vaucluse",19021,"BILLARD CLUB CAVAILLONNAIS","19021 – BILLARD CLUB CAVAILLONNAIS","Oui","N3","N3",0.52,0.44700000000000001,"à","SELON RÈGLEMENT SPORTIF LIGUE"]
["132351L","N GUYEN","NGA","N GUYEN NGA",2025,2025,"Méditerranée","CDB Alpes Maritimes",19056,"BILLARD CLUB DE NICE","19056 – BILLARD CLUB DE NICE","Oui","N3","N3",0.55400000000000005,0.47699999999999998,"à","SELON RÈGLEMENT SPORTIF LIGUE"]
["141788K","N GUYEN VAN DUC","MAX","N GUYEN VAN DUC MAX",2025,2025,"Méditerranée","CDB Bouches du Rhône",19007,"BILLARD CLUB BERROIS","19007 – BILLARD CLUB BERROIS","Oui","R1","R1",0.252,0.217,"à","SELON RÈGLEMENT SPORTIF LIGUE"]
["166329S","NABHANE","EMILE","NABHANE EMILE",2022,2025,"Méditerranée","CDB Vaucluse",19006,"BILLARD CLUB CARPENTRASSIEN","19006 – BILLARD CLUB CARPENTRASSIEN","Oui","R2","R2",0.158,0.13600000000000001,"à","SELON RÈGLEMENT SPORTIF LIGUE"]
["107263N","NASICA","PATRICK","NASICA PATRICK",2025,2025,"Méditerranée","CDB Vaucluse",19014,"BILLARD CLUB AVIGNONNAIS","19014 – BILLARD CLUB AVIGNONNAIS","Oui","N3","N3",0.42499999999999999,0.36599999999999999,"à","SELON RÈGLEMENT SPORTIF LIGUE"]
["183754H","NGUYEN","PAUL","NGUYEN PAUL",2025,2025,"Méditerranée","CDB Alpes Maritimes",19055,"ACADEMIE DE BILLARD DE MENTON","19055 – ACADEMIE DE BILLARD DE MENTON","Oui","R1","R1",0.29599999999999999,0.255,"à","SELON RÈGLEMENT SPORTIF LIGUE"]
["020258E","OLLIVIER","DANIEL","OLLIVIER DANIEL",2025,2025,"Méditerranée","CDB Bouches du Rhône",19009,"CLUB BILLARD ISTREEN","19009 – CLUB BILLARD ISTREEN","Oui","R1","R1",0.29499999999999998,0.254,"à","SELON RÈGLEMENT SPORTIF LIGUE"]
["128468C","OUDOUX","GERARD","OUDOUX GERARD",2024,2025,"Méditerranée","CDB Var",19023,"BILLARD CLUB GARDEEN","19023 – BILLARD CLUB GARDEEN","Oui","R2","R2",0.24,0.20599999999999999,"à","SELON RÈGLEMENT SPORTIF LIGUE"]
["150400D","PACZESNY","FABRICE","PACZESNY FABRICE",2025,2025,"Méditerranée","CDB Bouches du Rhône",19098,"BILLARD CLUB LA FARE","19098 – BILLARD CLUB LA FARE","Oui","R1","R1",0.30599999999999999,0.26300000000000001,"à","SELON RÈGLEMENT SPORTIF LIGUE"]
["153692G","PAVIOT","DIDIER","PAVIOT DIDIER",2017,2020,"Méditerranée","CDB Var",19023,"BILLARD CLUB GARDEEN","19023 – BILLARD CLUB GARDEEN","Oui","R1","R1",0.35699999999999998,0.307,"à","SELON RÈGLEMENT SPORTIF LIGUE"]
["141673Z","PELLAT","FRANCIS","PELLAT FRANCIS",2025,2025,"Méditerranée","CDB Alpes Haute Provence",19025,"BILLARD CLUB SISTERONNAIS","19025 – BILLARD CLUB SISTERONNAIS","Oui","R1","R1",0.313,0.26900000000000002,"à","SELON RÈGLEMENT SPORTIF LIGUE"]
["103577T","PENEDO","MANUEL","PENEDO MANUEL",2009,2024,"Méditerranée","CDB Var",19106,"BILLARD CLUB VINONNAIS","19106 – BILLARD CLUB VINONNAIS","Oui","N3","R1",0.38100000000000001,0.32800000000000001,"â","AUTORISÉ"]
["013896M","PEREIRA","CHARLES","PEREIRA CHARLES",2025,2025,"Méditerranée","CDB Var",19023,"BILLARD CLUB GARDEEN","19023 – BILLARD CLUB GARDEEN","Oui","N1","N2",0.69199999999999995,0.59499999999999997,"â","AUTORISÉ"]
["130773T","PEREZ","CHRISTIAN","PEREZ CHRISTIAN",2025,2025,"Méditerranée","CDB Bouches du Rhône",19009,"CLUB BILLARD ISTREEN","19009 – CLUB BILLARD ISTREEN","Oui","R2","R2",0.21299999999999999,0.183,"à","SELON RÈGLEMENT SPORTIF LIGUE"]
["022321N","PERIS","MICHEL","PERIS MICHEL",2025,2025,"Méditerranée","CDB Alpes Maritimes",19056,"BILLARD CLUB DE NICE","19056 – BILLARD CLUB DE NICE","Oui","R2","R2",0.111,9.6000000000000002E-2,"à","SELON RÈGLEMENT SPORTIF LIGUE"]
["179183P","PETIT","PHILIPPE","PETIT PHILIPPE",2025,2025,"Méditerranée","CDB Vaucluse",19014,"BILLARD CLUB AVIGNONNAIS","19014 – BILLARD CLUB AVIGNONNAIS","Oui","R2","R2",0.222,0.191,"à","SELON RÈGLEMENT SPORTIF LIGUE"]
["129330G","PICOLLET","MANUEL","PICOLLET MANUEL",2016,2022,"Méditerranée","CDB Bouches du Rhône",19090,"BILLARD AMATEUR ROGNAC","19090 – BILLARD AMATEUR ROGNAC","Oui","N2","N3",0.53300000000000003,0.45900000000000002,"â","AUTORISÉ"]
["022330W","PIELIN","PASCAL","PIELIN PASCAL",2025,2025,"Méditerranée","CDB Bouches du Rhône",19012,"SALON BILLARD CLUB","19012 – SALON BILLARD CLUB","Oui","N2","N3",0.57399999999999995,0.49399999999999999,"â","AUTORISÉ"]
["106899N","PIGNARD","CHARLES","PIGNARD CHARLES",2008,2024,"Méditerranée","CDB Var",19061,"ACAD.BILLARD ST RAPHAEL","19061 – ACAD.BILLARD ST RAPHAEL","Oui","N3","N3",0.47899999999999998,0.41199999999999998,"à","SELON RÈGLEMENT SPORTIF LIGUE"]
["112316W","PIGNATEL","FLORENT","PIGNATEL FLORENT",2025,2025,"Méditerranée","CDB Vaucluse",19021,"BILLARD CLUB CAVAILLONNAIS","19021 – BILLARD CLUB CAVAILLONNAIS","Oui","N1","N2",0.66300000000000003,0.56999999999999995,"â","AUTORISÉ"]
["165118B","PILAVDJIAN","JACQUES","PILAVDJIAN JACQUES",2024,2025,"Méditerranée","CDB Bouches du Rhône",19017,"BILLARD CLUB PHOCEEN","19017 – BILLARD CLUB PHOCEEN","Oui","R1","R1",0.28699999999999998,0.247,"à","SELON RÈGLEMENT SPORTIF LIGUE"]
["105404A","PINARD","PATRICE","PINARD PATRICE",2025,2025,"Méditerranée","CDB Bouches du Rhône",19012,"SALON BILLARD CLUB","19012 – SALON BILLARD CLUB","Oui","N1","N1",0.82199999999999995,0.70699999999999996,"à","SELON RÈGLEMENT SPORTIF LIGUE"]
["022332Y","PINNA","ALAIN","PINNA ALAIN",2025,2025,"Méditerranée","CDB Bouches du Rhône",19017,"BILLARD CLUB PHOCEEN","19017 – BILLARD CLUB PHOCEEN","Oui","N2","N2",0.73399999999999999,0.63100000000000001,"à","SELON RÈGLEMENT SPORTIF LIGUE"]
["148229T","PINNA","VINCENT","PINNA VINCENT",2016,2025,"Méditerranée","CDB Bouches du Rhône",19017,"BILLARD CLUB PHOCEEN","19017 – BILLARD CLUB PHOCEEN","Oui","R1","R1",0.35599999999999998,0.30599999999999999,"à","SELON RÈGLEMENT SPORTIF LIGUE"]
["108010G","POIRIER","DOMINIQUE","POIRIER DOMINIQUE",2025,2025,"Méditerranée","CDB Var",19061,"ACAD.BILLARD ST RAPHAEL","19061 – ACAD.BILLARD ST RAPHAEL","Oui","R1","R2",0.23300000000000001,0.2,"â","AUTORISÉ"]
["170697Q","PORA","JEAN PAUL","PORA JEAN PAUL",2025,2025,"Méditerranée","CDB Bouches du Rhône",19009,"CLUB BILLARD ISTREEN","19009 – CLUB BILLARD ISTREEN","Oui","R1","R1",0.28399999999999997,0.24399999999999999,"à","SELON RÈGLEMENT SPORTIF LIGUE"]
["181316H","PORTET","PATRICK","PORTET PATRICK",2025,2025,"Méditerranée","CDB Var",19059,"BILLARD CLUB ROQUEBRUNOIS","19059 – BILLARD CLUB ROQUEBRUNOIS","Oui","R2","R2",0.152,0.13100000000000001,"à","SELON RÈGLEMENT SPORTIF LIGUE"]
["022347N","POUJOL","JEAN PAUL","POUJOL JEAN PAUL",2025,2025,"Méditerranée","CDB Vaucluse",19014,"BILLARD CLUB AVIGNONNAIS","19014 – BILLARD CLUB AVIGNONNAIS","Oui","R1","R2",0.223,0.192,"â","AUTORISÉ"]
["144719D","POULAIN","FREDERIC","POULAIN FREDERIC",2025,2025,"Méditerranée","CDB Vaucluse",19016,"BILLARD CLUB ORANGEOIS","19016 – BILLARD CLUB ORANGEOIS","Oui","R1","R2",0.23400000000000001,0.20100000000000001,"â","AUTORISÉ"]
["022349P","POZNANSKI","JEAN MICHEL","POZNANSKI JEAN MICHEL",2025,2025,"Méditerranée","CDB Bouches du Rhône",19012,"SALON BILLARD CLUB","19012 – SALON BILLARD CLUB","Oui","N3","N3",0.53800000000000003,0.46200000000000002,"à","SELON RÈGLEMENT SPORTIF LIGUE"]
["136544S","QUEZEL","ANDRE","QUEZEL ANDRE",2013,2025,"Méditerranée","CDB Vaucluse",19014,"BILLARD CLUB AVIGNONNAIS","19014 – BILLARD CLUB AVIGNONNAIS","Oui","R2","R2",0.12,0.10299999999999999,"à","SELON RÈGLEMENT SPORTIF LIGUE"]
["022357X","RAMOND","JEAN MARC","RAMOND JEAN MARC",2025,2025,"Méditerranée","CDB Alpes Maritimes",19058,"ACADEMIE DE BILLARD DE BARBOSSI MANDELIEU","19058 – ACADEMIE DE BILLARD DE BARBOSSI MANDELIEU","Oui","R1","R1",0.27500000000000002,0.23699999999999999,"à","SELON RÈGLEMENT SPORTIF LIGUE"]
["136205R","RANC","ALAIN","RANC ALAIN",2025,2025,"Méditerranée","CDB Vaucluse",19027,"ACADEMIE DE BILLARD DE BOLLENE","19027 – ACADEMIE DE BILLARD DE BOLLENE","Oui","R1","R1",0.29599999999999999,0.255,"à","SELON RÈGLEMENT SPORTIF LIGUE"]
["119696S","REVALOR","MICHEL","REVALOR MICHEL",2025,2025,"Méditerranée","CDB Bouches du Rhône",19050,"BILLARD CLUB SAUSSETOIS","19050 – BILLARD CLUB SAUSSETOIS","Oui","R1","R2",0.17499999999999999,0.15,"â","AUTORISÉ"]
["133646G","RICART","ANDRE","RICART ANDRE",2019,2019,"Méditerranée","CDB Bouches du Rhône",19009,"CLUB BILLARD ISTREEN","19009 – CLUB BILLARD ISTREEN","Oui","N3","R1",0.375,0.32300000000000001,"â","AUTORISÉ"]
["022367H","RICHARD","GUY","RICHARD GUY",2020,2025,"Méditerranée","CDB Var",19023,"BILLARD CLUB GARDEEN","19023 – BILLARD CLUB GARDEEN","Oui","N3","N3",0.40100000000000002,0.34499999999999997,"à","SELON RÈGLEMENT SPORTIF LIGUE"]
["107093Z","RICHAUD","PIERRE","RICHAUD PIERRE",2013,2025,"Méditerranée","CDB Bouches du Rhône",19017,"BILLARD CLUB PHOCEEN","19017 – BILLARD CLUB PHOCEEN","Oui","N3","R1",0.34,0.29199999999999998,"â","AUTORISÉ"]
["125943Z","RIFFET","BERNARD","RIFFET BERNARD",2015,2020,"Méditerranée","CDB Vaucluse",19014,"BILLARD CLUB AVIGNONNAIS","19014 – BILLARD CLUB AVIGNONNAIS","Oui","R2","R2",0.24099999999999999,0.20699999999999999,"à","SELON RÈGLEMENT SPORTIF LIGUE"]
["022372M","RIGNOLS","PHILIPPE","RIGNOLS PHILIPPE",2025,2025,"Méditerranée","CDB Vaucluse",19021,"BILLARD CLUB CAVAILLONNAIS","19021 – BILLARD CLUB CAVAILLONNAIS","Oui","N3","N3",0.47199999999999998,0.40600000000000003,"à","SELON RÈGLEMENT SPORTIF LIGUE"]
["023064C","RIGOLLET","PIERRE","RIGOLLET PIERRE",2019,2025,"Méditerranée","CDB Alpes Haute Provence",19025,"BILLARD CLUB SISTERONNAIS","19025 – BILLARD CLUB SISTERONNAIS","Oui","N2","N3",0.53,0.45500000000000002,"â","AUTORISÉ"]
["169613M","RIHANI","ANDRE",{"$f":"B258&\" \"&C258","v":"RIHANI ANDRE"},2024,2024,"Méditerranée","CDB Alpes Maritimes",19058,"ACADEMIE DE BILLARD DE BARBOSSI MANDELIEU",{"$f":"I258&\" – \"&J258","v":"19058 – ACADEMIE DE BILLARD DE BARBOSSI MANDELIEU"},"Oui","R2","R2",0.1,8.5999999999999993E-2,"à","SELON RÈGLEMENT SPORTIF LIGUE"]
["134183X","ROBBE","RAYMOND","ROBBE RAYMOND",2024,2025,"Méditerranée","CDB Bouches du Rhône",19009,"CLUB BILLARD ISTREEN","19009 – CLUB BILLARD ISTREEN","Oui","N3","R1",0.28999999999999998,0.249,"â","AUTORISÉ"]
["022450M","ROBERT","DIDIER","ROBERT DIDIER",2024,2025,"Méditerranée","CDB Vaucluse",19014,"BILLARD CLUB AVIGNONNAIS","19014 – BILLARD CLUB AVIGNONNAIS","Oui","N2","N3",0.53300000000000003,0.45800000000000002,"â","AUTORISÉ"]
["166175A","RONSAIN","JEAN JACQUES","RONSAIN JEAN JACQUES",2025,2025,"Méditerranée","CDB Bouches du Rhône",19012,"SALON BILLARD CLUB","19012 – SALON BILLARD CLUB","Oui","R1","R1",0.32600000000000001,0.28100000000000003,"à","SELON RÈGLEMENT SPORTIF LIGUE"]
["163166E","ROUANET","CLAUDE","ROUANET CLAUDE",2023,2025,"Méditerranée","CDB Alpes Haute Provence",19025,"BILLARD CLUB SISTERONNAIS","19025 – BILLARD CLUB SISTERONNAIS","Oui","N3","R1",0.39700000000000002,0.34100000000000003,"â","AUTORISÉ"]
["101518O","ROUGON","ROBERT","ROUGON ROBERT",2024,2025,"Méditerranée","CDB Bouches du Rhône",19007,"BILLARD CLUB BERROIS","19007 – BILLARD CLUB BERROIS","Oui","N3","R1",0.39800000000000002,0.34300000000000003,"â","AUTORISÉ"]
["022384Y","ROUX","CLAUDE","ROUX CLAUDE",2018,2020,"Méditerranée","CDB Bouches du Rhône",19050,"BILLARD CLUB SAUSSETOIS","19050 – BILLARD CLUB SAUSSETOIS","Oui","N2","N2",0.58499999999999996,0.503,"à","SELON RÈGLEMENT SPORTIF LIGUE"]
["121397D","RYCKELYNCK","LAURENT","RYCKELYNCK LAURENT",2025,2025,"Méditerranée","CDB Vaucluse",19006,"BILLARD CLUB CARPENTRASSIEN","19006 – BILLARD CLUB CARPENTRASSIEN","Oui","-","R2",0.20799999999999999,0.17899999999999999,"à","SELON RÈGLEMENT SPORTIF LIGUE"]
["136546U","SALAMA","ALAIN","SALAMA ALAIN",2025,2025,"Méditerranée","CDB Vaucluse",19021,"BILLARD CLUB CAVAILLONNAIS","19021 – BILLARD CLUB CAVAILLONNAIS","Oui","N3","R1",0.32200000000000001,0.27700000000000002,"â","AUTORISÉ"]
["114734W","SALES","RENE","SALES RENE",2009,2019,"Méditerranée","CDB Bouches du Rhône",19068,"BILLARD CLUB ARLESIEN","19068 – BILLARD CLUB ARLESIEN","Oui","N2","N3",0.48599999999999999,0.41799999999999998,"â","AUTORISÉ"]
["175174G","SALES","THIERRY","SALES THIERRY",2025,2025,"Méditerranée","CDB Var",19061,"ACAD.BILLARD ST RAPHAEL","19061 – ACAD.BILLARD ST RAPHAEL","Oui","R1","R2",0.22900000000000001,0.19700000000000001,"â","AUTORISÉ"]
["022391F","SANTIAGO","JEAN JOSEPH","SANTIAGO JEAN JOSEPH",2025,2025,"Méditerranée","CDB Bouches du Rhône",19050,"BILLARD CLUB SAUSSETOIS","19050 – BILLARD CLUB SAUSSETOIS","Oui","N2","N2",0.65400000000000003,0.56299999999999994,"à","SELON RÈGLEMENT SPORTIF LIGUE"]
["014138U","SARRALDE","LOUIS","SARRALDE LOUIS",2025,2025,"Méditerranée","CDB Vaucluse",19021,"BILLARD CLUB CAVAILLONNAIS","19021 – BILLARD CLUB CAVAILLONNAIS","Oui","R1","R1",0.25,0.215,"à","SELON RÈGLEMENT SPORTIF LIGUE"]
["186195L","SAVI","OLIVIER","SAVI OLIVIER",2025,2025,"Méditerranée","CDB Bouches du Rhône",19050,"BILLARD CLUB SAUSSETOIS","19050 – BILLARD CLUB SAUSSETOIS","Oui","-","R1",0.252,0.216,"à","SELON RÈGLEMENT SPORTIF LIGUE"]
["113222S","SAVOIA","PATRICK","SAVOIA PATRICK",2023,2025,"Méditerranée","CDB Bouches du Rhône",19050,"BILLARD CLUB SAUSSETOIS","19050 – BILLARD CLUB SAUSSETOIS","Oui","N3","R1",0.372,0.32,"â","AUTORISÉ"]
["149694L","SCHAEFER","ERNEST ROBERT","SCHAEFER ERNEST ROBERT",2020,2025,"Méditerranée","CDB Vaucluse",19006,"BILLARD CLUB CARPENTRASSIEN","19006 – BILLARD CLUB CARPENTRASSIEN","Oui","R2","R2",0.17499999999999999,0.15,"à","SELON RÈGLEMENT SPORTIF LIGUE"]
["022399N","SCHEKLER","JEAN FLORIAN","SCHEKLER JEAN FLORIAN",2019,2023,"Méditerranée","CDB Var",19061,"ACAD.BILLARD ST RAPHAEL","19061 – ACAD.BILLARD ST RAPHAEL","Oui","R1","R1",0.33,0.28299999999999997,"à","SELON RÈGLEMENT SPORTIF LIGUE"]
["163238H","SICARD","GEORGES","SICARD GEORGES",2022,2025,"Méditerranée","CDB Alpes Haute Provence",19025,"BILLARD CLUB SISTERONNAIS","19025 – BILLARD CLUB SISTERONNAIS","Oui","R2","R2",0.2,0.17199999999999999,"à","SELON RÈGLEMENT SPORTIF LIGUE"]
["010203L","SIMON","GERARD","SIMON GERARD",2025,2025,"Méditerranée","CDB Vaucluse",19014,"BILLARD CLUB AVIGNONNAIS","19014 – BILLARD CLUB AVIGNONNAIS","Oui","N3","R1",0.39300000000000002,0.33800000000000002,"â","AUTORISÉ"]
["022412A","SINANIAN","JEAN PAUL","SINANIAN JEAN PAUL",2025,2025,"Méditerranée","CDB Bouches du Rhône",19017,"BILLARD CLUB PHOCEEN","19017 – BILLARD CLUB PHOCEEN","Oui","N3","N3",0.46500000000000002,0.4,"à","SELON RÈGLEMENT SPORTIF LIGUE"]
["103578U","SOLTANI","OMAR","SOLTANI OMAR",2024,2025,"Méditerranée","CDB Var",19106,"BILLARD CLUB VINONNAIS","19106 – BILLARD CLUB VINONNAIS","Oui","N3","R1",0.38900000000000001,0.33500000000000002,"â","AUTORISÉ"]
["020790Q","STEINMANN","SEBASTIEN","STEINMANN SEBASTIEN",2025,2025,"Méditerranée","CDB Var",19061,"ACAD.BILLARD ST RAPHAEL","19061 – ACAD.BILLARD ST RAPHAEL","Oui","N3","R1",0.39500000000000002,0.33900000000000002,"â","AUTORISÉ"]
["125931N","STEPHAN","OLIVIER","STEPHAN OLIVIER",2013,2025,"Méditerranée","CDB Alpes Haute Provence",19025,"BILLARD CLUB SISTERONNAIS","19025 – BILLARD CLUB SISTERONNAIS","Oui","R1","R1",0.35599999999999998,0.30599999999999999,"à","SELON RÈGLEMENT SPORTIF LIGUE"]
["165039Q","SUEUR","PASCAL","SUEUR PASCAL",2024,2024,"Méditerranée","CDB Alpes Maritimes",19058,"ACADEMIE DE BILLARD DE BARBOSSI MANDELIEU","19058 – ACADEMIE DE BILLARD DE BARBOSSI MANDELIEU","Oui","R1","R1",0.316,0.27200000000000002,"à","SELON RÈGLEMENT SPORTIF LIGUE"]
["022429R","TARDIEUX","LUC","TARDIEUX LUC",2024,2025,"Méditerranée","CDB Bouches du Rhône",19098,"BILLARD CLUB LA FARE","19098 – BILLARD CLUB LA FARE","Oui","R1","R2",0.23699999999999999,0.20399999999999999,"â","AUTORISÉ"]
["133907H","TARDY","JEAN CLAUDE","TARDY JEAN CLAUDE",2025,2025,"Méditerranée","CDB Vaucluse",19014,"BILLARD CLUB AVIGNONNAIS","19014 – BILLARD CLUB AVIGNONNAIS","Oui","R2","R2",0.20100000000000001,0.17299999999999999,"à","SELON RÈGLEMENT SPORTIF LIGUE"]
["143024Y","TARDY","PIERRE YVES","TARDY PIERRE YVES",2020,2025,"Méditerranée","CDB Alpes Maritimes",19058,"ACADEMIE DE BILLARD DE BARBOSSI MANDELIEU","19058 – ACADEMIE DE BILLARD DE BARBOSSI MANDELIEU","Oui","R1","R1",0.35,0.30099999999999999,"à","SELON RÈGLEMENT SPORTIF LIGUE"]
["132938A","TEYSSIER","SERGE","TEYSSIER SERGE",2025,2025,"Méditerranée","CDB Bouches du Rhône",19007,"BILLARD CLUB BERROIS","19007 – BILLARD CLUB BERROIS","Oui","-","R2",0.20799999999999999,0.17899999999999999,"à","SELON RÈGLEMENT SPORTIF LIGUE"]
["148252T","TIMSIT","SERGE","TIMSIT SERGE",2024,2025,"Méditerranée","CDB Var",19023,"BILLARD CLUB GARDEEN","19023 – BILLARD CLUB GARDEEN","Oui","R2","R2",8.3000000000000004E-2,7.0999999999999994E-2,"à","SELON RÈGLEMENT SPORTIF LIGUE"]
["111163N","TOLEDANO","ARMAND","TOLEDANO ARMAND",2014,2024,"Méditerranée","CDB Bouches du Rhône",19017,"BILLARD CLUB PHOCEEN","19017 – BILLARD CLUB PHOCEEN","Oui","N3","R1",0.32600000000000001,0.28000000000000003,"â","AUTORISÉ"]
["132786E","TONNELIER","JEAN PIERRE","TONNELIER JEAN PIERRE",2011,2024,"Méditerranée","CDB Var",19106,"BILLARD CLUB VINONNAIS","19106 – BILLARD CLUB VINONNAIS","Oui","R1","R1",0.26300000000000001,0.22600000000000001,"à","SELON RÈGLEMENT SPORTIF LIGUE"]
["022438A","TONOLI","PASCAL","TONOLI PASCAL",2023,2025,"Méditerranée","CDB Var",19059,"BILLARD CLUB ROQUEBRUNOIS","19059 – BILLARD CLUB ROQUEBRUNOIS","Oui","N3","R1",0.38200000000000001,0.32800000000000001,"â","AUTORISÉ"]
["135554Q","TORES","JEAN LUC","TORES JEAN LUC",2025,2025,"Méditerranée","CDB Bouches du Rhône",19009,"CLUB BILLARD ISTREEN","19009 – CLUB BILLARD ISTREEN","Oui","-","R1",0.29699999999999999,0.25600000000000001,"à","SELON RÈGLEMENT SPORTIF LIGUE"]
["014256I","TOURE","MADOU","TOURE MADOU",2020,2025,"Méditerranée","CDB Bouches du Rhône",19002,"SPORT AMAT.DE BILLARD MARSEILLAIS","19002 – SPORT AMAT.DE BILLARD MARSEILLAIS","Oui","N1","N2",0.78200000000000003,0.67300000000000004,"â","AUTORISÉ"]
["131929F","TRAN DINH","VUONG","TRAN DINH VUONG",2020,2025,"Méditerranée","CDB Bouches du Rhône",19002,"SPORT AMAT.DE BILLARD MARSEILLAIS","19002 – SPORT AMAT.DE BILLARD MARSEILLAIS","Oui","N2","N3",0.53800000000000003,0.46200000000000002,"â","AUTORISÉ"]
["187563Y","UNVER","BURHAN","UNVER BURHAN",2025,2025,"Méditerranée","CDB Bouches du Rhône",19002,"SPORT AMAT.DE BILLARD MARSEILLAIS","19002 – SPORT AMAT.DE BILLARD MARSEILLAIS","Oui","-","N2",0.70599999999999996,0.60699999999999998,"à","SELON RÈGLEMENT SPORTIF LIGUE"]
["022453P","VALENSI","GERARD","VALENSI GERARD",2015,2025,"Méditerranée","CDB Bouches du Rhône",19017,"BILLARD CLUB PHOCEEN","19017 – BILLARD CLUB PHOCEEN","Oui","N2","N3",0.57299999999999995,0.49299999999999999,"â","AUTORISÉ"]
["153163G","VALVERDE","JEAN YVES","VALVERDE JEAN YVES",2025,2025,"Méditerranée","CDB Var",19023,"BILLARD CLUB GARDEEN","19023 – BILLARD CLUB GARDEEN","Oui","-","R2",0.17499999999999999,0.15,"à","SELON RÈGLEMENT SPORTIF LIGUE"]
["129880K","VASSE","JEAN PIERRE","VASSE JEAN PIERRE",2023,2023,"Méditerranée","CDB Var",19019,"BILLARD CLUB DE LA BAIE","19019 – BILLARD CLUB DE LA BAIE","Oui","R2","R2",0.152,0.13,"à","SELON RÈGLEMENT SPORTIF LIGUE"]
["022459V","VAUTRIN","JEAN","VAUTRIN JEAN",2025,2025,"Méditerranée","CDB Alpes Maritimes",19056,"BILLARD CLUB DE NICE","19056 – BILLARD CLUB DE NICE","Oui","N3","N3",0.53,0.45600000000000002,"à","SELON RÈGLEMENT SPORTIF LIGUE"]
["147412F","VICTOR","DANIEL","VICTOR DANIEL",2017,2025,"Méditerranée","CDB Var",19019,"BILLARD CLUB DE LA BAIE","19019 – BILLARD CLUB DE LA BAIE","Oui","R2","R2",0.17100000000000001,0.14699999999999999,"à","SELON RÈGLEMENT SPORTIF LIGUE"]
["148051A","VIERA MAIA","ARLINDO","VIERA MAIA ARLINDO",2025,2025,"Méditerranée","CDB Var",19061,"ACAD.BILLARD ST RAPHAEL","19061 – ACAD.BILLARD ST RAPHAEL","Oui","N2","N2",0.60499999999999998,0.52,"à","SELON RÈGLEMENT SPORTIF LIGUE"]
["014327B","VIGNE","PHILIPPE","VIGNE PHILIPPE",2020,2025,"Méditerranée","CDB Vaucluse",19014,"BILLARD CLUB AVIGNONNAIS","19014 – BILLARD CLUB AVIGNONNAIS","Oui","N1","N2",0.70499999999999996,0.60599999999999998,"â","AUTORISÉ"]
["101485H","VILLASEVIL","ANTONIO","VILLASEVIL ANTONIO",2023,2025,"Méditerranée","CDB Bouches du Rhône",19007,"BILLARD CLUB BERROIS","19007 – BILLARD CLUB BERROIS","Oui","N2","N3",0.54600000000000004,0.46899999999999997,"â","AUTORISÉ"]
["147607S","VIOU","GERARD","VIOU GERARD",2023,2025,"Méditerranée","CDB Bouches du Rhône",19098,"BILLARD CLUB LA FARE","19098 – BILLARD CLUB LA FARE","Oui","N3","R1",0.39,0.33600000000000002,"â","AUTORISÉ"]
["119674W","VITALIEN","PIERRE","VITALIEN PIERRE",2024,2025,"Méditerranée","CDB Vaucluse",19016,"BILLARD CLUB ORANGEOIS","19016 – BILLARD CLUB ORANGEOIS","Oui","N3","R1",0.39300000000000002,0.33800000000000002,"â","AUTORISÉ"]
["022476M","VIVALDI","ANDRE","VIVALDI ANDRE",2023,2025,"Méditerranée","CDB Var",19106,"BILLARD CLUB VINONNAIS","19106 – BILLARD CLUB VINONNAIS","Oui","N3","N3",0.46400000000000002,0.39900000000000002,"à","SELON RÈGLEMENT SPORTIF LIGUE"]
["132515T","VO","DANG HUY","VO DANG HUY",2025,2025,"Méditerranée","CDB Alpes Maritimes",19056,"BILLARD CLUB DE NICE","19056 – BILLARD CLUB DE NICE","Oui","N1","N1",1.028,0.88400000000000001,"à","SELON RÈGLEMENT SPORTIF LIGUE"]
["154571M","VUILLAUME","JEAN CLAUDE","VUILLAUME JEAN CLAUDE",2025,2025,"Méditerranée","CDB Alpes Maritimes",19056,"BILLARD CLUB DE NICE","19056 – BILLARD CLUB DE NICE","Oui","R2","R2",0.192,0.16500000000000001,"à","SELON RÈGLEMENT SPORTIF LIGUE"]
["022480Q","VULTAGGIO","PIERRE","VULTAGGIO PIERRE",2013,2025,"Méditerranée","CDB Alpes Maritimes",19058,"ACADEMIE DE BILLARD DE BARBOSSI MANDELIEU","19058 – ACADEMIE DE BILLARD DE BARBOSSI MANDELIEU","Oui","R1","R1",0.34399999999999997,0.29599999999999999,"à","SELON RÈGLEMENT SPORTIF LIGUE"]
["117872O","WARLET","JEAN CLAUDE","WARLET JEAN CLAUDE",2025,2025,"Méditerranée","CDB Var",19061,"ACAD.BILLARD ST RAPHAEL","19061 – ACAD.BILLARD ST RAPHAEL","Oui","N2","N3",0.52300000000000002,0.45,"â","AUTORISÉ"]
["152534Y","WILLAME","PHILIPPE","WILLAME PHILIPPE",2025,2025,"Méditerranée","CDB Bouches du Rhône",19001,"S. S. A. B. D AIX EN PROVENCE","19001 – S. S. A. B. D AIX EN PROVENCE","Oui","-","R2",0.218,0.188,"à","SELON RÈGLEMENT SPORTIF LIGUE"]
["022483T","WILLETTE","MARC","WILLETTE MARC",2013,2021,"Méditerranée","CDB Bouches du Rhône",19009,"CLUB BILLARD ISTREEN","19009 – CLUB BILLARD ISTREEN","Oui","N3","R1",0.30299999999999999,0.26,"â","AUTORISÉ"]
["184288N","YVOZ","ALAIN","YVOZ ALAIN",2025,2025,"Méditerranée","CDB Vaucluse",19006,"BILLARD CLUB CARPENTRASSIEN","19006 – BILLARD CLUB CARPENTRASSIEN","Oui","R1","R1",0.38400000000000001,0.33,"à","SELON RÈGLEMENT SPORTIF LIGUE"]
["144788U","ZOPPI","AIME","ZOPPI AIME",2024,2025,"Méditerranée","CDB Var",19106,"BILLARD CLUB VINONNAIS","19106 – BILLARD CLUB VINONNAIS","Oui","N3","N3",0.45,0.38700000000000001,"à","SELON RÈGLEMENT SPORTIF LIGUE"]
["125457H","ZOPPI","CEDRIC","ZOPPI CEDRIC",2025,2025,"Méditerranée","CDB Var",19106,"BILLARD CLUB VINONNAIS","19106 – BILLARD CLUB VINONNAIS","Oui","N1","Masters",1.111,0.95599999999999996,"á","SELON RÈGLEMENT SPORTIF LIGUE"]
["022100A","GENTILI","ROBERTO",{"$f":"B314&\" \"&C314","v":"GENTILI ROBERTO"},2017,2018,"Méditerranée","CDB Alpes Maritimes",19056,"BILLARD CLUB DE NICE",{"$f":"I314&\" – \"&J314","v":"19056 – BILLARD CLUB DE NICE"},"Oui","N2","N2",0.66700000000000004,0.57299999999999995,"à","SELON RÈGLEMENT SPORTIF LIGUE"]
["151649L","GUEZOU","MATHIS","GUEZOU MATHIS",2017,2018,"Méditerranée","CDB Bouches du Rhône",19012,"SALON BILLARD CLUB","19012 – SALON BILLARD CLUB","Oui","R2","R2",0.14899999999999999,0.128,"à","SELON RÈGLEMENT SPORTIF LIGUE"]
["022215L","LOMBARDO","PHILIPPE","LOMBARDO PHILIPPE",2017,2018,"Méditerranée","CDB Alpes Maritimes",19055,"ACADEMIE DE BILLARD DE MENTON","19055 – ACADEMIE DE BILLARD DE MENTON","Oui","N2","N3",0.53600000000000003,0.46100000000000002,"â","AUTORISÉ"]
["107094A","LOPEZ","JOSE","LOPEZ JOSE",2013,2018,"Méditerranée","CDB Var",19106,"BILLARD CLUB VINONNAIS","19106 – BILLARD CLUB VINONNAIS","Oui","N2","N3",0.54900000000000004,0.47199999999999998,"â","AUTORISÉ"]
["022238I","MARTIN","FERNAND","MARTIN FERNAND",2017,2018,"Méditerranée","CDB Var",19106,"BILLARD CLUB VINONNAIS","19106 – BILLARD CLUB VINONNAIS","Oui","R1","R2",0.23699999999999999,0.20300000000000001,"â","AUTORISÉ"]
["015513R","MASSON","DENIS","MASSON DENIS",2012,2018,"Méditerranée","CDB Var",19023,"BILLARD CLUB GARDEEN","19023 – BILLARD CLUB GARDEEN","Oui","R2","R2",0.19800000000000001,0.17,"à","SELON RÈGLEMENT SPORTIF LIGUE"]
["014997V","MONTAY","JEAN CLAUDE","MONTAY JEAN CLAUDE",2018,2018,"Méditerranée","CDB Vaucluse",19027,"ACADEMIE DE BILLARD DE BOLLENE","19027 – ACADEMIE DE BILLARD DE BOLLENE","Oui","N3","R1",0.33500000000000002,0.28799999999999998,"â","AUTORISÉ"]
["022308A","PARINELLO","RENE","PARINELLO RENE",2009,2018,"Méditerranée","CDB Var",19023,"BILLARD CLUB GARDEEN","19023 – BILLARD CLUB GARDEEN","Oui","N3","N3",0.5,0.43,"à","SELON RÈGLEMENT SPORTIF LIGUE"]
["022341H","POIRET","JEAN MARC",{"$f":"B322&\" \"&C322","v":"POIRET JEAN MARC"},2017,2018,"Méditerranée","CDB Var",19061,"ACAD.BILLARD ST RAPHAEL",{"$f":"I322&\" – \"&J322","v":"19061 – ACAD.BILLARD ST RAPHAEL"},"Oui","R1","R2",0.20899999999999999,0.18,"â","AUTORISÉ"]
["148464Z","TERZIAN","BERNARD","TERZIAN BERNARD",2015,2018,"Méditerranée","CDB Bouches du Rhône",19090,"BILLARD AMATEUR ROGNAC","19090 – BILLARD AMATEUR ROGNAC","Oui","N3","N3",0.40799999999999997,0.35099999999999998,"à","SELON RÈGLEMENT SPORTIF LIGUE"]
["106514S","BRIQUET","ERIC","BRIQUET ERIC",2014,2017,"Méditerranée","CDB Bouches du Rhône",19012,"SALON BILLARD CLUB","19012 – SALON BILLARD CLUB","Oui","R2","R2",0.19400000000000001,0.16700000000000001,"à","SELON RÈGLEMENT SPORTIF LIGUE"]
["022013R","DELAGE","JEAN MARIE","DELAGE JEAN MARIE",2016,2017,"Méditerranée","CDB Alpes Maritimes",19056,"BILLARD CLUB DE NICE","19056 – BILLARD CLUB DE NICE","Oui","N2","N3",0.47199999999999998,0.40600000000000003,"â","AUTORISÉ"]
["117567V","ESTRUGO","HENRI","ESTRUGO HENRI",2016,2017,"Méditerranée","CDB Bouches du Rhône",19012,"SALON BILLARD CLUB","19012 – SALON BILLARD CLUB","Oui","R2","R2",0.151,0.13,"à","SELON RÈGLEMENT SPORTIF LIGUE"]
["139588U","FOURNIER","ANDRE","FOURNIER ANDRE",2016,2017,"Méditerranée","CDB Var",19023,"BILLARD CLUB GARDEEN","19023 – BILLARD CLUB GARDEEN","Oui","N3","N3",0.40200000000000002,0.34499999999999997,"à","SELON RÈGLEMENT SPORTIF LIGUE"]
["022101B","GEORGE","ALAIN","GEORGE ALAIN",2017,2017,"Méditerranée","CDB Alpes Maritimes",19057,"ACADEMIE VENCOISE DE BILLARD","19057 – ACADEMIE VENCOISE DE BILLARD","Oui","N3","R1",0.374,0.32100000000000001,"â","AUTORISÉ"]
["151648K","LECOQ","SYLVIE","LECOQ SYLVIE",2016,2017,"Méditerranée","CDB Bouches du Rhône",19012,"SALON BILLARD CLUB","19012 – SALON BILLARD CLUB","Oui","R2","R2",0.09,7.8E-2,"à","SELON RÈGLEMENT SPORTIF LIGUE"]
["141067R","LEVEQUE","DAVID","LEVEQUE DAVID",2017,2017,"Méditerranée","CDB Bouches du Rhône",19007,"BILLARD CLUB BERROIS","19007 – BILLARD CLUB BERROIS","Oui","N3","N3",0.438,0.377,"à","SELON RÈGLEMENT SPORTIF LIGUE"]
["101279J","MORENO","BASTIEN","MORENO BASTIEN",2017,2017,"Méditerranée","CDB Bouches du Rhône",19007,"BILLARD CLUB BERROIS","19007 – BILLARD CLUB BERROIS","Oui","R1","R1",0.33400000000000002,0.28699999999999998,"à","SELON RÈGLEMENT SPORTIF LIGUE"]
["022278W","MORPOURGO","SIMON","MORPOURGO SIMON",2017,2017,"Méditerranée","CDB Bouches du Rhône",19007,"BILLARD CLUB BERROIS","19007 – BILLARD CLUB BERROIS","Oui","R2","R2",0.16500000000000001,0.14199999999999999,"à","SELON RÈGLEMENT SPORTIF LIGUE"]
["112318Y","VUILLERMET","PIERRE","VUILLERMET PIERRE",2014,2017,"Méditerranée","CDB Bouches du Rhône",19098,"BILLARD CLUB LA FARE","19098 – BILLARD CLUB LA FARE","Oui","R1","R1",0.33200000000000002,0.28499999999999998,"à","SELON RÈGLEMENT SPORTIF LIGUE"]
["021826M","ARMENGAUD","NOEL","ARMENGAUD NOEL",2013,2016,"Méditerranée","CDB Bouches du Rhône",19009,"CLUB BILLARD ISTREEN","19009 – CLUB BILLARD ISTREEN","Oui","R1","R1",0.28199999999999997,0.24299999999999999,"à","SELON RÈGLEMENT SPORTIF LIGUE"]
["122928A","BULGHERONI","NICOLAS","BULGHERONI NICOLAS",2015,2016,"Méditerranée","CDB Alpes Maritimes",19055,"ACADEMIE DE BILLARD DE MENTON","19055 – ACADEMIE DE BILLARD DE MENTON","Oui","N3","N3",0.47899999999999998,0.41199999999999998,"à","SELON RÈGLEMENT SPORTIF LIGUE"]
["022206C","LEROY","ANDRE","LEROY ANDRE",2009,2016,"Méditerranée","CDB Alpes Maritimes",19058,"ACADEMIE DE BILLARD DE BARBOSSI MANDELIEU","19058 – ACADEMIE DE BILLARD DE BARBOSSI MANDELIEU","Oui","R1","R1",0.34599999999999997,0.29799999999999999,"à","SELON RÈGLEMENT SPORTIF LIGUE"]
["102551H","MISSION","JEAN","MISSION JEAN",2011,2016,"Méditerranée","CDB Alpes Maritimes",19058,"ACADEMIE DE BILLARD DE BARBOSSI MANDELIEU","19058 – ACADEMIE DE BILLARD DE BARBOSSI MANDELIEU","Oui","N3","R1",0.34300000000000003,0.29499999999999998,"â","AUTORISÉ"]
["112424A","PELLAT","JACQUES","PELLAT JACQUES",2015,2016,"Méditerranée","CDB Bouches du Rhône",19017,"BILLARD CLUB PHOCEEN","19017 – BILLARD CLUB PHOCEEN","Oui","N3","R1",0.35099999999999998,0.30199999999999999,"â","AUTORISÉ"]
["022354U","QUANTIN","MICHEL","QUANTIN MICHEL",2015,2016,"Méditerranée","CDB Bouches du Rhône",19098,"BILLARD CLUB LA FARE","19098 – BILLARD CLUB LA FARE","Oui","R1","R1",0.33200000000000002,0.28499999999999998,"à","SELON RÈGLEMENT SPORTIF LIGUE"]
["018691X","TREMEAU","PHILIPPE","TREMEAU PHILIPPE",2016,2016,"Méditerranée","CDB Var",19059,"BILLARD CLUB ROQUEBRUNOIS","19059 – BILLARD CLUB ROQUEBRUNOIS","Oui","N2","N3",0.54400000000000004,0.46800000000000003,"â","AUTORISÉ"]
["016451T","BETTES","CECILE","BETTES CECILE",2013,2015,"Méditerranée","CDB Bouches du Rhône",19012,"SALON BILLARD CLUB","19012 – SALON BILLARD CLUB","Oui","R1","R1",0.31900000000000001,0.27400000000000002,"à","SELON RÈGLEMENT SPORTIF LIGUE"]
["021953J","CASTA","JEAN","CASTA JEAN",2014,2015,"Méditerranée","CDB Alpes Haute Provence",19025,"BILLARD CLUB SISTERONNAIS","19025 – BILLARD CLUB SISTERONNAIS","Oui","N3","R1",0.35,0.30099999999999999,"â","AUTORISÉ"]
["021972C","CHAUVIN","JEAN PAUL","CHAUVIN JEAN PAUL",2013,2015,"Méditerranée","CDB Bouches du Rhône",19050,"BILLARD CLUB SAUSSETOIS","19050 – BILLARD CLUB SAUSSETOIS","Oui","R1","R1",0.35699999999999998,0.307,"à","SELON RÈGLEMENT SPORTIF LIGUE"]
["145444A","CHEVALLIER","MICHEL","CHEVALLIER MICHEL",2015,2015,"Méditerranée","CDB Var",19061,"ACAD.BILLARD ST RAPHAEL","19061 – ACAD.BILLARD ST RAPHAEL","Oui","R1","R1",0.28299999999999997,0.24299999999999999,"à","SELON RÈGLEMENT SPORTIF LIGUE"]
["149116H","COATMEUR","ALAN","COATMEUR ALAN",2014,2015,"Méditerranée","CDB Vaucluse",19014,"BILLARD CLUB AVIGNONNAIS","19014 – BILLARD CLUB AVIGNONNAIS","Oui","R1","R1",0.29099999999999998,0.251,"à","SELON RÈGLEMENT SPORTIF LIGUE"]
["109915N","GUSTIN","ANDRE","GUSTIN ANDRE",2013,2015,"Méditerranée","CDB Bouches du Rhône",19009,"CLUB BILLARD ISTREEN","19009 – CLUB BILLARD ISTREEN","Oui","R2","R2",0.20799999999999999,0.17799999999999999,"à","SELON RÈGLEMENT SPORTIF LIGUE"]
["022192O","LATIL","YVES","LATIL YVES",2014,2015,"Méditerranée","CDB Alpes Haute Provence",19025,"BILLARD CLUB SISTERONNAIS","19025 – BILLARD CLUB SISTERONNAIS","Oui","R1","R1",0.316,0.27100000000000002,"à","SELON RÈGLEMENT SPORTIF LIGUE"]
["022319L","PERIES","MICHEL","PERIES MICHEL",2014,2015,"Méditerranée","CDB Alpes Haute Provence",19025,"BILLARD CLUB SISTERONNAIS","19025 – BILLARD CLUB SISTERONNAIS","Oui","N2","N3",0.56200000000000006,0.48399999999999999,"â","AUTORISÉ"]
["022335B","PIONE","GUY","PIONE GUY",2009,2015,"Méditerranée","CDB Bouches du Rhône",19007,"BILLARD CLUB BERROIS","19007 – BILLARD CLUB BERROIS","Oui","R1","R1",0.34300000000000003,0.29499999999999998,"à","SELON RÈGLEMENT SPORTIF LIGUE"]
["138807T","WARIN","ALAIN","WARIN ALAIN",2015,2015,"Méditerranée","CDB Vaucluse",19016,"BILLARD CLUB ORANGEOIS","19016 – BILLARD CLUB ORANGEOIS","Oui","R2","R2",0.18099999999999999,0.155,"à","SELON RÈGLEMENT SPORTIF LIGUE"]
["114501X","CHADELAT","BERNARD","CHADELAT BERNARD",2014,2014,"Méditerranée","CDB Var",19106,"BILLARD CLUB VINONNAIS","19106 – BILLARD CLUB VINONNAIS","Oui","R1","R1",0.35,0.30099999999999999,"à","SELON RÈGLEMENT SPORTIF LIGUE"]
["147554K","DUPERRAY","ALEX","DUPERRAY ALEX",2013,2014,"Méditerranée","CDB Vaucluse",19016,"BILLARD CLUB ORANGEOIS","19016 – BILLARD CLUB ORANGEOIS","Oui","R2","R2",0.17399999999999999,0.14899999999999999,"à","SELON RÈGLEMENT SPORTIF LIGUE"]
["131535B","LEVAVASSEUR","ROBERT","LEVAVASSEUR ROBERT",2009,2014,"Méditerranée","CDB Alpes Haute Provence",19025,"BILLARD CLUB SISTERONNAIS","19025 – BILLARD CLUB SISTERONNAIS","Oui","N2","N3",0.56899999999999995,0.48899999999999999,"â","AUTORISÉ"]
["022239J","MARTIN","MICHEL","MARTIN MICHEL",2013,2014,"Méditerranée","CDB Bouches du Rhône",19090,"BILLARD AMATEUR ROGNAC","19090 – BILLARD AMATEUR ROGNAC","Oui","N3","R1",0.30299999999999999,0.26100000000000001,"â","AUTORISÉ"]
["017857V","PRACHAR","JEAN PIERRE","PRACHAR JEAN PIERRE",2009,2014,"Méditerranée","CDB Var",19059,"BILLARD CLUB ROQUEBRUNOIS","19059 – BILLARD CLUB ROQUEBRUNOIS","Oui","R1","R1",0.28499999999999998,0.245,"à","SELON RÈGLEMENT SPORTIF LIGUE"]
["022371L","RIGA","JEAN LOUIS","RIGA JEAN LOUIS",2011,2014,"Méditerranée","CDB Bouches du Rhône",19002,"SPORT AMAT.DE BILLARD MARSEILLAIS","19002 – SPORT AMAT.DE BILLARD MARSEILLAIS","Oui","N3","R1",0.36099999999999999,0.31,"â","AUTORISÉ"]
["122939L","SAVOIA","MICKAEL","SAVOIA MICKAEL",2011,2014,"Méditerranée","CDB Bouches du Rhône",19050,"BILLARD CLUB SAUSSETOIS","19050 – BILLARD CLUB SAUSSETOIS","Oui","R2","R2",0.19800000000000001,0.17,"à","SELON RÈGLEMENT SPORTIF LIGUE"]
["144720E","STERCKX","PIERRE","STERCKX PIERRE",2014,2014,"Méditerranée","CDB Vaucluse",19016,"BILLARD CLUB ORANGEOIS","19016 – BILLARD CLUB ORANGEOIS","Oui","R2","R2",0.183,0.157,"à","SELON RÈGLEMENT SPORTIF LIGUE"]
["136537L","VASSALLUCCI","ERIC","VASSALLUCCI ERIC",2012,2014,"Méditerranée","CDB Bouches du Rhône",19017,"BILLARD CLUB PHOCEEN","19017 – BILLARD CLUB PHOCEEN","Oui","R2","R2",0.193,0.16600000000000001,"à","SELON RÈGLEMENT SPORTIF LIGUE"]
["101283N","WOILLEZ","FRANCIS","WOILLEZ FRANCIS",2014,2014,"Méditerranée","CDB Vaucluse",19014,"BILLARD CLUB AVIGNONNAIS","19014 – BILLARD CLUB AVIGNONNAIS","Oui","R2","R2",0.19,0.16300000000000001,"à","SELON RÈGLEMENT SPORTIF LIGUE"]
["021958O","CHABERT","JEAN PIERRE","CHABERT JEAN PIERRE",2009,2013,"Méditerranée","CDB Vaucluse",19021,"BILLARD CLUB CAVAILLONNAIS","19021 – BILLARD CLUB CAVAILLONNAIS","Oui","R1","R1",0.34200000000000003,0.29399999999999998,"à","SELON RÈGLEMENT SPORTIF LIGUE"]
["127970Y","CONSOLIN","DANIEL","CONSOLIN DANIEL",2009,2013,"Méditerranée","CDB Bouches du Rhône",19007,"BILLARD CLUB BERROIS","19007 – BILLARD CLUB BERROIS","Oui","R2","R2",0.18,0.154,"à","SELON RÈGLEMENT SPORTIF LIGUE"]
["020524K","DEMANET","CLAUDE","DEMANET CLAUDE",2011,2013,"Méditerranée","CDB Alpes Maritimes",19057,"ACADEMIE VENCOISE DE BILLARD","19057 – ACADEMIE VENCOISE DE BILLARD","Oui","N2","N3",0.504,0.434,"â","AUTORISÉ"]
["013003D","DORNEL","GERARD","DORNEL GERARD",2011,2013,"Méditerranée","CDB Var",19061,"ACAD.BILLARD ST RAPHAEL","19061 – ACAD.BILLARD ST RAPHAEL","Oui","N3","R1",0.28399999999999997,0.245,"â","AUTORISÉ"]
["110799N","LEBAR","PATRICK","LEBAR PATRICK",2013,2013,"Méditerranée","CDB Bouches du Rhône",19090,"BILLARD AMATEUR ROGNAC","19090 – BILLARD AMATEUR ROGNAC","Oui","N3","R1",0.36099999999999999,0.31,"â","AUTORISÉ"]
["022198U","LEBRASSEUR","GILBERT","LEBRASSEUR GILBERT",2009,2013,"Méditerranée","CDB Alpes Maritimes",19058,"ACADEMIE DE BILLARD DE BARBOSSI MANDELIEU","19058 – ACADEMIE DE BILLARD DE BARBOSSI MANDELIEU","Oui","N3","N3",0.41499999999999998,0.35699999999999998,"à","SELON RÈGLEMENT SPORTIF LIGUE"]
["137032M","MARTIN","THOMAS","MARTIN THOMAS",2012,2013,"Méditerranée","CDB Vaucluse",19027,"ACADEMIE DE BILLARD DE BOLLENE","19027 – ACADEMIE DE BILLARD DE BOLLENE","Oui","R1","R1",0.33500000000000002,0.28799999999999998,"à","SELON RÈGLEMENT SPORTIF LIGUE"]
["104487T","NOEL","SYLVAIN","NOEL SYLVAIN",2008,2013,"Méditerranée","CDB Alpes Maritimes",19058,"ACADEMIE DE BILLARD DE BARBOSSI MANDELIEU","19058 – ACADEMIE DE BILLARD DE BARBOSSI MANDELIEU","Oui","R1","R1",0.315,0.27,"à","SELON RÈGLEMENT SPORTIF LIGUE"]
["022302U","PAGANONI","GEORGES","PAGANONI GEORGES",2012,2013,"Méditerranée","CDB Var",19023,"BILLARD CLUB GARDEEN","19023 – BILLARD CLUB GARDEEN","Oui","N3","R1",0.372,0.32,"â","AUTORISÉ"]
["022360A","REMUS","STEPHANE","REMUS STEPHANE",2011,2013,"Méditerranée","CDB Alpes Maritimes",19056,"BILLARD CLUB DE NICE","19056 – BILLARD CLUB DE NICE","Oui","N2","N2",0.59699999999999998,0.51300000000000001,"à","SELON RÈGLEMENT SPORTIF LIGUE"]
["118668E","TATTIS","HENRI","TATTIS HENRI",2010,2013,"Méditerranée","CDB Bouches du Rhône",19050,"BILLARD CLUB SAUSSETOIS","19050 – BILLARD CLUB SAUSSETOIS","Oui","R1","R1",0.28799999999999998,0.248,"à","SELON RÈGLEMENT SPORTIF LIGUE"]
["022440C","TORREGROSA","GILBERT","TORREGROSA GILBERT",2011,2013,"Méditerranée","CDB Alpes Maritimes",19058,"ACADEMIE DE BILLARD DE BARBOSSI MANDELIEU","19058 – ACADEMIE DE BILLARD DE BARBOSSI MANDELIEU","Oui","R1","R1",0.317,0.27200000000000002,"à","SELON RÈGLEMENT SPORTIF LIGUE"]
["018722C","TROEGNER","DANIEL","TROEGNER DANIEL",2013,2013,"Méditerranée","CDB Var",19059,"BILLARD CLUB ROQUEBRUNOIS","19059 – BILLARD CLUB ROQUEBRUNOIS","Oui","N3","N3",0.43,0.37,"à","SELON RÈGLEMENT SPORTIF LIGUE"]
["107457Z","TRUCCO","DAMIEN","TRUCCO DAMIEN",2008,2013,"Méditerranée","CDB Var",19023,"BILLARD CLUB GARDEEN","19023 – BILLARD CLUB GARDEEN","Oui","N2","N2",0.63200000000000001,0.54400000000000004,"à","SELON RÈGLEMENT SPORTIF LIGUE"]
["125928K","VERRIER","JEAN PIERRE","VERRIER JEAN PIERRE",2009,2013,"Méditerranée","CDB Bouches du Rhône",19012,"SALON BILLARD CLUB","19012 – SALON BILLARD CLUB","Oui","N3","N3",0.48099999999999998,0.41299999999999998,"à","SELON RÈGLEMENT SPORTIF LIGUE"]
["127654U","ANGIOLINI","PIERRE","ANGIOLINI PIERRE",2012,2011,"Méditerranée","CDB Alpes Maritimes",19057,"ACADEMIE VENCOISE DE BILLARD","19057 – ACADEMIE VENCOISE DE BILLARD","Oui","N2","N3",0.54,0.46400000000000002,"â","AUTORISÉ"]
["021971B","CHARTIER","YVES","CHARTIER YVES",2012,2011,"Méditerranée","CDB Bouches du Rhône",19090,"BILLARD AMATEUR ROGNAC","19090 – BILLARD AMATEUR ROGNAC","Oui","R1","R2",0.17799999999999999,0.153,"â","AUTORISÉ"]
["022088O","FUTERAL","MAX","FUTERAL MAX",2012,2011,"Méditerranée","CDB Var",983,"Licenciés indépendants 83","983 – Licenciés indépendants 83","Oui","N2","N3",0.48699999999999999,0.41899999999999998,"â","AUTORISÉ"]
["114274E","MACIA","RENE","MACIA RENE",2011,2011,"Méditerranée","CDB Alpes Maritimes",19057,"ACADEMIE VENCOISE DE BILLARD","19057 – ACADEMIE VENCOISE DE BILLARD","Oui","N1","N2",0.63600000000000001,0.54700000000000004,"â","AUTORISÉ"]
["133204G","MICHEL GROSJEAN","CEDRIC","MICHEL GROSJEAN CEDRIC",2011,2011,"Méditerranée","CDB Alpes Maritimes",19057,"ACADEMIE VENCOISE DE BILLARD","19057 – ACADEMIE VENCOISE DE BILLARD","Oui","R1","R1",0.314,0.27,"à","SELON RÈGLEMENT SPORTIF LIGUE"]
["105442M","PARIZE","MICHEL","PARIZE MICHEL",2011,2011,"Méditerranée","CDB Alpes Maritimes",19058,"ACADEMIE DE BILLARD DE BARBOSSI MANDELIEU","19058 – ACADEMIE DE BILLARD DE BARBOSSI MANDELIEU","Oui","Masters","Masters",1.054,0.90700000000000003,"à","SELON RÈGLEMENT SPORTIF LIGUE"]
["022353T","PUT","MARCEL","PUT MARCEL",2011,2011,"Méditerranée","CDB Vaucluse",19006,"BILLARD CLUB CARPENTRASSIEN","19006 – BILLARD CLUB CARPENTRASSIEN","Oui","R2","R2",0.17199999999999999,0.14799999999999999,"à","SELON RÈGLEMENT SPORTIF LIGUE"]
["103561D","RAVERDINO","JULIEN","RAVERDINO JULIEN",2012,2011,"Méditerranée","CDB Alpes Maritimes",19057,"ACADEMIE VENCOISE DE BILLARD","19057 – ACADEMIE VENCOISE DE BILLARD","Oui","N2","N3",0.54300000000000004,0.46700000000000003,"â","AUTORISÉ"]
["021823J","APREA","ARMANDO","APREA ARMANDO",2009,2010,"Méditerranée","CDB Var",19106,"BILLARD CLUB VINONNAIS","19106 – BILLARD CLUB VINONNAIS","Oui","R1","R1",0.34899999999999998,0.3,"à","SELON RÈGLEMENT SPORTIF LIGUE"]
["021898G","BONSIGNORI","PATRICK","BONSIGNORI PATRICK",2010,2010,"Méditerranée","CDB Bouches du Rhône",19002,"SPORT AMAT.DE BILLARD MARSEILLAIS","19002 – SPORT AMAT.DE BILLARD MARSEILLAIS","Oui","N3","N3",0.46,0.39500000000000002,"à","SELON RÈGLEMENT SPORTIF LIGUE"]
["101490M","COURRET","JEAN PAUL",{"$f":"B386&\" \"&C386","v":"COURRET JEAN PAUL"},2011,2010,"Méditerranée","CDB Bouches du Rhône",19007,"BILLARD CLUB BERROIS",{"$f":"I386&\" – \"&J386","v":"19007 – BILLARD CLUB BERROIS"},"Oui","R1","R2",0.192,0.16500000000000001,"â","AUTORISÉ"]
["109536Y","DEBERNARDI","ARNAUD","DEBERNARDI ARNAUD",2009,2010,"Méditerranée","CDB Bouches du Rhône",19007,"BILLARD CLUB BERROIS","19007 – BILLARD CLUB BERROIS","Oui","N3","N3",0.47099999999999997,0.40500000000000003,"à","SELON RÈGLEMENT SPORTIF LIGUE"]
["142272A","GARREVOET","DENIS","GARREVOET DENIS",2011,2010,"Méditerranée","CDB Vaucluse",19027,"ACADEMIE DE BILLARD DE BOLLENE","19027 – ACADEMIE DE BILLARD DE BOLLENE","Oui","R1","R1",0.32600000000000001,0.28000000000000003,"à","SELON RÈGLEMENT SPORTIF LIGUE"]
["022154C","ICART","MICHEL","ICART MICHEL",2009,2010,"Méditerranée","CDB Alpes Maritimes",19057,"ACADEMIE VENCOISE DE BILLARD","19057 – ACADEMIE VENCOISE DE BILLARD","Oui","N3","R1",0.36599999999999999,0.314,"â","AUTORISÉ"]
["022203Z","LEDRU","RAYMOND","LEDRU RAYMOND",2011,2010,"Méditerranée","CDB Var",19020,"A.O.C. LA VALETTE SECTION BILLARD","19020 – A.O.C. LA VALETTE SECTION BILLARD","Oui","N2","N3",0.45900000000000002,0.39400000000000002,"â","AUTORISÉ"]
["135537Z","LEDU","GERARD","LEDU GERARD",2008,2010,"Méditerranée","CDB Vaucluse",19006,"BILLARD CLUB CARPENTRASSIEN","19006 – BILLARD CLUB CARPENTRASSIEN","Oui","R2","R2",0.108,9.2999999999999999E-2,"à","SELON RÈGLEMENT SPORTIF LIGUE"]
["130160E","MASRASLIGILLER","MARDIROS","MASRASLIGILLER MARDIROS",2008,2010,"Méditerranée","CDB Alpes Maritimes",19056,"BILLARD CLUB DE NICE","19056 – BILLARD CLUB DE NICE","Oui","R1","R1",0.31,0.26700000000000002,"à","SELON RÈGLEMENT SPORTIF LIGUE"]
["022401P","SCHMIDT","CLAUDE","SCHMIDT CLAUDE",2009,2010,"Méditerranée","CDB Var",19023,"BILLARD CLUB GARDEEN","19023 – BILLARD CLUB GARDEEN","Oui","N3","N3",0.45900000000000002,0.39500000000000002,"à","SELON RÈGLEMENT SPORTIF LIGUE"]
["139284C","SCHOLTEN","GERT","SCHOLTEN GERT",2011,2010,"Méditerranée","CDB Var",19020,"A.O.C. LA VALETTE SECTION BILLARD","19020 – A.O.C. LA VALETTE SECTION BILLARD","Oui","N3","R1",0.38500000000000001,0.33100000000000002,"â","AUTORISÉ"]
["022448K","TRUCCO","DOMINIQUE","TRUCCO DOMINIQUE",2010,2010,"Méditerranée","CDB Var",19023,"BILLARD CLUB GARDEEN","19023 – BILLARD CLUB GARDEEN","Oui","N3","N3",0.48499999999999999,0.41699999999999998,"à","SELON RÈGLEMENT SPORTIF LIGUE"]
["125947D","BOMBA","OLIVIER","BOMBA OLIVIER",2009,2009,"Méditerranée","CDB Var",19061,"ACAD.BILLARD ST RAPHAEL","19061 – ACAD.BILLARD ST RAPHAEL","Oui","R2","R2",0.21,0.18,"à","SELON RÈGLEMENT SPORTIF LIGUE"]
["139222S","BUSSONE","REGIS","BUSSONE REGIS",2008,2009,"Méditerranée","CDB Bouches du Rhône",19090,"BILLARD AMATEUR ROGNAC","19090 – BILLARD AMATEUR ROGNAC","Oui","R2","R2",0.16200000000000001,0.13900000000000001,"à","SELON RÈGLEMENT SPORTIF LIGUE"]
["105485D","POZNANSKI","LOIC","POZNANSKI LOIC",2008,2008,"Méditerranée","CDB Bouches du Rhône",19012,"SALON BILLARD CLUB","19012 – SALON BILLARD CLUB","Oui","N3","R1",0.38400000000000001,0.33,"â","AUTORISÉ"]
["101519P","RAVEL","PIERRE","RAVEL PIERRE",2009,2008,"Méditerranée","CDB Bouches du Rhône",19017,"BILLARD CLUB PHOCEEN","19017 – BILLARD CLUB PHOCEEN","Oui","N3","R1",0.38,0.32600000000000001,"â","AUTORISÉ"]
["010401B","CAILLET","PATRICK","CAILLET PATRICK",2008,2007,"Méditerranée","CDB Var",19023,"BILLARD CLUB GARDEEN","19023 – BILLARD CLUB GARDEEN","Oui","N3","N3",0.48,0.41299999999999998,"à","SELON RÈGLEMENT SPORTIF LIGUE"]
["022076C","FERRAT","RAYMOND","FERRAT RAYMOND",2008,2007,"Méditerranée","CDB Bouches du Rhône",19012,"SALON BILLARD CLUB","19012 – SALON BILLARD CLUB","Oui","N1","N2",0.72799999999999998,0.626,"â","AUTORISÉ"]